Workbook

Sheet Millwall
C1: 1 | AM1: c | AN1: d | AO1: ak | AP1: g | AQ1: h | AR1: i | AS1: l | AT1: m | AU1: o | AV1: q | AW1: s | AX1: u | AY1: w | AZ1: x | BA1: y | BB1: z | BC1: aa | BD1: ab | BE1: fg | BF1: fh
B2: 1 | C2: 2 | D2: 3 | E2: 4 | G2: 5 | H2: 6 | I2: 7 | L2: 8 | M2: 9 | O2: 10 | Q2: 11 | S2: 12 | U2: 13 | W2: 14 | X2: 15 | Y2: 16 | Z2: 17 | AA2: 18 | AB2: 19 | AE2: 20 | AM2: Game | AN2: Competition | AO2: Date | AP2: UsThem | AQ2: Opponents | AR2: Ven | AS2: Score | AT2: HT | AU2: Yell | AV2: Red | AW2: YellA | AX2: RedA | AY2: Ref | AZ2: Att | BA2: Away | BB2: Pts | BC2: Pos | BD2: Pens | BE2: Goals | BF2: OppGls | BJ2: ResWLD
O3: Us | S3: Them | AK3: =TEXT($E5,"DDD-DD-MMM-YY") -> Sat-09-Aug-14 | AL3: 1 | AM3: ="var "&AM$2&$AL3&"= "&C5 -> var Game1= 1 | AN3: ="var "&AN$2&$AL3&"= """&D5&"""" -> var Competition1= "Championship" | AO3: ="var "&AO$2&$AL3&"= """&AK3&"""" -> var Date1= "Sat-09-Aug-14" | AP3: ="var "&AP$2&$AL3&"= """&G5&"""" -> var UsThem1= "- -" | AQ3: ="var "&AQ$2&$AL3&"= """&H5&"""" -> var Opponents1= "Leeds" | AR3: ="var "&AR$2&$AL3&"= """&I5&"""" -> var Ven1= "(H)" | AS3: ="var "&AS$2&$AL3&"= """&L5&"""" -> var Score1= "W 2-0" | AT3: ="var "&AT$2&$AL3&"= """&M5&"""" -> var HT1= "1-0" | AU3: ="var "&AU$2&$AL3&"= """&O5&"""" -> var Yell1= "-" | AV3: ="var "&AV$2&$AL3&"= """&Q5&"""" -> var Red1= "-" | AW3: ="var "&AW$2&$AL3&"= """&S5&"""" -> var YellA1= "-" | AX3: ="var "&AX$2&$AL3&"= """&U5&"""" -> var RedA1= "-" | AY3: ="var "&AY$2&$AL3&"= """&W5&"""" -> var Ref1= "O Langford" | AZ3: ="var "&AZ$2&$AL3&"= """&X5&"""" -> var Att1= "16205" | BA3: ="var "&BA$2&$AL3&"= """&Y5&"""" -> var Away1= "2171" | BB3: ="var "&BB$2&$AL3&"= """&Z5&"""" -> var Pts1= "3" | BC3: ="var "&BC$2&$AL3&"= """&AA5&"""" -> var Pos1= "4" | BD3: ="var "&BD$2&$AL3&"= """&AB5&"""" -> var Pens1= "-" | BE3: ="var "&BE$2&$AL3&"= """&BH3&"""" -> var Goals1= "Beevers (8) Williams (88 pen)" | BF3: ="var "&BF$2&$AL3&"= """&BI3&"""" -> var OppGls1= "" | BH3: Beevers (8) Williams (88 pen) | BJ3: ="var "&BJ$2&$AL3&"= """&J5&"""" -> var ResWLD1= "W"
C4: Game | D4: Competition | E4: Date | G4: Us & Them | H4: Opponents | I4: Ven | L4: Score | M4: HT | O4: n | Q4: n | S4: n | U4: n | W4: Ref | X4: Att | Y4: Away | Z4: Pts | AA4: Pos | AB4: Pens | AC4: Corners | AE4: Goal Scorers | AK4: Tue-12-Aug-14 | AL4: 2 | AM4: var Game2= 2 | AN4: var Competition2= "Capital One (1)" | AO4: ="var "&AO$2&$AL4&"= """&AK4&"""" -> var Date2= "Tue-12-Aug-14" | AP4: var UsThem2= "- -" | AQ4: var Opponents2= "Wycombe Wanderers" | AR4: var Ven2= "(H)" | AS4: var Score2= "W 1-0" | AT4: var HT2= "1-0" | AU4: var Yell2= "2" | AV4: var Red2= "1" | AW4: var YellA2= "1" | AX4: var RedA2= "-" | AY4: var Ref2= "A D'Urso" | AZ4: var Att2= "3403" | BA4: var Away2= "342" | BB4: var Pts2= "-" | BC4: var Pos2= "-" | BD4: var Pens2= "-" | BE4: ="var "&BE$2&$AL4&"= """&BH4&"""" -> var Goals2= "Briggs (27)" | BF4: ="var "&BF$2&$AL4&"= """&BI4&"""" -> var OppGls2= "" | BH4: Briggs (27) | BJ4: ="var "&BJ$2&$AL4&"= """&J6&"""" -> var ResWLD2= "W"
A5: 1 | C5: 1 | D5: Championship | E5: 2014-08-09 | G5: - - | H5: Leeds | I5: (H) | J5: =(LEFT(L5,1)) -> W | L5: W 2-0 | M5: 1-0 | O5: - | Q5: - | S5: - | U5: - | W5: O Langford | X5: 16205 | Y5: 2171 | Z5: 3 | AA5: 4 | AB5: - | AC5: 4 | AD5: 5 | AE5: Beevers (8) Williams (88 pen) | AK5: Sat-16-Aug-14 | AL5: 3 | AM5: var Game3= 3 | AN5: var Competition3= "Championship" | AO5: var Date3= "Sat-16-Aug-14" | AP5: var UsThem3= "4th v 16th" | AQ5: var Opponents3= "Fulham" | AR5: var Ven3= "(A)" | AS5: var Score3= "W 1-0" | AT5: var HT3= "1-0" | AU5: var Yell3= "-" | AV5: var Red3= "-" | AW5: var YellA3= "3" | AX5: var RedA3= "-" | AY5: var Ref3= "L Mason" | AZ5: var Att3= "18988" | BA5: var Away3= "3929" | BB5: var Pts3= "6" | BC5: var Pos3= "2" | BD5: var Pens3= "-" | BE5: var Goals3= "Woolford (12)" | BF5: var OppGls3= "" | BH5: Woolford (12) | BJ5: var ResWLD3= "W"
A6: =IF(A5=1,2,1) -> 2 | C6: 2 | D6: Capital One (1) | E6: 2014-08-12 | G6: - - | H6: Wycombe Wanderers | I6: (H) | J6: =(LEFT(L6,1)) -> W | L6: W 1-0 | M6: 1-0 | O6: 2 | Q6: 1 | S6: 1 | U6: - | W6: A D'Urso | X6: 3403 | Y6: 342 | Z6: - | AA6: - | AB6: - | AC6: 2 | AD6: 5 | AE6: Briggs (27) | AK6: Tue-19-Aug-14 | AL6: 4 | AM6: var Game4= 4 | AN6: var Competition4= "Championship" | AO6: var Date4= "Tue-19-Aug-14" | AP6: var UsThem4= "2nd v 9th" | AQ6: var Opponents4= "Sheff Wed" | AR6: var Ven4= "(A)" | AS6: var Score4= "D 1-1" | AT6: var HT4= "0-0" | AU6: var Yell4= "1" | AV6: var Red4= "-" | AW6: var YellA4= "2" | AX6: var RedA4= "-" | AY6: var Ref4= "N Miller" | AZ6: var Att4= "20636" | BA6: var Away4= "427" | BB6: var Pts4= "7" | BC6: var Pos4= "3" | BD6: var Pens4= "PM" | BE6: var Goals4= "Gueye (90+5)" | BF6: var OppGls4= "Maguire (57)" | BH6: Gueye (90+5) | BI6: Maguire (57) | BJ6: var ResWLD4= "D"
A7: 1 | C7: 3 | D7: Championship | E7: 2014-08-16 | G7: 4th v 16th | H7: Fulham | I7: (A) | J7: =(LEFT(L7,1)) -> W | L7: W 1-0 | M7: 1-0 | O7: - | Q7: - | S7: 3 | U7: - | W7: L Mason | X7: 18988 | Y7: 3929 | Z7: 6 | AA7: 2 | AB7: - | AC7: 2 | AD7: 11 | AE7: Woolford (12) | AK7: Sat-23-Aug-14 | AL7: 5 | AM7: var Game5= 5 | AN7: var Competition5= "Championship" | AO7: ="var "&AO$2&$AL7&"= """&AK7&"""" -> var Date5= "Sat-23-Aug-14" | AP7: var UsThem5= "3rd v 18th" | AQ7: var Opponents5= "Rotherham" | AR7: var Ven5= "(H)" | AS7: var Score5= "L 0-1" | AT7: var HT5= "0-0" | AU7: var Yell5= "1" | AV7: var Red5= "-" | AW7: var YellA5= "2" | AX7: var RedA5= "-" | AY7: var Ref5= "P Tierney" | AZ7: var Att5= "10282" | BA7: var Away5= "410" | BB7: var Pts5= "7" | BC7: var Pos5= "9" | BD7: var Pens5= "-" | BE7: var Goals5= "" | BF7: var OppGls5= "Pringle (49)" | BI7: Pringle (49) | BJ7: var ResWLD5= "L"
A8: 2 | C8: 4 | D8: Championship | E8: 2014-08-19 | G8: 2nd v 9th | H8: Sheff Wed | I8: (A) | J8: =(LEFT(L8,1)) -> D | L8: D 1-1 | M8: 0-0 | O8: 1 | Q8: - | S8: 2 | U8: - | W8: N Miller | X8: 20636 | Y8: 427 | Z8: 7 | AA8: 3 | AB8: PM | AC8: 5 | AD8: 8 | AE8: Gueye (90+5) / Maguire (57) | AK8: Tue-26-Aug-14 | AL8: 6 | AM8: var Game6= 6 | AN8: var Competition6= "Capital One (2)" | AO8: var Date6= "Tue-26-Aug-14" | AP8: var UsThem6= "- -" | AQ8: var Opponents6= "Southampton" | AR8: var Ven6= "(H)" | AS8: var Score6= "L 0-2" | AT8: var HT6= "0-0" | AU8: var Yell6= "1" | AV8: var Red6= "-" | AW8: var YellA6= "2" | AX8: var RedA6= "-" | AY8: var Ref6= "D Whitestone" | AZ8: var Att6= "6014" | BA8: var Away6= "1011" | BB8: var Pts6= "-" | BC8: var Pos6= "-" | BD8: var Pens6= "-" | BE8: var Goals6= "" | BF8: var OppGls6= "Cork (53) Pelle (90+3)" | BI8: Cork (53) Pelle (90+3) | BJ8: var ResWLD6= "L"
A9: 1 | C9: 5 | D9: Championship | E9: 2014-08-23 | G9: 3rd v 18th | H9: Rotherham | I9: (H) | J9: L | L9: L 0-1 | M9: 0-0 | O9: 1 | Q9: - | S9: 2 | U9: - | W9: P Tierney | X9: 10282 | Y9: 410 | Z9: 7 | AA9: 9 | AB9: - | AC9: 10 | AD9: 6 | AE9: Pringle (49) | AK9: =TEXT($E11,"DDD-DD-MMM-YY") -> Sat-30-Aug-14 | AL9: 7 | AM9: ="var "&AM$2&$AL9&"= "&AL9 -> var Game7= 7 | AN9: var Competition7= "Championship" | AO9: var Date7= "Sat-30-Aug-14" | AP9: var UsThem7= "9th v 23rd" | AQ9: var Opponents7= "Blackpool" | AR9: var Ven7= "(H)" | AS9: var Score7= "W 2-1" | AT9: var HT7= "1-0" | AU9: var Yell7= "3" | AV9: var Red7= "-" | AW9: var YellA7= "3" | AX9: var RedA7= "-" | AY9: var Ref7= "A Woolmer" | AZ9: var Att7= "9877" | BA9: var Away7= "445" | BB9: var Pts7= "10" | BC9: var Pos7= "5" | BD9: var Pens7= "-" | BE9: var Goals7= "McDonald (33) Malone (51)" | BF9: var OppGls7= "Ranger (71)" | BH9: McDonald (33) Malone (51) | BI9: Ranger (71) | BJ9: var ResWLD7= "W"
A10: 2 | C10: 6 | D10: Capital One (2) | E10: 2014-08-26 | G10: - - | H10: Southampton | I10: (H) | J10: L | L10: L 0-2 | M10: 0-0 | O10: 1 | Q10: - | S10: 2 | U10: - | W10: D Whitestone | X10: 6014 | Y10: 1011 | Z10: - | AA10: - | AB10: - | AC10: 2 | AD10: 5 | AE10: Cork (53) Pelle (90+3) | AK10: Sat-13-Sep-14 | AL10: 8 | AM10: ="var "&AM$2&$AL10&"= "&AL10 -> var Game8= 8 | AN10: var Competition8= "Championship" | AO10: var Date8= "Sat-13-Sep-14" | AP10: var UsThem8= "5th v 19th" | AQ10: var Opponents8= "Ipswich" | AR10: var Ven8= "(A)" | AS10: var Score8= "L 0-2" | AT10: var HT8= "0-1" | AU10: var Yell8= "-" | AV10: var Red8= "-" | AW10: var YellA8= "1" | AX10: var RedA8= "-" | AY10: var Ref8= "C Berry" | AZ10: var Att8= "16190" | BA10: var Away8= "1329" | BB10: var Pts8= "10" | BC10: var Pos8= "7" | BD10: var Pens8= "-" | BE10: var Goals8= "" | BF10: var OppGls8= "McGoldrick (45) Murphy (63)" | BI10: McGoldrick (45) Murphy (63) | BJ10: var ResWLD8= "L"
A11: 1 | C11: 7 | D11: Championship | E11: 2014-08-30 | G11: 9th v 23rd | H11: Blackpool | I11: (H) | J11: W | L11: W 2-1 | M11: 1-0 | O11: 3 | Q11: - | S11: 3 | U11: - | W11: A Woolmer | X11: 9877 | Y11: 445 | Z11: 10 | AA11: 5 | AB11: - | AC11: 5 | AD11: 2 | AE11: McDonald (33) Malone (51) / Ranger (71) | AK11: Tue-16-Sep-14 | AL11: 9 | AM11: var Game9= 9 | AN11: var Competition9= "Championship" | AO11: var Date9= "Tue-16-Sep-14" | AP11: var UsThem9= "7th v 9th" | AQ11: var Opponents9= "Reading" | AR11: var Ven9= "(A)" | AS11: var Score9= "L 2-3" | AT11: var HT9= "1-2" | AU11: var Yell9= "2" | AV11: var Red9= "-" | AW11: var YellA9= "-" | AX11: var RedA9= "-" | AY11: var Ref9= "K Hill" | AZ11: var Att9= "15091" | BA11: var Away9= "871" | BB11: var Pts9= "10" | BC11: var Pos9= "12" | BD11: var Pens9= "-" | BE11: var Goals9= "Fuller (39) Beevers (54)" | BF11: var OppGls9= "Cox (6) & (84) Blackman (15 pen)" | BH11: Fuller (39) Beevers (54) | BI11: Cox (6) & (84) Blackman (15 pen) | BJ11: var ResWLD9= "L"
A12: 2 | C12: 8 | D12: Championship | E12: 2014-09-13 | G12: 5th v 19th | H12: Ipswich | I12: (A) | J12: L | L12: L 0-2 | M12: 0-1 | O12: - | Q12: - | S12: 1 | U12: - | W12: C Berry | X12: 16190 | Y12: 1329 | Z12: 10 | AA12: 7 | AB12: - | AC12: 6 | AD12: 8 | AE12: McGoldrick (45) Murphy (63) | AK12: Sat-20-Sep-14 | AL12: 10 | AM12: var Game10= 10 | AN12: var Competition10= "Championship" | AO12: var Date10= "Sat-20-Sep-14" | AP12: var UsThem10= "12th v 1st" | AQ12: var Opponents10= "Nottm Forest" | AR12: var Ven10= "(H)" | AS12: var Score10= "D 0-0" | AT12: var HT10= "0-0" | AU12: var Yell10= "2" | AV12: var Red10= "-" | AW12: var YellA10= "3" | AX12: var RedA10= "-" | AY12: var Ref10= "G Scott" | AZ12: var Att10= "12038" | BA12: var Away10= "1676" | BB12: var Pts10= "11" | BC12: var Pos10= "13" | BD12: var Pens10= "-" | BE12: var Goals10= "" | BF12: var OppGls10= "" | BJ12: var ResWLD10= "D"
A13: 1 | C13: 9 | D13: Championship | E13: 2014-09-16 | G13: 7th v 9th | H13: Reading | I13: (A) | J13: L | L13: L 2-3 | M13: 1-2 | O13: 2 | Q13: - | S13: - | U13: - | W13: K Hill | X13: 15091 | Y13: 871 | Z13: 10 | AA13: 12 | AB13: - | AC13: 7 | AD13: 3 | AE13: Fuller (39) Beevers (54) / Cox (6) & (84) Blackman (15 pen) | AK13: Sat-27-Sep-14 | AL13: 11 | AM13: var Game11= 11 | AN13: var Competition11= "Championship" | AO13: var Date11= "Sat-27-Sep-14" | AP13: var UsThem11= "13th v 22nd" | AQ13: var Opponents11= "Huddersfield" | AR13: var Ven11= "(A)" | AS13: var Score11= "L 1-2" | AT13: var HT11= "1-1" | AU13: var Yell11= "5" | AV13: var Red11= "-" | AW13: var YellA11= "2" | AX13: var RedA11= "-" | AY13: var Ref11= "C Boyeson" | AZ13: var Att11= "11712" | BA13: var Away11= "326" | BB13: var Pts11= "11" | BC13: var Pos11= "16" | BD13: var Pens11= "-" | BE13: var Goals11= "Upson (41)" | BF13: var OppGls11= "Wells (37) & (57 pen)" | BH13: Upson (41) | BI13: Wells (37) & (57 pen) | BJ13: var ResWLD11= "L"
A14: 2 | C14: 10 | D14: Championship | E14: 2014-09-20 | G14: 12th v 1st | H14: Nottm Forest | I14: (H) | J14: D | L14: D 0-0 | M14: 0-0 | O14: 2 | Q14: - | S14: 3 | U14: - | W14: G Scott | X14: 12038 | Y14: 1676 | Z14: 11 | AA14: 13 | AB14: - | AC14: 6 | AD14: 3 | AK14: Tue-30-Sep-14 | AL14: 12 | AM14: var Game12= 12 | AN14: var Competition12= "Championship" | AO14: var Date12= "Tue-30-Sep-14" | AP14: var UsThem12= "16th v 21st" | AQ14: var Opponents12= "Birmingham" | AR14: var Ven12= "(H)" | AS14: var Score12= "L 1-3" | AT14: var HT12= "0-2" | AU14: var Yell12= "1" | AV14: var Red12= "-" | AW14: var YellA12= "3" | AX14: var RedA12= "-" | AY14: var Ref12= "R East" | AZ14: var Att12= "9086" | BA14: var Away12= "603" | BB14: var Pts12= "11" | BC14: var Pos12= "16" | BD14: var Pens12= "-" | BE14: var Goals12= "Gregory (54)" | BF14: var OppGls12= "Donaldson (32) Cotterill (40) Thomas (84)" | BH14: Gregory (54) | BI14: Donaldson (32) Cotterill (40) Thomas (84) | BJ14: var ResWLD12= "L"
A15: 1 | C15: 11 | D15: Championship | E15: 2014-09-27 | G15: 13th v 22nd | H15: Huddersfield | I15: (A) | J15: L | L15: L 1-2 | M15: 1-1 | O15: 5 | Q15: - | S15: 2 | U15: - | W15: C Boyeson | X15: 11712 | Y15: 326 | Z15: 11 | AA15: 16 | AB15: - | AC15: 3 | AD15: 5 | AE15: Upson (41) / Wells (37) & (57 pen) | AK15: Sat-04-Oct-14 | AL15: 13 | AM15: var Game13= 13 | AN15: var Competition13= "Championship" | AO15: var Date13= "Sat-04-Oct-14" | AP15: var UsThem13= "16th v 4th" | AQ15: var Opponents13= "Derby" | AR15: var Ven13= "(A)" | AS15: var Score13= "D 0-0" | AT15: var HT13= "0-0" | AU15: var Yell13= "4" | AV15: var Red13= "-" | AW15: var YellA13= "4" | AX15: var RedA13= "-" | AY15: var Ref13= "M Haywood" | AZ15: var Att13= "27749" | BA15: var Away13= "549" | BB15: var Pts13= "12" | BC15: var Pos13= "16" | BD15: var Pens13= "-" | BE15: ="var "&BE$2&$AL15&"= """&BH15&"""" -> var Goals13= "" | BF15: var OppGls13= "" | BJ15: var ResWLD13= "D"
A16: 2 | C16: 12 | D16: Championship | E16: 2014-09-30 | G16: 16th v 21st | H16: Birmingham | I16: (H) | J16: L | L16: L 1-3 | M16: 0-2 | O16: 1 | Q16: - | S16: 3 | U16: - | W16: R East | X16: 9086 | Y16: 603 | Z16: 11 | AA16: 16 | AB16: - | AC16: 5 | AD16: 2 | AE16: Gregory (54) / Donaldson (32) Cotterill (40) Thomas (84) | AK16: =TEXT($E18,"DDD-DD-MMM-YY") -> Sat-18-Oct-14 | AL16: 14 | AM16: var Game14= 14 | AN16: var Competition14= "Championship" | AO16: var Date14= "Sat-18-Oct-14" | AP16: var UsThem14= "17th v 8th" | AQ16: var Opponents14= "Wolves" | AR16: var Ven14= "(H)" | AS16: var Score14= "D 3-3" | AT16: var HT14= "0-1" | AU16: var Yell14= "1" | AV16: var Red14= "1" | AW16: var YellA14= "6" | AX16: var RedA14= "-" | AY16: var Ref14= "D Drysdale" | AZ16: var Att14= "13428" | BA16: var Away14= "2102" | BB16: var Pts14= "13" | BC16: var Pos14= "18" | BD16: var Pens14= "-" | BE16: var Goals14= "Gregory (54) Fuller (82) & (87)" | BF16: var OppGls14= "Batth (23) Ebanks-Landell (61) Sako (64)" | BH16: Gregory (54) Fuller (82) & (87) | BI16: Batth (23) Ebanks-Landell (61) Sako (64) | BJ16: var ResWLD14= "D"
A17: 1 | C17: 13 | D17: Championship | E17: 2014-10-04 | G17: 16th v 4th | H17: Derby | I17: (A) | J17: D | L17: D 0-0 | M17: 0-0 | O17: 4 | Q17: - | S17: 4 | U17: - | W17: M Haywood | X17: 27749 | Y17: 549 | Z17: 12 | AA17: 16 | AB17: - | AC17: 7 | AD17: 12 | AK17: Tue-21-Oct-14 | AL17: 15 | AM17: var Game15= 15 | AN17: var Competition15= "Championship" | AO17: var Date15= "Tue-21-Oct-14" | AP17: var UsThem15= "18th v 19th" | AQ17: var Opponents15= "Wigan" | AR17: var Ven15= "(A)" | AS17: var Score15= "D 0-0" | AT17: var HT15= "0-0" | AU17: var Yell15= "3" | AV17: var Red15= "-" | AW17: var YellA15= "-" | AX17: var RedA15= "-" | AY17: var Ref15= "E Ilderton" | AZ17: var Att15= "10201" | BA17: var Away15= "268" | BB17: var Pts15= "14" | BC17: var Pos15= "18" | BD17: var Pens15= "-" | BE17: var Goals15= "" | BF17: var OppGls15= "" | BJ17: var ResWLD15= "D"
A18: 2 | C18: 14 | D18: Championship | E18: 2014-10-18 | G18: 17th v 8th | H18: Wolves | I18: (H) | J18: D | L18: D 3-3 | M18: 0-1 | O18: 1 | Q18: 1 | S18: 6 | U18: - | W18: D Drysdale | X18: 13428 | Y18: 2102 | Z18: 13 | AA18: 18 | AB18: - | AC18: 6 | AD18: 4 | AE18: Gregory (54) Fuller (82) & (87) / Batth (23) Ebanks-Landell (61) Sako (64) | AK18: Sat-25-Oct-14 | AL18: 16 | AM18: var Game16= 16 | AN18: var Competition16= "Championship" | AO18: var Date16= "Sat-25-Oct-14" | AP18: var UsThem16= "18th v 10th" | AQ18: var Opponents16= "Cardiff" | AR18: var Ven16= "(H)" | AS18: var Score16= "W 1-0" | AT18: var HT16= "0-0" | AU18: var Yell16= "2" | AV18: var Red16= "-" | AW18: var YellA16= "-" | AX18: var RedA16= "-" | AY18: var Ref16= "S Duncan" | AZ18: var Att16= "10135" | BA18: var Away16= "786" | BB18: var Pts16= "17" | BC18: var Pos16= "15" | BD18: var Pens16= "-" | BE18: ="var "&BE$2&$AL18&"= """&BH18&"""" -> var Goals16= "Shittu (54)" | BF18: ="var "&BF$2&$AL18&"= """&BI18&"""" -> var OppGls16= "" | BH18: Shittu (54) | BJ18: var ResWLD16= "W"
A19: 1 | C19: 15 | D19: Championship | E19: 2014-10-21 | G19: 18th v 19th | H19: Wigan | I19: (A) | J19: D | L19: D 0-0 | M19: 0-0 | O19: 3 | Q19: - | S19: - | U19: - | W19: E Ilderton | X19: 10201 | Y19: 268 | Z19: 14 | AA19: 18 | AB19: - | AC19: 2 | AD19: 8 | AK19: Sat-01-Nov-14 | AL19: 17 | AM19: var Game17= 17 | AN19: var Competition17= "Championship" | AO19: var Date17= "Sat-01-Nov-14" | AP19: var UsThem17= "15th v 2nd" | AQ19: var Opponents17= "Watford" | AR19: var Ven17= "(A)" | AS19: var Score17= "L 1-3" | AT19: var HT17= "1-2" | AU19: var Yell17= "5" | AV19: var Red17= "-" | AW19: var YellA17= "1" | AX19: var RedA17= "-" | AY19: var Ref17= "R Madley" | AZ19: var Att17= "17000" | BA19: var Away17= "1797" | BB19: var Pts17= "17" | BC19: var Pos17= "16" | BD19: var Pens17= "-" | BE19: ="var "&BE$2&$AL19&"= """&BH19&"""" -> var Goals17= "Woolford (12)" | BF19: var OppGls17= "Vydra (36) Tozser (45+4) Munari (64)" | BH19: Woolford (12) | BI19: Vydra (36) Tozser (45+4) Munari (64) | BJ19: var ResWLD17= "L"
A20: 2 | C20: 16 | D20: Championship | E20: 2014-10-25 | G20: 18th v 10th | H20: Cardiff | I20: (H) | J20: W | L20: W 1-0 | M20: 0-0 | O20: 2 | Q20: - | S20: - | U20: - | W20: S Duncan | X20: 10135 | Y20: 786 | Z20: 17 | AA20: 15 | AB20: - | AC20: 3 | AD20: 2 | AE20: Shittu (54) | AK20: Tue-04-Nov-14 | AL20: 18 | AM20: var Game18= 18 | AN20: var Competition18= "Championship" | AO20: var Date18= "Tue-04-Nov-14" | AP20: var UsThem18= "16th v 7th" | AQ20: var Opponents18= "Blackburn" | AR20: var Ven18= "(H)" | AS20: var Score18= "D 2-2" | AT20: var HT18= "0-1" | AU20: var Yell18= "2" | AV20: var Red18= "1" | AW20: var YellA18= "1" | AX20: var RedA18= "-" | AY20: var Ref18= "D Deadman" | AZ20: var Att18= "8250" | BA20: var Away18= "468" | BB20: var Pts18= "18" | BC20: var Pos18= "16" | BD20: var Pens18= "-" | BE20: var Goals18= "Martin (72) Williams (88)" | BF20: var OppGls18= "Duffy (37) Gestede (65)" | BH20: Martin (72) Williams (88) | BI20: Duffy (37) Gestede (65) | BJ20: var ResWLD18= "D"
A21: 1 | C21: 17 | D21: Championship | E21: 2014-11-01 | G21: 15th v 2nd | H21: Watford | I21: (A) | J21: L | L21: L 1-3 | M21: 1-2 | O21: 5 | Q21: - | S21: 1 | U21: - | W21: R Madley | X21: 17000 | Y21: 1797 | Z21: 17 | AA21: 16 | AB21: - | AC21: 6 | AD21: 7 | AE21: Woolford (12) / Vydra (36) Tozser (45+4) Munari (64) | AK21: Sat-08-Nov-14 | AL21: 19 | AM21: var Game19= 19 | AN21: var Competition19= "Championship" | AO21: var Date19= "Sat-08-Nov-14" | AP21: var UsThem19= "16th v 9th" | AQ21: var Opponents19= "Brentford" | AR21: var Ven19= "(H)" | AS21: var Score19= "L 2-3" | AT21: var HT19= "0-1" | AU21: var Yell19= "3" | AV21: var Red19= "-" | AW21: var YellA19= "2" | AX21: var RedA19= "-" | AY21: var Ref19= "J Adcock" | AZ21: var Att19= "13048" | BA21: var Away19= "1771" | BB21: var Pts19= "18" | BC21: var Pos19= "18" | BD21: var Pens19= "-" | BE21: var Goals19= "Gregory (58) Dunne (59) " | BF21: var OppGls19= "Gray (42) & (56) Shittu (64 o.g.)" | BH21: Gregory (58) Dunne (59) | BI21: Gray (42) & (56) Shittu (64 o.g.) | BJ21: var ResWLD19= "L"
A22: 2 | C22: 18 | D22: Championship | E22: 2014-11-04 | G22: 16th v 7th | H22: Blackburn | I22: (H) | J22: D | L22: D 2-2 | M22: 0-1 | O22: 2 | Q22: 1 | S22: 1 | U22: - | W22: D Deadman | X22: 8250 | Y22: 468 | Z22: 18 | AA22: 16 | AB22: - | AC22: 5 | AD22: 4 | AE22: Martin (72) Williams (88) / Duffy (37) Gestede (65) | AK22: Sat-22-Nov-14 | AL22: 20 | AM22: var Game20= 20 | AN22: var Competition20= "Championship" | AO22: var Date20= "Sat-22-Nov-14" | AP22: var UsThem20= "18th v 8th" | AQ22: var Opponents20= "Charlton" | AR22: var Ven20= "(A)" | AS22: var Score20= "D 0-0" | AT22: var HT20= "0-0" | AU22: var Yell20= "1" | AV22: var Red20= "-" | AW22: var YellA20= "2" | AX22: var RedA20= "-" | AY22: var Ref20= "G Scott" | AZ22: var Att20= "19189" | BA22: var Away20= "3215" | BB22: var Pts20= "19" | BC22: var Pos20= "18" | BD22: var Pens20= "-" | BE22: var Goals20= "" | BF22: var OppGls20= "" | BJ22: var ResWLD20= "D"
A23: 1 | C23: 19 | D23: Championship | E23: 2014-11-08 | G23: 16th v 9th | H23: Brentford | I23: (H) | J23: L | L23: L 2-3 | M23: 0-1 | O23: 3 | Q23: - | S23: 2 | U23: - | W23: J Adcock | X23: 13048 | Y23: 1771 | Z23: 18 | AA23: 18 | AB23: - | AC23: 7 | AD23: 4 | AE23: Gregory (58) Dunne (59) / Gray (42) & (56) Shittu (64 o.g.) | AK23: Sat-29-Nov-14 | AL23: 21 | AM23: var Game21= 21 | AN23: var Competition21= "Championship" | AO23: var Date21= "Sat-29-Nov-14" | AP23: var UsThem21= "18th v 2nd" | AQ23: var Opponents21= "Bournemouth" | AR23: var Ven21= "(A)" | AS23: var Score21= "D 2-2" | AT23: var HT21= "0-2" | AU23: var Yell21= "3" | AV23: var Red21= "-" | AW23: var YellA21= "1" | AX23: var RedA21= "-" | AY23: var Ref21= "A Davies" | AZ23: var Att21= "10016" | BA23: var Away21= "991" | BB23: var Pts21= "20" | BC23: var Pos21= "20" | BD23: var Pens21= "-" | BE23: var Goals21= "Upson (75) Gueye (88)" | BF23: var OppGls21= "Cook (22) Pitman (25)" | BH23: Upson (75) Gueye (88) | BI23: Cook (22) Pitman (25) | BJ23: var ResWLD21= "D"
A24: 2 | C24: 20 | D24: Championship | E24: 2014-11-22 | G24: 18th v 8th | H24: Charlton | I24: (A) | J24: D | L24: D 0-0 | M24: 0-0 | O24: 1 | Q24: - | S24: 2 | U24: - | W24: G Scott | X24: 19189 | Y24: 3215 | Z24: 19 | AA24: 18 | AB24: - | AC24: 7 | AD24: 9 | AK24: Sat-06-Dec-14 | AL24: 22 | AM24: var Game22= 22 | AN24: var Competition22= "Championship" | AO24: var Date22= "Sat-06-Dec-14" | AP24: var UsThem22= "20th v 5th" | AQ24: var Opponents22= "Middlesboro" | AR24: var Ven22= "(H)" | AS24: var Score22= "L 1-5" | AT24: var HT22= "0-4" | AU24: var Yell22= "1" | AV24: var Red22= "-" | AW24: var YellA22= "-" | AX24: var RedA22= "-" | AY24: var Ref22= "M Russell" | AZ24: var Att22= "10328" | BA24: var Away22= "1399" | BB24: var Pts22= "20" | BC24: var Pos22= "20" | BD24: var Pens22= "-" | BE24: var Goals22= "McDonald (78)" | BF24: var OppGls22= "Vossen (21), (34) & (44) Bamford (28) Martinez (79)" | BH24: McDonald (78) | BI24: Vossen (21), (34) & (44) Bamford (28) Martinez (79) | BJ24: var ResWLD22= "L"
A25: 1 | C25: 21 | D25: Championship | E25: 2014-11-29 | G25: 18th v 2nd | H25: Bournemouth | I25: (A) | J25: =(LEFT(L25,1)) -> D | L25: D 2-2 | M25: 0-2 | O25: 3 | Q25: - | S25: 1 | U25: - | W25: A Davies | X25: 10016 | Y25: 991 | Z25: 20 | AA25: 20 | AB25: - | AC25: 6 | AD25: 3 | AE25: Upson (75) Gueye (88) / Cook (22) Pitman (25) | AK25: Fri-12-Dec-14 | AL25: 23 | AM25: var Game23= 23 | AN25: var Competition23= "Championship" | AO25: var Date23= "Fri-12-Dec-14" | AP25: var UsThem23= "20th v 22nd" | AQ25: var Opponents23= "Brighton" | AR25: var Ven23= "(A)" | AS25: var Score23= "W 1-0" | AT25: var HT23= "1-0" | AU25: var Yell23= "4" | AV25: var Red23= "-" | AW25: var YellA23= "2" | AX25: var RedA23= "-" | AY25: var Ref23= "J Linington" | AZ25: var Att23= "24085" | BA25: var Away23= "889" | BB25: var Pts23= "23" | BC25: var Pos23= "17" | BD25: var Pens23= "-" | BE25: var Goals23= "Gregory (15)" | BF25: var OppGls23= "" | BH25: Gregory (15) | BJ25: var ResWLD23= "W"
A26: 2 | C26: 22 | D26: Championship | E26: 2014-12-06 | G26: 20th v 5th | H26: Middlesboro | I26: (H) | J26: L | L26: L 1-5 | M26: 0-4 | O26: 1 | Q26: - | S26: - | U26: - | W26: M Russell | X26: 10328 | Y26: 1399 | Z26: 20 | AA26: 20 | AB26: - | AC26: 3 | AD26: 5 | AE26: McDonald (78) / Vossen (21), (34) & (44) Bamford (28) Martinez (79) | AK26: Fri-19-Dec-14 | AL26: 24 | AM26: var Game24= 24 | AN26: var Competition24= "Championship" | AO26: var Date24= "Fri-19-Dec-14" | AP26: var UsThem24= "20th v 18th" | AQ26: var Opponents24= "Bolton" | AR26: var Ven24= "(H)" | AS26: var Score24= "L 0-1" | AT26: var HT24= "0-0" | AU26: var Yell24= "2" | AV26: var Red24= "-" | AW26: var YellA24= "3" | AX26: var RedA24= "-" | AY26: var Ref24= "S Attwell" | AZ26: var Att24= "8635" | BA26: var Away24= "356" | BB26: var Pts24= "23" | BC26: var Pos24= "20" | BD26: var Pens24= "-" | BE26: var Goals24= "" | BF26: var OppGls24= "Pratley (68)" | BI26: Pratley (68) | BJ26: var ResWLD24= "L"
A27: 1 | C27: 23 | D27: Championship | E27: 2014-12-12 | G27: 20th v 22nd | H27: Brighton | I27: (A) | J27: W | L27: W 1-0 | M27: 1-0 | O27: 4 | Q27: - | S27: 2 | U27: - | W27: J Linington | X27: 24085 | Y27: 889 | Z27: 23 | AA27: 17 | AB27: - | AC27: 2 | AD27: 5 | AE27: Gregory (15) | AK27: Fri-26-Dec-14 | AL27: 25 | AM27: var Game25= 25 | AN27: var Competition25= "Championship" | AO27: var Date25= "Fri-26-Dec-14" | AP27: var UsThem25= "21st v 7th" | AQ27: var Opponents25= "Norwich City" | AR27: var Ven25= "(A)" | AS27: var Score25= "L 1-6" | AT27: var HT25= "0-2" | AU27: var Yell25= "1" | AV27: var Red25= "-" | AW27: var YellA25= "-" | AX27: var RedA25= "-" | AY27: var Ref25= "A D'Urso" | AZ27: var Att25= "26714" | BA27: var Away25= "602" | BB27: var Pts25= "23" | BC27: var Pos25= "21" | BD27: var Pens25= "-" | BE27: var Goals25= "Easter (86) " | BF27: var OppGls25= "Whittaker (13) Jerome (18) Johnson (54) & (61) Hooper (69) & (90)" | BH27: Easter (86) | BI27: Whittaker (13) Jerome (18) Johnson (54) & (61) Hooper (69) & (90) | BJ27: var ResWLD25= "L"
A28: 2 | C28: 24 | D28: Championship | E28: 2014-12-19 | G28: 20th v 18th | H28: Bolton | I28: (H) | J28: L | L28: L 0-1 | M28: 0-0 | O28: 2 | Q28: - | S28: 3 | U28: - | W28: S Attwell | X28: 8635 | Y28: 356 | Z28: 23 | AA28: 20 | AB28: - | AC28: 3 | AD28: 4 | AE28: Pratley (68) | AK28: Sun-28-Dec-14 | AL28: 26 | AM28: var Game26= 26 | AN28: var Competition26= "Championship" | AO28: var Date26= "Sun-28-Dec-14" | AP28: var UsThem26= "21st v 1st" | AQ28: var Opponents26= "Bournemouth" | AR28: var Ven26= "(H)" | AS28: var Score26= "L 0-2" | AT28: var HT26= "0-2" | AU28: var Yell26= "4" | AV28: var Red26= "1" | AW28: var YellA26= "3" | AX28: var RedA26= "-" | AY28: var Ref26= "D Coote" | AZ28: var Att26= "10407" | BA28: var Away26= "1278" | BB28: var Pts26= "23" | BC28: var Pos26= "21" | BD28: var Pens26= "-" | BE28: var Goals26= "" | BF28: var OppGls26= "Kermorgrant (32 pen) Arter (42)" | BI28: Kermorgrant (32 pen) Arter (42) | BJ28: var ResWLD26= "L"
A29: 1 | C29: 25 | D29: Championship | E29: 2014-12-26 | G29: 21st v 7th | H29: Norwich City | I29: (A) | J29: L | L29: L 1-6 | M29: 0-2 | O29: 1 | Q29: - | S29: - | U29: - | W29: A D'Urso | X29: 26714 | Y29: 602 | Z29: 23 | AA29: 21 | AB29: - | AC29: 9 | AD29: 3 | AE29: Easter (86) / Whittaker (13) Jerome (18) Johnson (54), (61) Hooper (69), (90) | AK29: Sat-03-Jan-15 | AL29: 27 | AM29: var Game27= 27 | AN29: var Competition27= "FA Cup 3" | AO29: var Date27= "Sat-03-Jan-15" | AP29: var UsThem27= "- -" | AQ29: var Opponents27= "Bradford City" | AR29: var Ven27= "(H)" | AS29: var Score27= "D 3-3" | AT29: var HT27= "1-1" | AU29: var Yell27= "2" | AV29: var Red27= "-" | AW29: var YellA27= "1" | AX29: var RedA27= "-" | AY29: var Ref27= "D Webb" | AZ29: var Att27= "5470" | BA29: var Away27= "1093" | BB29: var Pts27= "-" | BC29: var Pos27= "-" | BD29: var Pens27= "-" | BE29: var Goals27= "McDonald (36) Fuller (66) (83)" | BF29: var OppGls27= "Knott (6) (76) Nelson (70 o.g.)" | BH29: McDonald (36) Fuller (66) (83) | BI29: Knott (6) (76) Nelson (70 o.g.) | BJ29: var ResWLD27= "D"
A30: 2 | C30: 26 | D30: Championship | E30: 2014-12-28 | G30: 21st v 1st | H30: Bournemouth | I30: (H) | J30: L | L30: L 0-2 | M30: 0-2 | O30: 4 | Q30: 1 | S30: 3 | U30: - | W30: D Coote | X30: 10407 | Y30: 1278 | Z30: 23 | AA30: 21 | AB30: - | AC30: 3 | AD30: 6 | AE30: Kermorgrant (32 pen) Arter (42) | AK30: Sat-10-Jan-15 | AL30: 28 | AM30: var Game28= 28 | AN30: var Competition28= "Championship" | AO30: var Date28= "Sat-10-Jan-15" | AP30: var UsThem28= "22nd v 24th" | AQ30: var Opponents28= "Blackpool" | AR30: var Ven28= "(A)" | AS30: var Score28= "L 0-1" | AT30: var HT28= "0-1" | AU30: var Yell28= "-" | AV30: var Red28= "-" | AW30: var YellA28= "1" | AX30: var RedA28= "-" | AY30: var Ref28= "S Martin" | AZ30: var Att28= "9994" | BA30: var Away28= "514" | BB30: var Pts28= "23" | BC30: var Pos28= "22" | BD30: var Pens28= "-" | BE30: var Goals28= "" | BF30: var OppGls28= "Clarke (33)" | BI30: Clarke (33) | BJ30: var ResWLD28= "L"
A31: 1 | C31: 27 | D31: FA Cup 3 | E31: 2015-01-03 | G31: - - | H31: Bradford City | I31: (H) | J31: D | L31: D 3-3 | M31: 1-1 | O31: 2 | Q31: - | S31: 1 | U31: - | W31: D Webb | X31: 5470 | Y31: 1093 | Z31: - | AA31: - | AB31: - | AC31: 1 | AD31: 4 | AE31: McDonald (36) Fuller (66) (83) / Knott (6) (76) Nelson (70 o.g.) | AK31: Wed-14-Jan-15 | AL31: 29 | AM31: var Game29= 29 | AN31: var Competition29= "FA Cup 3R" | AO31: var Date29= "Wed-14-Jan-15" | AP31: var UsThem29= "- -" | AQ31: var Opponents29= "Bradford City" | AR31: var Ven29= "(A)" | AS31: var Score29= "L 0-4" | AT31: var HT29= "0-3" | AU31: var Yell29= "3" | AV31: var Red29= "1" | AW31: var YellA29= "3" | AX31: var RedA29= "-" | AY31: var Ref29= "J Adcock" | AZ31: var Att29= "11859" | BA31: var Away29= "611" | BB31: var Pts29= "-" | BC31: var Pos29= "-" | BD31: var Pens29= "-" | BE31: var Goals29= "" | BF31: var OppGls29= "Hanson (8) Stead (17) Halliday (39) Knott (57)" | BI31: Hanson (8) Stead (17) Halliday (39) Knott (57) | BJ31: var ResWLD29= "L"
A32: 2 | C32: 28 | D32: Championship | E32: 2015-01-10 | G32: 22nd v 24th | H32: Blackpool | I32: (A) | J32: L | L32: L 0-1 | M32: 0-1 | O32: - | Q32: - | S32: 1 | U32: - | W32: S Martin | X32: 9994 | Y32: 514 | Z32: 23 | AA32: 22 | AB32: - | AC32: 4 | AD32: 4 | AE32: Clarke (33) | AK32: Sat-17-Jan-15 | AL32: 30 | AM32: var Game30= 30 | AN32: var Competition30= "Championship" | AO32: var Date30= "Sat-17-Jan-15" | AP32: var UsThem30= "22nd v 3rd" | AQ32: var Opponents30= "Ipswich" | AR32: var Ven30= "(H)" | AS32: var Score30= "L 1-3" | AT32: var HT30= "1-2" | AU32: var Yell30= "-" | AV32: var Red30= "-" | AW32: var YellA30= "-" | AX32: var RedA30= "-" | AY32: var Ref30= "G Sailsbury" | AZ32: var Att30= "11063" | BA32: var Away30= "2503" | BB32: var Pts30= "23" | BC32: var Pos30= "22" | BD32: var Pens30= "-" | BE32: var Goals30= "Gueye (43)" | BF32: var OppGls30= "N Hunt (5) (14) Parr (77)" | BH32: Gueye (43) | BI32: N Hunt (5) (14) Parr (77) | BJ32: var ResWLD30= "L"
A33: 1 | C33: 29 | D33: FA Cup 3R | E33: 2015-01-14 | G33: - - | H33: Bradford City | I33: (A) | J33: L | L33: L 0-4 | M33: 0-3 | O33: 3 | Q33: 1 | S33: 3 | U33: - | W33: J Adcock | X33: 11859 | Y33: 611 | Z33: - | AA33: - | AB33: - | AC33: 3 | AD33: 6 | AE33: Hanson (8) Stead (17) Halliday (39) Knott (57) | AK33: Tue-27-Jan-15 | AL33: 31 | AM33: var Game31= 31 | AN33: var Competition31= "Championship" | AO33: var Date31= "Tue-27-Jan-15" | AP33: var UsThem31= "22nd v 18th" | AQ33: var Opponents31= "Reading" | AR33: var Ven31= "(H)" | AS33: var Score31= "D 0-0" | AT33: var HT31= "0-0" | AU33: var Yell31= "-" | AV33: var Red31= "1" | AW33: var YellA31= "1" | AX33: var RedA31= "-" | AY33: var Ref31= "A Madley" | AZ33: var Att31= "8317" | BA33: var Away31= "539" | BB33: var Pts31= "24" | BC33: var Pos31= "22" | BD33: var Pens31= "-" | BE33: var Goals31= "" | BF33: var OppGls31= "" | BJ33: var ResWLD31= "D"
A34: 2 | C34: 30 | D34: Championship | E34: 2015-01-17 | G34: 22nd v 3rd | H34: Ipswich | I34: (H) | J34: L | L34: L 1-3 | M34: 1-2 | O34: - | Q34: - | S34: - | U34: - | W34: G Sailsbury | X34: 11063 | Y34: 2503 | Z34: 23 | AA34: 22 | AB34: - | AC34: 4 | AD34: 6 | AE34: Gueye (43) / N Hunt (5) (14) Parr (77) | AK34: Sat-31-Jan-15 | AL34: 32 | AM34: var Game32= 32 | AN34: var Competition32= "Championship" | AO34: var Date32= "Sat-31-Jan-15" | AP34: var UsThem32= "22nd v 12th" | AQ34: var Opponents32= "Nottm Forest" | AR34: var Ven32= "(A)" | AS34: var Score32= "W 1-0" | AT34: var HT32= "0-0" | AU34: var Yell32= "2" | AV34: var Red32= "-" | AW34: var YellA32= "2" | AX34: var RedA32= "-" | AY34: var Ref32= "M Haywood" | AZ34: var Att32= "23018" | BA34: var Away32= "682" | BB34: var Pts32= "27" | BC34: var Pos32= "22" | BD34: var Pens32= "-" | BE34: var Goals32= "Fuller (83)" | BF34: var OppGls32= "" | BH34: Fuller (83) | BJ34: var ResWLD32= "W"
A35: 1 | C35: 31 | D35: Championship | E35: 2015-01-27 | G35: 22nd v 18th | H35: Reading | I35: (H) | J35: D | L35: D 0-0 | M35: 0-0 | O35: - | Q35: 1 | S35: 1 | U35: - | W35: A Madley | X35: 8317 | Y35: 539 | Z35: 24 | AA35: 22 | AB35: - | AC35: 3 | AD35: 7 | AK35: Sat-07-Feb-15 | AL35: 33 | AM35: var Game33= 33 | AN35: ="var "&AN$2&$AL35&"= """&D37&"""" -> var Competition33= "Championship" | AO35: var Date33= "Sat-07-Feb-15" | AP35: ="var "&AP$2&$AL35&"= """&G37&"""" -> var UsThem33= "22nd v 17th" | AQ35: ="var "&AQ$2&$AL35&"= """&H37&"""" -> var Opponents33= "Huddersfield" | AR35: ="var "&AR$2&$AL35&"= """&I37&"""" -> var Ven33= "(H)" | AS35: ="var "&AS$2&$AL35&"= """&L37&"""" -> var Score33= "L 1-3" | AT35: ="var "&AT$2&$AL35&"= """&M37&"""" -> var HT33= "1-1" | AU35: ="var "&AU$2&$AL35&"= """&O37&"""" -> var Yell33= "3" | AV35: ="var "&AV$2&$AL35&"= """&Q37&"""" -> var Red33= "-" | AW35: ="var "&AW$2&$AL35&"= """&S37&"""" -> var YellA33= "5" | AX35: ="var "&AX$2&$AL35&"= """&U37&"""" -> var RedA33= "1" | AY35: ="var "&AY$2&$AL35&"= """&W37&"""" -> var Ref33= "M Jones" | AZ35: ="var "&AZ$2&$AL35&"= """&X37&"""" -> var Att33= "10281" | BA35: ="var "&BA$2&$AL35&"= """&Y37&"""" -> var Away33= "586" | BB35: ="var "&BB$2&$AL35&"= """&Z37&"""" -> var Pts33= "27" | BC35: ="var "&BC$2&$AL35&"= """&AA37&"""" -> var Pos33= "22" | BD35: ="var "&BD$2&$AL35&"= """&AB37&"""" -> var Pens33= "-" | BE35: var Goals33= "Maierhofer (28) " | BF35: var OppGls33= "Scannell (17) Butterfield (74) Vaughan (86 pen)" | BH35: Maierhofer (28) | BI35: Scannell (17) Butterfield (74) Vaughan (86 pen) | BJ35: var ResWLD33= "L"
A36: 2 | C36: 32 | D36: Championship | E36: 2015-01-31 | G36: 22nd v 12th | H36: Nottm Forest | I36: (A) | J36: W | L36: W 1-0 | M36: 0-0 | O36: 2 | Q36: - | S36: 2 | U36: - | W36: M Haywood | X36: 23018 | Y36: 682 | Z36: 27 | AA36: 22 | AB36: - | AC36: 5 | AD36: 4 | AE36: Fuller (83) | AK36: Tue-10-Feb-15 | AL36: 34 | AM36: var Game34= 34 | AN36: var Competition34= "Championship" | AO36: var Date34= "Tue-10-Feb-15" | AP36: var UsThem34= "22nd v 11th" | AQ36: var Opponents34= "Birmingham" | AR36: var Ven34= "(A)" | AS36: var Score34= "W 1-0" | AT36: var HT34= "0-0" | AU36: var Yell34= "3" | AV36: var Red34= "-" | AW36: var YellA34= "1" | AX36: var RedA34= "-" | AY36: var Ref34= "S Hooper" | AZ36: var Att34= "14186" | BA36: var Away34= "289" | BB36: var Pts34= "30" | BC36: var Pos34= "22" | BD36: var Pens34= "-" | BE36: var Goals34= "Dunne (51)" | BF36: var OppGls34= "" | BH36: Dunne (51) | BJ36: var ResWLD34= "W"
A37: 1 | C37: 33 | D37: Championship | E37: 2015-02-07 | G37: 22nd v 17th | H37: Huddersfield | I37: (H) | J37: L | L37: L 1-3 | M37: 1-1 | O37: 3 | Q37: - | S37: 5 | U37: 1 | W37: M Jones | X37: 10281 | Y37: 586 | Z37: 27 | AA37: 22 | AB37: - | AC37: 3 | AD37: 6 | AE37: Maierhofer (28) / Scannell (17) Butterfield (74) Vaughan (86 pen) | AK37: Sat-14-Feb-15 | AL37: 35 | AM37: var Game35= 35 | AN37: var Competition35= "Championship" | AO37: var Date35= "Sat-14-Feb-15" | AP37: var UsThem35= "22nd v 17th" | AQ37: var Opponents35= "Leeds" | AR37: var Ven35= "(A)" | AS37: var Score35= "L 0-1" | AT37: var HT35= "0-1" | AU37: var Yell35= "2" | AV37: var Red35= "-" | AW37: var YellA35= "3" | AX37: var RedA35= "-" | AY37: var Ref35= "P Tierney" | AZ37: var Att35= "24000" | BA37: var Away35= "234" | BB37: var Pts35= "30" | BC37: var Pos35= "22" | BD37: var Pens35= "-" | BE37: var Goals35= "" | BF37: var OppGls35= "Mowatt (39}" | BI37: Mowatt (39} | BJ37: var ResWLD35= "L"
A38: 2 | C38: 34 | D38: Championship | E38: 2015-02-10 | G38: 22nd v 11th | H38: Birmingham | I38: (A) | J38: W | L38: W 1-0 | M38: 0-0 | O38: 3 | Q38: - | S38: 1 | U38: - | W38: S Hooper | X38: 14186 | Y38: 289 | Z38: 30 | AA38: 22 | AB38: - | AC38: 3 | AD38: 6 | AE38: Dunne (51) | AK38: Sat-21-Feb-15 | AL38: 36 | AM38: var Game36= 36 | AN38: var Competition36= "Championship" | AO38: var Date36= "Sat-21-Feb-15" | AP38: var UsThem36= "22nd v 19th" | AQ38: var Opponents36= "Fulham" | AR38: var Ven36= "(H)" | AS38: var Score36= "D 0-0" | AT38: var HT36= "0-0" | AU38: var Yell36= "1" | AV38: var Red36= "-" | AW38: var YellA36= "-" | AX38: var RedA36= "-" | AY38: var Ref36= "K Hill" | AZ38: var Att36= "12707" | BA38: var Away36= "1815" | BB38: var Pts36= "31" | BC38: var Pos36= "22" | BD38: var Pens36= "-" | BE38: var Goals36= "" | BF38: var OppGls36= "" | BJ38: var ResWLD36= "D"
A39: 1 | C39: 35 | D39: Championship | E39: 2015-02-14 | G39: 22nd v 17th | H39: Leeds | I39: (A) | J39: L | L39: L 0-1 | M39: 0-1 | O39: 2 | Q39: - | S39: 3 | U39: - | W39: P Tierney | X39: 24000 | Y39: 234 | Z39: 30 | AA39: 22 | AB39: - | AC39: 6 | AD39: 6 | AE39: Mowatt (39} | AK39: Tue-24-Feb-15 | AL39: 37 | AM39: var Game37= 37 | AN39: var Competition37= "Championship" | AO39: var Date37= "Tue-24-Feb-15" | AP39: var UsThem37= "22nd v 12th" | AQ39: var Opponents37= "Sheff Wed" | AR39: var Ven37= "(H)" | AS39: var Score37= "L 1-3" | AT39: var HT37= "0-0" | AU39: var Yell37= "-" | AV39: var Red37= "-" | AW39: var YellA37= "2" | AX39: var RedA37= "-" | AY39: var Ref37= "J Linington" | AZ39: var Att37= "8568" | BA39: var Away37= "1001" | BB39: var Pts37= "31" | BC39: var Pos37= "22" | BD39: var Pens37= "-" | BE39: var Goals37= "Fabbrini (90+3)" | BF39: var OppGls37= "McGugan (52) Nuhiu (72) May (83)" | BH39: Fabbrini (90+3) | BI39: McGugan (52) Nuhiu (72) May (83) | BJ39: var ResWLD37= "L"
A40: 2 | C40: 36 | D40: Championship | E40: 2015-02-21 | G40: 22nd v 19th | H40: Fulham | I40: (H) | J40: D | L40: D 0-0 | M40: 0-0 | O40: 1 | Q40: - | S40: - | U40: - | W40: K Hill | X40: 12707 | Y40: 1815 | Z40: 31 | AA40: 22 | AB40: - | AC40: 5 | AD40: 4 | AK40: Sat-28-Feb-15 | AL40: 38 | AM40: var Game38= 38 | AN40: var Competition38= "Championship" | AO40: var Date38= "Sat-28-Feb-15" | AP40: var UsThem38= "22nd v 21st" | AQ40: var Opponents38= "Rotherham" | AR40: var Ven38= "(A)" | AS40: var Score38= "L 1-2" | AT40: var HT38= "1-0" | AU40: var Yell38= "1" | AV40: var Red38= "-" | AW40: var YellA38= "1" | AX40: var RedA38= "-" | AY40: var Ref38= "G Sutton" | AZ40: var Att38= "10329" | BA40: var Away38= "1309" | BB40: var Pts38= "31" | BC40: var Pos38= "22" | BD40: var Pens38= "-" | BE40: var Goals38= "Woolford (20)" | BF40: var OppGls38= "Ward (47) Arnson (85)" | BH40: Woolford (20) | BI40: Ward (47) Arnson (85) | BJ40: var ResWLD38= "L"
A41: 1 | C41: 37 | D41: Championship | E41: 2015-02-24 | G41: 22nd v 12th | H41: Sheff Wed | I41: (H) | J41: L | L41: L 1-3 | M41: 0-0 | O41: - | Q41: - | S41: 2 | U41: - | W41: J Linington | X41: 8568 | Y41: 1001 | Z41: 31 | AA41: 22 | AB41: - | AC41: 6 | AD41: 5 | AE41: Fabbrini (90+3) / McGugan (52) Nuhiu (72) May (83) | AK41: Tue-03-Mar-15 | AL41: 39 | AM41: var Game39= 39 | AN41: var Competition39= "Championship" | AO41: var Date39= "Tue-03-Mar-15" | AP41: var UsThem39= "22nd v 2nd" | AQ41: var Opponents39= "Middlesboro" | AR41: var Ven39= "(A)" | AS41: var Score39= "L 0-3" | AT41: var HT39= "0-2" | AU41: var Yell39= "1" | AV41: var Red39= "-" | AW41: var YellA39= "-" | AX41: var RedA39= "-" | AY41: var Ref39= "K Wright" | AZ41: var Att39= "16078" | BA41: var Away39= "162" | BB41: var Pts39= "31" | BC41: var Pos39= "22" | BD41: var Pens39= "-" | BE41: var Goals39= "" | BF41: var OppGls39= "Bamford (26) Garcia Martinez (30) Vossen (78)" | BI41: Bamford (26) Garcia Martinez (30) Vossen (78) | BJ41: var ResWLD39= "L"
A42: 2 | C42: 38 | D42: Championship | E42: 2015-02-28 | G42: 22nd v 21st | H42: Rotherham | I42: (A) | J42: L | L42: L 1-2 | M42: 1-0 | O42: 1 | Q42: - | S42: 1 | U42: - | W42: G Sutton | X42: 10329 | Y42: 1309 | Z42: 31 | AA42: 22 | AB42: - | AC42: 5 | AD42: 11 | AE42: Woolford (20) / Ward (47) Arnson (85) | AK42: Sat-07-Mar-15 | AL42: 40 | AM42: var Game40= 40 | AN42: var Competition40= "Championship" | AO42: var Date40= "Sat-07-Mar-15" | AP42: var UsThem40= "23rd v 5th" | AQ42: var Opponents40= "Norwich City" | AR42: var Ven40= "(H)" | AS42: var Score40= "L 1-4" | AT42: var HT40= "0-2" | AU42: var Yell40= "1" | AV42: var Red40= "-" | AW42: var YellA40= "1" | AX42: var RedA40= "-" | AY42: var Ref40= "K Stroud" | AZ42: var Att40= "11116" | BA42: var Away40= "2508" | BB42: var Pts40= "31" | BC42: var Pos40= "23" | BD42: var Pens40= "-" | BE42: var Goals40= "Gregory (8 pen)" | BF42: var OppGls40= "Howson (38) (60) Hooper (45 pen) Hoolahan (57)" | BH42: Gregory (8 pen) | BI42: Howson (38) (60) Hooper (45 pen) Hoolahan (57) | BJ42: var ResWLD40= "L"
A43: 1 | C43: 39 | D43: Championship | E43: 2015-03-03 | G43: 22nd v 2nd | H43: Middlesboro | I43: (A) | J43: L | L43: L 0-3 | M43: 0-2 | O43: 1 | Q43: - | S43: - | U43: - | W43: K Wright | X43: 16078 | Y43: 162 | Z43: 31 | AA43: 22 | AB43: - | AC43: 7 | AD43: 3 | AE43: Bamford (26) Garcia Martinez (30) Vossen (78) | AK43: Sat-14-Mar-15 | AL43: 41 | AM43: var Game41= 41 | AN43: var Competition41= "Championship" | AO43: var Date41= "Sat-14-Mar-15" | AP43: var UsThem41= "23rd v 18th" | AQ43: var Opponents41= "Bolton" | AR43: var Ven41= "(A)" | AS43: var Score41= "L 0-2" | AT43: var HT41= "0-2" | AU43: var Yell41= "1" | AV43: var Red41= "-" | AW43: var YellA41= "1" | AX43: var RedA41= "-" | AY43: var Ref41= "A Haines" | AZ43: var Att41= "14719" | BA43: var Away41= "355" | BB43: var Pts41= "31" | BC43: var Pos41= "23" | BD43: var Pens41= "-" | BE43: var Goals41= "" | BF43: var OppGls41= "Le Fondre (10) (45)" | BI43: Le Fondre (10) (45) | BJ43: var ResWLD41= "L"
A44: 2 | C44: 40 | D44: Championship | E44: 2015-03-07 | G44: 23rd v 5th | H44: Norwich City | I44: (H) | J44: L | L44: L 1-4 | M44: 0-2 | O44: 1 | Q44: - | S44: 1 | U44: - | W44: K Stroud | X44: 11116 | Y44: 2508 | Z44: 31 | AA44: 23 | AB44: - | AC44: 2 | AD44: 3 | AE44: Gregory (8 pen) / Howson (38) (60) Hooper (45 pen) Hoolahan (57) | AK44: Tue-17-Mar-15 | AL44: 42 | AM44: var Game42= 42 | AN44: var Competition42= "Championship" | AO44: var Date42= "Tue-17-Mar-15" | AP44: var UsThem42= "23rd v 19th" | AQ44: var Opponents42= "Brighton" | AR44: var Ven42= "(H)" | AS44: var Score42= "D 0-0" | AT44: var HT42= "0-0" | AU44: var Yell42= "2" | AV44: var Red42= "-" | AW44: var YellA42= "-" | AX44: var RedA42= "-" | AY44: var Ref42= "A Woolmer" | AZ44: var Att42= "9105" | BA44: var Away42= "1315" | BB44: var Pts42= "32" | BC44: var Pos42= "23" | BD44: var Pens42= "-" | BE44: var Goals42= "" | BF44: var OppGls42= "" | BJ44: var ResWLD42= "D"
A45: 1 | C45: 41 | D45: Championship | E45: 2015-03-14 | G45: 23rd v 18th | H45: Bolton | I45: (A) | J45: L | L45: L 0-2 | M45: 0-2 | O45: 1 | Q45: - | S45: 1 | U45: - | W45: A Haines | X45: 14719 | Y45: 355 | Z45: 31 | AA45: 23 | AB45: - | AC45: 6 | AD45: 3 | AE45: Le Fondre (10) (45) | AK45: Sat-21-Mar-15 | AL45: 43 | AM45: var Game43= 43 | AN45: var Competition43= "Championship" | AO45: var Date43= "Sat-21-Mar-15" | AP45: var UsThem43= "- -" | AQ45: var Opponents43= "Brentford" | AR45: var Ven43= "(A)" | AS45: var Score43= "" | AT45: var HT43= "" | AU45: var Yell43= "" | AV45: var Red43= "" | AW45: var YellA43= "" | AX45: var RedA43= "" | AY45: var Ref43= "" | AZ45: var Att43= "" | BA45: var Away43= "" | BB45: var Pts43= "" | BC45: var Pos43= "" | BD45: var Pens43= "" | BE45: var Goals43= "" | BF45: var OppGls43= "" | BJ45: var ResWLD43= ""
A46: 2 | C46: 42 | D46: Championship | E46: 2015-03-17 | G46: 23rd v 19th | H46: Brighton | I46: (H) | J46: D | L46: D 0-0 | M46: 0-0 | O46: 2 | Q46: - | S46: - | U46: - | W46: A Woolmer | X46: 9105 | Y46: 1315 | Z46: 32 | AA46: 23 | AB46: - | AC46: 7 | AD46: 4 | AK46: Fri-03-Apr-15 | AL46: 44 | AM46: var Game44= 44 | AN46: var Competition44= "Championship" | AO46: var Date44= "Fri-03-Apr-15" | AP46: var UsThem44= "- -" | AQ46: var Opponents44= "Charlton" | AR46: var Ven44= "(H)" | AS46: var Score44= "" | AT46: var HT44= "" | AU46: var Yell44= "" | AV46: var Red44= "" | AW46: var YellA44= "" | AX46: var RedA44= "" | AY46: var Ref44= "" | AZ46: var Att44= "" | BA46: var Away44= "" | BB46: var Pts44= "" | BC46: var Pos44= "" | BD46: var Pens44= "" | BE46: var Goals44= "" | BF46: var OppGls44= "" | BJ46: var ResWLD44= ""
A47: 1 | C47: 43 | D47: Championship | E47: 2015-03-21 | G47: - - | H47: Brentford | I47: (A) | J47: =(LEFT(L47,1)) ->  | AK47: Sat-11-Apr-15 | AL47: 45 | AM47: var Game45= 45 | AN47: var Competition45= "Championship" | AO47: var Date45= "Sat-11-Apr-15" | AP47: var UsThem45= "- -" | AQ47: var Opponents45= "Watford" | AR47: var Ven45= "(H)" | AS47: var Score45= "" | AT47: var HT45= "" | AU47: var Yell45= "" | AV47: var Red45= "" | AW47: var YellA45= "" | AX47: var RedA45= "" | AY47: var Ref45= "" | AZ47: var Att45= "" | BA47: var Away45= "" | BB47: var Pts45= "" | BC47: var Pos45= "" | BD47: var Pens45= "" | BE47: var Goals45= "" | BF47: var OppGls45= "" | BJ47: var ResWLD45= ""
A48: 2 | C48: 44 | D48: Championship | E48: 2015-04-03 | G48: - - | H48: Charlton | I48: (H) | AK48: Tue-14-Apr-15 | AL48: 46 | AM48: var Game46= 46 | AN48: var Competition46= "Championship" | AO48: var Date46= "Tue-14-Apr-15" | AP48: var UsThem46= "- -" | AQ48: var Opponents46= "Wigan" | AR48: var Ven46= "(H)" | AS48: var Score46= "" | AT48: var HT46= "" | AU48: var Yell46= "" | AV48: var Red46= "" | AW48: var YellA46= "" | AX48: var RedA46= "" | AY48: var Ref46= "" | AZ48: var Att46= "" | BA48: var Away46= "" | BB48: var Pts46= "" | BC48: var Pos46= "" | BD48: var Pens46= "" | BE48: var Goals46= "" | BF48: var OppGls46= "" | BJ48: var ResWLD46= ""
A49: 1 | C49: 45 | D49: Championship | E49: 2015-04-11 | G49: - - | H49: Watford | I49: (H) | AK49: Sat-18-Apr-15 | AL49: 47 | AM49: var Game47= 47 | AN49: var Competition47= "Championship" | AO49: var Date47= "Sat-18-Apr-15" | AP49: var UsThem47= "- -" | AQ49: var Opponents47= "Cardiff" | AR49: var Ven47= "(A)" | AS49: var Score47= "" | AT49: var HT47= "" | AU49: var Yell47= "" | AV49: var Red47= "" | AW49: var YellA47= "" | AX49: var RedA47= "" | AY49: var Ref47= "" | AZ49: var Att47= "" | BA49: var Away47= "" | BB49: var Pts47= "" | BC49: var Pos47= "" | BD49: var Pens47= "" | BE49: var Goals47= "" | BF49: var OppGls47= "" | BJ49: var ResWLD47= ""
A50: 2 | C50: 46 | D50: Championship | E50: 2015-04-14 | G50: - - | H50: Wigan | I50: (H) | AK50: Tue-21-Apr-15 | AL50: 48 | AM50: var Game48= 48 | AN50: var Competition48= "Championship" | AO50: var Date48= "Tue-21-Apr-15" | AP50: var UsThem48= "- -" | AQ50: var Opponents48= "Blackburn" | AR50: var Ven48= "(A)" | AS50: var Score48= "" | AT50: var HT48= "" | AU50: var Yell48= "" | AV50: var Red48= "" | AW50: var YellA48= "" | AX50: var RedA48= "" | AY50: var Ref48= "" | AZ50: var Att48= "" | BA50: var Away48= "" | BB50: var Pts48= "" | BC50: var Pos48= "" | BD50: var Pens48= "" | BE50: var Goals48= "" | BF50: var OppGls48= "" | BJ50: var ResWLD48= ""
A51: 1 | C51: 47 | D51: Championship | E51: 2015-04-18 | G51: - - | H51: Cardiff | I51: (A) | AK51: Sat-25-Apr-15 | AL51: 49 | AM51: var Game49= 49 | AN51: var Competition49= "Championship" | AO51: var Date49= "Sat-25-Apr-15" | AP51: var UsThem49= "- -" | AQ51: var Opponents49= "Derby" | AR51: var Ven49= "(H)" | AS51: var Score49= "" | AT51: var HT49= "" | AU51: var Yell49= "" | AV51: var Red49= "" | AW51: var YellA49= "" | AX51: var RedA49= "" | AY51: var Ref49= "" | AZ51: var Att49= "" | BA51: var Away49= "" | BB51: var Pts49= "" | BC51: var Pos49= "" | BD51: var Pens49= "" | BE51: var Goals49= "" | BF51: var OppGls49= "" | BJ51: var ResWLD49= ""
A52: 2 | C52: 48 | D52: Championship | E52: 2015-04-21 | G52: - - | H52: Blackburn | I52: (A) | AK52: Sat-02-May-15 | AL52: 50 | AM52: ="var "&AM$2&$AL52&"= "&AL52 -> var Game50= 50 | AN52: ="var "&AN$2&$AL52&"= """&D54&"""" -> var Competition50= "Championship" | AO52: ="var "&AO$2&$AL52&"= """&AK52&"""" -> var Date50= "Sat-02-May-15" | AP52: ="var "&AP$2&$AL52&"= """&G54&"""" -> var UsThem50= "- -" | AQ52: ="var "&AQ$2&$AL52&"= """&H54&"""" -> var Opponents50= "Wolves" | AR52: ="var "&AR$2&$AL52&"= """&I54&"""" -> var Ven50= "(A)" | AS52: ="var "&AS$2&$AL52&"= """&L54&"""" -> var Score50= "" | AT52: ="var "&AT$2&$AL52&"= """&M54&"""" -> var HT50= "" | AU52: ="var "&AU$2&$AL52&"= """&O54&"""" -> var Yell50= "" | AV52: ="var "&AV$2&$AL52&"= """&Q54&"""" -> var Red50= "" | AW52: ="var "&AW$2&$AL52&"= """&S54&"""" -> var YellA50= "" | AX52: ="var "&AX$2&$AL52&"= """&U54&"""" -> var RedA50= "" | AY52: ="var "&AY$2&$AL52&"= """&W54&"""" -> var Ref50= "" | AZ52: var Att50= "" | BA52: var Away50= "" | BB52: var Pts50= "" | BC52: var Pos50= "" | BD52: var Pens50= "" | BE52: ="var "&BE$2&$AL52&"= """&BH52&"""" -> var Goals50= "" | BF52: ="var "&BF$2&$AL52&"= """&BI52&"""" -> var OppGls50= "" | BJ52: var ResWLD50= ""
A53: 1 | C53: 49 | D53: Championship | E53: 2015-04-25 | G53: - - | H53: Derby | I53: (H)
A54: 2 | C54: 50 | D54: Championship | E54: 2015-05-02 | G54: - - | H54: Wolves | I54: (A)
A55: 1
A56: 2 | M56: Cards | N56: =SUM(O5:O53) -> 76 | O56: =SUM(O5:O55) -> 76 | Q56: =SUM(Q5:Q55) -> 6 | S56: =SUM(S5:S55) -> 69 | U56: =SUM(U5:U55) -> 1 | AM56: GameFAC
A57: 1 | G57: PS = Penalty Saved, PM = Penalty Missed, Green Millwall Penalty Missed or Saved, Red Opposition Missed or Saved | AC57: =SUM(AC5:AC53) -> 196 | AD57: =SUM(AD5:AD53) -> 221 | AL57: 3 | AM57: ="var "&AM$56&$AL57&"= """&AL57&"""" -> var GameFAC3= "3"
A58: =IF(A57=0,1,IF(A57=2,1,2)) -> 2 | AL58: 3R | AM58: ="var "&AM$56&$AL58&"= """&AL58&"""" -> var GameFAC3R= "3R"
A63: =IF(A58=0,1,IF(A58=2,1,2)) -> 1 | AF63: 1
A64: =IF(A63=0,1,IF(A63=2,1,2)) -> 2
A65: =IF(A64=0,1,IF(A64=2,1,2)) -> 1 | AM65: Game1 | AN65: Competition1 | AO65: Date1 | AP65: UsThem1 | AQ65: Opponents1 | AR65: Ven1 | AS65: Score1 | AT65: HT1 | AU65: Yell1 | AV65: Red1 | AW65: YellA1 | AX65: RedA1 | AY65: Ref1 | AZ65: Att1 | BA65: Away1 | BB65: Pts1 | BC65: Pos1 | BD65: Pens1 | BE65: Goals1 | BF65: OppGls1
AD66: =SUM(AC5:AC55) -> 196 | AF66: 1 | AM66: Game2 | AN66: Competition2 | AO66: Date2 | AP66: UsThem2 | AQ66: Opponents2 | AR66: Ven2 | AS66: Score2 | AT66: HT2 | AU66: Yell2 | AV66: Red2 | AW66: YellA2 | AX66: RedA2 | AY66: Ref2 | AZ66: Att2 | BA66: Away2 | BB66: Pts2 | BC66: Pos2 | BD66: Pens2 | BE66: Goals2 | BF66: OppGls2
AD67: =SUM(AD5:AD56) -> 221 | AM67: Game3 | AN67: Competition3 | AO67: Date3 | AP67: UsThem3 | AQ67: Opponents3 | AR67: Ven3 | AS67: Score3 | AT67: HT3 | AU67: Yell3 | AV67: Red3 | AW67: YellA3 | AX67: RedA3 | AY67: Ref3 | AZ67: Att3 | BA67: Away3 | BB67: Pts3 | BC67: Pos3 | BD67: Pens3 | BE67: Goals3 | BF67: OppGls3
AD68: =AD66/AD67 -> 0.8868778281 | AF68: 1 | AM68: Game4 | AN68: Competition4 | AO68: Date4 | AP68: UsThem4 | AQ68: Opponents4 | AR68: Ven4 | AS68: Score4 | AT68: HT4 | AU68: Yell4 | AV68: Red4 | AW68: YellA4 | AX68: RedA4 | AY68: Ref4 | AZ68: Att4 | BA68: Away4 | BB68: Pts4 | BC68: Pos4 | BD68: Pens4 | BE68: Goals4 | BF68: OppGls4
C69: WE | D69: =E69 -> 2014-08-09 | E69: =E5 -> 2014-08-09 | G69: =G6 -> - - | H69: =H5 -> Leeds | I69: (H) | L69: =L5 -> W 2-0 | X69: =X5 -> 16205 | Y69: =Y5 -> 2171 | AA69: =X69-Y69 -> 14034 | AM69: Game5 | AN69: Competition5 | AO69: Date5 | AP69: UsThem5 | AQ69: Opponents5 | AR69: Ven5 | AS69: Score5 | AT69: HT5 | AU69: Yell5 | AV69: Red5 | AW69: YellA5 | AX69: RedA5 | AY69: Ref5 | AZ69: Att5 | BA69: Away5 | BB69: Pts5 | BC69: Pos5 | BD69: Pens5 | BE69: Goals5 | BF69: OppGls5
C70: WE | D70: 2014-08-23 | E70: =E9 -> 2014-08-23 | H70: =H9 -> Rotherham | I70: (H) | L70: =L9 -> L 0-1 | X70: =X9 -> 10282 | Y70: =Y9 -> 410 | AA70: =X70-Y70 -> 9872 | AB70: =AA70-AA69 -> -4162 | AM70: Game6 | AN70: Competition6 | AO70: Date6 | AP70: UsThem6 | AQ70: Opponents6 | AR70: Ven6 | AS70: Score6 | AT70: HT6 | AU70: Yell6 | AV70: Red6 | AW70: YellA6 | AX70: RedA6 | AY70: Ref6 | AZ70: Att6 | BA70: Away6 | BB70: Pts6 | BC70: Pos6 | BD70: Pens6 | BE70: Goals6 | BF70: OppGls6
C71: WE | D71: 2014-08-30 | E71: =E11 -> 2014-08-30 | H71: =H11 -> Blackpool | I71: (H) | L71: =L11 -> W 2-1 | X71: =X11 -> 9877 | Y71: =Y11 -> 445 | AA71: =X71-Y71 -> 9432 | AB71: -440 | AE71: Av Attendance League Games Only | AM71: Game7 | AN71: Competition7 | AO71: Date7 | AP71: UsThem7 | AQ71: Opponents7 | AR71: Ven7 | AS71: Score7 | AT71: HT7 | AU71: Yell7 | AV71: Red7 | AW71: YellA7 | AX71: RedA7 | AY71: Ref7 | AZ71: Att7 | BA71: Away7 | BB71: Pts7 | BC71: Pos7 | BD71: Pens7 | BE71: Goals7 | BF71: OppGls7
C72: WE | D72: 2014-09-20 | E72: =E14 -> 2014-09-20 | H72: =H14 -> Nottm Forest | I72: (H) | L72: =L14 -> D 0-0 | X72: =X14 -> 12038 | Y72: =Y14 -> 1676 | AA72: =X72-Y72 -> 10362 | AB72: 930 | AE72: =COUNTIFS(I5:I55,I6,D5:D55,D5,X5:X55,">0") -> 19 | AM72: Game8 | AN72: Competition8 | AO72: Date8 | AP72: UsThem8 | AQ72: Opponents8 | AR72: Ven8 | AS72: Score8 | AT72: HT8 | AU72: Yell8 | AV72: Red8 | AW72: YellA8 | AX72: RedA8 | AY72: Ref8 | AZ72: Att8 | BA72: Away8 | BB72: Pts8 | BC72: Pos8 | BD72: Pens8 | BE72: Goals8 | BF72: OppGls8
C73: MW | D73: 2014-09-30 | E73: =E16 -> 2014-09-30 | H73: =H16 -> Birmingham | I73: (H) | L73: =L16 -> L 1-3 | X73: =X16 -> 9086 | Y73: =Y16 -> 603 | AA73: =X73-Y73 -> 8483 | AB73: -1879 | AE73: =SUMIFS(X5:X55,I5:I55,I5,D5:D55,D5) -> 202876 | AM73: Game9 | AN73: Competition9 | AO73: Date9 | AP73: UsThem9 | AQ73: Opponents9 | AR73: Ven9 | AS73: Score9 | AT73: HT9 | AU73: Yell9 | AV73: Red9 | AW73: YellA9 | AX73: RedA9 | AY73: Ref9 | AZ73: Att9 | BA73: Away9 | BB73: Pts9 | BC73: Pos9 | BD73: Pens9 | BE73: Goals9 | BF73: OppGls9
C74: WE | D74: 2014-10-18 | E74: =E18 -> 2014-10-18 | H74: =H18 -> Wolves | I74: (H) | L74: =L18 -> D 3-3 | X74: =X18 -> 13428 | Y74: =Y18 -> 2102 | AA74: =X74-Y74 -> 11326 | AB74: 2843 | AE74: =AE73/AE72 -> 10677.68421 | AM74: Game10 | AN74: Competition10 | AO74: Date10 | AP74: UsThem10 | AQ74: Opponents10 | AR74: Ven10 | AS74: Score10 | AT74: HT10 | AU74: Yell10 | AV74: Red10 | AW74: YellA10 | AX74: RedA10 | AY74: Ref10 | AZ74: Att10 | BA74: Away10 | BB74: Pts10 | BC74: Pos10 | BD74: Pens10 | BE74: Goals10 | BF74: OppGls10
C75: WE | D75: 2014-10-25 | E75: =E20 -> 2014-10-25 | H75: =H20 -> Cardiff | I75: (H) | L75: =L20 -> W 1-0 | X75: =X20 -> 10135 | Y75: =Y20 -> 786 | AA75: 9349 | AB75: -1977 | AM75: Game11 | AN75: Competition11 | AO75: Date11 | AP75: UsThem11 | AQ75: Opponents11 | AR75: Ven11 | AS75: Score11 | AT75: HT11 | AU75: Yell11 | AV75: Red11 | AW75: YellA11 | AX75: RedA11 | AY75: Ref11 | AZ75: Att11 | BA75: Away11 | BB75: Pts11 | BC75: Pos11 | BD75: Pens11 | BE75: Goals11 | BF75: OppGls11
C76: MW | D76: 2014-11-04 | E76: =E22 -> 2014-11-04 | H76: =H22 -> Blackburn | I76: (H) | L76: =L22 -> D 2-2 | X76: =X22 -> 8250 | Y76: =Y22 -> 468 | AA76: 7782 | AB76: -1567 | AM76: Game12 | AN76: Competition12 | AO76: Date12 | AP76: UsThem12 | AQ76: Opponents12 | AR76: Ven12 | AS76: Score12 | AT76: HT12 | AU76: Yell12 | AV76: Red12 | AW76: YellA12 | AX76: RedA12 | AY76: Ref12 | AZ76: Att12 | BA76: Away12 | BB76: Pts12 | BC76: Pos12 | BD76: Pens12 | BE76: Goals12 | BF76: OppGls12
C77: WE | D77: 2014-11-08 | E77: =E23 -> 2014-11-08 | H77: =H23 -> Brentford | I77: (H) | L77: =L23 -> L 2-3 | X77: =X23 -> 13048 | Y77: =Y23 -> 1771 | AA77: 11277 | AB77: 3495 | AE77: Av Attendance All Home Games | AM77: Game13 | AN77: Competition13 | AO77: Date13 | AP77: UsThem13 | AQ77: Opponents13 | AR77: Ven13 | AS77: Score13 | AT77: HT13 | AU77: Yell13 | AV77: Red13 | AW77: YellA13 | AX77: RedA13 | AY77: Ref13 | AZ77: Att13 | BA77: Away13 | BB77: Pts13 | BC77: Pos13 | BD77: Pens13 | BE77: Goals13 | BF77: OppGls13
C78: WE | D78: 2014-12-06 | E78: =E26 -> 2014-12-06 | H78: =H26 -> Middlesboro | I78: (H) | L78: =L26 -> L 1-5 | X78: =X26 -> 10328 | Y78: =Y26 -> 1399 | AA78: 8929 | AB78: -2348 | AE78: =COUNTIFS($I$5:$I$55,$I$6,$X$5:$X$55,">0") -> 22 | AM78: Game14 | AN78: Competition14 | AO78: Date14 | AP78: UsThem14 | AQ78: Opponents14 | AR78: Ven14 | AS78: Score14 | AT78: HT14 | AU78: Yell14 | AV78: Red14 | AW78: YellA14 | AX78: RedA14 | AY78: Ref14 | AZ78: Att14 | BA78: Away14 | BB78: Pts14 | BC78: Pos14 | BD78: Pens14 | BE78: Goals14 | BF78: OppGls14
C79: WE | D79: 2014-12-19 | E79: =E28 -> 2014-12-19 | H79: =H28 -> Bolton | I79: (H) | L79: =L28 -> L 0-1 | X79: =X28 -> 8635 | Y79: =Y28 -> 356 | AA79: 8279 | AB79: -650 | AE79: =SUMIFS($X$5:$X$55,$I$5:$I$55,$I$6) -> 217763 | AM79: Game15 | AN79: Competition15 | AO79: Date15 | AP79: UsThem15 | AQ79: Opponents15 | AR79: Ven15 | AS79: Score15 | AT79: HT15 | AU79: Yell15 | AV79: Red15 | AW79: YellA15 | AX79: RedA15 | AY79: Ref15 | AZ79: Att15 | BA79: Away15 | BB79: Pts15 | BC79: Pos15 | BD79: Pens15 | BE79: Goals15 | BF79: OppGls15
C80: WE | D80: 2014-12-28 | E80: =E30 -> 2014-12-28 | H80: =H30 -> Bournemouth | I80: (H) | L80: =L30 -> L 0-2 | X80: =X30 -> 10407 | Y80: =Y30 -> 1278 | AA80: 9129 | AB80: 850 | AE80: =AE79/AE78 -> 9898.318182 | AM80: Game16 | AN80: Competition16 | AO80: Date16 | AP80: UsThem16 | AQ80: Opponents16 | AR80: Ven16 | AS80: Score16 | AT80: HT16 | AU80: Yell16 | AV80: Red16 | AW80: YellA16 | AX80: RedA16 | AY80: Ref16 | AZ80: Att16 | BA80: Away16 | BB80: Pts16 | BC80: Pos16 | BD80: Pens16 | BE80: Goals16 | BF80: OppGls16
C81: WE | D81: 2015-01-17 | E81: =E34 -> 2015-01-17 | H81: =H34 -> Ipswich | I81: (H) | L81: =L34 -> L 1-3 | X81: =X34 -> 11063 | Y81: =Y34 -> 2503 | AA81: 8560 | AB81: -569 | AM81: Game17 | AN81: Competition17 | AO81: Date17 | AP81: UsThem17 | AQ81: Opponents17 | AR81: Ven17 | AS81: Score17 | AT81: HT17 | AU81: Yell17 | AV81: Red17 | AW81: YellA17 | AX81: RedA17 | AY81: Ref17 | AZ81: Att17 | BA81: Away17 | BB81: Pts17 | BC81: Pos17 | BD81: Pens17 | BE81: Goals17 | BF81: OppGls17
C82: MW | D82: 2015-01-27 | E82: =E35 -> 2015-01-27 | H82: =H35 -> Reading | I82: (H) | L82: =L35 -> D 0-0 | X82: =X35 -> 8317 | Y82: =Y35 -> 539 | AA82: 7778 | AB82: -782 | AE82: Av Away Attendance Millwall Fans | AM82: Game18 | AN82: Competition18 | AO82: Date18 | AP82: UsThem18 | AQ82: Opponents18 | AR82: Ven18 | AS82: Score18 | AT82: HT18 | AU82: Yell18 | AV82: Red18 | AW82: YellA18 | AX82: RedA18 | AY82: Ref18 | AZ82: Att18 | BA82: Away18 | BB82: Pts18 | BC82: Pos18 | BD82: Pens18 | BE82: Goals18 | BF82: OppGls18
C83: WE | D83: 2015-02-07 | E83: =E37 -> 2015-02-07 | H83: =H37 -> Huddersfield | I83: (H) | L83: =L37 -> L 1-3 | X83: =X37 -> 10281 | Y83: =Y37 -> 586 | AA83: 9695 | AB83: 1917 | AE83: =COUNTIFS($I$5:$I$55,$I$7,$Y$5:$Y$55,">0") -> 20 | AM83: Game19 | AN83: Competition19 | AO83: Date19 | AP83: UsThem19 | AQ83: Opponents19 | AR83: Ven19 | AS83: Score19 | AT83: HT19 | AU83: Yell19 | AV83: Red19 | AW83: YellA19 | AX83: RedA19 | AY83: Ref19 | AZ83: Att19 | BA83: Away19 | BB83: Pts19 | BC83: Pos19 | BD83: Pens19 | BE83: Goals19 | BF83: OppGls19
C84: WE | D84: 2015-02-21 | E84: =E40 -> 2015-02-21 | H84: =H40 -> Fulham | I84: (H) | L84: =L40 -> D 0-0 | X84: =X40 -> 12707 | Y84: =Y40 -> 1815 | AA84: 10892 | AB84: 1197 | AE84: =SUMIFS($Y$5:$Y$55,$I$5:$I$55,$I$7) -> 19349 | AM84: Game20 | AN84: Competition20 | AO84: Date20 | AP84: UsThem20 | AQ84: Opponents20 | AR84: Ven20 | AS84: Score20 | AT84: HT20 | AU84: Yell20 | AV84: Red20 | AW84: YellA20 | AX84: RedA20 | AY84: Ref20 | AZ84: Att20 | BA84: Away20 | BB84: Pts20 | BC84: Pos20 | BD84: Pens20 | BE84: Goals20 | BF84: OppGls20
C85: MW | D85: 2015-02-24 | E85: =E41 -> 2015-02-24 | H85: =H41 -> Sheff Wed | I85: (H) | L85: =L41 -> L 1-3 | X85: =X41 -> 8568 | Y85: =Y41 -> 1001 | AA85: 7567 | AB85: -3325 | AE85: =AE84/AE83 -> 967.45 | AM85: Game21 | AN85: Competition21 | AO85: Date21 | AP85: UsThem21 | AQ85: Opponents21 | AR85: Ven21 | AS85: Score21 | AT85: HT21 | AU85: Yell21 | AV85: Red21 | AW85: YellA21 | AX85: RedA21 | AY85: Ref21 | AZ85: Att21 | BA85: Away21 | BB85: Pts21 | BC85: Pos21 | BD85: Pens21 | BE85: Goals21 | BF85: OppGls21
C86: WE | D86: 2015-03-07 | E86: =E44 -> 2015-03-07 | H86: =H44 -> Norwich City | I86: (H) | L86: =L44 -> L 1-4 | X86: =X44 -> 11116 | Y86: =Y44 -> 2508 | AA86: 8608 | AB86: 1041 | AM86: Game22 | AN86: Competition22 | AO86: Date22 | AP86: UsThem22 | AQ86: Opponents22 | AR86: Ven22 | AS86: Score22 | AT86: HT22 | AU86: Yell22 | AV86: Red22 | AW86: YellA22 | AX86: RedA22 | AY86: Ref22 | AZ86: Att22 | BA86: Away22 | BB86: Pts22 | BC86: Pos22 | BD86: Pens22 | BE86: Goals22 | BF86: OppGls22
C87: WE | D87: 2015-03-17 | E87: =E46 -> 2015-03-17 | H87: =H46 -> Brighton | I87: (H) | L87: =L46 -> D 0-0 | X87: =X46 -> 9105 | Y87: =Y46 -> 1315 | AA87: 7790 | AB87: -818 | AE87: Av Away Attendance Visitors to Millwall | AM87: Game23 | AN87: Competition23 | AO87: Date23 | AP87: UsThem23 | AQ87: Opponents23 | AR87: Ven23 | AS87: Score23 | AT87: HT23 | AU87: Yell23 | AV87: Red23 | AW87: YellA23 | AX87: RedA23 | AY87: Ref23 | AZ87: Att23 | BA87: Away23 | BB87: Pts23 | BC87: Pos23 | BD87: Pens23 | BE87: Goals23 | BF87: OppGls23
C88: WE | D88: 2015-04-03 | E88: =E48 -> 2015-04-03 | H88: =H48 -> Charlton | I88: (H) | L88: =L48 -> 0 | X88: =X48 -> 0 | Y88: =Y48 -> 0 | AA88: 0 | AB88: -7790 | AE88: =COUNTIFS($I$5:$I$55,$I$6,$Y$5:$Y$55,">0") -> 22 | AM88: Game24 | AN88: Competition24 | AO88: Date24 | AP88: UsThem24 | AQ88: Opponents24 | AR88: Ven24 | AS88: Score24 | AT88: HT24 | AU88: Yell24 | AV88: Red24 | AW88: YellA24 | AX88: RedA24 | AY88: Ref24 | AZ88: Att24 | BA88: Away24 | BB88: Pts24 | BC88: Pos24 | BD88: Pens24 | BE88: Goals24 | BF88: OppGls24
C89: WE | D89: 2015-04-14 | E89: =E50 -> 2015-04-14 | H89: =H50 -> Wigan | I89: (H) | L89: =L50 -> 0 | X89: =X50 -> 0 | Y89: =Y50 -> 0 | AA89: 0 | AB89: =AA89-AA88 -> 0 | AE89: =SUMIFS($Y$5:$Y$55,$I$5:$I$55,$I$6) -> 26178 | AM89: Game25 | AN89: Competition25 | AO89: Date25 | AP89: UsThem25 | AQ89: Opponents25 | AR89: Ven25 | AS89: Score25 | AT89: HT25 | AU89: Yell25 | AV89: Red25 | AW89: YellA25 | AX89: RedA25 | AY89: Ref25 | AZ89: Att25 | BA89: Away25 | BB89: Pts25 | BC89: Pos25 | BD89: Pens25 | BE89: Goals25 | BF89: OppGls25
C90: WE | D90: 2015-04-18 | E90: =E51 -> 2015-04-18 | H90: =H51 -> Cardiff | I90: (H) | L90: =L51 -> 0 | X90: =X51 -> 0 | Y90: =Y51 -> 0 | AA90: 0 | AB90: =AA90-AA89 -> 0 | AE90: =AE89/AE88 -> 1189.909091 | AM90: Game26 | AN90: Competition26 | AO90: Date26 | AP90: UsThem26 | AQ90: Opponents26 | AR90: Ven26 | AS90: Score26 | AT90: HT26 | AU90: Yell26 | AV90: Red26 | AW90: YellA26 | AX90: RedA26 | AY90: Ref26 | AZ90: Att26 | BA90: Away26 | BB90: Pts26 | BC90: Pos26 | BD90: Pens26 | BE90: Goals26 | BF90: OppGls26
C91: WE | D91: 2015-04-25 | E91: =E53 -> 2015-04-25 | H91: =H53 -> Derby | I91: (H) | L91: =L53 -> 0 | X91: =X53 -> 0 | Y91: =Y53 -> 0 | AA91: 0 | AB91: =AA91-AA90 -> 0 | AM91: Game27 | AN91: Competition27 | AO91: Date27 | AP91: UsThem27 | AQ91: Opponents27 | AR91: Ven27 | AS91: Score27 | AT91: HT27 | AU91: Yell27 | AV91: Red27 | AW91: YellA27 | AX91: RedA27 | AY91: Ref27 | AZ91: Att27 | BA91: Away27 | BB91: Pts27 | BC91: Pos27 | BD91: Pens27 | BE91: Goals27 | BF91: OppGls27
AE92: Av Away Attendance League Millwall | AM92: Game28 | AN92: Competition28 | AO92: Date28 | AP92: UsThem28 | AQ92: Opponents28 | AR92: Ven28 | AS92: Score28 | AT92: HT28 | AU92: Yell28 | AV92: Red28 | AW92: YellA28 | AX92: RedA28 | AY92: Ref28 | AZ92: Att28 | BA92: Away28 | BB92: Pts28 | BC92: Pos28 | BD92: Pens28 | BE92: Goals28 | BF92: OppGls28
AE93: =COUNTIFS(D5:D55,D5,I5:I55,I7,Y5:Y55,">0") -> 19 | AM93: Game29 | AN93: Competition29 | AO93: Date29 | AP93: UsThem29 | AQ93: Opponents29 | AR93: Ven29 | AS93: Score29 | AT93: HT29 | AU93: Yell29 | AV93: Red29 | AW93: YellA29 | AX93: RedA29 | AY93: Ref29 | AZ93: Att29 | BA93: Away29 | BB93: Pts29 | BC93: Pos29 | BD93: Pens29 | BE93: Goals29 | BF93: OppGls29
AE94: =SUMIFS(Y5:Y55,D5:D55,D5,I5:I55,I7) -> 18738 | AM94: Game30 | AN94: Competition30 | AO94: Date30 | AP94: UsThem30 | AQ94: Opponents30 | AR94: Ven30 | AS94: Score30 | AT94: HT30 | AU94: Yell30 | AV94: Red30 | AW94: YellA30 | AX94: RedA30 | AY94: Ref30 | AZ94: Att30 | BA94: Away30 | BB94: Pts30 | BC94: Pos30 | BD94: Pens30 | BE94: Goals30 | BF94: OppGls30
C95: =COUNTIF($B$69:$C$91,$C$69) -> 19 | H95: Week End | W95: Total | X95: =SUMIF($C$69:$C$92,$C$69,$X$69:$X$91) -> 168655 | Y95: =SUMIF($C$69:$C$92,$C$69,$Y$69:$Y$91) -> 21121 | AA95: =X95-Y95 -> 147534 | AE95: =AE94/AE93 -> 986.2105263 | AM95: Game31 | AN95: Competition31 | AO95: Date31 | AP95: UsThem31 | AQ95: Opponents31 | AR95: Ven31 | AS95: Score31 | AT95: HT31 | AU95: Yell31 | AV95: Red31 | AW95: YellA31 | AX95: RedA31 | AY95: Ref31 | AZ95: Att31 | BA95: Away31 | BB95: Pts31 | BC95: Pos31 | BD95: Pens31 | BE95: Goals31 | BF95: OppGls31
W96: Average | X96: =X95/C95 -> 8876.578947 | Y96: =Y95/C95 -> 1111.631579 | AA96: =X96-Y96 -> 7764.947368 | AM96: Game32 | AN96: Competition32 | AO96: Date32 | AP96: UsThem32 | AQ96: Opponents32 | AR96: Ven32 | AS96: Score32 | AT96: HT32 | AU96: Yell32 | AV96: Red32 | AW96: YellA32 | AX96: RedA32 | AY96: Ref32 | AZ96: Att32 | BA96: Away32 | BB96: Pts32 | BC96: Pos32 | BD96: Pens32 | BE96: Goals32 | BF96: OppGls32
AM97: Game33 | AN97: Competition33 | AO97: Date33 | AP97: UsThem33 | AQ97: Opponents33 | AR97: Ven33 | AS97: Score33 | AT97: HT33 | AU97: Yell33 | AV97: Red33 | AW97: YellA33 | AX97: RedA33 | AY97: Ref33 | AZ97: Att33 | BA97: Away33 | BB97: Pts33 | BC97: Pos33 | BD97: Pens33 | BE97: Goals33 | BF97: OppGls33
C98: =COUNTIF($B$69:$C$91,$C$72) -> 19 | H98: Midweek | W98: Total | X98: =SUMIF($C$69:$C$92,$C$72,$X$69:$X$91) -> 168655 | Y98: =SUMIF($C$69:$C$92,$C$72,$Y$69:$Y$91) -> 21121 | AA98: =X98-Y98 -> 147534 | AE98: =AA96-AA99 -> 0 | AM98: Game34 | AN98: Competition34 | AO98: Date34 | AP98: UsThem34 | AQ98: Opponents34 | AR98: Ven34 | AS98: Score34 | AT98: HT34 | AU98: Yell34 | AV98: Red34 | AW98: YellA34 | AX98: RedA34 | AY98: Ref34 | AZ98: Att34 | BA98: Away34 | BB98: Pts34 | BC98: Pos34 | BD98: Pens34 | BE98: Goals34 | BF98: OppGls34
W99: Average | X99: =X98/C98 -> 8876.578947 | Y99: =Y98/C98 -> 1111.631579 | AA99: =X99-Y99 -> 7764.947368 | AE99: =Y96-Y99 -> 0 | AM99: Game35 | AN99: Competition35 | AO99: Date35 | AP99: UsThem35 | AQ99: Opponents35 | AR99: Ven35 | AS99: Score35 | AT99: HT35 | AU99: Yell35 | AV99: Red35 | AW99: YellA35 | AX99: RedA35 | AY99: Ref35 | AZ99: Att35 | BA99: Away35 | BB99: Pts35 | BC99: Pos35 | BD99: Pens35 | BE99: Goals35 | BF99: OppGls35
AM100: Game36 | AN100: Competition36 | AO100: Date36 | AP100: UsThem36 | AQ100: Opponents36 | AR100: Ven36 | AS100: Score36 | AT100: HT36 | AU100: Yell36 | AV100: Red36 | AW100: YellA36 | AX100: RedA36 | AY100: Ref36 | AZ100: Att36 | BA100: Away36 | BB100: Pts36 | BC100: Pos36 | BD100: Pens36 | BE100: Goals36 | BF100: OppGls36
AM101: Game37 | AN101: Competition37 | AO101: Date37 | AP101: UsThem37 | AQ101: Opponents37 | AR101: Ven37 | AS101: Score37 | AT101: HT37 | AU101: Yell37 | AV101: Red37 | AW101: YellA37 | AX101: RedA37 | AY101: Ref37 | AZ101: Att37 | BA101: Away37 | BB101: Pts37 | BC101: Pos37 | BD101: Pens37 | BE101: Goals37 | BF101: OppGls37
X102: =MAX(X69:X84) -> 16205 | Y102: =MAX(Y69:Y84) -> 2503 | AA102: =MAX(AA69:AA84) -> 14034 | AM102: Game38 | AN102: Competition38 | AO102: Date38 | AP102: UsThem38 | AQ102: Opponents38 | AR102: Ven38 | AS102: Score38 | AT102: HT38 | AU102: Yell38 | AV102: Red38 | AW102: YellA38 | AX102: RedA38 | AY102: Ref38 | AZ102: Att38 | BA102: Away38 | BB102: Pts38 | BC102: Pos38 | BD102: Pens38 | BE102: Goals38 | BF102: OppGls38
H103: =254445/23 -> 11062.82609 | X103: =MIN(X69:X84) -> 8250 | Y103: =MIN(Y69:Y84) -> 356 | AA103: =MIN(AA69:AA84) -> 7778 | AM103: Game39 | AN103: Competition39 | AO103: Date39 | AP103: UsThem39 | AQ103: Opponents39 | AR103: Ven39 | AS103: Score39 | AT103: HT39 | AU103: Yell39 | AV103: Red39 | AW103: YellA39 | AX103: RedA39 | AY103: Ref39 | AZ103: Att39 | BA103: Away39 | BB103: Pts39 | BC103: Pos39 | BD103: Pens39 | BE103: Goals39 | BF103: OppGls39
AM104: Game40 | AN104: Competition40 | AO104: Date40 | AP104: UsThem40 | AQ104: Opponents40 | AR104: Ven40 | AS104: Score40 | AT104: HT40 | AU104: Yell40 | AV104: Red40 | AW104: YellA40 | AX104: RedA40 | AY104: Ref40 | AZ104: Att40 | BA104: Away40 | BB104: Pts40 | BC104: Pos40 | BD104: Pens40 | BE104: Goals40 | BF104: OppGls40
X105: =X102-X103 -> 7955 | Y105: =Y102-Y103 -> 2147 | AA105: =AA102-AA103 -> 6256 | AM105: Game41 | AN105: Competition41 | AO105: Date41 | AP105: UsThem41 | AQ105: Opponents41 | AR105: Ven41 | AS105: Score41 | AT105: HT41 | AU105: Yell41 | AV105: Red41 | AW105: YellA41 | AX105: RedA41 | AY105: Ref41 | AZ105: Att41 | BA105: Away41 | BB105: Pts41 | BC105: Pos41 | BD105: Pens41 | BE105: Goals41 | BF105: OppGls41
AM106: Game42 | AN106: Competition42 | AO106: Date42 | AP106: UsThem42 | AQ106: Opponents42 | AR106: Ven42 | AS106: Score42 | AT106: HT42 | AU106: Yell42 | AV106: Red42 | AW106: YellA42 | AX106: RedA42 | AY106: Ref42 | AZ106: Att42 | BA106: Away42 | BB106: Pts42 | BC106: Pos42 | BD106: Pens42 | BE106: Goals42 | BF106: OppGls42
AM107: Game43 | AN107: Competition43 | AO107: Date43 | AP107: UsThem43 | AQ107: Opponents43 | AR107: Ven43 | AS107: Score43 | AT107: HT43 | AU107: Yell43 | AV107: Red43 | AW107: YellA43 | AX107: RedA43 | AY107: Ref43 | AZ107: Att43 | BA107: Away43 | BB107: Pts43 | BC107: Pos43 | BD107: Pens43 | BE107: Goals43 | BF107: OppGls43
AM108: Game44 | AN108: Competition44 | AO108: Date44 | AP108: UsThem44 | AQ108: Opponents44 | AR108: Ven44 | AS108: Score44 | AT108: HT44 | AU108: Yell44 | AV108: Red44 | AW108: YellA44 | AX108: RedA44 | AY108: Ref44 | AZ108: Att44 | BA108: Away44 | BB108: Pts44 | BC108: Pos44 | BD108: Pens44 | BE108: Goals44 | BF108: OppGls44
AM109: Game45 | AN109: Competition45 | AO109: Date45 | AP109: UsThem45 | AQ109: Opponents45 | AR109: Ven45 | AS109: Score45 | AT109: HT45 | AU109: Yell45 | AV109: Red45 | AW109: YellA45 | AX109: RedA45 | AY109: Ref45 | AZ109: Att45 | BA109: Away45 | BB109: Pts45 | BC109: Pos45 | BD109: Pens45 | BE109: Goals45 | BF109: OppGls45
AM110: Game46 | AN110: Competition46 | AO110: Date46 | AP110: UsThem46 | AQ110: Opponents46 | AR110: Ven46 | AS110: Score46 | AT110: HT46 | AU110: Yell46 | AV110: Red46 | AW110: YellA46 | AX110: RedA46 | AY110: Ref46 | AZ110: Att46 | BA110: Away46 | BB110: Pts46 | BC110: Pos46 | BD110: Pens46 | BE110: Goals46 | BF110: OppGls46
AM111: Game47 | AN111: Competition47 | AO111: Date47 | AP111: UsThem47 | AQ111: Opponents47 | AR111: Ven47 | AS111: Score47 | AT111: HT47 | AU111: Yell47 | AV111: Red47 | AW111: YellA47 | AX111: RedA47 | AY111: Ref47 | AZ111: Att47 | BA111: Away47 | BB111: Pts47 | BC111: Pos47 | BD111: Pens47 | BE111: Goals47 | BF111: OppGls47
AM112: Game48 | AN112: Competition48 | AO112: Date48 | AP112: UsThem48 | AQ112: Opponents48 | AR112: Ven48 | AS112: Score48 | AT112: HT48 | AU112: Yell48 | AV112: Red48 | AW112: YellA48 | AX112: RedA48 | AY112: Ref48 | AZ112: Att48 | BA112: Away48 | BB112: Pts48 | BC112: Pos48 | BD112: Pens48 | BE112: Goals48 | BF112: OppGls48
AM113: Game49 | AN113: Competition49 | AO113: Date49 | AP113: UsThem49 | AQ113: Opponents49 | AR113: Ven49 | AS113: Score49 | AT113: HT49 | AU113: Yell49 | AV113: Red49 | AW113: YellA49 | AX113: RedA49 | AY113: Ref49 | AZ113: Att49 | BA113: Away49 | BB113: Pts49 | BC113: Pos49 | BD113: Pens49 | BE113: Goals49 | BF113: OppGls49
AM117: ="document.write("&AM$65&");" -> document.write(Game1); | AO117: <script type="text/javascript">document.write(Game1);</script>
AM118: ="document.write("&AN$65&");" -> document.write(Competition1); | AO118: <script type="text/javascript">document.write(Competition1);</script>
AM119: ="document.write("&AO$65&");" -> document.write(Date1); | AO119: <script type="text/javascript">document.write(Date1);</script>
AM120: ="document.write("&AP$65&");" -> document.write(UsThem1); | AO120: <script type="text/javascript">document.write(UsThem1);</script>
AM121: ="document.write("&AQ$65&");" -> document.write(Opponents1); | AO121: <script type="text/javascript">document.write(Opponents1);</script>
AM122: ="document.write("&AR$65&");" -> document.write(Ven1); | AO122: <script type="text/javascript">document.write(Ven1);</script>
AM123: ="document.write("&AS$65&");" -> document.write(Score1); | AO123: <script type="text/javascript">document.write(Score1);</script>
AM124: ="document.write("&AT$65&");" -> document.write(HT1); | AO124: <script type="text/javascript">document.write(HT1);</script>
AM125: ="document.write("&AU$65&");" -> document.write(Yell1); | AO125: <script type="text/javascript">document.write(Yell1);</script>
AM126: ="document.write("&AV$65&");" -> document.write(Red1); | AO126: <script type="text/javascript">document.write(Red1);</script>
AM127: ="document.write("&AW$65&");" -> document.write(YellA1); | AO127: <script type="text/javascript">document.write(YellA1);</script>
AM128: ="document.write("&AX$65&");" -> document.write(RedA1); | AO128: <script type="text/javascript">document.write(RedA1);</script>
AM129: ="document.write("&AY$65&");" -> document.write(Ref1); | AO129: <script type="text/javascript">document.write(Ref1);</script>
AM130: ="document.write("&AZ$65&");" -> document.write(Att1); | AO130: <script type="text/javascript">document.write(Att1);</script>
AM131: ="document.write("&BA$65&");" -> document.write(Away1); | AO131: <script type="text/javascript">document.write(Away1);</script>
AM132: ="document.write("&BB$65&");" -> document.write(Pts1); | AO132: <script type="text/javascript">document.write(Pts1);</script>
AM133: ="document.write("&BC$65&");" -> document.write(Pos1); | AO133: <script type="text/javascript">document.write(Pos1);</script>
AM134: ="document.write("&BD$65&");" -> document.write(Pens1); | AO134: <script type="text/javascript">document.write(Pens1);</script>
AM135: ="document.write("&BE$65&");" -> document.write(Goals1); | AO135: <script type="text/javascript">document.write(Goals1);</script>
AM136: ="document.write("&BF$65&");" -> document.write(OppGls1); | AO136: <script type="text/javascript">document.write(OppGls1);</script>

Sheet MillwallApps
C1: 2 | D1: 3 | E1: 4 | G1: 5 | H1: 6 | K1: 7 | L1: 8 | M1: 9 | N1: 10 | O1: 11 | P1: 12 | Q1: 13 | R1: 14 | S1: 15 | T1: 16 | U1: 17 | V1: 18 | Y1: 19 | Z1: 20 | AA1: 21 | AB1: 22 | AC1: 23 | AD1: 24 | AE1: 25 | BN1: League | BV1: -66 (45) | CU1: League | EE1: 2 | EF1: 3
C2: 6.29 | D2: 16.57 | E2: 10.43 | F2: 0.83 | G2: 19 | H2: 3.43 | I2: 0 | J2: 0.83 | K2: 7.43 | L2: 10.57 | M2: 16.29 | N2: 13.71 | O2: 15.71 | P2: 12.43 | Q2: 13.57 | R2: 14.86 | S2: 13.57 | T2: 14.86 | U2: 15.86 | V2: 16.14 | W2: 0.33 | X2: 0.33 | Y2: 12.57 | Z2: 15.71 | AA2: 14.43 | AB2: 15.29 | AC2: 16.57 | AD2: 15.71 | AE2: 16.43 | AF2: 0.92 | EF2: AppsDate | EG2: AppsGame | EH2: AppsComp | EI2: AppsOppo | EJ2: AppsVen | EL2: AppsWDL | EM2: AppsResults
L3: 1 | Y3: 12 | Z3: 13 | AA3: 14 | AB3: 15 | AC3: 16 | AD3: 17 | AE3: 18 | AU3: 0
C4: Game | D4: Competition | E4: Date | G4: Opponents | K4: Res | L4: 1 | M4: 2 | N4: 3 | O4: 4 | P4: 5 | Q4: 6 | R4: 7 | S4: 8 | T4: 9 | U4: 10 | V4: 11 | Y4: Sub 1 | Z4: Sub 2 | AA4: Sub 3 | AB4: Sub 4 | AC4: Sub 5 | AD4: Sub 6 | AE4: Sub 7 | BN4: 1 | BO4: 2 | BP4: 3 | BQ4: 4 | BR4: 5 | BS4: 6 | BT4: 7 | BU4: 8 | BV4: 9 | BW4: 10 | BX4: 11 | BZ4: 11 | CA4: 12 | CB4: 13 | CC4: 14 | CD4: 15 | CE4: 16 | CF4: 17 | CG4: 18
C5: 1 | D5: Championship | E5: 2014-08-09 | G5: Leeds | H5: (H) | K5: W 2-0 | L5: Forde | M5: Edwards | N5: Malone | O5: Williams | P5: Dunne | Q5: Beevers | R5: Martin (67) | S5: Abdou | T5: McDonald | U5: Fuller (81) | V5: Woolford (67) | Y5: Bywater | Z5: Briggs | AA5: Webster | AB5: Wright | AC5: Gueye (67) | AD5: Easter (67) | AE5: Gregory (81) | BN5: Forde | BO5: Cummings | BP5: Harding | BQ5: Williams | BR5: Nelson | BS5: Hooiveld | BT5: O'Brien | BU5: Abdou | BV5: Gregory | BW5: Taylor-Fletcher | BX5: Woolford | CA5: Archer | CB5: Beevers | CC5: Powell | CD5: Upson | CE5: Gueye | CF5: Fuller | CG5: Maierhofer | ED5: 1 | EE5: =TEXT($E5,"DD-MMM-YY") -> 09-Aug-14 | EF5: ="var "&EF$2&$ED5&"= """&EE5&"""" -> var AppsDate1= "09-Aug-14" | EG5: ="var "&EG$2&$ED5&"= """&C5&"""" -> var AppsGame1= "1" | EH5: ="var "&EH$2&$ED5&"= """&D5&"""" -> var AppsComp1= "Championship" | EI5: ="var "&EI$2&$ED5&"= """&G5&"""" -> var AppsOppo1= "Leeds" | EJ5: ="var "&EJ$2&$ED5&"= """&H5&"""" -> var AppsVen1= "(H)" | EK5: =LEFT(K5,1) -> W | EL5: ="var "&EL$2&$ED5&"= """&EK5&"""" -> var AppsWDL1= "W" | EM5: ="var "&EM$2&$ED5&"= """&K5&"""" -> var AppsResults1= "W 2-0"
C6: 2 | D6: Capital One (1) | E6: 2014-08-12 | G6: Wycombe | H6: (H) | K6: W 1-0 | L6: Forde | M6: Webster | N6: Briggsnnn (59) | O6: Wright | P6: Dunne | Q6: Shittu | R6: Easter (84) | S6: Abdou | T6: McDonald (63) | U6: Gregory | V6: Gueye (48) | Y6: Bywater | Z6: Siafa (84) | AA6: Goodman | AB6: Powell (63) | AC6: O'Brien | AD6: Onyedinma (48) | AE6: Marquis | ED6: 2 | EE6: 12-Aug-14 | EF6: var AppsDate2= "12-Aug-14" | EG6: var AppsGame2= "2" | EH6: var AppsComp2= "Capital One (1)" | EI6: var AppsOppo2= "Wycombe" | EJ6: var AppsVen2= "(H)" | EK6: W | EL6: ="var "&EL$2&$ED6&"= """&EK6&"""" -> var AppsWDL2= "W" | EM6: ="var "&EM$2&$ED6&"= """&K6&"""" -> var AppsResults2= "W 1-0"
C7: 3 | D7: Championship | E7: 2014-08-16 | G7: Fulham | H7: (A) | K7: W 1-0 | L7: Forde | M7: Edwards | N7: Malone | O7: Williams | P7: Dunne | Q7: Beevers | R7: Martin | S7: Abdou (78) | T7: McDonald | U7: Fuller (73) | V7: Woolford (62) | Y7: Gerrar | Z7: Webster | AA7: Bailey (62) | AB7: Wright | AC7: Gueye (78) | AD7: Easter (73) | AE7: Gregory | BK7: 1 | BL7: Abdou | BN7: Forde | BO7: Cummings | BP7: Harding | BQ7: Williams | BR7: Nelson | BS7: Hooiveld | BT7: O'Brien (73) | BU7: Abdou | BV7: Gregory | BW7: Taylor-Fletcher (73)n | BX7: Woolford (81)n | CA7: Archer | CB7: Beevers | CC7: Upson | CD7: Fabbrini (81) | CE7: Gueye (73) | CF7: Fuller | CG7: Maierhofer (73) | ED7: 3 | EE7: 16-Aug-14 | EF7: var AppsDate3= "16-Aug-14" | EG7: var AppsGame3= "3" | EH7: var AppsComp3= "Championship" | EI7: var AppsOppo3= "Fulham" | EJ7: var AppsVen3= "(A)" | EK7: W | EL7: var AppsWDL3= "W" | EM7: var AppsResults3= "W 1-0"
C8: 4 | D8: Championship | E8: 2014-08-19 | G8: Sheff Wed | H8: (A) | K8: D 1-1 | L8: Forde | M8: Edwards | N8: Malone | O8: Williams | P8: Dunne | Q8: Beevers | R8: Martin (90) | S8: Abdou (60) | T8: McDonald | U8: Gregory (60) | V8: Woolford | Y8: Gerrar | Z8: Briggs | AA8: Webster | AB8: Wright | AC8: Gueye (60) | AD8: Easter (90) | AE8: Fuller (60)n | BK8: 2 | BL8: Archer | ED8: 4 | EE8: 19-Aug-14 | EF8: var AppsDate4= "19-Aug-14" | EG8: var AppsGame4= "4" | EH8: var AppsComp4= "Championship" | EI8: var AppsOppo4= "Sheff Wed" | EJ8: var AppsVen4= "(A)" | EK8: D | EL8: var AppsWDL4= "D" | EM8: var AppsResults4= "D 1-1"
C9: 5 | D9: Championship | E9: 2014-08-23 | G9: Rotherham | H9: (H) | K9: L 0-1 | L9: Forde | M9: Edwards | N9: Malone | O9: Williams | P9: Dunnen | Q9: Beevers | R9: Martin (72) | S9: Wright (51) | T9: McDonald | U9: Fuller (84) | V9: Woolford | Y9: Gerrar | Z9: Briggs | AA9: Webster | AB9: Abdou | AC9: Gueye (51) | AD9: Easter (72) | AE9: Gregory (84) | BK9: 3 | BL9: Bailey | ED9: 5 | EE9: 23-Aug-14 | EF9: var AppsDate5= "23-Aug-14" | EG9: var AppsGame5= "5" | EH9: var AppsComp5= "Championship" | EI9: var AppsOppo5= "Rotherham" | EJ9: var AppsVen5= "(H)" | EK9: L | EL9: var AppsWDL5= "L" | EM9: var AppsResults5= "L 0-1"
C10: 6 | D10: Capital One (2) | E10: 2014-08-26 | G10: Southampton | H10: (H) | K10: L 0-2 | L10: Forde | M10: Hoyte | N10: Briggsn | O10: Powell | P10: Webster | Q10: Williams | R10: Abdou (74) | S10: Easter | T10: Gueye (63) | U10: Marquis | V10: Chaplow (63) | Y10: Gerrar | Z10: Siafa | AA10: Goodman | AB10: Thompson (74) | AC10: Onyedinma (63) | AD10: O'Brien (63) | AE10: Gregory | BK10: 4 | BL10: Beevers | ED10: 6 | EE10: 26-Aug-14 | EF10: var AppsDate6= "26-Aug-14" | EG10: var AppsGame6= "6" | EH10: var AppsComp6= "Capital One (2)" | EI10: var AppsOppo6= "Southampton" | EJ10: var AppsVen6= "(H)" | EK10: L | EL10: var AppsWDL6= "L" | EM10: var AppsResults6= "L 0-2"
C11: 7 | D11: Championship | E11: 2014-08-30 | G11: Blackpool | H11: (H) | K11: W 2-1 | L11: Forde | M11: Edwards | N11: Malone | O11: Powell (81) | P11: Dunnen | Q11: Beevers | R11: Woolford | S11: Williams | T11: McDonald | U11: Fuller (61)n | V11: Martin (79) | Y11: Gerrar | Z11: Briggs | AA11: Webster (81) | AB11: Easter | AC11: Gueye (79) | AD11: Gregory | AE11: Ranegie (61) | BK11: 5 | BL11: Beevers | ED11: 7 | EE11: 30-Aug-14 | EF11: var AppsDate7= "30-Aug-14" | EG11: var AppsGame7= "7" | EH11: var AppsComp7= "Championship" | EI11: var AppsOppo7= "Blackpool" | EJ11: var AppsVen7= "(H)" | EK11: W | EL11: var AppsWDL7= "W" | EM11: var AppsResults7= "W 2-1"
C12: 8 | D12: Championship | E12: 2014-09-13 | G12: Ipswich | H12: (A) | K12: L 0-2 | L12: Forde | M12: Edwards | N12: Malone | O12: Powell (45) | P12: Dunne | Q12: Beevers | R12: Woolford (68) | S12: Williams | T12: McDonald | U12: Ranegie | V12: Easter (67) | Y12: - | Z12: Briggs | AA12: Webster | AB12: Upson (68) | AC12: Onyedinma | AD12: Gueye (45) | AE12: Fuller (67) | AH12: =IF(AH11=1,2,1) -> 1 | BK12: 6 | BL12: Briggs | ED12: 8 | EE12: 13-Sep-14 | EF12: var AppsDate8= "13-Sep-14" | EG12: var AppsGame8= "8" | EH12: var AppsComp8= "Championship" | EI12: var AppsOppo8= "Ipswich" | EJ12: var AppsVen8= "(A)" | EK12: L | EL12: var AppsWDL8= "L" | EM12: var AppsResults8= "L 0-2"
C13: 9 | D13: Championship | E13: 2014-09-16 | G13: Reading | H13: (A) | K13: L 2-3 | L13: Forde | M13: Dunne | N13: Malone | O13: Abdou | P13: Webster (28)n | Q13: Beevers | R13: Edwards | S13: Chaplow (86) | T13: McDonald | U13: Fuller | V13: Onyedinma (74) | Y13: King | Z13: Briggs | AA13: Upson (74)n | AB13: Woolford (28) | AC13: Gueye | AD13: Easter | AE13: Ranegie (86) | AH13: 2 | BK13: 7 | BL13: Chaplow | ED13: 9 | EE13: 16-Sep-14 | EF13: var AppsDate9= "16-Sep-14" | EG13: var AppsGame9= "9" | EH13: var AppsComp9= "Championship" | EI13: var AppsOppo9= "Reading" | EJ13: var AppsVen9= "(A)" | EK13: L | EL13: var AppsWDL9= "L" | EM13: var AppsResults9= "L 2-3"
C14: 10 | D14: Championship | E14: 2014-09-20 | G14: Nottm Forest | H14: (H) | K14: D 0-0 | L14: Forde | M14: Edwards (7) | N14: Malone | O14: Williamsn | P14: Dunne | Q14: Beeversn | R14: Easter (67) | S14: Abdou | T14: McDonald | U14: Ranegie (65) | V14: Woolford | Y14: King | Z14: Webster | AA14: Upson (7) | AB14: Chaplow | AC14: Onyedinma | AD14: Gueye (67) | AE14: Fuller (65) | AH14: 1 | BK14: 8 | BL14: Cowan-Hall | ED14: 10 | EE14: 20-Sep-14 | EF14: var AppsDate10= "20-Sep-14" | EG14: var AppsGame10= "10" | EH14: var AppsComp10= "Championship" | EI14: var AppsOppo10= "Nottm Forest" | EJ14: var AppsVen10= "(H)" | EK14: D | EL14: var AppsWDL10= "D" | EM14: var AppsResults10= "D 0-0"
C15: 11 | D15: Championship | E15: 2014-09-27 | G15: Huddersfield | H15: (A) | K15: L 1-2 | L15: Forde | M15: Abdou | N15: Malone | O15: Williamsn | P15: Dunnen | Q15: Beeversn | R15: Bailey (73)n | S15: Upson (74) | T15: McDonald | U15: Fuller | V15: Woolford (74) | Y15: King | Z15: Hoyte (74) | AA15: Webster | AB15: Chaplow | AC15: Gueye (74) | AD15: Gregory | AE15: Ranegie (73)n | AH15: 2 | BK15: 9 | BL15: Cummings | ED15: 11 | EE15: 27-Sep-14 | EF15: var AppsDate11= "27-Sep-14" | EG15: var AppsGame11= "11" | EH15: var AppsComp11= "Championship" | EI15: var AppsOppo11= "Huddersfield" | EJ15: var AppsVen11= "(A)" | EK15: L | EL15: var AppsWDL11= "L" | EM15: var AppsResults11= "L 1-2"
C16: 12 | D16: Championship | E16: 2014-09-30 | G16: Birmingham | H16: (H) | K16: L 1-3 | L16: Forde | M16: Hoyte (45) | N16: Malone | O16: Williams | P16: Dunne | Q16: Beevers | R16: Gregory | S16: Abdou | T16: McDonaldn | U16: Ranegie (69) | V16: Upson (45) | Y16: King | Z16: Briggs | AA16: Webster | AB16: Chaplow (45) | AC16: O'Brien (45) | AD16: Woolford | AE16: Fuller (69) | AH16: 1 | BK16: 10 | BL16: Dunne | ED16: 12 | EE16: 30-Sep-14 | EF16: var AppsDate12= "30-Sep-14" | EG16: var AppsGame12= "12" | EH16: var AppsComp12= "Championship" | EI16: var AppsOppo12= "Birmingham" | EJ16: var AppsVen12= "(H)" | EK16: L | EL16: var AppsWDL12= "L" | EM16: var AppsResults12= "L 1-3"
C17: 13 | D17: Championship | E17: 2014-10-04 | G17: Derby | H17: (A) | K17: D 0-0 | L17: Forden | M17: Dunnen | N17: Briggs | O17: Abdou (82) | P17: Webstern | Q17: Williams | R17: Chaplow | S17: O'Brien (68) | T17: McDonald | U17: Gregory (75) | V17: Woolfordn | Y17: King | Z17: Beevers | AA17: Shittu | AB17: Malone (68) | AC17: Powell | AD17: Upson (82) | AE17: Fuller (75) | AH17: 2 | BK17: 11 | BL17: Edwards | ED17: 13 | EE17: 04-Oct-14 | EF17: var AppsDate13= "04-Oct-14" | EG17: var AppsGame13= "13" | EH17: var AppsComp13= "Championship" | EI17: var AppsOppo13= "Derby" | EJ17: var AppsVen13= "(A)" | EK17: D | EL17: var AppsWDL13= "D" | EM17: var AppsResults13= "D 0-0"
C18: 14 | D18: Championship | E18: 2014-10-18 | G18: Wolves | H18: (H) | K18: D 3-3 | L18: Forde | M18: Dunne | N18: Briggsn | O18: Abdou (57) | P18: Webster | Q18: Williamsn (96) | R18: Chaplow (67) | S18: Woolford | T18: McDonald | U18: Gregory | V18: O'Brien (56) | Y18: King | Z18: Beevers | AA18: Shittu | AB18: Malone (67) | AC18: Upson | AD18: Martin (56) | AE18: Fuller (57) | AH18: 1 | BK18: 12 | BL18: Fabbrini | ED18: 14 | EE18: 18-Oct-14 | EF18: var AppsDate14= "18-Oct-14" | EG18: var AppsGame14= "14" | EH18: var AppsComp14= "Championship" | EI18: var AppsOppo14= "Wolves" | EJ18: var AppsVen14= "(H)" | EK18: D | EL18: var AppsWDL14= "D" | EM18: var AppsResults14= "D 3-3"
C19: 15 | D19: Championship | E19: 2014-10-21 | G19: Wigan | H19: (A) | K19: D 0-0 | L19: Forde | M19: Wilkinsonn | N19: Malone | O19: Chaplow | P19: Dunnen | Q19: Webster | R19: Martin (88) | S19: Woolford (64) | T19: McDonaldn | U19: Fuller | V19: Gregory (76) | Y19: King | Z19: Briggs (88) | AA19: Shittu | AB19: Beevers | AC19: Powell | AD19: Onyedinma (76) | AE19: Upson (64) | AH19: 2 | BK19: 13 | BL19: Forde | ED19: 15 | EE19: 21-Oct-14 | EF19: var AppsDate15= "21-Oct-14" | EG19: var AppsGame15= "15" | EH19: var AppsComp15= "Championship" | EI19: var AppsOppo15= "Wigan" | EJ19: var AppsVen15= "(A)" | EK19: D | EL19: var AppsWDL15= "D" | EM19: var AppsResults15= "D 0-0"
C20: 16 | D20: Championship | E20: 2014-10-25 | G20: Cardiff | H20: (H) | K20: W 1-0 | L20: Forde | M20: Wilkinson | N20: Briggs (72) | O20: Williams | P20: Shittu | Q20: Beeversn | R20: Martin | S20: Upson | T20: McDonaldn | U20: Fuller (78) | V20: Gregory | Y20: King | Z20: Webster (72) | AA20: Abdou | AB20: Chaplow | AC20: Woolford (78) | AD20: Onyedinma | AE20: O'Brien | AH20: 1 | BK20: 14 | BL20: Fuller | ED20: 16 | EE20: 25-Oct-14 | EF20: var AppsDate16= "25-Oct-14" | EG20: var AppsGame16= "16" | EH20: var AppsComp16= "Championship" | EI20: var AppsOppo16= "Cardiff" | EJ20: var AppsVen16= "(H)" | EK20: W | EL20: var AppsWDL16= "W" | EM20: var AppsResults16= "W 1-0"
C21: 17 | D21: Championship | E21: 2014-11-01 | G21: Watford | H21: (A) | K21: L 1-3 | L21: Forden | M21: Wilkinson | N21: Briggs (60)n | O21: Williamsn | P21: Dunnen | Q21: Webster | R21: Martin (83) | S21: Upson | T21: McDonald | U21: Fuller (70)n | V21: Woolford | Y21: King | Z21: Shittu | AA21: Beevers | AB21: Malone (60) | AC21: Chaplow | AD21: O'Brien (83) | AE21: Gueye (70) | AH21: 2 | BK21: 15 | BL21: Gerrar | ED21: 17 | EE21: 01-Nov-14 | EF21: var AppsDate17= "01-Nov-14" | EG21: var AppsGame17= "17" | EH21: var AppsComp17= "Championship" | EI21: var AppsOppo17= "Watford" | EJ21: var AppsVen17= "(A)" | EK21: L | EL21: var AppsWDL17= "L" | EM21: var AppsResults17= "L 1-3"
C22: 18 | D22: Championship | E22: 2014-11-04 | G22: Blackburn | H22: (H) | K22: D 2-2 | L22: Forde | M22: Wilkinsonn (61) | N22: Briggs | O22: Williamsn | P22: Shittu | Q22: Beevers | R22: Martin | S22: Upson (60) | T22: McDonald (64) | U22: Fuller (74)n | V22: Woolford | Y22: King | Z22: Dunne (64) | AA22: Webster | AB22: Chaplow | AC22: Gueye (74) | AD22: Gregory (60) | AE22: Ranegie | AH22: 1 | BK22: 16 | BL22: Goodman | ED22: 18 | EE22: 04-Nov-14 | EF22: var AppsDate18= "04-Nov-14" | EG22: var AppsGame18= "18" | EH22: var AppsComp18= "Championship" | EI22: var AppsOppo18= "Blackburn" | EJ22: var AppsVen18= "(H)" | EK22: D | EL22: var AppsWDL18= "D" | EM22: var AppsResults18= "D 2-2"
C23: 19 | D23: Championship | E23: 2014-11-08 | G23: Brentford | H23: (H) | K23: L 2-3 | L23: Forde | M23: Dunnen | N23: Briggsn | O23: Williams | P23: Shittu | Q23: Beevers (67) | R23: Martinn | S23: Chaplow (82) | T23: Gueye (57) | U23: Fuller | V23: Gregory | Y23: King | Z23: Webster | AA23: Abdou | AB23: Upson (82) | AC23: Woolford | AD23: McDonald (57) | AE23: Ranegie (67) | AH23: 2 | BK23: 17 | BL23: Gregory | ED23: 19 | EE23: 08-Nov-14 | EF23: var AppsDate19= "08-Nov-14" | EG23: var AppsGame19= "19" | EH23: var AppsComp19= "Championship" | EI23: var AppsOppo19= "Brentford" | EJ23: var AppsVen19= "(H)" | EK23: L | EL23: var AppsWDL19= "L" | EM23: var AppsResults19= "L 2-3"
C24: 20 | D24: Championship | E24: 2014-11-22 | G24: Charlton | H24: (A) | K24: D 0-0 | L24: Forde | M24: Dunne | N24: Malone | O24: Williams | P24: Webster | Q24: Beeversn | R24: Martin | S24: Upson (63) | T24: McDonald | U24: Gregory (66)n | V24: Woolford (85) | Y24: King | Z24: Shittu | AA24: Chaplow | AB24: Martinez | AC24: Easter (63) | AD24: Gueye (85) | AE24: Fuller (66) | AH24: 1 | BK24: 18 | BL24: Gueye | ED24: 20 | EE24: 22-Nov-14 | EF24: var AppsDate20= "22-Nov-14" | EG24: var AppsGame20= "20" | EH24: var AppsComp20= "Championship" | EI24: var AppsOppo20= "Charlton" | EJ24: var AppsVen20= "(A)" | EK24: D | EL24: var AppsWDL20= "D" | EM24: var AppsResults20= "D 0-0"
C25: 21 | D25: Championship | E25: 2014-11-29 | G25: Bournemouth | H25: (A) | K25: D 2-2 | L25: Forde | M25: Dunne | N25: Malone | O25: Williams | P25: Webstern | Q25: Beevers (45) | R25: Martin (20) | S25: Upsonn | T25: McDonald | U25: Gregory | V25: Woolford (75)n | Y25: King | Z25: Shittu | AA25: Powell | AB25: Martinez | AC25: Easter (20) | AD25: Gueye (75) | AE25: Fuller (45) | AH25: 2 | BK25: 19 | BL25: Harding | ED25: 21 | EE25: 29-Nov-14 | EF25: var AppsDate21= "29-Nov-14" | EG25: var AppsGame21= "21" | EH25: var AppsComp21= "Championship" | EI25: var AppsOppo21= "Bournemouth" | EJ25: var AppsVen21= "(A)" | EK25: D | EL25: var AppsWDL21= "D" | EM25: var AppsResults21= "D 2-2"
C26: 22 | D26: Championship | E26: 2014-12-06 | G26: Middlesboro | H26: (H) | K26: L 1-5 | L26: Forde | M26: Wilkinson | N26: Malone | O26: Webster (45) | P26: Dunne | Q26: Williams | R26: Powell (45) | S26: Upson (70) | T26: McDonaldn | U26: Fuller | V26: Gregory | Y26: King | Z26: Briggs | AA26: Shittu (45) | AB26: Martinez | AC26: Woolford (70) | AD26: Gueye (45) | AE26: Easter | AH26: 1 | BK26: 20 | BL26: Hooiveld | ED26: 22 | EE26: 06-Dec-14 | EF26: var AppsDate22= "06-Dec-14" | EG26: var AppsGame22= "22" | EH26: var AppsComp22= "Championship" | EI26: var AppsOppo22= "Middlesboro" | EJ26: var AppsVen22= "(H)" | EK26: L | EL26: var AppsWDL22= "L" | EM26: var AppsResults22= "L 1-5"
C27: 23 | D27: Championship | E27: 2014-12-12 | G27: Brighton | H27: (A) | K27: W 1-0 | L27: Forden | M27: Wilkinson | N27: Malone | O27: Williams | P27: Shittun | Q27: Beeversn | R27: Gueye (81) | S27: Martinez (89) | T27: McDonaldn | U27: Gregory (83) | V27: Woolford | Y27: King | Z27: Dunne (89) | AA27: Briggs | AB27: Abdou (81) | AC27: Upson | AD27: Easter | AE27: Fuller (83) | AH27: 2 | BK27: 21 | BL27: Hoyte | ED27: 23 | EE27: 12-Dec-14 | EF27: var AppsDate23= "12-Dec-14" | EG27: var AppsGame23= "23" | EH27: var AppsComp23= "Championship" | EI27: var AppsOppo23= "Brighton" | EJ27: var AppsVen23= "(A)" | EK27: W | EL27: var AppsWDL23= "W" | EM27: var AppsResults23= "W 1-0"
C28: 24 | D28: Championship | E28: 2014-12-19 | G28: Bolton | H28: (H) | K28: L 0-1 | L28: Forde | M28: Wilkinson (77) | N28: Malone | O28: Williams | P28: Dunnen | Q28: Shittun | R28: Gueye (57) | S28: Martinez | T28: McDonald (55) | U28: Gregory | V28: Woolford | Y28: King | Z28: Briggs | AA28: Webster | AB28: Abdou (77) | AC28: Martin (57) | AD28: Easter | AE28: Fuller (55) | AH28: 1 | BK28: 22 | BL28: King | ED28: 24 | EE28: 19-Dec-14 | EF28: var AppsDate24= "19-Dec-14" | EG28: var AppsGame24= "24" | EH28: var AppsComp24= "Championship" | EI28: var AppsOppo24= "Bolton" | EJ28: var AppsVen24= "(H)" | EK28: L | EL28: var AppsWDL24= "L" | EM28: var AppsResults24= "L 0-1"
C29: 25 | D29: Championship | E29: 2014-12-26 | G29: Norwich City | H29: (A) | K29: L 1-6 | L29: Forde | M29: Dunne | N29: Briggs | O29: Williams | P29: Shittu | Q29: Beeversn | R29: Marquis | S29: Martinez (71) | T29: Gueye (71) | U29: Fuller (71) | V29: Martin | Y29: King | Z29: Wilkinson | AA29: Abdou (71) | AB29: Upson | AC29: McDonald | AD29: Easter (71) | AE29: Gregory (71) | AH29: 2 | BK29: 23 | BL29: Maierhofer | ED29: 25 | EE29: 26-Dec-14 | EF29: var AppsDate25= "26-Dec-14" | EG29: var AppsGame25= "25" | EH29: var AppsComp25= "Championship" | EI29: var AppsOppo25= "Norwich City" | EJ29: var AppsVen25= "(A)" | EK29: L | EL29: var AppsWDL25= "L" | EM29: var AppsResults25= "L 1-6"
C30: 26 | D30: Championship | E30: 2014-12-28 | G30: Bournemouth | H30: (H) | K30: L 0-2 | L30: Forden | M30: Wilkinson (45)n | N30: Malone | O30: Williamsn (80) | P30: Shittu (67)n | Q30: Nelson | R30: Martin (56) | S30: Abdou | T30: McDonaldn | U30: Gregory | V30: Woolford | Y30: King | Z30: Dunne (67) | AA30: Beevers | AB30: Upson | AC30: Gueye (56) | AD30: Easter | AE30: Fuller (45) | AH30: 1 | BK30: 24 | BL30: Marquis | ED30: 26 | EE30: 28-Dec-14 | EF30: var AppsDate26= "28-Dec-14" | EG30: var AppsGame26= "26" | EH30: var AppsComp26= "Championship" | EI30: var AppsOppo26= "Bournemouth" | EJ30: var AppsVen26= "(H)" | EK30: L | EL30: var AppsWDL26= "L" | EM30: var AppsResults26= "L 0-2"
C31: 27 | D31: FA Cup 3 | E31: 2015-01-03 | G31: Bradford City | H31: (H) | K31: D 3-3 | L31: Forde | M31: Dunne | N31: Briggs | O31: Chaplow (81)n | P31: Shittu | Q31: Nelson | R31: Abdou | S31: Upson (89)n | T31: McDonald | U31: Fuller | V31: Martin | Y31: King | Z31: Martinez | AA31: Powell | AB31: Woolford (89) | AC31: Gueye (81) | AD31: O'Brien | AE31: Easter | AH31: 2 | BK31: 25 | BL31: Martin | ED31: 27 | EE31: 03-Jan-15 | EF31: var AppsDate27= "03-Jan-15" | EG31: var AppsGame27= "27" | EH31: var AppsComp27= "FA Cup 3" | EI31: var AppsOppo27= "Bradford City" | EJ31: var AppsVen27= "(H)" | EK31: D | EL31: var AppsWDL27= "D" | EM31: var AppsResults27= "D 3-3"
C32: 28 | D32: Championship | E32: 2015-01-10 | G32: Blackpool | H32: (A) | K32: L 0-1 | L32: Forde | M32: Wilkinson | N32: Harding (61) | O32: Abdou | P32: Dunne | Q32: Nelson | R32: Martin | S32: Chaplow | T32: McDonald (74) | U32: Fuller (59) | V32: Woolford | Y32: Bywater | Z32: Briggs | AA32: Shittu | AB32: Upson | AC32: Gueye (74) | AD32: Maierhofer (59) | AE32: Gregory (61) | AH32: 1 | BK32: 26 | BL32: Martinez | ED32: 28 | EE32: 10-Jan-15 | EF32: var AppsDate28= "10-Jan-15" | EG32: var AppsGame28= "28" | EH32: var AppsComp28= "Championship" | EI32: var AppsOppo28= "Blackpool" | EJ32: var AppsVen28= "(A)" | EK32: L | EL32: var AppsWDL28= "L" | EM32: var AppsResults28= "L 0-1"
C33: 29 | D33: FA Cup 3 R | E33: 2015-01-14 | G33: Bradford City | H33: (A) | K33: L 0-4 | L33: Forden | M33: Dunnen | N33: Briggs | O33: Chaplown | P33: Shittu | Q33: Beeversn (6) | R33: Abdoun | S33: Upson (45) | T33: Gregory | U33: Fuller (23) | V33: Martin (62) | Y33: King | Z33: Nelson | AA33: Webster (45) | AB33: Powell | AC33: Woolford (23) | AD33: Gueye (62) | AE33: McDonald | AH33: 2 | BK33: 27 | BL33: Nelson | ED33: 29 | EE33: 14-Jan-15 | EF33: var AppsDate29= "14-Jan-15" | EG33: var AppsGame29= "29" | EH33: var AppsComp29= "FA Cup 3 R" | EI33: var AppsOppo29= "Bradford City" | EJ33: var AppsVen29= "(A)" | EK33: L | EL33: var AppsWDL29= "L" | EM33: var AppsResults29= "L 0-4"
C34: 30 | D34: Championship | E34: 2015-01-17 | G34: Ipswich | H34: (H) | K34: L 1-3 | L34: Forde | M34: Cummings (80) | N34: Harding | O34: Powell | P34: Nelson | Q34: Webster | R34: Gueye | S34: Abdou | T34: Gregory | U34: Maierhofer | V34: Fabbrini (63) | Y34: King | Z34: Wilkinson | AA34: Shittu | AB34: Woolford | AC34: Martin (63) | AD34: McDonald | AE34: Fuller (80) | AH34: 1 | BK34: 28 | BL34: O'Brien | ED34: 30 | EE34: 17-Jan-15 | EF34: var AppsDate30= "17-Jan-15" | EG34: var AppsGame30= "30" | EH34: var AppsComp30= "Championship" | EI34: var AppsOppo30= "Ipswich" | EJ34: var AppsVen30= "(H)" | EK34: L | EL34: var AppsWDL30= "L" | EM34: var AppsResults30= "L 1-3"
C35: 31 | D35: Championship | E35: 2015-01-27 | G35: Reading | H35: (H) | K35: D 0-0 | L35: Forde | M35: Cummings | N35: Harding | O35: Williams | P35: Nelsonn (45) | Q35: Hooiveld | R35: Gueye (45) | S35: Abdou | T35: Gregory | U35: Maierhofer (45) | V35: Fabbrini (77) | Y35: King | Z35: Dunne (45) | AA35: Beevers | AB35: Upson | AC35: Martin (77) | AD35: Cowan-Hall (45) | AE35: Fuller | AH35: 2 | BK35: 29 | BL35: Pavey | ED35: 31 | EE35: 27-Jan-15 | EF35: var AppsDate31= "27-Jan-15" | EG35: var AppsGame31= "31" | EH35: var AppsComp31= "Championship" | EI35: var AppsOppo31= "Reading" | EJ35: var AppsVen31= "(H)" | EK35: D | EL35: var AppsWDL31= "D" | EM35: var AppsResults31= "D 0-0"
C36: 32 | D36: Championship | E36: 2015-01-31 | G36: Nottm Forest | H36: (A) | K36: W 1-0 | L36: Forde | M36: Cummings | N36: Beevers | O36: Williamsn | P36: Dunne | Q36: Hooiveld | R36: Gueye (72) | S36: Abdou | T36: Fabbrini | U36: Maierhofer (61) | V36: Martin (15) | Y36: King | Z36: Webster | AA36: Powell | AB36: Upson (15)n | AC36: O'Brien | AD36: Gregory (61) | AE36: Fuller (72) | AH36: 1 | BK36: 30 | BL36: Powell | ED36: 32 | EE36: 31-Jan-15 | EF36: var AppsDate32= "31-Jan-15" | EG36: var AppsGame32= "32" | EH36: var AppsComp32= "Championship" | EI36: var AppsOppo32= "Nottm Forest" | EJ36: var AppsVen32= "(A)" | EK36: W | EL36: var AppsWDL32= "W" | EM36: var AppsResults32= "W 1-0"
C37: 33 | D37: Championship | E37: 2015-02-07 | G37: Huddersfield | H37: (H) | K37: L 1-3 | L37: Forden | M37: Cummings | N37: Beevers | O37: Williamsn | P37: Dunne | Q37: Hooiveld | R37: Fabbrini | S37: Abdou | T37: Upson (68)n | U37: Maierhofer (68) | V37: Gueye (77) | Y37: Archer | Z37: Harding | AA37: Webster | AB37: Tonge | AC37: Woolford (77) | AD37: Gregory (68) | AE37: Fuller (68) | AH37: 2 | BK37: 31 | BL37: Shittu | ED37: 33 | EE37: =TEXT($E37,"DD-MMM-YY") -> 07-Feb-15 | EF37: ="var "&EF$2&$ED37&"= """&EE37&"""" -> var AppsDate33= "07-Feb-15" | EG37: ="var "&EG$2&$ED37&"= """&C37&"""" -> var AppsGame33= "33" | EH37: ="var "&EH$2&$ED37&"= """&D37&"""" -> var AppsComp33= "Championship" | EI37: ="var "&EI$2&$ED37&"= """&G37&"""" -> var AppsOppo33= "Huddersfield" | EJ37: ="var "&EJ$2&$ED37&"= """&H37&"""" -> var AppsVen33= "(H)" | EK37: =LEFT(K37,1) -> L | EL37: var AppsWDL33= "L" | EM37: var AppsResults33= "L 1-3"
C38: 34 | D38: Championship | E38: 2015-02-10 | G38: Birmingham | H38: (A) | K38: W 1-0 | L38: Forde | M38: Cummingsn | N38: Harding | O38: Williamsn | P38: Dunne | Q38: Hooiveld | R38: Martin (82)n | S38: Tonge | T38: Fabbrini (88) | U38: Maierhofer (72) | V38: Woolford | Y38: Archer | Z38: Beevers (82) | AA38: Abdou (88) | AB38: Upson | AC38: Gueye | AD38: Gregory (72) | AE38: Fuller | AH38: 1 | BK38: 32 | BL38: Siafa | ED38: 34 | EE38: 10-Feb-15 | EF38: var AppsDate34= "10-Feb-15" | EG38: var AppsGame34= "34" | EH38: var AppsComp34= "Championship" | EI38: var AppsOppo34= "Birmingham" | EJ38: var AppsVen34= "(A)" | EK38: W | EL38: var AppsWDL34= "W" | EM38: var AppsResults34= "W 1-0"
C39: 35 | D39: Championship | E39: 2015-02-14 | G39: Leeds | H39: (A) | K39: L 0-1 | L39: Forde | M39: Cummings | N39: Harding | O39: Williams | P39: Dunne | Q39: Hooiveld | R39: Martin | S39: Martinez (60)n | T39: Fabbrini (60) | U39: Maierhofer (45)n | V39: Woolford | Y39: Archer | Z39: Beevers | AA39: Abdou | AB39: Upson (60) | AC39: O'Brien | AD39: Gregory (45) | AE39: Fuller (60) | AH39: 2 | BK39: 33 | BL39: Taylor-Fletcher | ED39: 35 | EE39: 14-Feb-15 | EF39: var AppsDate35= "14-Feb-15" | EG39: var AppsGame35= "35" | EH39: var AppsComp35= "Championship" | EI39: var AppsOppo35= "Leeds" | EJ39: var AppsVen35= "(A)" | EK39: L | EL39: var AppsWDL35= "L" | EM39: var AppsResults35= "L 0-1"
C40: 36 | D40: Championship | E40: 2015-02-21 | G40: Fulham | H40: (H) | K40: D 0-0 | L40: Forde | M40: Abdoun | N40: Harding | O40: Tonge (86) | P40: Dunne | Q40: Hooiveld | R40: O'Brien (58) | S40: Williams | T40: Fabbrini | U40: Gregory | V40: Woolford (69) | Y40: King | Z40: Beevers | AA40: Nelson | AB40: Upson (86) | AC40: Taylor-Fletcher (58) | AD40: Maierhofer | AE40: Fuller (69) | AH40: 1 | BK40: 34 | BL40: Thompson | ED40: 36 | EE40: 21-Feb-15 | EF40: var AppsDate36= "21-Feb-15" | EG40: var AppsGame36= "36" | EH40: var AppsComp36= "Championship" | EI40: var AppsOppo36= "Fulham" | EJ40: var AppsVen36= "(H)" | EK40: D | EL40: var AppsWDL36= "D" | EM40: var AppsResults36= "D 0-0"
C41: 37 | D41: Championship | E41: 2015-02-24 | G41: Sheff Wed | H41: (H) | K41: L 1-3 | L41: Forde | M41: Abdou (74) | N41: Harding | O41: Tonge | P41: Dunne | Q41: Hooiveld | R41: Taylor-Fletcher | S41: Williams | T41: Fabbrini | U41: Gregory (63) | V41: Woolford (50) | Y41: King | Z41: Beevers | AA41: Nelson | AB41: Upson | AC41: Gueye (74) | AD41: O'Brien (50) | AE41: Fuller (63) | AH41: 2 | BK41: 35 | BL41: Tonge | ED41: 37 | EE41: 24-Feb-15 | EF41: var AppsDate37= "24-Feb-15" | EG41: var AppsGame37= "37" | EH41: var AppsComp37= "Championship" | EI41: var AppsOppo37= "Sheff Wed" | EJ41: var AppsVen37= "(H)" | EK41: L | EL41: var AppsWDL37= "L" | EM41: var AppsResults37= "L 1-3"
C42: 38 | D42: Championship | E42: 2015-02-28 | G42: Rotherham | H42: (A) | K42: L 1-2 | L42: Forde | M42: Abdoun | N42: Harding | O42: Tonge | P42: Dunne | Q42: Hooiveld | R42: Fabbrini (86) | S42: Williams | T42: Taylor-Fletcher (58) | U42: Gregory (66) | V42: Woolford | Y42: King | Z42: Beevers | AA42: Nelson | AB42: Martinez | AC42: Upson (86) | AD42: O'Brien (66) | AE42: Fuller (58) | AH42: 1 | BK42: 36 | BL42: Upson | ED42: 38 | EE42: 28-Feb-15 | EF42: var AppsDate38= "28-Feb-15" | EG42: var AppsGame38= "38" | EH42: var AppsComp38= "Championship" | EI42: var AppsOppo38= "Rotherham" | EJ42: var AppsVen38= "(A)" | EK42: L | EL42: var AppsWDL38= "L" | EM42: var AppsResults38= "L 1-2"
C43: 39 | D43: Championship | E43: 2015-03-03 | G43: Middlesboro | H43: (A) | K43: L 0-3 | L43: Forde | M43: Abdoun | N43: Harding | O43: Tonge (80) | P43: Dunne | Q43: Hooiveld | R43: Fabbrini | S43: Williams (66) | T43: Taylor-Fletcher | U43: Gregory (66) | V43: Woolford | Y43: King | Z43: Beevers | AA43: Nelson | AB43: Martinez | AC43: Upson (66) | AD43: O'Brien (80) | AE43: Fuller (66) | AH43: 2 | BK43: 37 | BL43: Webster | ED43: 39 | EE43: 03-Mar-15 | EF43: var AppsDate39= "03-Mar-15" | EG43: var AppsGame39= "39" | EH43: var AppsComp39= "Championship" | EI43: var AppsOppo39= "Middlesboro" | EJ43: var AppsVen39= "(A)" | EK43: L | EL43: var AppsWDL39= "L" | EM43: var AppsResults39= "L 0-3"
C44: 40 | D44: Championship | E44: 2015-03-07 | G44: Norwich City | H44: (H) | K44: L 1-4 | L44: Forde | M44: Dunne | N44: Harding | O44: Bailey (45) | P44: Nelson | Q44: Hooiveld | R44: Woolford (61) | S44: Williams | T44: Fabbrini | U44: Fuller (65) | V44: Taylor-Fletcher | Y44: King | Z44: Beevers | AA44: Abdou | AB44: Tonge (45)n | AC44: Gueye | AD44: O'Brien (65) | AE44: Gregory (61) | AH44: 1 | BK44: 38 | BL44: Williams | ED44: 40 | EE44: 07-Mar-15 | EF44: var AppsDate40= "07-Mar-15" | EG44: var AppsGame40= "40" | EH44: var AppsComp40= "Championship" | EI44: var AppsOppo40= "Norwich City" | EJ44: var AppsVen40= "(H)" | EK44: L | EL44: var AppsWDL40= "L" | EM44: var AppsResults40= "L 1-4"
C45: 41 | D45: Championship | E45: 2015-03-14 | G45: Bolton | H45: (A) | K45: L 0-2 | L45: Forde | M45: Cummings | N45: Harding | O45: Williams | P45: Dunnen | Q45: Hooiveld | R45: O'Brien (81) | S45: Abdou | T45: Taylor-Fletcher (59) | U45: Gregory | V45: Upson (66) | Y45: Archer | Z45: Beevers | AA45: Powell | AB45: Cowan-Hall (66) | AC45: Gueye (81) | AD45: Fuller (59) | AE45: Maierhofer | AH45: 2 | BL45: Woolford | ED45: 41 | EE45: 14-Mar-15 | EF45: var AppsDate41= "14-Mar-15" | EG45: var AppsGame41= "41" | EH45: var AppsComp41= "Championship" | EI45: var AppsOppo41= "Bolton" | EJ45: var AppsVen41= "(A)" | EK45: L | EL45: var AppsWDL41= "L" | EM45: var AppsResults41= "L 0-2"
C46: 42 | D46: Championship | E46: 2015-03-17 | G46: Brighton | H46: (H) | K46: D 0-0 | L46: Forde | M46: Cummings | N46: Harding | O46: Williams | P46: Nelson | Q46: Hooiveld | R46: O'Brien (73) | S46: Abdou | T46: Gregory | U46: Taylor-Fletcher (73)n | V46: Woolford (81)n | Y46: Archer | Z46: Beevers | AA46: Upson | AB46: Fabbrini (81) | AC46: Gueye (73) | AD46: Fuller | AE46: Maierhofer (73) | AH46: 1 | ED46: 42 | EE46: 17-Mar-15 | EF46: var AppsDate42= "17-Mar-15" | EG46: var AppsGame42= "42" | EH46: var AppsComp42= "Championship" | EI46: var AppsOppo42= "Brighton" | EJ46: var AppsVen42= "(H)" | EK46: D | EL46: var AppsWDL42= "D" | EM46: var AppsResults42= "D 0-0"
C47: 43 | D47: Championship | E47: 2015-03-21 | G47: Brentford | H47: (A) | AH47: 2 | ED47: 43 | EE47: 21-Mar-15 | EF47: var AppsDate43= "21-Mar-15" | EG47: var AppsGame43= "43" | EH47: var AppsComp43= "Championship" | EI47: var AppsOppo43= "Brentford" | EJ47: var AppsVen43= "(A)" | EL47: var AppsWDL43= "" | EM47: var AppsResults43= ""
C48: 44 | D48: Championship | E48: 2015-04-03 | G48: Charlton | H48: (H) | AH48: 1 | ED48: 44 | EE48: 03-Apr-15 | EF48: var AppsDate44= "03-Apr-15" | EG48: var AppsGame44= "44" | EH48: var AppsComp44= "Championship" | EI48: var AppsOppo44= "Charlton" | EJ48: var AppsVen44= "(H)" | EL48: var AppsWDL44= "" | EM48: var AppsResults44= ""
C49: 45 | D49: Championship | E49: 2015-04-11 | G49: Watford | H49: (H) | AH49: 2 | ED49: 45 | EE49: 11-Apr-15 | EF49: var AppsDate45= "11-Apr-15" | EG49: var AppsGame45= "45" | EH49: var AppsComp45= "Championship" | EI49: var AppsOppo45= "Watford" | EJ49: var AppsVen45= "(H)" | EL49: var AppsWDL45= "" | EM49: var AppsResults45= ""
C50: 46 | D50: Championship | E50: 2015-04-14 | G50: Wigan | H50: (H) | AH50: 1 | ED50: 46 | EE50: 14-Apr-15 | EF50: var AppsDate46= "14-Apr-15" | EG50: var AppsGame46= "46" | EH50: var AppsComp46= "Championship" | EI50: var AppsOppo46= "Wigan" | EJ50: var AppsVen46= "(H)" | EL50: var AppsWDL46= "" | EM50: var AppsResults46= ""
C51: 47 | D51: Championship | E51: 2015-04-18 | G51: Cardiff | H51: (A) | AH51: 2 | ED51: 47 | EE51: 18-Apr-15 | EF51: var AppsDate47= "18-Apr-15" | EG51: var AppsGame47= "47" | EH51: var AppsComp47= "Championship" | EI51: var AppsOppo47= "Cardiff" | EJ51: var AppsVen47= "(A)" | EL51: var AppsWDL47= "" | EM51: var AppsResults47= ""
C52: 48 | D52: Championship | E52: 2015-04-21 | G52: Blackburn | H52: (A) | AH52: 1 | ED52: 48 | EE52: 21-Apr-15 | EF52: var AppsDate48= "21-Apr-15" | EG52: var AppsGame48= "48" | EH52: var AppsComp48= "Championship" | EI52: var AppsOppo48= "Blackburn" | EJ52: var AppsVen48= "(A)" | EL52: var AppsWDL48= "" | EM52: var AppsResults48= ""
C53: 49 | D53: Championship | E53: 2015-04-25 | G53: Derby | H53: (H) | AH53: 2 | ED53: 49 | EE53: 25-Apr-15 | EF53: var AppsDate49= "25-Apr-15" | EG53: var AppsGame49= "49" | EH53: var AppsComp49= "Championship" | EI53: var AppsOppo49= "Derby" | EJ53: var AppsVen49= "(H)" | EL53: var AppsWDL49= "" | EM53: var AppsResults49= ""
C54: 50 | D54: Championship | E54: 2015-05-02 | G54: Wolves | H54: (A) | AH54: 1 | ED54: 50 | EE54: 02-May-15 | EF54: var AppsDate50= "02-May-15" | EG54: var AppsGame50= "50" | EH54: var AppsComp50= "Championship" | EI54: var AppsOppo50= "Wolves" | EJ54: var AppsVen50= "(A)" | EL54: var AppsWDL50= "" | EM54: var AppsResults50= ""
AH55: 2
AH56: 1
BT66: Goals League
C67: Game | D67: Competition | E67: Date | G67: Opponents | K67: Score | L67: x | BT67: 1 | BU67: 2 | BV67: 3 | BW67: 4 | BX67: 5 | BY67: 6 | BZ67: 7 | CA67: 8 | CB67: 7 | CC67: 8 | CD67: 9
C68: 1 | D68: Championship | E68: 2014-08-09 | G68: Leeds | H68: (H) | K68: W 2-0 | L68: Forde | M68: Edwards | N68: Malone | O68: Williams | P68: Dunne | Q68: Beevers | R68: Martin (67) | S68: Abdou | T68: McDonald | U68: Fuller (81) | V68: Woolford (67) | Y68: Gerrar | Z68: Briggs | AA68: Webster | AB68: Wright | AC68: Gueye (60) | AD68: Easter (90) | AE68: Fuller (60)n | AG68: =IF(K68<>"",1,0) -> 1 | BR68: =G68 -> Leeds | BS68: =H68 -> (H) | BT68: Beevers | BU68: Williams
C69: 2 | D69: Championship | E69: 2014-08-16 | G69: Fulham | H69: (A) | K69: W 1-0 | L69: Forde | M69: Edwards | N69: Malone | O69: Williams | P69: Dunne | Q69: Beevers | R69: Martin | S69: Abdou (78) | T69: McDonald | U69: Fuller (73) | V69: Woolford (62) | Y69: Gerrar | Z69: Webster | AA69: Bailey (62) | AB69: Wright | AC69: Gueye (78) | AD69: Easter (73) | AE69: Gregory | AG69: 1 | BR69: =G69 -> Fulham | BS69: (A) | BT69: Woolford
C70: 3 | D70: Championship | E70: 2014-08-19 | G70: Sheff Wed | H70: (A) | K70: D 1-1 | L70: Forde | M70: Edwards | N70: Malone | O70: Williams | P70: Dunne | Q70: Beevers | R70: Martin (90) | S70: Abdou (60) | T70: McDonald | U70: Gregory (60) | V70: Woolford | Y70: Gerrar | Z70: Briggs | AA70: Webster | AB70: Wright | AC70: Gueye (60) | AD70: Easter (90) | AE70: Fuller (60)n | AG70: 1 | BR70: Sheff Wed | BS70: (A) | BT70: Gueye
C71: 4 | D71: Championship | E71: 2014-08-23 | G71: Rotherham | H71: (H) | K71: L 0-1 | L71: Forde | M71: Edwards | N71: Malone | O71: Williams | P71: Dunnen | Q71: Beevers | R71: Martin (72) | S71: Wright (51) | T71: McDonald | U71: Fuller (84) | V71: Woolford | Y71: Gerrar | Z71: Briggs | AA71: Webster | AB71: Abdou | AC71: Gueye (51) | AD71: Easter (72) | AE71: Gregory (84) | AG71: 1 | BR71: Rotherham | BS71: (H)
C72: 5 | D72: Championship | E72: 2014-08-30 | G72: Blackpool | H72: (H) | K72: W 2-1 | L72: Forde | M72: Edwards | N72: Malone | O72: Powell (81) | P72: Dunnen | Q72: Beevers | R72: Woolford | S72: Williams | T72: McDonald | U72: Fuller (61)n | V72: Martin (79) | Y72: Gerrar | Z72: Briggs | AA72: Webster (81) | AB72: Easter | AC72: Gueye (79) | AD72: Gregory | AE72: Ranegie (61) | AG72: 1 | BO72: =AH72&") "&BJ72 -> ) | BR72: Blackpool | BS72: (H) | BT72: McDonald | BU72: Malone
C73: 6 | D73: Championship | E73: 2014-09-13 | G73: Ipswich | H73: (A) | K73: L 0-2 | L73: Forde | M73: Edwards | N73: Malone | O73: Powell (45) | P73: Dunne | Q73: Beevers | R73: Woolford (68) | S73: Williams | T73: McDonald | U73: Ranegie | V73: Easter (67) | Y73: - | Z73: Briggs | AA73: Webster | AB73: Upson (68) | AC73: Onyedinma | AD73: Gueye (45) | AE73: Fuller (67) | AG73: 1 | BO73: ) | BR73: Ipswich | BS73: (A)
C74: 7 | D74: Championship | E74: 2014-09-16 | G74: Reading | H74: (A) | K74: L 2-3 | L74: Forde | M74: Dunne | N74: Malone | O74: Abdou | P74: Webster (28)n | Q74: Beevers | R74: Edwards | S74: Chaplow (86) | T74: McDonald | U74: Fuller | V74: Onyedinma (74) | Y74: King | Z74: Briggs | AA74: Upson (74)n | AB74: Woolford (28) | AC74: Gueye | AD74: Easter | AE74: Ranegie (86) | AG74: 1 | BO74: ) | BR74: Reading | BS74: (A) | BT74: Fuller | BU74: Beevers
C75: 8 | D75: Championship | E75: 2014-09-20 | G75: Nottm Forest | H75: (H) | K75: D 0-0 | L75: Forde | M75: Edwards (7) | N75: Malone | O75: Williamsn | P75: Dunne | Q75: Beeversn | R75: Easter (67) | S75: Abdou | T75: McDonald | U75: Ranegie (65) | V75: Woolford | Y75: King | Z75: Webster | AA75: Upson (7) | AB75: Chaplow | AC75: Onyedinma | AD75: Gueye (67) | AE75: Fuller (65) | AG75: 1 | BO75: ) | BR75: Nottm Forest | BS75: (H)
C76: 9 | D76: Championship | E76: 2014-09-27 | G76: Huddersfield | H76: (A) | K76: L 1-2 | L76: Forde | M76: Abdou | N76: Malone | O76: Williamsn | P76: Dunnen | Q76: Beeversn | R76: Bailey (73)n | S76: Upson (74) | T76: McDonald | U76: Fuller | V76: Woolford (74) | Y76: King | Z76: Hoyte (74) | AA76: Webster | AB76: Chaplow | AC76: Gueye (74) | AD76: Gregory | AE76: Ranegie (73)n | AG76: 1 | BO76: ) | BR76: Huddersfield | BS76: (A) | BT76: Upson
C77: 10 | D77: Championship | E77: 2014-09-30 | G77: Birmingham | H77: (H) | K77: L 1-3 | L77: Forde | M77: Hoyte (45) | N77: Malone | O77: Williams | P77: Dunne | Q77: Beevers | R77: Gregory | S77: Abdou | T77: McDonaldn | U77: Ranegie (69) | V77: Upson (45) | Y77: King | Z77: Briggs | AA77: Webster | AB77: Chaplow (45) | AC77: O'Brien (45) | AD77: Woolford | AE77: Fuller (69) | AG77: 1 | BO77: ) | BR77: Birmingham | BS77: (H) | BT77: Gregory
C78: 11 | D78: Championship | E78: 2014-10-04 | G78: Derby | H78: (A) | K78: D 0-0 | L78: Forden | M78: Dunnen | N78: Briggs | O78: Abdou (82) | P78: Webstern | Q78: Williams | R78: Chaplow | S78: O'Brien (68) | T78: McDonald | U78: Gregory (75) | V78: Woolfordn | Y78: King | Z78: Beevers | AA78: Shittu | AB78: Malone (68) | AC78: Powell | AD78: Upson (82) | AE78: Fuller (75) | AG78: 1 | BO78: ) | BR78: Derby | BS78: (A)
C79: 12 | D79: Championship | E79: 2014-10-18 | G79: Wolves | H79: (H) | K79: D 3-3 | L79: Forde | M79: Dunne | N79: Briggsn | O79: Abdou (57) | P79: Webster | Q79: Williamsn (96) | R79: Chaplow (67) | S79: Woolford | T79: McDonald | U79: Gregory | V79: O'Brien (56) | Y79: King | Z79: Beevers | AA79: Shittu | AB79: Malone (67) | AC79: Upson | AD79: Martin (56) | AE79: Fuller (57) | AG79: 1 | BO79: ) | BR79: Wolves | BS79: (H) | BT79: Gregory | BU79: Fuller | BV79: Fuller
C80: 13 | D80: Championship | E80: 2014-10-21 | G80: Wigan | H80: (A) | K80: D 0-0 | L80: Forde | M80: Wilkinsonn | N80: Malone | O80: Chaplow | P80: Dunnen | Q80: Webster | R80: Martin (88) | S80: Woolford (64) | T80: McDonaldn | U80: Fuller | V80: Gregory (76) | Y80: King | Z80: Briggs (88) | AA80: Shittu | AB80: Beevers | AC80: Powell | AD80: Onyedinma (76) | AE80: Upson (64) | AG80: 1 | BO80: ) | BR80: Wigan | BS80: (A)
C81: 14 | D81: Championship | E81: 2014-10-25 | G81: Cardiff | H81: (H) | K81: W 1-0 | L81: Forde | M81: Wilkinson | N81: Briggs (72) | O81: Williams | P81: Shittu | Q81: Beeversn | R81: Martin | S81: Upson | T81: McDonaldn | U81: Fuller (78) | V81: Gregory | Y81: King | Z81: Webster (72) | AA81: Abdou | AB81: Chaplow | AC81: Woolford (78) | AD81: Onyedinma | AE81: O'Brien | AG81: 1 | BO81: ) | BR81: Cardiff | BS81: (H) | BT81: Shittu
C82: 15 | D82: Championship | E82: 2014-11-01 | G82: Watford | H82: (A) | K82: L 1-3 | L82: Forden | M82: Wilkinson | N82: Briggs (60)n | O82: Williamsn | P82: Dunnen | Q82: Webster | R82: Martin (83) | S82: Upson | T82: McDonald | U82: Fuller (70)n | V82: Woolford | Y82: King | Z82: Shittu | AA82: Beevers | AB82: Malone (60) | AC82: Chaplow | AD82: O'Brien (83) | AE82: Gueye (70) | AG82: 1 | BO82: ) | BR82: Watford | BS82: (A) | BT82: Woolford
C83: 16 | D83: Championship | E83: 2014-11-04 | G83: Blackburn | H83: (H) | K83: D 2-2 | L83: Forde | M83: Wilkinsonn (61) | N83: Briggs | O83: Williamsn | P83: Shittu | Q83: Beevers | R83: Martin | S83: Upson (60) | T83: McDonald (64) | U83: Fuller (74)n | V83: Woolford | Y83: King | Z83: Dunne (64) | AA83: Webster | AB83: Chaplow | AC83: Gueye (74) | AD83: Gregory (60) | AE83: Ranegie | AG83: 1 | BO83: ) | BR83: Blackburn | BS83: (H) | BT83: Martin | BU83: Williams
C84: 17 | D84: Championship | E84: 2014-11-08 | G84: Brentford | H84: (H) | K84: L 2-3 | L84: Forde | M84: Dunnen | N84: Briggsn | O84: Williams | P84: Shittu | Q84: Beevers (67) | R84: Martinn | S84: Chaplow (82) | T84: Gueye (57) | U84: Fuller | V84: Gregory | Y84: King | Z84: Webster | AA84: Abdou | AB84: Upson (82) | AC84: Woolford | AD84: McDonald (57) | AE84: Ranegie (67) | AG84: 1 | BO84: ) | BR84: Brentford | BS84: (H) | BT84: Gregory | BU84: Dunne
C85: 18 | D85: Championship | E85: 2014-11-22 | G85: Charlton | H85: (A) | K85: D 0-0 | L85: Forde | M85: Dunne | N85: Malone | O85: Williams | P85: Webster | Q85: Beeversn | R85: Martin | S85: Upson (63) | T85: McDonald | U85: Gregory (66)n | V85: Woolford (85) | Y85: King | Z85: Shittu | AA85: Chaplow | AB85: Martinez | AC85: Easter (63) | AD85: Gueye (85) | AE85: Fuller (66) | AG85: 1 | BO85: ) | BR85: Charlton | BS85: (A)
C86: 19 | D86: Championship | E86: 2014-11-29 | G86: Bournemouth | H86: (A) | K86: D 2-2 | L86: Forde | M86: Dunne | N86: Malone | O86: Williams | P86: Webstern | Q86: Beevers (45) | R86: Martin (20) | S86: Upsonn | T86: McDonald | U86: Gregory | V86: Woolford (75)n | Y86: King | Z86: Shittu | AA86: Powell | AB86: Martinez | AC86: Easter (20) | AD86: Gueye (75) | AE86: Fuller (45) | AG86: 1 | BO86: ) | BR86: Bournemouth | BS86: (A) | BT86: Upson | BU86: Gueye
C87: 20 | D87: Championship | E87: 2014-12-06 | G87: Middlesboro | H87: (H) | K87: L 1-5 | L87: Forde | M87: Wilkinson | N87: Malone | O87: Webster (45) | P87: Dunne | Q87: Williams | R87: Powell (45) | S87: Upson (70) | T87: McDonaldn | U87: Fuller | V87: Gregory | Y87: King | Z87: Briggs | AA87: Shittu (45) | AB87: Martinez | AC87: Woolford (70) | AD87: Gueye (45) | AE87: Easter | AG87: 1 | BO87: ) | BR87: Middlesboro | BS87: (H)
C88: 21 | D88: Championship | E88: 2014-12-12 | G88: Brighton | H88: (A) | K88: W 1-0 | L88: Forden | M88: Wilkinson | N88: Malone | O88: Williams | P88: Shittun | Q88: Beeversn | R88: Gueye (81) | S88: Martinez (89) | T88: McDonaldn | U88: Gregory (83) | V88: Woolford | Y88: King | Z88: Dunne (89) | AA88: Briggs | AB88: Abdou (81) | AC88: Upson | AD88: Easter | AE88: Fuller (83) | AG88: 1 | BO88: ) | BR88: Brighton | BS88: (A) | BT88: Gregory
C89: 22 | D89: Championship | E89: 2014-12-19 | G89: Bolton | H89: (H) | K89: L 0-1 | L89: Forde | M89: Wilkinson (77) | N89: Malone | O89: Williams | P89: Dunnen | Q89: Shittun | R89: Gueye (57) | S89: Martinez | T89: McDonald (55) | U89: Gregory | V89: Woolford | Y89: King | Z89: Briggs | AA89: Webster | AB89: Abdou (77) | AC89: Martin (57) | AD89: Easter | AE89: Fuller (55) | AG89: 1 | BO89: ) | BR89: Bolton | BS89: (H)
C90: 23 | D90: Championship | E90: 2014-12-26 | G90: Norwich City | H90: (A) | K90: L 1-6 | L90: Forde | M90: Dunne | N90: Briggs | O90: Williams | P90: Shittu | Q90: Beeversn | R90: Marquis | S90: Martinez (71) | T90: Gueye (71) | U90: Fuller (71) | V90: Martin | Y90: King | Z90: Wilkinson | AA90: Abdou (71) | AB90: Upson | AC90: McDonald | AD90: Easter (71) | AE90: Gregory (71) | AG90: 1 | BO90: ) | BR90: Norwich City | BS90: (A) | BT90: Easter
C91: 24 | D91: Championship | E91: 2014-12-28 | G91: Bournemouth | H91: (H) | K91: L 0-2 | L91: Forden | M91: Wilkinson (45)n | N91: Malone | O91: Williamsn (80) | P91: Shittu (67)n | Q91: Nelson | R91: Martin (56) | S91: Abdou | T91: McDonaldn | U91: Gregory | V91: Woolford | Y91: King | Z91: Dunne (67) | AA91: Beevers | AB91: Upson | AC91: Gueye (56) | AD91: Easter | AE91: Fuller (45) | AG91: 1 | BO91: ) | BR91: Bournemouth | BS91: (H)
C92: 25 | D92: Championship | E92: 2015-01-10 | G92: Blackpool | H92: (A) | K92: L 0-1 | L92: Forde | M92: Wilkinson | N92: Harding (61) | O92: Abdou | P92: Dunne | Q92: Nelson | R92: Martin | S92: Chaplow | T92: McDonald (74) | U92: Fuller (59) | V92: Woolford | Y92: Bywater | Z92: Briggs | AA92: Shittu | AB92: Upson | AC92: Gueye (74) | AD92: Maierhofer (59) | AE92: Gregory (61) | AG92: 1 | BO92: ) | BR92: Blackpool | BS92: (A)
C93: 26 | D93: Championship | E93: 2015-01-17 | G93: Ipswich | H93: (H) | K93: L 1-3 | L93: Forde | M93: Cummings (80) | N93: Harding | O93: Powell | P93: Nelson | Q93: Webster | R93: Gueye | S93: Abdou | T93: Gregory | U93: Maierhofer | V93: Fabbrini (63) | Y93: King | Z93: Wilkinson | AA93: Shittu | AB93: Woolford | AC93: Martin (63) | AD93: McDonald | AE93: Fuller (80) | AG93: 1 | BO93: ) | BR93: Ipswich | BS93: (H) | BT93: Gueye
C94: 27 | D94: Championship | E94: 2015-01-27 | G94: Reading | H94: (H) | K94: D 0-0 | L94: Forde | M94: Cummings | N94: Harding | O94: Williams | P94: Nelsonn (45) | Q94: Hooiveld | R94: Gueye (45) | S94: Abdou | T94: Gregory | U94: Maierhofer (45) | V94: Fabbrini (77) | Y94: King | Z94: Dunne (45) | AA94: Beevers | AB94: Upson | AC94: Martin (77) | AD94: Cowan-Hall (45) | AE94: Fuller | AG94: 1 | BO94: ) | BR94: Reading | BS94: (H)
C95: 28 | D95: Championship | E95: 2015-01-31 | G95: Nottm Forest | H95: (A) | K95: W 1-0 | L95: Forde | M95: Cummings | N95: Beevers | O95: Williamsn | P95: Dunne | Q95: Hooiveld | R95: Gueye (72) | S95: Abdou | T95: Fabbrini | U95: Maierhofer (61) | V95: Martin (15) | Y95: King | Z95: Webster | AA95: Powell | AB95: Upson (15)n | AC95: O'Brien | AD95: Gregory (61) | AE95: Fuller (72) | AG95: 1 | BO95: ) | BR95: Nottm Forest | BS95: (A) | BT95: Fuller
C96: 29 | D96: Championship | E96: 2015-02-07 | G96: Huddersfield | H96: (H) | K96: L 1-3 | L96: Forden | M96: Cummings | N96: Beevers | O96: Williamsn | P96: Dunne | Q96: Hooiveld | R96: Fabbrini | S96: Abdou | T96: Upson (68)n | U96: Maierhofer (68) | V96: Gueye (77) | Y96: Archer | Z96: Harding | AA96: Webster | AB96: Tonge | AC96: Woolford (77) | AD96: Gregory (68) | AE96: Fuller (68) | AG96: 1 | BO96: ) | BR96: Huddersfield | BS96: (H) | BT96: Maierhofer
C97: 30 | D97: Championship | E97: 2015-02-10 | G97: Birmingham | H97: (A) | K97: W 1-0 | L97: Forde | M97: Cummingsn | N97: Harding | O97: Williamsn | P97: Dunne | Q97: Hooiveld | R97: Martin (82)n | S97: Tonge | T97: Fabbrini (88) | U97: Maierhofer (72) | V97: Woolford | Y97: Archer | Z97: Beevers (82) | AA97: Abdou (88) | AB97: Upson | AC97: Gueye | AD97: Gregory (72) | AE97: Fuller | AG97: 1 | BO97: ) | BR97: Birmingham | BS97: (A) | BT97: Dunne
C98: 31 | D98: Championship | E98: 2015-02-14 | G98: Leeds | H98: (A) | K98: L 0-1 | L98: Forde | M98: Cummings | N98: Harding | O98: Williams | P98: Dunne | Q98: Hooiveld | R98: Martin | S98: Martinez (60)n | T98: Fabbrini (60) | U98: Maierhofer (45)n | V98: Woolford | Y98: Archer | Z98: Beevers | AA98: Abdou | AB98: Upson (60) | AC98: O'Brien | AD98: Gregory (45) | AE98: Fuller (60) | AG98: 1 | BO98: ) | BR98: Leeds | BS98: (A)
C99: 32 | D99: Championship | E99: 2015-02-21 | G99: Fulham | H99: (H) | K99: D 0-0 | L99: Forde | M99: Abdoun | N99: Harding | O99: Tonge (86) | P99: Dunne | Q99: Hooiveld | R99: O'Brien (58) | S99: Williams | T99: Fabbrini | U99: Gregory | V99: Woolford (69) | Y99: King | Z99: Beevers | AA99: Nelson | AB99: Upson (86) | AC99: Taylor-Fletcher (58) | AD99: Maierhofer | AE99: Fuller (69) | AG99: 1 | BO99: ) | BR99: Fulham | BS99: (H)
C100: 33 | D100: Championship | E100: 2015-02-24 | G100: Sheff Wed | H100: (H) | K100: L 1-3 | L100: Forde | M100: Abdou (74) | N100: Harding | O100: Tonge | P100: Dunne | Q100: Hooiveld | R100: Taylor-Fletcher | S100: Williams | T100: Fabbrini | U100: Gregory (63) | V100: Woolford (50) | Y100: King | Z100: Beevers | AA100: Nelson | AB100: Upson | AC100: Gueye (74) | AD100: O'Brien (50) | AE100: Fuller (63) | AG100: 1 | BO100: ) | BR100: Sheff Wed | BS100: (H) | BT100: Fabbrini
C101: 34 | D101: Championship | E101: 2015-02-28 | G101: Rotherham | H101: (A) | K101: L 1-2 | L101: Forde | M101: Abdoun | N101: Harding | O101: Tonge | P101: Dunne | Q101: Hooiveld | R101: Fabbrini (86) | S101: Williams | T101: Taylor-Fletcher (58) | U101: Gregory (66) | V101: Woolford | Y101: King | Z101: Beevers | AA101: Nelson | AB101: Martinez | AC101: Upson (86) | AD101: O'Brien (66) | AE101: Fuller (58) | AG101: 1 | BO101: ) | BR101: Rotherham | BS101: (A) | BT101: Woolford
C102: 35 | D102: Championship | E102: 2015-03-03 | G102: Middlesboro | H102: (A) | K102: L 0-3 | L102: Forde | M102: Abdoun | N102: Harding | O102: Tonge (80) | P102: Dunne | Q102: Hooiveld | R102: Fabbrini | S102: Williams (66) | T102: Taylor-Fletcher | U102: Gregory (66) | V102: Woolford | Y102: King | Z102: Beevers | AA102: Nelson | AB102: Martinez | AC102: Upson (66) | AD102: O'Brien (80) | AE102: Fuller (66) | AG102: 1 | BO102: ) | BR102: Middlesboro | BS102: (A)
C103: 36 | D103: Championship | E103: 2015-03-07 | G103: Norwich City | H103: (H) | K103: L 1-4 | L103: Forde | M103: Dunne | N103: Harding | O103: Bailey (45) | P103: Nelson | Q103: Hooiveld | R103: Woolford (61) | S103: Williams | T103: Fabbrini | U103: Fuller (65) | V103: Taylor-Fletcher | Y103: King | Z103: Beevers | AA103: Abdou | AB103: Tonge (45)n | AC103: Gueye | AD103: O'Brien (65) | AE103: Gregory (61) | AG103: 1 | BO103: ) | BR103: Norwich City | BS103: (H) | BT103: Gregory
C104: 37 | D104: Championship | E104: 2015-03-14 | G104: Bolton | H104: (A) | K104: L 0-2 | L104: Forde | M104: Cummings | N104: Harding | O104: Williams | P104: Dunnen | Q104: Hooiveld | R104: O'Brien (81) | S104: Abdou | T104: Taylor-Fletcher (59) | U104: Gregory | V104: Upson (66) | Y104: Archer | Z104: Beevers | AA104: Powell | AB104: Cowan-Hall (66) | AC104: Gueye (81) | AD104: Fuller (59) | AE104: Maierhofer | AG104: 1 | BO104: ) | BR104: Bolton | BS104: (A)
C105: 38 | D105: Championship | E105: 2015-03-17 | G105: Brighton | H105: (H) | K105: D 0-0 | L105: Forde | M105: Cummings | N105: Harding | O105: Williams | P105: Nelson | Q105: Hooiveld | R105: O'Brien (73) | S105: Abdou | T105: Gregory | U105: Taylor-Fletcher (73)n | V105: Woolford (81)n | Y105: Archer | Z105: Beevers | AA105: Upson | AB105: Fabbrini (81) | AC105: Gueye (73) | AD105: Fuller | AE105: Maierhofer (73) | AG105: 1 | BO105: ) | BR105: Brighton | BS105: (H)
C106: 39 | D106: Championship | E106: 2015-03-21 | G106: Brentford | H106: (A) | AG106: 0 | BO106: ) | BR106: Brentford | BS106: (A)
C107: 40 | D107: Championship | E107: 2015-04-03 | G107: Charlton | H107: (H) | AG107: 0 | BO107: ) | BR107: Charlton | BS107: (H)
C108: 41 | D108: Championship | E108: 2015-04-11 | G108: Watford | H108: (H) | AG108: 0 | BO108: ) | BR108: Watford | BS108: (H)
C109: 42 | D109: Championship | E109: 2015-04-14 | G109: Wigan | H109: (H) | AG109: 0 | BO109: ) | BR109: Wigan | BS109: (H)
C110: 43 | D110: Championship | E110: 2015-04-18 | G110: Cardiff | H110: (A) | AG110: 0 | BO110: ) | BR110: Cardiff | BS110: (A)
C111: 44 | D111: Championship | E111: 2015-04-21 | G111: Blackburn | H111: (A) | AG111: 0 | BO111: ) | BR111: Blackburn | BS111: (A)
C112: 45 | D112: Championship | E112: 2015-04-25 | G112: Derby | H112: (H) | AG112: 0 | BO112: ) | BR112: Derby | BS112: (H)
C113: 46 | D113: Championship | E113: 2015-05-02 | G113: Wolves | H113: (A) | AG113: 0 | BO113: ) | BR113: Wolves | BS113: (A)
C114: 47 | AG114: 0 | BO114: )
C115: 48 | AG115: 0 | BO115: )
C116: 49 | AG116: 0
AG117: =SUM(AG68:AG116) -> 38
BT118: Goals League Cup
BT119: 1 | BU119: 2 | BV119: 3 | BW119: 4 | BX119: 5 | BY119: 6 | BZ119: 7 | CA119: 8 | CB119: 7 | CC119: 8 | CD119: 9
L120: x
C121: 1 | D121: Capital One (1) | E121: 2014-08-12 | G121: Wycombe | H121: (H) | K121: W 1-0 | L121: Forde | M121: Webster | N121: Briggsnnn (59) | O121: Wright | P121: Dunne | Q121: Shittu | R121: Easter (84) | S121: Abdou | T121: Gregory | U121: McDonald (63) | V121: Gueye (48) | Y121: Bywater | Z121: Siafa (84) | AA121: Goodman | AB121: Powell (63) | AC121: O'Brien | AD121: Onyedinma (48) | AE121: Marquis | AG121: 1 | BR121: =G121 -> Wycombe | BS121: =H121 -> (H) | BT121: Briggs
C122: 2 | D122: Capital One (2) | E122: 2014-08-26 | G122: Southampton | H122: (H) | K122: L 0-2 | L122: Forde | M122: Hoyte | N122: Briggsn | O122: Powell | P122: Williams | Q122: Webster | R122: Abdou (74) | S122: Easter | T122: Gueye (63) | U122: Marquis | V122: Chaplow (63) | Y122: Gerrar | Z122: Siafa | AA122: Goodman | AB122: Thompson (74) | AC122: Onyedinma (63) | AD122: O'Brien (63) | AE122: Gregory | AG122: 1 | BR122: =G122 -> Southampton | BS122: =H122 -> (H)
C123: 3 | D123: - | E123: - | G123: - | H123: - | AG123: 0
AG124: 0
AG125: 0
AG126: 0
AG127: 0 | BT127: Goals FA Cup
AG128: =SUM(AG121:AG127) -> 2 | BT128: 1 | BU128: 2 | BV128: 3 | BW128: 4 | BX128: 5 | BY128: 6 | BZ128: 7 | CA128: 8 | CB128: 7 | CC128: 8 | CD128: 9
L129: x
C130: 1 | D130: FA Cup 3 | E130: 2015-01-03 | G130: Bradford City | H130: (H) | K130: D 3-3 | L130: Forde | M130: Dunne | N130: Briggs | O130: Chaplow (81)n | P130: Shittu | Q130: Nelson | R130: Abdou | S130: Upson (89)n | T130: McDonald | U130: Fuller | V130: Martin | Y130: King | Z130: Martinez | AA130: Powell | AB130: Woolford (89) | AC130: Gueye (81) | AD130: O'Brien | AE130: Easter | AG130: 1 | BR130: =G130 -> Bradford City | BS130: (H) | BT130: McDonald | BU130: Fuller | BV130: Fuller
C131: 2 | D131: FA Cup 4 | E131: 2015-01-14 | G131: Bradford City | H131: (A) | K131: L 0-4 | L131: Forden | M131: Dunnen | N131: Briggs | O131: Chaplown | P131: Shittu | Q131: Beeversn (6) | R131: Abdoun | S131: Upson (45) | T131: Gregory | U131: Fuller (23) | V131: Martin (62) | Y131: King | Z131: Nelson | AA131: Webster (45) | AB131: Powell | AC131: Woolford (23) | AD131: Gueye (62) | AE131: McDonald | AG131: 1 | BR131: Bradford City | BS131: (A)
C132: 3 | D132: FA Cup 5 | E132: - | G132: - | H132: - | AG132: 0 | BS132: (A)
C133: 4 | D133: FA Cup 6 | E133: - | G133: - | H133: - | AG133: =IF(K133<>"",1,0) -> 0 | BS133: (H)
C134: 5 | D134: FA Cup 6R | E134: - | G134: - | H134: - | AG134: =IF(K134<>"",1,0) -> 0 | BS134: (A)
C135: 6 | D135: FA Cup SF | E135: - | G135: - | H135: - | AG135: =IF(K135<>"",1,0) -> 0
C136: 7
AG137: =SUM(AG130:AG136) -> 2
BM180: =AppsTable!$AY$22 -> -
BN183: =AppsTable!$BB$22 -> - | BO183: =AppsTable!$BC$22 -> -
BP184: =AppsTable!$BF$22 -> -
BQ185: =AppsTable!$BI$22 -> - | BR185: =AppsTable!$BJ$22 -> - | BS185: =AppsTable!$BK$22 -> -

Sheet Apps Summary
BN2: MaxOverall201415 | BO2: MaxChamp201415 | BP2: MaxFACup201415 | BQ2: MaxLCup201415 | BU2: ="var "&BU$4&"= """&J54&"""" -> var A201415OverallOwnGls= "0"
G3: Overall | N3: Championship | R3: FA Cup | V3: League Cup | BN3: ="var "&BN$2&"= """&G4&"""" -> var MaxOverall201415= "Max (42)" | BO3: ="var "&BO$2&"= """&N4&"""" -> var MaxChamp201415= "Max (38)" | BP3: ="var "&BP$2&"= """&R4&"""" -> var MaxFACup201415= "Max (2)" | BQ3: ="var "&BQ$2&"= """&V4&"""" -> var MaxLCup201415= "Max (2)" | BU3: ="var "&BU$5&"= """&Q54&"""" -> var A201415ChampOwnGls= "0" | BY3: ="var "&BY$5&"= """&U54&"""" -> var A201415FACupOwnGls= "0" | CC3: ="var "&CC$5&"= """&Y54&"""" -> var A201415LCupOwnGls= "0"
G4: =X60 -> Max (42) | N4: =G60 -> Max (38) | R4: =K60 -> Max (2) | V4: =O60 -> Max (2) | BU4: A201415OverallOwnGls
E5: Player Squad No | G5: Apps | H5: Sub | I5: Nps | J5: Goals | K5: n | L5: n | N5: Apps | O5: Sub | P5: Nps | Q5: Goals | R5: Apps | S5: Sub | T5: Nps | U5: Goals | V5: Apps | W5: Sub | X5: Nps | Y5: Goals | AL5: =SUM(AN7:AN57) -> 422 | AN5: League | AS5: League Cup | AX5: FA Cup | BU5: A201415ChampOwnGls | BY5: A201415FACupOwnGls | CC5: A201415LCupOwnGls
AN6: P | AO6: Sub | AP6: NPS | AQ6: Gls | AS6: P | AT6: Sub | AU6: NPS | AV6: Gls | AX6: P | AY6: Sub | AZ6: NPS | BA6: Gls | BN6: PlayerFN | BO6: SquadNr | BP6: A201415Yellows | BQ6: A201415Reds | BR6: A201415ChampApps | BS6: A201415ChampSubs | BT6: A201415ChampNps | BU6: A201415ChampGls | BV6: A201415FACupApps | BW6: A201415FACupSubs | BX6: A201415FACupNps | BY6: A201415FACupGls | BZ6: A201415LCupApps | CA6: A201415LCupSubs | CB6: A201415LCupNps | CC6: A201415LCupGls
C7: 2 | E7: =AC7&" "&AD7 -> David Forde | F7: =AE7 -> 1 | G7: =N7+R7+V7 -> 42 | H7: =O7+S7+W7 -> 0 | I7: =P7+T7+X7 -> 0 | J7: =Q7+U7+Y7 -> 0 | K7: =AppsTable!$L$22 -> 6 | L7: =AppsTable!$L$23 -> - | N7: =$AN$7 -> 38 | O7: =$AO$7 -> 0 | P7: =$AP$7 -> 0 | Q7: =$AQ$7 -> 0 | R7: =$AX$7 -> 2 | S7: =$AY$7 -> 0 | T7: =$AZ$7 -> 0 | U7: =$BA$7 -> 0 | V7: =$AS$7 -> 2 | W7: =$AT$7 -> 0 | X7: =$AU$7 -> 0 | Y7: =$AV$7 -> 0 | AB7: =SUMIF($BF$7:$BF$65,AD7,$BC$7:$BC$65) -> 7 | AC7: David | AD7: Forde | AE7: 1 | AJ7: 1 | AK7: =AM7&" (**" -> Forde (** | AL7: =AM7&"**" -> Forde** | AM7: =BF7 -> Forde | AN7: =COUNTIF(MillwallApps!L$68:V$113,$AL7) -> 38 | AO7: =COUNTIF(MillwallApps!LeagueSubs,$AK7) -> 0 | AP7: =COUNTIF(MillwallApps!LeagueSubs,$AM7) -> 0 | AQ7: =COUNTIF(LeagueGoals,AM7) -> 0 | AS7: =COUNTIF(CapitalOneStarts,$AL7) -> 2 | AT7: =COUNTIF(CapitalOneSubs,$AK7) -> 0 | AU7: =COUNTIF(CapitalOneSubs,$AM7) -> 0 | AV7: =COUNTIF(CapitalOneGoals,AM7) -> 0 | AX7: =COUNTIF(FACupStarts,$AL7) -> 2 | AY7: =COUNTIF(FACupSubs,$AK7) -> 0 | AZ7: =COUNTIF(FACupSubs,$AM7) -> 0 | BA7: =COUNTIF(FACupGoals,AM7) -> 0 | BC7: =ROW(BB7) -> 7 | BE7: David | BF7: Forde | BG7: =AJ7 -> 1 | BH7: =BE7&" "&AM7 -> David Forde | BM7: 1 | BN7: ="var "&BN$6&$BM7&"= """&E7&"""" -> var PlayerFN1= "David Forde" | BO7: ="var "&BO$6&$BM7&"= """&F7&"""" -> var SquadNr1= "1" | BP7: ="var "&BP$6&$BM7&"= """&K7&"""" -> var A201415Yellows1= "6" | BQ7: ="var "&BQ$6&$BM7&"= """&L7&"""" -> var A201415Reds1= "-" | BR7: ="var "&BR$6&$BM7&"= "&N7&"" -> var A201415ChampApps1= 38 | BS7: ="var "&BS$6&$BM7&"= "&O7&"" -> var A201415ChampSubs1= 0 | BT7: ="var "&BT$6&$BM7&"= "&P7&"" -> var A201415ChampNps1= 0 | BU7: ="var "&BU$6&$BM7&"= "&Q7&"" -> var A201415ChampGls1= 0 | BV7: ="var "&BV$6&$BM7&"= "&R7&"" -> var A201415FACupApps1= 2 | BW7: ="var "&BW$6&$BM7&"= "&S7&"" -> var A201415FACupSubs1= 0 | BX7: ="var "&BX$6&$BM7&"= "&T7&"" -> var A201415FACupNps1= 0 | BY7: ="var "&BY$6&$BM7&"= "&U7&"" -> var A201415FACupGls1= 0 | BZ7: ="var "&BZ$6&$BM7&"= "&V7&"" -> var A201415LCupApps1= 2 | CA7: ="var "&CA$6&$BM7&"= "&W7&"" -> var A201415LCupSubs1= 0 | CB7: ="var "&CB$6&$BM7&"= "&X7&"" -> var A201415LCupNps1= 0 | CC7: ="var "&CC$6&$BM7&"= "&Y7&"" -> var A201415LCupGls1= 0
C8: =IF(C7=1,2,1) -> 1 | E8: Alan Dunne | F8: =AE8 -> 2 | G8: =N8+R8+V8 -> 34 | H8: 4 | I8: 0 | J8: 2 | K8: =AppsTable!$M$22 -> 10 | L8: =AppsTable!$M$23 -> - | N8: =$AN$8 -> 31 | O8: =$AO$8 -> 4 | P8: =$AP$8 -> 0 | Q8: =$AQ$8 -> 2 | R8: =$AX$8 -> 2 | S8: =$AY$8 -> 0 | T8: =$AZ$8 -> 0 | U8: =$BA$8 -> 0 | V8: =$AS$8 -> 1 | W8: =$AT$8 -> 0 | X8: =$AU$8 -> 0 | Y8: =$AV$8 -> 0 | AB8: 8 | AC8: Alan | AD8: Dunne | AE8: 2 | AJ8: 2 | AK8: Dunne (** | AL8: Dunne** | AM8: =BF8 -> Dunne | AN8: =COUNTIF(MillwallApps!L$68:V$113,$AL8) -> 31 | AO8: =COUNTIF(MillwallApps!LeagueSubs,$AK8) -> 4 | AP8: =COUNTIF(MillwallApps!LeagueSubs,$AM8) -> 0 | AQ8: 2 | AS8: 1 | AT8: 0 | AU8: 0 | AV8: 0 | AX8: 2 | AY8: 0 | AZ8: 0 | BA8: 0 | BC8: 8 | BE8: Alan | BF8: Dunne | BG8: 2 | BH8: Alan Dunne | BM8: 2 | BN8: var PlayerFN2= "Alan Dunne" | BO8: var SquadNr2= "2" | BP8: ="var "&BP$6&$BM8&"= """&K8&"""" -> var A201415Yellows2= "10" | BQ8: ="var "&BQ$6&$BM8&"= """&L8&"""" -> var A201415Reds2= "-" | BR8: var A201415ChampApps2= 31 | BS8: var A201415ChampSubs2= 4 | BT8: var A201415ChampNps2= 0 | BU8: var A201415ChampGls2= 2 | BV8: var A201415FACupApps2= 2 | BW8: var A201415FACupSubs2= 0 | BX8: var A201415FACupNps2= 0 | BY8: var A201415FACupGls2= 0 | BZ8: var A201415LCupApps2= 1 | CA8: var A201415LCupSubs2= 0 | CB8: var A201415LCupNps2= 0 | CC8: var A201415LCupGls2= 0
C9: =IF(C8=1,2,1) -> 2 | E9: Danny Shittu | F9: =AE9 -> 3 | G9: 10 | H9: 1 | I9: 8 | J9: 1 | K9: =AppsTable!$N$22 -> 3 | L9: =AppsTable!$N$23 -> - | N9: =$AN$9 -> 7 | O9: =$AO$9 -> 1 | P9: =$AP$9 -> 8 | Q9: =$AQ$9 -> 1 | R9: =$AX$9 -> 2 | S9: =$AY$9 -> 0 | T9: =$AZ$9 -> 0 | U9: =$BA$9 -> 0 | V9: =$AS$9 -> 1 | W9: =$AT$9 -> 0 | X9: =$AU$9 -> 0 | Y9: =$AV$9 -> 0 | AB9: 9 | AC9: Danny | AD9: Shittu | AE9: 3 | AJ9: 3 | AK9: Shittu (** | AL9: Shittu** | AM9: Shittu | AN9: =COUNTIF(MillwallApps!L$68:V$113,$AL9) -> 7 | AO9: =COUNTIF(MillwallApps!LeagueSubs,$AK9) -> 1 | AP9: =COUNTIF(MillwallApps!LeagueSubs,$AM9) -> 8 | AQ9: 1 | AS9: 1 | AT9: 0 | AU9: 0 | AV9: 0 | AX9: 2 | AY9: 0 | AZ9: 0 | BA9: 0 | BC9: 9 | BE9: Danny | BF9: Shittu | BG9: 3 | BH9: Danny Shittu | BM9: 3 | BN9: var PlayerFN3= "Danny Shittu" | BO9: var SquadNr3= "3" | BP9: ="var "&BP$6&$BM9&"= """&K9&"""" -> var A201415Yellows3= "3" | BQ9: var A201415Reds3= "-" | BR9: var A201415ChampApps3= 7 | BS9: var A201415ChampSubs3= 1 | BT9: var A201415ChampNps3= 8 | BU9: var A201415ChampGls3= 1 | BV9: var A201415FACupApps3= 2 | BW9: var A201415FACupSubs3= 0 | BX9: var A201415FACupNps3= 0 | BY9: var A201415FACupGls3= 0 | BZ9: var A201415LCupApps3= 1 | CA9: var A201415LCupSubs3= 0 | CB9: var A201415LCupNps3= 0 | CC9: var A201415LCupGls3= 0 | CL9: var MaxOverall201415= "Max (8)"
C10: 1 | E10: Josh Wright | F10: 4 | G10: 2 | H10: 0 | I10: 3 | J10: 0 | K10: =AppsTable!$O$22 -> - | L10: =AppsTable!$O$23 -> - | N10: =$AN$10 -> 1 | O10: =$AO$10 -> 0 | P10: =$AP$10 -> 3 | Q10: =$AQ$10 -> 0 | R10: =$AX$10 -> 0 | S10: =$AY$10 -> 0 | T10: =$AZ$10 -> 0 | U10: =$BA$10 -> 0 | V10: =$AS$10 -> 1 | W10: =$AT$10 -> 0 | X10: =$AU$10 -> 0 | Y10: =$AV$10 -> 0 | AB10: 10 | AC10: Josh | AD10: Wright | AE10: 4 | AJ10: 4 | AK10: Wright (** | AL10: Wright** | AM10: Wright | AN10: =COUNTIF(MillwallApps!L$68:V$113,$AL10) -> 1 | AO10: =COUNTIF(MillwallApps!LeagueSubs,$AK10) -> 0 | AP10: =COUNTIF(MillwallApps!LeagueSubs,$AM10) -> 3 | AQ10: 0 | AS10: 1 | AT10: 0 | AU10: 0 | AV10: 0 | AX10: 0 | AY10: 0 | AZ10: 0 | BA10: 0 | BC10: 10 | BE10: Josh | BF10: Wright | BG10: 4 | BH10: Josh Wright | BM10: 4 | BN10: var PlayerFN4= "Josh Wright" | BO10: var SquadNr4= "4" | BP10: var A201415Yellows4= "-" | BQ10: var A201415Reds4= "-" | BR10: var A201415ChampApps4= 1 | BS10: var A201415ChampSubs4= 0 | BT10: var A201415ChampNps4= 3 | BU10: var A201415ChampGls4= 0 | BV10: var A201415FACupApps4= 0 | BW10: var A201415FACupSubs4= 0 | BX10: var A201415FACupNps4= 0 | BY10: var A201415FACupGls4= 0 | BZ10: var A201415LCupApps4= 1 | CA10: var A201415LCupSubs4= 0 | CB10: var A201415LCupNps4= 0 | CC10: var A201415LCupGls4= 0 | CL10: var MaxChamp201415= "Max (6)"
C11: 2 | E11: Shaun Cummings | F11: 4 | G11: =N11+R11+V11 -> 8 | H11: =O11+S11+W11 -> 0 | I11: =P11+T11+X11 -> 0 | J11: =Q11+U11+Y11 -> 0 | K11: =AppsTable!$P$22 -> 1 | L11: =AppsTable!$P$23 -> - | N11: =$AN$11 -> 8 | O11: =$AO$11 -> 0 | P11: =$AP$11 -> 0 | Q11: =$AQ$11 -> 0 | R11: =$AX$11 -> 0 | S11: =$AY$11 -> 0 | T11: =$AZ$11 -> 0 | U11: =$BA$11 -> 0 | V11: =$AS$11 -> 0 | W11: =$AT$11 -> 0 | X11: =$AU$11 -> 0 | Y11: =$AV$11 -> 0 | AB11: 11 | AC11: Shaun | AD11: Cummings | AE11: 4 | AJ11: 20 | AK11: =AM11&" (**" -> Cummings (** | AL11: =AM11&"**" -> Cummings** | AM11: Cummings | AN11: =COUNTIF(MillwallApps!L$68:V$113,$AL11) -> 8 | AO11: =COUNTIF(MillwallApps!LeagueSubs,$AK11) -> 0 | AP11: =COUNTIF(MillwallApps!LeagueSubs,$AM11) -> 0 | AQ11: =COUNTIF(LeagueGoals,AM11) -> 0 | AS11: 0 | AT11: 0 | AU11: 0 | AV11: =COUNTIF(CapitalOneGoals,AM11) -> 0 | AX11: 0 | AY11: 0 | AZ11: 0 | BA11: =COUNTIF(FACupGoals,AM11) -> 0 | BC11: =ROW(BB11) -> 11 | BE11: Shaun | BF11: Cummings | BG11: =AJ11 -> 20 | BH11: =BE11&" "&AM11 -> Shaun Cummings | BM11: 4a | BN11: ="var "&BN$6&$BM11&"= """&E11&"""" -> var PlayerFN4a= "Shaun Cummings" | BO11: ="var "&BO$6&$BM11&"= """&F11&"""" -> var SquadNr4a= "4" | BP11: ="var "&BP$6&$BM11&"= """&K11&"""" -> var A201415Yellows4a= "1" | BQ11: ="var "&BQ$6&$BM11&"= """&L11&"""" -> var A201415Reds4a= "-" | BR11: var A201415ChampApps4a= 8 | BS11: var A201415ChampSubs4a= 0 | BT11: var A201415ChampNps4a= 0 | BU11: var A201415ChampGls4a= 0 | BV11: var A201415FACupApps4a= 0 | BW11: var A201415FACupSubs4a= 0 | BX11: var A201415FACupNps4a= 0 | BY11: var A201415FACupGls4a= 0 | BZ11: var A201415LCupApps4a= 0 | CA11: var A201415LCupSubs4a= 0 | CB11: var A201415LCupNps4a= 0 | CC11: var A201415LCupGls4a= 0
C12: 1 | E12: Jos Hooiveld | F12: 5 | G12: 12 | H12: 0 | I12: 0 | J12: 0 | K12: =AppsTable!$Q$22 -> - | L12: =AppsTable!$Q$23 -> - | N12: =$AN$12 -> 12 | O12: =$AO$12 -> 0 | P12: =$AP$12 -> 0 | Q12: =$AQ$12 -> 0 | R12: =$AX$12 -> 0 | S12: =$AY$12 -> 0 | T12: =$AZ$12 -> 0 | U12: =$BA$12 -> 0 | V12: =$AS$12 -> 0 | W12: =$AT$12 -> 0 | X12: =$AU$12 -> 0 | Y12: =$AV$12 -> 0 | AB12: 12 | AC12: Jos | AD12: Hooiveld | AE12: 5 | AJ12: 5 | AK12: Hooiveld (** | AL12: Hooiveld** | AM12: Hooiveld | AN12: =COUNTIF(MillwallApps!L$68:V$113,$AL12) -> 12 | AO12: =COUNTIF(MillwallApps!LeagueSubs,$AK12) -> 0 | AP12: =COUNTIF(MillwallApps!LeagueSubs,$AM12) -> 0 | AQ12: 0 | AS12: 0 | AT12: 0 | AU12: 0 | AV12: 0 | AX12: 0 | AY12: 0 | AZ12: 0 | BA12: 0 | BC12: 12 | BE12: Josh | BF12: Hooiveld | BG12: 5 | BH12: Josh Hooiveld | BM12: 5 | BN12: var PlayerFN5= "Jos Hooiveld" | BO12: var SquadNr5= "5" | BP12: var A201415Yellows5= "-" | BQ12: var A201415Reds5= "-" | BR12: var A201415ChampApps5= 12 | BS12: var A201415ChampSubs5= 0 | BT12: var A201415ChampNps5= 0 | BU12: var A201415ChampGls5= 0 | BV12: var A201415FACupApps5= 0 | BW12: var A201415FACupSubs5= 0 | BX12: var A201415FACupNps5= 0 | BY12: var A201415FACupGls5= 0 | BZ12: var A201415LCupApps5= 0 | CA12: var A201415LCupSubs5= 0 | CB12: var A201415LCupNps5= 0 | CC12: var A201415LCupGls5= 0 | CL12: var MaxFACup201415= "Max (0)"
C13: 2 | E13: Shaun Williams | F13: 6 | G13: 35 | H13: 0 | I13: 0 | J13: 2 | K13: =AppsTable!$R$22 -> 7 | L13: =AppsTable!$R$23 -> 2 | N13: =$AN$13 -> 34 | O13: =$AO$13 -> 0 | P13: =$AP$13 -> 0 | Q13: =$AQ$13 -> 2 | R13: =$AX$13 -> 0 | S13: =$AY$13 -> 0 | T13: =$AZ$13 -> 0 | U13: =$BA$13 -> 0 | V13: =$AS$13 -> 1 | W13: =$AT$13 -> 0 | X13: =$AU$13 -> 0 | Y13: =$AV$13 -> 0 | AB13: 13 | AC13: Shaun | AD13: Williams | AE13: 6 | AJ13: 6 | AK13: Williams (** | AL13: Williams** | AM13: Williams | AN13: =COUNTIF(MillwallApps!L$68:V$113,$AL13) -> 34 | AO13: =COUNTIF(MillwallApps!LeagueSubs,$AK13) -> 0 | AP13: =COUNTIF(MillwallApps!LeagueSubs,$AM13) -> 0 | AQ13: 2 | AS13: 1 | AT13: 0 | AU13: 0 | AV13: 0 | AX13: 0 | AY13: 0 | AZ13: 0 | BA13: 0 | BC13: 13 | BE13: Shaun | BF13: Williams | BG13: 6 | BH13: Shaun Williams | BM13: 6 | BN13: var PlayerFN6= "Shaun Williams" | BO13: var SquadNr6= "6" | BP13: var A201415Yellows6= "7" | BQ13: var A201415Reds6= "2" | BR13: var A201415ChampApps6= 34 | BS13: var A201415ChampSubs6= 0 | BT13: var A201415ChampNps6= 0 | BU13: var A201415ChampGls6= 2 | BV13: var A201415FACupApps6= 0 | BW13: var A201415FACupSubs6= 0 | BX13: var A201415FACupNps6= 0 | BY13: var A201415FACupGls6= 0 | BZ13: var A201415LCupApps6= 1 | CA13: var A201415LCupSubs6= 0 | CB13: var A201415LCupNps6= 0 | CC13: var A201415LCupGls6= 0 | CL13: var MaxLCup201415= "Max (2)"
C14: 1 | E14: Lee Martin | F14: 7 | G14: 24 | H14: 4 | I14: 0 | J14: 1 | K14: =AppsTable!$S$22 -> 1 | L14: =AppsTable!$S$23 -> - | N14: =$AN$14 -> 22 | O14: =$AO$14 -> 4 | P14: =$AP$14 -> 0 | Q14: =$AQ$14 -> 1 | R14: =$AX$14 -> 2 | S14: =$AY$14 -> 0 | T14: =$AZ$14 -> 0 | U14: =$BA$14 -> 0 | V14: =$AS$14 -> 0 | W14: =$AT$14 -> 0 | X14: =$AU$14 -> 0 | Y14: =$AV$14 -> 0 | AB14: 14 | AC14: Lee | AD14: Martin | AE14: 7 | AJ14: 7 | AK14: Martin (** | AL14: Martin** | AM14: Martin | AN14: =COUNTIF(MillwallApps!L$68:V$113,$AL14) -> 22 | AO14: =COUNTIF(MillwallApps!LeagueSubs,$AK14) -> 4 | AP14: =COUNTIF(MillwallApps!LeagueSubs,$AM14) -> 0 | AQ14: 1 | AS14: 0 | AT14: 0 | AU14: 0 | AV14: 0 | AX14: 2 | AY14: 0 | AZ14: 0 | BA14: 0 | BC14: 14 | BE14: Lee | BF14: Martin | BG14: 7 | BH14: Lee Martin | BM14: 7 | BN14: var PlayerFN7= "Lee Martin" | BO14: var SquadNr7= "7" | BP14: var A201415Yellows7= "1" | BQ14: var A201415Reds7= "-" | BR14: var A201415ChampApps7= 22 | BS14: var A201415ChampSubs7= 4 | BT14: var A201415ChampNps7= 0 | BU14: var A201415ChampGls7= 1 | BV14: var A201415FACupApps7= 2 | BW14: var A201415FACupSubs7= 0 | BX14: var A201415FACupNps7= 0 | BY14: var A201415FACupGls7= 0 | BZ14: var A201415LCupApps7= 0 | CA14: var A201415LCupSubs7= 0 | CB14: var A201415LCupNps7= 0 | CC14: var A201415LCupGls7= 0 | CL14: var A201415ChampOwnGls= "0"
C15: 2 | E15: Jermaine Easter | F15: 8 | G15: 4 | H15: 7 | I15: 7 | J15: 1 | K15: =AppsTable!$T$22 -> - | L15: =AppsTable!$T$23 -> - | N15: =$AN$15 -> 2 | O15: =$AO$15 -> 7 | P15: =$AP$15 -> 6 | Q15: =$AQ$15 -> 1 | R15: =$AX$15 -> 0 | S15: =$AY$15 -> 0 | T15: =$AZ$15 -> 1 | U15: =$BA$15 -> 0 | V15: =$AS$15 -> 2 | W15: =$AT$15 -> 0 | X15: =$AU$15 -> 0 | Y15: =$AV$15 -> 0 | AB15: 15 | AC15: Jermaine | AD15: Easter | AE15: 8 | AJ15: 8 | AK15: Easter (** | AL15: Easter** | AM15: Easter | AN15: =COUNTIF(MillwallApps!L$68:V$113,$AL15) -> 2 | AO15: =COUNTIF(MillwallApps!LeagueSubs,$AK15) -> 7 | AP15: =COUNTIF(MillwallApps!LeagueSubs,$AM15) -> 6 | AQ15: 1 | AS15: 2 | AT15: 0 | AU15: 0 | AV15: 0 | AX15: 0 | AY15: 0 | AZ15: 1 | BA15: 0 | BC15: 15 | BE15: Jermaine | BF15: Easter | BG15: 8 | BH15: Jermaine Easter | BM15: 8 | BN15: var PlayerFN8= "Jermaine Easter" | BO15: var SquadNr8= "8" | BP15: var A201415Yellows8= "-" | BQ15: var A201415Reds8= "-" | BR15: var A201415ChampApps8= 2 | BS15: var A201415ChampSubs8= 7 | BT15: var A201415ChampNps8= 6 | BU15: var A201415ChampGls8= 1 | BV15: var A201415FACupApps8= 0 | BW15: var A201415FACupSubs8= 0 | BX15: var A201415FACupNps8= 1 | BY15: var A201415FACupGls8= 0 | BZ15: var A201415LCupApps8= 2 | CA15: var A201415LCupSubs8= 0 | CB15: var A201415LCupNps8= 0 | CC15: var A201415LCupGls8= 0 | CL15: var A201415FACupOwnGls= "0"
C16: 1 | E16: Diego Fabbrini | F16: 8 | G16: =N16+R16+V16 -> 11 | H16: =O16+S16+W16 -> 1 | I16: =P16+T16+X16 -> 0 | J16: =Q16+U16+Y16 -> 1 | K16: =AppsTable!$U$22 -> - | L16: =AppsTable!$U$23 -> - | N16: =$AN$16 -> 11 | O16: =$AO$16 -> 1 | P16: =$AP$16 -> 0 | Q16: =$AQ$16 -> 1 | R16: =$AX$16 -> 0 | S16: =$AY$16 -> 0 | T16: =$AZ$16 -> 0 | U16: =$BA$16 -> 0 | V16: =$AS$16 -> 0 | W16: =$AT$16 -> 0 | X16: =$AU$16 -> 0 | Y16: =$AV$16 -> 0 | AB16: 16 | AC16: Diego | AD16: Fabbrini | AE16: 8 | AJ16: 8 | AK16: =AM16&" (**" -> Fabbrini (** | AL16: =AM16&"**" -> Fabbrini** | AM16: Fabbrini | AN16: =COUNTIF(MillwallApps!L$68:V$113,$AL16) -> 11 | AO16: =COUNTIF(MillwallApps!LeagueSubs,$AK16) -> 1 | AP16: =COUNTIF(MillwallApps!LeagueSubs,$AM16) -> 0 | AQ16: =COUNTIF(LeagueGoals,AM16) -> 1 | AS16: 0 | AT16: 0 | AU16: 0 | AV16: =COUNTIF(CapitalOneGoals,AM16) -> 0 | AX16: 0 | AY16: 0 | AZ16: 0 | BA16: =COUNTIF(FACupGoals,AM16) -> 0 | BC16: =ROW(BB16) -> 16 | BE16: Diego | BF16: Fabbrini | BG16: =AJ16 -> 8 | BH16: =BE16&" "&AM16 -> Diego Fabbrini | BM16: 8a | BN16: ="var "&BN$6&$BM16&"= """&E16&"""" -> var PlayerFN8a= "Diego Fabbrini" | BO16: ="var "&BO$6&$BM16&"= """&F16&"""" -> var SquadNr8a= "8" | BP16: ="var "&BP$6&$BM16&"= """&K16&"""" -> var A201415Yellows8a= "-" | BQ16: ="var "&BQ$6&$BM16&"= """&L16&"""" -> var A201415Reds8a= "-" | BR16: ="var "&BR$6&$BM16&"= "&N16&"" -> var A201415ChampApps8a= 11 | BS16: var A201415ChampSubs8a= 1 | BT16: var A201415ChampNps8a= 0 | BU16: var A201415ChampGls8a= 1 | BV16: var A201415FACupApps8a= 0 | BW16: var A201415FACupSubs8a= 0 | BX16: var A201415FACupNps8a= 0 | BY16: var A201415FACupGls8a= 0 | BZ16: var A201415LCupApps8a= 0 | CA16: var A201415LCupSubs8a= 0 | CB16: var A201415LCupNps8a= 0 | CC16: var A201415LCupGls8a= 0
C17: 2 | E17: Lee Gregory | F17: 9 | G17: 23 | H17: 9 | I17: 4 | J17: 5 | K17: =AppsTable!$V$22 -> 1 | L17: =AppsTable!$V$23 -> - | N17: =$AN$17 -> 21 | O17: =$AO$17 -> 9 | P17: =$AP$17 -> 3 | Q17: =$AQ$17 -> 5 | R17: =$AX$17 -> 1 | S17: =$AY$17 -> 0 | T17: =$AZ$17 -> 0 | U17: =$BA$17 -> 0 | V17: =$AS$17 -> 1 | W17: =$AT$17 -> 0 | X17: =$AU$17 -> 1 | Y17: =$AV$17 -> 0 | AB17: 17 | AC17: Lee | AD17: Gregory | AE17: 9 | AJ17: 9 | AK17: Gregory (** | AL17: Gregory** | AM17: Gregory | AN17: =COUNTIF(MillwallApps!L$68:V$113,$AL17) -> 21 | AO17: =COUNTIF(MillwallApps!LeagueSubs,$AK17) -> 9 | AP17: =COUNTIF(MillwallApps!LeagueSubs,$AM17) -> 3 | AQ17: 5 | AS17: 1 | AT17: 0 | AU17: 1 | AV17: 0 | AX17: 1 | AY17: 0 | AZ17: 0 | BA17: 0 | BC17: 17 | BE17: Lee | BF17: Gregory | BG17: 9 | BH17: Lee Gregory | BM17: 9 | BN17: var PlayerFN9= "Lee Gregory" | BO17: var SquadNr9= "9" | BP17: var A201415Yellows9= "1" | BQ17: var A201415Reds9= "-" | BR17: var A201415ChampApps9= 21 | BS17: var A201415ChampSubs9= 9 | BT17: var A201415ChampNps9= 3 | BU17: var A201415ChampGls9= 5 | BV17: var A201415FACupApps9= 1 | BW17: var A201415FACupSubs9= 0 | BX17: var A201415FACupNps9= 0 | BY17: var A201415FACupGls9= 0 | BZ17: var A201415LCupApps9= 1 | CA17: var A201415LCupSubs9= 0 | CB17: var A201415LCupNps9= 1 | CC17: var A201415LCupGls9= 0 | CL17: var A201415LCupOwnGls= "0"
C18: 1 | E18: Nicky Bailey | F18: 10 | G18: 2 | H18: 1 | I18: 0 | J18: 0 | K18: =AppsTable!$W$22 -> 1 | L18: =AppsTable!$W$23 -> - | N18: =$AN$18 -> 2 | O18: =$AO$18 -> 1 | P18: =$AP$18 -> 0 | Q18: =$AQ$18 -> 0 | R18: =$AX$18 -> 0 | S18: =$AY$18 -> 0 | T18: =$AZ$18 -> 0 | U18: =$BA$18 -> 0 | V18: =$AS$18 -> 0 | W18: =$AT$18 -> 0 | X18: =$AU$18 -> 0 | Y18: =$AV$18 -> 0 | AB18: 18 | AC18: Nicky | AD18: Bailey | AE18: 10 | AJ18: 10 | AK18: Bailey (** | AL18: Bailey** | AM18: Bailey | AN18: =COUNTIF(MillwallApps!L$68:V$113,$AL18) -> 2 | AO18: =COUNTIF(MillwallApps!LeagueSubs,$AK18) -> 1 | AP18: =COUNTIF(MillwallApps!LeagueSubs,$AM18) -> 0 | AQ18: 0 | AS18: 0 | AT18: 0 | AU18: 0 | AV18: 0 | AX18: 0 | AY18: 0 | AZ18: 0 | BA18: 0 | BC18: 18 | BE18: Nicky | BF18: Bailey | BG18: 10 | BH18: Nicky Bailey | BM18: 10 | BN18: var PlayerFN10= "Nicky Bailey" | BO18: var SquadNr10= "10" | BP18: var A201415Yellows10= "1" | BQ18: var A201415Reds10= "-" | BR18: var A201415ChampApps10= 2 | BS18: var A201415ChampSubs10= 1 | BT18: var A201415ChampNps10= 0 | BU18: var A201415ChampGls10= 0 | BV18: var A201415FACupApps10= 0 | BW18: var A201415FACupSubs10= 0 | BX18: var A201415FACupNps10= 0 | BY18: var A201415FACupGls10= 0 | BZ18: var A201415LCupApps10= 0 | CA18: var A201415LCupSubs10= 0 | CB18: var A201415LCupNps10= 0 | CC18: var A201415LCupGls10= 0
C19: 2 | E19: Martyn Woolford | F19: 11 | G19: 27 | H19: 6 | I19: 3 | J19: 3 | K19: =AppsTable!$X$22 -> 3 | L19: =AppsTable!$X$23 -> - | N19: =$AN$19 -> 27 | O19: =$AO$19 -> 4 | P19: =$AP$19 -> 3 | Q19: =$AQ$19 -> 3 | R19: =$AX$19 -> 0 | S19: =$AY$19 -> 2 | T19: =$AZ$19 -> 0 | U19: =$BA$19 -> 0 | V19: =$AS$19 -> 0 | W19: =$AT$19 -> 0 | X19: =$AU$19 -> 0 | Y19: =$AV$19 -> 0 | AB19: 19 | AC19: Martyn | AD19: Woolford | AE19: 11 | AJ19: 11 | AK19: Woolford (** | AL19: Woolford** | AM19: Woolford | AN19: =COUNTIF(MillwallApps!L$68:V$113,$AL19) -> 27 | AO19: =COUNTIF(MillwallApps!LeagueSubs,$AK19) -> 4 | AP19: =COUNTIF(MillwallApps!LeagueSubs,$AM19) -> 3 | AQ19: 3 | AS19: 0 | AT19: 0 | AU19: 0 | AV19: 0 | AX19: 0 | AY19: 2 | AZ19: 0 | BA19: 0 | BC19: 19 | BE19: Martyn | BF19: Woolford | BG19: 11 | BH19: Martyn Woolford | BM19: 11 | BN19: var PlayerFN11= "Martyn Woolford" | BO19: var SquadNr11= "11" | BP19: var A201415Yellows11= "3" | BQ19: var A201415Reds11= "-" | BR19: var A201415ChampApps11= 27 | BS19: var A201415ChampSubs11= 4 | BT19: var A201415ChampNps11= 3 | BU19: var A201415ChampGls11= 3 | BV19: var A201415FACupApps11= 0 | BW19: var A201415FACupSubs11= 2 | BX19: var A201415FACupNps11= 0 | BY19: var A201415FACupGls11= 0 | BZ19: var A201415LCupApps11= 0 | CA19: var A201415LCupSubs11= 0 | CB19: var A201415LCupNps11= 0 | CC19: var A201415LCupGls11= 0
C20: 1 | E20: Paris Cowan-Hall | F20: 12 | G20: =N20+R20+V20 -> 0 | H20: =O20+S20+W20 -> 2 | I20: =P20+T20+X20 -> 0 | J20: =Q20+U20+Y20 -> 0 | K20: =AppsTable!$Y$22 -> - | L20: =AppsTable!$Y$23 -> - | N20: =$AN$20 -> 0 | O20: =$AO$20 -> 2 | P20: =$AP$20 -> 0 | Q20: =$AQ$20 -> 0 | R20: =$AX$20 -> 0 | S20: =$AY$20 -> 0 | T20: =$AZ$20 -> 0 | U20: =$BA$20 -> 0 | V20: =$AS$20 -> 0 | W20: =$AT$20 -> 0 | X20: =$AU$20 -> 0 | Y20: =$AV$20 -> 0 | AB20: 20 | AC20: Paris | AD20: Cowan-Hall | AE20: 12 | AJ20: 12 | AK20: Cowan-Hall (** | AL20: Cowan-Hall** | AM20: Cowan-Hall | AN20: =COUNTIF(MillwallApps!L$68:V$113,$AL20) -> 0 | AO20: =COUNTIF(MillwallApps!LeagueSubs,$AK20) -> 2 | AP20: =COUNTIF(MillwallApps!LeagueSubs,$AM20) -> 0 | AQ20: 0 | AS20: 0 | AT20: 0 | AU20: 0 | AV20: 0 | AX20: 0 | AY20: 0 | AZ20: 0 | BA20: 0 | BC20: 20 | BE20: Paris | BF20: Cowan-Hall | BG20: 12 | BH20: Paris Cowan-Hall | BM20: 12 | BN20: ="var "&BN$6&$BM20&"= """&E20&"""" -> var PlayerFN12= "Paris Cowan-Hall" | BO20: ="var "&BO$6&$BM20&"= """&F20&"""" -> var SquadNr12= "12" | BP20: ="var "&BP$6&$BM20&"= """&K20&"""" -> var A201415Yellows12= "-" | BQ20: ="var "&BQ$6&$BM20&"= """&L20&"""" -> var A201415Reds12= "-" | BR20: ="var "&BR$6&$BM20&"= "&N20&"" -> var A201415ChampApps12= 0 | BS20: var A201415ChampSubs12= 2 | BT20: var A201415ChampNps12= 0 | BU20: var A201415ChampGls12= 0 | BV20: var A201415FACupApps12= 0 | BW20: var A201415FACupSubs12= 0 | BX20: var A201415FACupNps12= 0 | BY20: var A201415FACupGls12= 0 | BZ20: var A201415LCupApps12= 0 | CA20: var A201415LCupSubs12= 0 | CB20: var A201415LCupNps12= 0 | CC20: var A201415LCupGls12= 0
C21: 2 | E21: =AC21&" "&AD21 -> Denzil Gerrar | F21: 13 | G21: =N21+R21+V21 -> 0 | H21: 0 | I21: 6 | J21: 0 | K21: =AppsTable!$Z$22 -> - | L21: =AppsTable!$Z$23 -> - | N21: =$AN$21 -> 0 | O21: =$AO$21 -> 0 | P21: =$AP$21 -> 5 | Q21: =$AQ$21 -> 0 | R21: =$AX$21 -> 0 | S21: =$AY$21 -> 0 | T21: =$AZ$21 -> 0 | U21: =$BA$21 -> 0 | V21: =$AS$21 -> 0 | W21: =$AT$21 -> 0 | X21: =$AU$21 -> 1 | Y21: =$AV$21 -> 0 | AB21: 21 | AC21: Denzil | AD21: Gerrar | AE21: 13 | AJ21: 13 | AK21: Gerrar (** | AL21: Gerrar** | AM21: Gerrar | AN21: =COUNTIF(MillwallApps!L$68:V$113,$AL21) -> 0 | AO21: =COUNTIF(MillwallApps!LeagueSubs,$AK21) -> 0 | AP21: =COUNTIF(MillwallApps!LeagueSubs,$AM21) -> 5 | AQ21: 0 | AS21: 0 | AT21: 0 | AU21: 1 | AV21: 0 | AX21: 0 | AY21: 0 | AZ21: 0 | BA21: 0 | BC21: 21 | BE21: Denzil | BF21: Gerrar | BG21: 13 | BH21: Denzil Gerrar | BM21: 13 | BN21: ="var "&BN$6&$BM21&"= """&E21&"""" -> var PlayerFN13= "Denzil Gerrar" | BO21: ="var "&BO$6&$BM21&"= """&F21&"""" -> var SquadNr13= "13" | BP21: ="var "&BP$6&$BM21&"= """&K21&"""" -> var A201415Yellows13= "-" | BQ21: ="var "&BQ$6&$BM21&"= """&L21&"""" -> var A201415Reds13= "-" | BR21: ="var "&BR$6&$BM21&"= "&N21&"" -> var A201415ChampApps13= 0 | BS21: ="var "&BS$6&$BM21&"= "&O21&"" -> var A201415ChampSubs13= 0 | BT21: ="var "&BT$6&$BM21&"= "&P21&"" -> var A201415ChampNps13= 5 | BU21: ="var "&BU$6&$BM21&"= "&Q21&"" -> var A201415ChampGls13= 0 | BV21: ="var "&BV$6&$BM21&"= "&R21&"" -> var A201415FACupApps13= 0 | BW21: ="var "&BW$6&$BM21&"= "&S21&"" -> var A201415FACupSubs13= 0 | BX21: ="var "&BX$6&$BM21&"= "&T21&"" -> var A201415FACupNps13= 0 | BY21: ="var "&BY$6&$BM21&"= "&U21&"" -> var A201415FACupGls13= 0 | BZ21: ="var "&BZ$6&$BM21&"= "&V21&"" -> var A201415LCupApps13= 0 | CA21: ="var "&CA$6&$BM21&"= "&W21&"" -> var A201415LCupSubs13= 0 | CB21: ="var "&CB$6&$BM21&"= "&X21&"" -> var A201415LCupNps13= 1 | CC21: ="var "&CC$6&$BM21&"= "&Y21&"" -> var A201415LCupGls13= 0
C22: 1 | E22: Matthew Briggs | F22: 14 | G22: 11 | H22: 1 | I22: 11 | J22: 1 | K22: =AppsTable!$AA$22 -> 5 | L22: =AppsTable!$AA$23 -> 1 | N22: =$AN$22 -> 7 | O22: =$AO$22 -> 1 | P22: =$AP$22 -> 11 | Q22: =$AQ$22 -> 0 | R22: =$AX$22 -> 2 | S22: =$AY$22 -> 0 | T22: =$AZ$22 -> 0 | U22: =$BA$22 -> 0 | V22: =$AS$22 -> 2 | W22: =$AT$22 -> 0 | X22: =$AU$22 -> 0 | Y22: =$AV$22 -> 1 | AB22: 22 | AC22: Matthew | AD22: Briggs | AE22: 14 | AJ22: 14 | AK22: Briggs (** | AL22: Briggs** | AM22: Briggs | AN22: =COUNTIF(MillwallApps!L$68:V$113,$AL22) -> 7 | AO22: =COUNTIF(MillwallApps!LeagueSubs,$AK22) -> 1 | AP22: =COUNTIF(MillwallApps!LeagueSubs,$AM22) -> 11 | AQ22: 0 | AS22: 2 | AT22: 0 | AU22: 0 | AV22: 1 | AX22: 2 | AY22: 0 | AZ22: 0 | BA22: 0 | BC22: =ROW(BB22) -> 22 | BE22: Mathew | BF22: Briggs | BG22: =AJ22 -> 14 | BH22: Mathew Briggs | BM22: 14 | BN22: var PlayerFN14= "Matthew Briggs" | BO22: var SquadNr14= "14" | BP22: var A201415Yellows14= "5" | BQ22: var A201415Reds14= "1" | BR22: var A201415ChampApps14= 7 | BS22: var A201415ChampSubs14= 1 | BT22: var A201415ChampNps14= 11 | BU22: var A201415ChampGls14= 0 | BV22: var A201415FACupApps14= 2 | BW22: var A201415FACupSubs14= 0 | BX22: var A201415FACupNps14= 0 | BY22: var A201415FACupGls14= 0 | BZ22: var A201415LCupApps14= 2 | CA22: var A201415LCupSubs14= 0 | CB22: var A201415LCupNps14= 0 | CC22: var A201415LCupGls14= 1
C23: 2 | E23: Ed Upson | F23: 15 | G23: =N23+R23+V23 -> 12 | H23: 11 | I23: 9 | J23: 2 | K23: =AppsTable!$AB$22 -> 5 | L23: =AppsTable!$AB$23 -> - | N23: =$AN$23 -> 10 | O23: =$AO$23 -> 11 | P23: =$AP$23 -> 9 | Q23: =$AQ$23 -> 2 | R23: =$AX$23 -> 2 | S23: =$AY$23 -> 0 | T23: =$AZ$23 -> 0 | U23: =$BA$23 -> 0 | V23: =$AS$23 -> 0 | W23: =$AT$23 -> 0 | X23: =$AU$23 -> 0 | Y23: =$AV$23 -> 0 | AB23: 23 | AC23: Ed | AD23: Upson | AE23: 15 | AJ23: 15 | AK23: =AM23&" (**" -> Upson (** | AL23: =AM23&"**" -> Upson** | AM23: Upson | AN23: =COUNTIF(MillwallApps!L$68:V$113,$AL23) -> 10 | AO23: =COUNTIF(MillwallApps!LeagueSubs,$AK23) -> 11 | AP23: =COUNTIF(MillwallApps!LeagueSubs,$AM23) -> 9 | AQ23: 2 | AS23: 0 | AT23: 0 | AU23: 0 | AV23: 0 | AX23: 2 | AY23: 0 | AZ23: 0 | BA23: 0 | BC23: =ROW(BB23) -> 23 | BE23: Ed | BF23: Upson | BG23: =AJ23 -> 15 | BH23: Ed Upson | BM23: 15 | BN23: var PlayerFN15= "Ed Upson" | BO23: var SquadNr15= "15" | BP23: var A201415Yellows15= "5" | BQ23: var A201415Reds15= "-" | BR23: var A201415ChampApps15= 10 | BS23: var A201415ChampSubs15= 11 | BT23: var A201415ChampNps15= 9 | BU23: var A201415ChampGls15= 2 | BV23: var A201415FACupApps15= 2 | BW23: var A201415FACupSubs15= 0 | BX23: var A201415FACupNps15= 0 | BY23: var A201415FACupGls15= 0 | BZ23: var A201415LCupApps15= 0 | CA23: var A201415LCupSubs15= 0 | CB23: var A201415LCupNps15= 0 | CC23: var A201415LCupGls15= 0
C24: 1 | E24: Mark Beevers | F24: 16 | G24: 20 | H24: 1 | I24: 14 | J24: 2 | K24: =AppsTable!$AC$22 -> 6 | L24: =AppsTable!$AC$23 -> 1 | N24: =$AN$24 -> 19 | O24: =$AO$24 -> 1 | P24: =$AP$24 -> 14 | Q24: =$AQ$24 -> 2 | R24: =$AX$24 -> 1 | S24: =$AY$24 -> 0 | T24: =$AZ$24 -> 0 | U24: =$BA$24 -> 0 | V24: =$AS$24 -> 0 | W24: =$AT$24 -> 0 | X24: =$AU$24 -> 0 | Y24: =$AV$24 -> 0 | AB24: 24 | AC24: Mark | AD24: Beevers | AE24: 16 | AJ24: 16 | AK24: =AM24&" (**" -> Beevers (** | AL24: =AM24&"**" -> Beevers** | AM24: Beevers | AN24: =COUNTIF(MillwallApps!L$68:V$113,$AL24) -> 19 | AO24: =COUNTIF(MillwallApps!LeagueSubs,$AK24) -> 1 | AP24: =COUNTIF(MillwallApps!LeagueSubs,$AM24) -> 14 | AQ24: 2 | AS24: 0 | AT24: 0 | AU24: 0 | AV24: 0 | AX24: 1 | AY24: 0 | AZ24: 0 | BA24: 0 | BC24: =ROW(BB24) -> 24 | BE24: Mark | BF24: Beevers | BG24: =AJ24 -> 16 | BH24: Mark Beevers | BM24: 16 | BN24: var PlayerFN16= "Mark Beevers" | BO24: var SquadNr16= "16" | BP24: var A201415Yellows16= "6" | BQ24: var A201415Reds16= "1" | BR24: var A201415ChampApps16= 19 | BS24: var A201415ChampSubs16= 1 | BT24: var A201415ChampNps16= 14 | BU24: var A201415ChampGls16= 2 | BV24: var A201415FACupApps16= 1 | BW24: var A201415FACupSubs16= 0 | BX24: var A201415FACupNps16= 0 | BY24: var A201415FACupGls16= 0 | BZ24: var A201415LCupApps16= 0 | CA24: var A201415LCupSubs16= 0 | CB24: var A201415LCupNps16= 0 | CC24: var A201415LCupGls16= 0
C25: 2 | E25: Byron Webster | F25: 17 | G25: =N25+R25+V25 -> 11 | H25: 3 | I25: 13 | J25: 0 | K25: =AppsTable!$AD$22 -> 2 | L25: =AppsTable!$AD$23 -> - | N25: =$AN$25 -> 9 | O25: =$AO$25 -> 2 | P25: =$AP$25 -> 13 | Q25: =$AQ$25 -> 0 | R25: =$AX$25 -> 0 | S25: =$AY$25 -> 1 | T25: =$AZ$25 -> 0 | U25: =$BA$25 -> 0 | V25: =$AS$25 -> 2 | W25: =$AT$25 -> 0 | X25: =$AU$25 -> 0 | Y25: =$AV$25 -> 0 | AB25: 25 | AC25: Byron | AD25: Webster | AE25: 17 | AJ25: 17 | AK25: =AM25&" (**" -> Webster (** | AL25: =AM25&"**" -> Webster** | AM25: Webster | AN25: =COUNTIF(MillwallApps!L$68:V$113,$AL25) -> 9 | AO25: =COUNTIF(MillwallApps!LeagueSubs,$AK25) -> 2 | AP25: =COUNTIF(MillwallApps!LeagueSubs,$AM25) -> 13 | AQ25: 0 | AS25: 2 | AT25: 0 | AU25: 0 | AV25: 0 | AX25: 0 | AY25: 1 | AZ25: 0 | BA25: 0 | BC25: =ROW(BB25) -> 25 | BE25: Byron | BF25: Webster | BG25: =AJ25 -> 17 | BH25: Byron Webster | BM25: 17 | BN25: var PlayerFN17= "Byron Webster" | BO25: var SquadNr17= "17" | BP25: var A201415Yellows17= "2" | BQ25: var A201415Reds17= "-" | BR25: var A201415ChampApps17= 9 | BS25: var A201415ChampSubs17= 2 | BT25: var A201415ChampNps17= 13 | BU25: var A201415ChampGls17= 0 | BV25: var A201415FACupApps17= 0 | BW25: var A201415FACupSubs17= 1 | BX25: var A201415FACupNps17= 0 | BY25: var A201415FACupGls17= 0 | BZ25: var A201415LCupApps17= 2 | CA25: var A201415LCupSubs17= 0 | CB25: var A201415LCupNps17= 0 | CC25: var A201415LCupGls17= 0
C26: 1 | E26: Magaye Gueye | F26: =AE26 -> 18 | G26: 10 | H26: 20 | I26: 3 | J26: 3 | K26: =AppsTable!$AE$22 -> - | L26: =AppsTable!$AE$23 -> - | N26: =$AN$26 -> 8 | O26: =$AO$26 -> 18 | P26: =$AP$26 -> 3 | Q26: =$AQ$26 -> 3 | R26: =$AX$26 -> 0 | S26: =$AY$26 -> 2 | T26: =$AZ$26 -> 0 | U26: =$BA$26 -> 0 | V26: =$AS$26 -> 2 | W26: =$AT$26 -> 0 | X26: =$AU$26 -> 0 | Y26: =$AV$26 -> 0 | AB26: 26 | AC26: Magaye | AD26: Gueye | AE26: 18 | AJ26: 18 | AK26: Gueye (** | AL26: Gueye** | AM26: Gueye | AN26: =COUNTIF(MillwallApps!L$68:V$113,$AL26) -> 8 | AO26: =COUNTIF(MillwallApps!LeagueSubs,$AK26) -> 18 | AP26: =COUNTIF(MillwallApps!LeagueSubs,$AM26) -> 3 | AQ26: 3 | AS26: 2 | AT26: 0 | AU26: 0 | AV26: 0 | AX26: 0 | AY26: 2 | AZ26: 0 | BA26: 0 | BC26: 26 | BE26: Magaye | BF26: Gueye | BG26: =AJ26 -> 18 | BH26: Magaye Gueye | BM26: 18 | BN26: var PlayerFN18= "Magaye Gueye" | BO26: var SquadNr18= "18" | BP26: var A201415Yellows18= "-" | BQ26: var A201415Reds18= "-" | BR26: var A201415ChampApps18= 8 | BS26: var A201415ChampSubs18= 18 | BT26: var A201415ChampNps18= 3 | BU26: var A201415ChampGls18= 3 | BV26: var A201415FACupApps18= 0 | BW26: var A201415FACupSubs18= 2 | BX26: var A201415FACupNps18= 0 | BY26: var A201415FACupGls18= 0 | BZ26: var A201415LCupApps18= 2 | CA26: var A201415LCupSubs18= 0 | CB26: var A201415LCupNps18= 0 | CC26: var A201415LCupGls18= 0
C27: 2 | E27: Ricardo Fuller | F27: =AE27 -> 19 | G27: 17 | H27: 21 | I27: 3 | J27: 6 | K27: =AppsTable!$AF$22 -> 4 | L27: =AppsTable!$AF$23 -> - | N27: =$AN$27 -> 15 | O27: =$AO$27 -> 21 | P27: =$AP$27 -> 3 | Q27: =$AQ$27 -> 4 | R27: =$AX$27 -> 2 | S27: =$AY$27 -> 0 | T27: =$AZ$27 -> 0 | U27: =$BA$27 -> 2 | V27: =$AS$27 -> 0 | W27: =$AT$27 -> 0 | X27: =$AU$27 -> 0 | Y27: =$AV$27 -> 0 | AB27: 27 | AC27: Ricardo | AD27: Fuller | AE27: 19 | AJ27: 19 | AK27: Fuller (** | AL27: Fuller** | AM27: Fuller | AN27: =COUNTIF(MillwallApps!L$68:V$113,$AL27) -> 15 | AO27: =COUNTIF(MillwallApps!LeagueSubs,$AK27) -> 21 | AP27: =COUNTIF(MillwallApps!LeagueSubs,$AM27) -> 3 | AQ27: 4 | AS27: 0 | AT27: 0 | AU27: 0 | AV27: 0 | AX27: 2 | AY27: 0 | AZ27: 0 | BA27: 2 | BC27: 27 | BE27: Ricardo | BF27: Fuller | BG27: 19 | BH27: Ricardo Fuller | BM27: 19 | BN27: var PlayerFN19= "Ricardo Fuller" | BO27: var SquadNr19= "19" | BP27: var A201415Yellows19= "4" | BQ27: var A201415Reds19= "-" | BR27: var A201415ChampApps19= 15 | BS27: var A201415ChampSubs19= 21 | BT27: var A201415ChampNps19= 3 | BU27: var A201415ChampGls19= 4 | BV27: var A201415FACupApps19= 2 | BW27: var A201415FACupSubs19= 0 | BX27: var A201415FACupNps19= 0 | BY27: var A201415FACupGls19= 2 | BZ27: var A201415LCupApps19= 0 | CA27: var A201415LCupSubs19= 0 | CB27: var A201415LCupNps19= 0 | CC27: var A201415LCupGls19= 0
C28: 1 | E28: Fred Onyedinma | F28: =AE28 -> 20 | G28: 1 | H28: 3 | I28: 3 | J28: 0 | K28: =AppsTable!$AG$22 -> - | L28: =AppsTable!$AG$23 -> - | N28: =$AN$28 -> 1 | O28: =$AO$28 -> 1 | P28: =$AP$28 -> 3 | Q28: =$AQ$28 -> 0 | R28: =$AX$28 -> 0 | S28: =$AY$28 -> 0 | T28: =$AZ$28 -> 0 | U28: =$BA$28 -> 0 | V28: =$AS$28 -> 0 | W28: =$AT$28 -> 2 | X28: =$AU$28 -> 0 | Y28: =$AV$28 -> 0 | AB28: 28 | AC28: Fred | AD28: Onyedinma | AE28: 20 | AJ28: 20 | AK28: Onyedinma (** | AL28: Onyedinma** | AM28: Onyedinma | AN28: =COUNTIF(MillwallApps!L$68:V$113,$AL28) -> 1 | AO28: =COUNTIF(MillwallApps!LeagueSubs,$AK28) -> 1 | AP28: =COUNTIF(MillwallApps!LeagueSubs,$AM28) -> 3 | AQ28: 0 | AS28: 0 | AT28: 2 | AU28: 0 | AV28: 0 | AX28: 0 | AY28: 0 | AZ28: 0 | BA28: 0 | BC28: 28 | BE28: Fred | BF28: Onyedinma | BG28: =AJ28 -> 20 | BH28: Fred Onyedinma | BM28: 20 | BN28: var PlayerFN20= "Fred Onyedinma" | BO28: var SquadNr20= "20" | BP28: var A201415Yellows20= "-" | BQ28: var A201415Reds20= "-" | BR28: var A201415ChampApps20= 1 | BS28: var A201415ChampSubs20= 1 | BT28: var A201415ChampNps20= 3 | BU28: var A201415ChampGls20= 0 | BV28: var A201415FACupApps20= 0 | BW28: var A201415FACupSubs20= 0 | BX28: var A201415FACupNps20= 0 | BY28: var A201415FACupGls20= 0 | BZ28: var A201415LCupApps20= 0 | CA28: var A201415LCupSubs20= 2 | CB28: var A201415LCupNps20= 0 | CC28: var A201415LCupGls20= 0
C29: 2 | E29: =AC29&" "&AD29 -> Mathias Ranegie | F29: =AE29 -> 21 | G29: =N29+R29+V29 -> 3 | H29: 4 | I29: 1 | J29: 0 | K29: =AppsTable!$AH$22 -> 2 | L29: =AppsTable!$AH$23 -> - | N29: =$AN$29 -> 3 | O29: =$AO$29 -> 4 | P29: =$AP$29 -> 1 | Q29: =$AQ$29 -> 0 | R29: =$AX$29 -> 0 | S29: =$AY$29 -> 0 | T29: =$AZ$29 -> 0 | U29: =$BA$29 -> 0 | V29: =$AS$29 -> 0 | W29: =$AT$29 -> 0 | X29: =$AU$29 -> 0 | Y29: =$AV$29 -> 0 | AB29: 29 | AC29: Mathias | AD29: Ranegie | AE29: 21 | AJ29: 21 | AK29: =AM29&" (**" -> Ranegie (** | AL29: =AM29&"**" -> Ranegie** | AM29: Ranegie | AN29: =COUNTIF(MillwallApps!L$68:V$113,$AL29) -> 3 | AO29: =COUNTIF(MillwallApps!LeagueSubs,$AK29) -> 4 | AP29: =COUNTIF(MillwallApps!LeagueSubs,$AM29) -> 1 | AQ29: =COUNTIF(LeagueGoals,AM29) -> 0 | AS29: =COUNTIF(CapitalOneStarts,$AL29) -> 0 | AT29: =COUNTIF(CapitalOneSubs,$AK29) -> 0 | AU29: =COUNTIF(CapitalOneSubs,$AM29) -> 0 | AV29: =COUNTIF(CapitalOneGoals,AM29) -> 0 | AX29: =COUNTIF(FACupStarts,$AL29) -> 0 | AY29: =COUNTIF(FACupSubs,$AK29) -> 0 | AZ29: =COUNTIF(FACupSubs,$AM29) -> 0 | BA29: =COUNTIF(FACupGoals,AM29) -> 0 | BC29: =ROW(BB29) -> 29 | BE29: Mathias | BF29: Ranegie | BG29: =AJ29 -> 21 | BH29: =BE29&" "&AM29 -> Mathias Ranegie | BM29: 21 | BN29: ="var "&BN$6&$BM29&"= """&E29&"""" -> var PlayerFN21= "Mathias Ranegie" | BO29: ="var "&BO$6&$BM29&"= """&F29&"""" -> var SquadNr21= "21" | BP29: ="var "&BP$6&$BM29&"= """&K29&"""" -> var A201415Yellows21= "2" | BQ29: ="var "&BQ$6&$BM29&"= """&L29&"""" -> var A201415Reds21= "-" | BR29: ="var "&BR$6&$BM29&"= "&N29&"" -> var A201415ChampApps21= 3 | BS29: var A201415ChampSubs21= 4 | BT29: var A201415ChampNps21= 1 | BU29: var A201415ChampGls21= 0 | BV29: var A201415FACupApps21= 0 | BW29: var A201415FACupSubs21= 0 | BX29: var A201415FACupNps21= 0 | BY29: var A201415FACupGls21= 0 | BZ29: var A201415LCupApps21= 0 | CA29: var A201415LCupSubs21= 0 | CB29: var A201415LCupNps21= 0 | CC29: var A201415LCupGls21= 0
C30: 1 | E30: Dan Harding | F30: =AE30 -> 21 | G30: 12 | H30: 0 | I30: 1 | J30: 0 | K30: =AppsTable!$AI$22 -> - | L30: =AppsTable!$AI$23 -> - | N30: =$AN$30 -> 12 | O30: =$AO$30 -> 0 | P30: =$AP$30 -> 1 | Q30: =$AQ$30 -> 0 | R30: =$AX$30 -> 0 | S30: =$AY$30 -> 0 | T30: =$AZ$30 -> 0 | U30: =$BA$30 -> 0 | V30: =$AS$30 -> 0 | W30: =$AT$30 -> 0 | X30: =$AU$30 -> 0 | Y30: =$AV$30 -> 0 | AB30: 30 | AC30: Dan | AD30: Harding | AE30: 21 | AJ30: 21 | AK30: =AM30&" (**" -> Harding (** | AL30: =AM30&"**" -> Harding** | AM30: Harding | AN30: =COUNTIF(MillwallApps!L$68:V$113,$AL30) -> 12 | AO30: =COUNTIF(MillwallApps!LeagueSubs,$AK30) -> 0 | AP30: =COUNTIF(MillwallApps!LeagueSubs,$AM30) -> 1 | AQ30: =COUNTIF(LeagueGoals,AM30) -> 0 | AS30: 0 | AT30: 0 | AU30: 0 | AV30: =COUNTIF(CapitalOneGoals,AM30) -> 0 | AX30: 0 | AY30: 0 | AZ30: 0 | BA30: =COUNTIF(FACupGoals,AM30) -> 0 | BC30: =ROW(BB30) -> 30 | BE30: Dan | BF30: Harding | BG30: =AJ30 -> 21 | BH30: Dan Harding | BM30: 21a | BN30: ="var "&BN$6&$BM30&"= """&E30&"""" -> var PlayerFN21a= "Dan Harding" | BO30: ="var "&BO$6&$BM30&"= """&F30&"""" -> var SquadNr21a= "21" | BP30: ="var "&BP$6&$BM30&"= """&K30&"""" -> var A201415Yellows21a= "-" | BQ30: ="var "&BQ$6&$BM30&"= """&L30&"""" -> var A201415Reds21a= "-" | BR30: ="var "&BR$6&$BM30&"= "&N30&"" -> var A201415ChampApps21a= 12 | BS30: var A201415ChampSubs21a= 0 | BT30: var A201415ChampNps21a= 1 | BU30: var A201415ChampGls21a= 0 | BV30: var A201415FACupApps21a= 0 | BW30: var A201415FACupSubs21a= 0 | BX30: var A201415FACupNps21a= 0 | BY30: var A201415FACupGls21a= 0 | BZ30: var A201415LCupApps21a= 0 | CA30: var A201415LCupSubs21a= 0 | CB30: var A201415LCupNps21a= 0 | CC30: var A201415LCupGls21a= 0
C31: 2 | E31: =AC31&" "&AD31 -> Aiden O'Brien | F31: =AE31 -> 22 | G31: =N31+R31+V31 -> 5 | H31: =O31+S31+W31 -> 7 | I31: =P31+T31+X31 -> 5 | J31: =Q31+U31+Y31 -> 0 | K31: =AppsTable!$AJ$22 -> - | L31: =AppsTable!$AJ$23 -> - | N31: =$AN$31 -> 5 | O31: =$AO$31 -> 6 | P31: =$AP$31 -> 3 | Q31: =$AQ$31 -> 0 | R31: =$AX$31 -> 0 | S31: =$AY$31 -> 0 | T31: =$AZ$31 -> 1 | U31: =$BA$31 -> 0 | V31: =$AS$31 -> 0 | W31: =$AT$31 -> 1 | X31: =$AU$31 -> 1 | Y31: =$AV$31 -> 0 | AB31: 31 | AC31: Aiden | AD31: O'Brien | AE31: 22 | AJ31: 22 | AK31: O'Brien (** | AL31: O'Brien** | AM31: O'Brien | AN31: =COUNTIF(MillwallApps!L$68:V$113,$AL31) -> 5 | AO31: =COUNTIF(MillwallApps!LeagueSubs,$AK31) -> 6 | AP31: =COUNTIF(MillwallApps!LeagueSubs,$AM31) -> 3 | AQ31: 0 | AS31: 0 | AT31: 1 | AU31: 1 | AV31: 0 | AX31: 0 | AY31: 0 | AZ31: 1 | BA31: 0 | BC31: 31 | BE31: Aiden | BF31: O'Brien | BG31: =AJ31 -> 22 | BH31: Aiden O'Brien | BM31: 22 | BN31: var PlayerFN22= "Aiden O'Brien" | BO31: var SquadNr22= "22" | BP31: var A201415Yellows22= "-" | BQ31: var A201415Reds22= "-" | BR31: var A201415ChampApps22= 5 | BS31: var A201415ChampSubs22= 6 | BT31: var A201415ChampNps22= 3 | BU31: var A201415ChampGls22= 0 | BV31: var A201415FACupApps22= 0 | BW31: var A201415FACupSubs22= 0 | BX31: var A201415FACupNps22= 1 | BY31: var A201415FACupGls22= 0 | BZ31: var A201415LCupApps22= 0 | CA31: var A201415LCupSubs22= 1 | CB31: var A201415LCupNps22= 1 | CC31: var A201415LCupGls22= 0
C32: 1 | E32: Jack Powell | F32: 23 | G32: 5 | H32: 1 | I32: 7 | J32: 0 | K32: =AppsTable!$AK$22 -> - | L32: =AppsTable!$AK$23 -> - | N32: =$AN$32 -> 4 | O32: =$AO$32 -> 0 | P32: =$AP$32 -> 5 | Q32: =$AQ$32 -> 0 | R32: =$AX$32 -> 0 | S32: =$AY$32 -> 0 | T32: =$AZ$32 -> 2 | U32: =$BA$32 -> 0 | V32: =$AS$32 -> 1 | W32: =$AT$32 -> 1 | X32: =$AU$32 -> 0 | Y32: =$AV$32 -> 0 | AB32: 32 | AC32: Jack | AD32: Powell | AE32: 23 | AJ32: 23 | AK32: Powell (** | AL32: Powell** | AM32: Powell | AN32: =COUNTIF(MillwallApps!L$68:V$113,$AL32) -> 4 | AO32: =COUNTIF(MillwallApps!LeagueSubs,$AK32) -> 0 | AP32: =COUNTIF(MillwallApps!LeagueSubs,$AM32) -> 5 | AQ32: 0 | AS32: 1 | AT32: 1 | AU32: 0 | AV32: 0 | AX32: 0 | AY32: 0 | AZ32: 2 | BA32: 0 | BC32: 32 | BE32: Jack | BF32: Powell | BG32: 23 | BH32: Jack Powell | BM32: 23 | BN32: var PlayerFN23= "Jack Powell" | BO32: var SquadNr23= "23" | BP32: var A201415Yellows23= "-" | BQ32: var A201415Reds23= "-" | BR32: var A201415ChampApps23= 4 | BS32: var A201415ChampSubs23= 0 | BT32: var A201415ChampNps23= 5 | BU32: var A201415ChampGls23= 0 | BV32: var A201415FACupApps23= 0 | BW32: var A201415FACupSubs23= 0 | BX32: var A201415FACupNps23= 2 | BY32: var A201415FACupGls23= 0 | BZ32: var A201415LCupApps23= 1 | CA32: var A201415LCupSubs23= 1 | CB32: var A201415LCupNps23= 0 | CC32: var A201415LCupGls23= 0
C33: 2 | E33: Jake Goodman | F33: 24 | G33: 0 | H33: 0 | I33: 2 | J33: 0 | K33: =AppsTable!$AL$22 -> - | L33: =AppsTable!$AL$23 -> - | N33: =$AN$33 -> 0 | O33: =$AO$33 -> 0 | P33: =$AP$33 -> 0 | Q33: =$AQ$33 -> 0 | R33: =$AX$33 -> 0 | S33: =$AY$33 -> 0 | T33: =$AZ$33 -> 0 | U33: =$BA$33 -> 0 | V33: =$AS$33 -> 0 | W33: =$AT$33 -> 0 | X33: =$AU$33 -> 2 | Y33: =$AV$33 -> 0 | AB33: 33 | AC33: Jake | AD33: Goodman | AE33: 24 | AJ33: 24 | AK33: Goodman (** | AL33: Goodman** | AM33: Goodman | AN33: =COUNTIF(MillwallApps!L$68:V$113,$AL33) -> 0 | AO33: =COUNTIF(MillwallApps!LeagueSubs,$AK33) -> 0 | AP33: =COUNTIF(MillwallApps!LeagueSubs,$AM33) -> 0 | AQ33: 0 | AS33: 0 | AT33: 0 | AU33: 2 | AV33: 0 | AX33: 0 | AY33: 0 | AZ33: 0 | BA33: 0 | BC33: 33 | BE33: Jake | BF33: Goodman | BG33: =AJ33 -> 24 | BH33: Jake Goodman | BM33: 24 | BN33: var PlayerFN24= "Jake Goodman" | BO33: var SquadNr24= "24" | BP33: var A201415Yellows24= "-" | BQ33: var A201415Reds24= "-" | BR33: var A201415ChampApps24= 0 | BS33: var A201415ChampSubs24= 0 | BT33: var A201415ChampNps24= 0 | BU33: var A201415ChampGls24= 0 | BV33: var A201415FACupApps24= 0 | BW33: var A201415FACupSubs24= 0 | BX33: var A201415FACupNps24= 0 | BY33: var A201415FACupGls24= 0 | BZ33: var A201415LCupApps24= 0 | CA33: var A201415LCupSubs24= 0 | CB33: var A201415LCupNps24= 2 | CC33: var A201415LCupGls24= 0
C34: 1 | E34: Justin Hoyte | F34: 25 | G34: 2 | H34: 1 | I34: 0 | J34: 0 | K34: =AppsTable!$AM$22 -> - | L34: =AppsTable!$AM$23 -> - | N34: =$AN$34 -> 1 | O34: =$AO$34 -> 1 | P34: =$AP$34 -> 0 | Q34: =$AQ$34 -> 0 | R34: =$AX$34 -> 0 | S34: =$AY$34 -> 0 | T34: =$AZ$34 -> 0 | U34: =$BA$34 -> 0 | V34: =$AS$34 -> 1 | W34: =$AT$34 -> 0 | X34: =$AU$34 -> 0 | Y34: =$AV$34 -> 0 | AB34: 34 | AC34: Justin | AD34: Hoyte | AE34: 25 | AJ34: 25 | AK34: Hoyte (** | AL34: Hoyte** | AM34: Hoyte | AN34: =COUNTIF(MillwallApps!L$68:V$113,$AL34) -> 1 | AO34: =COUNTIF(MillwallApps!LeagueSubs,$AK34) -> 1 | AP34: =COUNTIF(MillwallApps!LeagueSubs,$AM34) -> 0 | AQ34: 0 | AS34: 1 | AT34: 0 | AU34: 0 | AV34: 0 | AX34: 0 | AY34: 0 | AZ34: 0 | BA34: 0 | BC34: 34 | BE34: Justin | BF34: Hoyte | BG34: 25 | BH34: Justin Hoyte | BM34: 25 | BN34: var PlayerFN25= "Justin Hoyte" | BO34: var SquadNr25= "25" | BP34: var A201415Yellows25= "-" | BQ34: var A201415Reds25= "-" | BR34: var A201415ChampApps25= 1 | BS34: var A201415ChampSubs25= 1 | BT34: var A201415ChampNps25= 0 | BU34: var A201415ChampGls25= 0 | BV34: var A201415FACupApps25= 0 | BW34: var A201415FACupSubs25= 0 | BX34: var A201415FACupNps25= 0 | BY34: var A201415FACupGls25= 0 | BZ34: var A201415LCupApps25= 1 | CA34: var A201415LCupSubs25= 0 | CB34: var A201415LCupNps25= 0 | CC34: var A201415LCupGls25= 0
C35: 2 | E35: Jimmi Abdou | F35: 26 | G35: 25 | H35: 4 | I35: 5 | J35: 0 | K35: =AppsTable!$AN$22 -> 4 | L35: =AppsTable!$AN$23 -> - | N35: =$AN$35 -> 21 | O35: =$AO$35 -> 4 | P35: =$AP$35 -> 5 | Q35: =$AQ$35 -> 0 | R35: =$AX$35 -> 2 | S35: =$AY$35 -> 0 | T35: =$AZ$35 -> 0 | U35: =$BA$35 -> 0 | V35: =$AS$35 -> 2 | W35: =$AT$35 -> 0 | X35: =$AU$35 -> 0 | Y35: =$AV$35 -> 0 | AB35: 111 | AC35: Jimmi | AD35: Abdou | AE35: 26 | AJ35: 26 | AK35: Abdou (** | AL35: Abdou** | AM35: Abdou | AN35: =COUNTIF(MillwallApps!L$68:V$113,$AL35) -> 21 | AO35: =COUNTIF(MillwallApps!LeagueSubs,$AK35) -> 4 | AP35: =COUNTIF(MillwallApps!LeagueSubs,$AM35) -> 5 | AQ35: 0 | AS35: 2 | AT35: 0 | AU35: 0 | AV35: 0 | AX35: 2 | AY35: 0 | AZ35: 0 | BA35: 0 | BC35: 35 | BE35: Jimmi | BF35: Abdou | BG35: 26 | BH35: Jimmi Abdou | BM35: 26 | BN35: var PlayerFN26= "Jimmi Abdou" | BO35: var SquadNr26= "26" | BP35: var A201415Yellows26= "4" | BQ35: var A201415Reds26= "-" | BR35: var A201415ChampApps26= 21 | BS35: var A201415ChampSubs26= 4 | BT35: var A201415ChampNps26= 5 | BU35: var A201415ChampGls26= 0 | BV35: var A201415FACupApps26= 2 | BW35: var A201415FACupSubs26= 0 | BX35: var A201415FACupNps26= 0 | BY35: var A201415FACupGls26= 0 | BZ35: var A201415LCupApps26= 2 | CA35: var A201415LCupSubs26= 0 | CB35: var A201415LCupNps26= 0 | CC35: var A201415LCupGls26= 0
C36: 1 | E36: Scott McDonald | F36: 27 | G36: 25 | H36: 1 | I36: 3 | J36: 2 | K36: =AppsTable!$AO$22 -> 5 | L36: =AppsTable!$AO$23 -> - | N36: =$AN$36 -> 23 | O36: =$AO$36 -> 1 | P36: =$AP$36 -> 2 | Q36: =$AQ$36 -> 1 | R36: =$AX$36 -> 1 | S36: =$AY$36 -> 0 | T36: =$AZ$36 -> 1 | U36: =$BA$36 -> 1 | V36: =$AS$36 -> 1 | W36: =$AT$36 -> 0 | X36: =$AU$36 -> 0 | Y36: =$AV$36 -> 0 | AB36: 36 | AC36: Scott | AD36: McDonald | AE36: 27 | AJ36: 27 | AK36: McDonald (** | AL36: McDonald** | AM36: McDonald | AN36: =COUNTIF(MillwallApps!L$68:V$113,$AL36) -> 23 | AO36: =COUNTIF(MillwallApps!LeagueSubs,$AK36) -> 1 | AP36: =COUNTIF(MillwallApps!LeagueSubs,$AM36) -> 2 | AQ36: 1 | AS36: 1 | AT36: 0 | AU36: 0 | AV36: 0 | AX36: 1 | AY36: 0 | AZ36: 1 | BA36: 1 | BC36: 36 | BE36: Scott | BF36: McDonald | BG36: 27 | BH36: Scott McDonald | BM36: 27 | BN36: var PlayerFN27= "Scott McDonald" | BO36: var SquadNr27= "27" | BP36: var A201415Yellows27= "5" | BQ36: var A201415Reds27= "-" | BR36: var A201415ChampApps27= 23 | BS36: var A201415ChampSubs27= 1 | BT36: var A201415ChampNps27= 2 | BU36: var A201415ChampGls27= 1 | BV36: var A201415FACupApps27= 1 | BW36: var A201415FACupSubs27= 0 | BX36: var A201415FACupNps27= 1 | BY36: var A201415FACupGls27= 1 | BZ36: var A201415LCupApps27= 1 | CA36: var A201415LCupSubs27= 0 | CB36: var A201415LCupNps27= 0 | CC36: var A201415LCupGls27= 0
C37: 2 | E37: =AC37&" "&AD37 -> Jordan Archer | F37: =AE37 -> 27 | G37: =N37+R37+V37 -> 0 | H37: =O37+S37+W37 -> 0 | I37: =P37+T37+X37 -> 5 | J37: =Q37+U37+Y37 -> 0 | K37: =AppsTable!$AP$22 -> - | L37: =AppsTable!$AP$23 -> - | N37: =$AN$37 -> 0 | O37: =$AO$37 -> 0 | P37: =$AP$37 -> 5 | Q37: =$AQ$37 -> 0 | R37: =$AX$37 -> 0 | S37: =$AY$37 -> 0 | T37: =$AZ$37 -> 0 | U37: =$BA$37 -> 0 | V37: =$AS$37 -> 0 | W37: =$AT$37 -> 0 | X37: =$AU$37 -> 0 | Y37: =$AV$37 -> 0 | AB37: 0 | AC37: Jordan | AD37: Archer | AE37: 27 | AJ37: 27 | AK37: =AM37&" (**" -> Archer (** | AL37: =AM37&"**" -> Archer** | AM37: Archer | AN37: =COUNTIF(MillwallApps!L$68:V$113,$AL37) -> 0 | AO37: =COUNTIF(MillwallApps!LeagueSubs,$AK37) -> 0 | AP37: =COUNTIF(MillwallApps!LeagueSubs,$AM37) -> 5 | AQ37: =COUNTIF(LeagueGoals,AM37) -> 0 | AS37: 0 | AT37: 0 | AU37: 0 | AV37: =COUNTIF(CapitalOneGoals,AM37) -> 0 | AX37: 0 | AY37: 0 | AZ37: 0 | BA37: =COUNTIF(FACupGoals,AM37) -> 0 | BC37: =ROW(BB37) -> 37 | BE37: Jordan | BF37: Abdou | BG37: =AJ37 -> 27 | BH37: =BE37&" "&AM37 -> Jordan Archer | BM37: 27a | BN37: ="var "&BN$6&$BM37&"= """&E37&"""" -> var PlayerFN27a= "Jordan Archer" | BO37: ="var "&BO$6&$BM37&"= """&F37&"""" -> var SquadNr27a= "27" | BP37: ="var "&BP$6&$BM37&"= """&K37&"""" -> var A201415Yellows27a= "-" | BQ37: ="var "&BQ$6&$BM37&"= """&L37&"""" -> var A201415Reds27a= "-" | BR37: ="var "&BR$6&$BM37&"= "&N37&"" -> var A201415ChampApps27a= 0 | BS37: var A201415ChampSubs27a= 0 | BT37: var A201415ChampNps27a= 5 | BU37: var A201415ChampGls27a= 0 | BV37: var A201415FACupApps27a= 0 | BW37: var A201415FACupSubs27a= 0 | BX37: var A201415FACupNps27a= 0 | BY37: var A201415FACupGls27a= 0 | BZ37: var A201415LCupApps27a= 0 | CA37: var A201415LCupSubs27a= 0 | CB37: var A201415LCupNps27a= 0 | CC37: var A201415LCupGls27a= 0
C38: 1 | E38: Scott Malone | F38: 28 | G38: 17 | H38: 3 | I38: 0 | J38: 1 | K38: =AppsTable!$AQ$22 -> - | L38: =AppsTable!$AQ$23 -> - | N38: =$AN$38 -> 17 | O38: =$AO$38 -> 3 | P38: =$AP$38 -> 0 | Q38: =$AQ$38 -> 1 | R38: =$AX$38 -> 0 | S38: =$AY$38 -> 0 | T38: =$AZ$38 -> 0 | U38: =$BA$38 -> 0 | V38: =$AS$38 -> 0 | W38: =$AT$38 -> 0 | X38: =$AU$38 -> 0 | Y38: =$AV$38 -> 0 | AB38: 38 | AC38: Scott | AD38: Malone | AE38: 28 | AJ38: 28 | AK38: Malone (** | AL38: Malone** | AM38: Malone | AN38: =COUNTIF(MillwallApps!L$68:V$113,$AL38) -> 17 | AO38: =COUNTIF(MillwallApps!LeagueSubs,$AK38) -> 3 | AP38: =COUNTIF(MillwallApps!LeagueSubs,$AM38) -> 0 | AQ38: 1 | AS38: 0 | AT38: 0 | AU38: 0 | AV38: 0 | AX38: 0 | AY38: 0 | AZ38: 0 | BA38: 0 | BC38: 38 | BE38: Scott | BF38: Malone | BG38: 28 | BH38: Scott Malone | BM38: 28 | BN38: var PlayerFN28= "Scott Malone" | BO38: var SquadNr28= "28" | BP38: var A201415Yellows28= "-" | BQ38: var A201415Reds28= "-" | BR38: var A201415ChampApps28= 17 | BS38: var A201415ChampSubs28= 3 | BT38: var A201415ChampNps28= 0 | BU38: var A201415ChampGls28= 1 | BV38: var A201415FACupApps28= 0 | BW38: var A201415FACupSubs28= 0 | BX38: var A201415FACupNps28= 0 | BY38: var A201415FACupGls28= 0 | BZ38: var A201415LCupApps28= 0 | CA38: var A201415LCupSubs28= 0 | CB38: var A201415LCupNps28= 0 | CC38: var A201415LCupGls28= 0
C39: 2 | E39: =AC39&" "&AD39 -> Michael Tonge | F39: =AE39 -> 28 | G39: =N39+R39+V39 -> 5 | H39: =O39+S39+W39 -> 1 | I39: =P39+T39+X39 -> 1 | J39: =Q39+U39+Y39 -> 0 | K39: =AppsTable!$AR$22 -> - | L39: =AppsTable!$AR$23 -> - | N39: =$AN$39 -> 5 | O39: =$AO$39 -> 1 | P39: =$AP$39 -> 1 | Q39: =$AQ$39 -> 0 | R39: =$AX$39 -> 0 | S39: =$AY$39 -> 0 | T39: =$AZ$39 -> 0 | U39: =$BA$39 -> 0 | V39: =$AS$39 -> 0 | W39: =$AT$39 -> 0 | X39: =$AU$39 -> 0 | Y39: =$AV$39 -> 0 | AB39: 0 | AC39: Michael | AD39: Tonge | AE39: 28 | AJ39: 28 | AK39: =AM39&" (**" -> Tonge (** | AL39: =AM39&"**" -> Tonge** | AM39: Tonge | AN39: =COUNTIF(MillwallApps!L$68:V$113,$AL39) -> 5 | AO39: =COUNTIF(MillwallApps!LeagueSubs,$AK39) -> 1 | AP39: =COUNTIF(MillwallApps!LeagueSubs,$AM39) -> 1 | AQ39: =COUNTIF(LeagueGoals,AM39) -> 0 | AS39: 0 | AT39: 0 | AU39: 0 | AV39: =COUNTIF(CapitalOneGoals,AM39) -> 0 | AX39: 0 | AY39: 0 | AZ39: 0 | BA39: =COUNTIF(FACupGoals,AM39) -> 0 | BC39: =ROW(BB39) -> 39 | BE39: Michael | BF39: Abdou | BG39: =AJ39 -> 28 | BH39: =BE39&" "&AM39 -> Michael Tonge | BM39: 28a | BN39: ="var "&BN$6&$BM39&"= """&E39&"""" -> var PlayerFN28a= "Michael Tonge" | BO39: ="var "&BO$6&$BM39&"= """&F39&"""" -> var SquadNr28a= "28" | BP39: ="var "&BP$6&$BM39&"= """&K39&"""" -> var A201415Yellows28a= "-" | BQ39: ="var "&BQ$6&$BM39&"= """&L39&"""" -> var A201415Reds28a= "-" | BR39: ="var "&BR$6&$BM39&"= "&N39&"" -> var A201415ChampApps28a= 5 | BS39: var A201415ChampSubs28a= 1 | BT39: var A201415ChampNps28a= 1 | BU39: var A201415ChampGls28a= 0 | BV39: var A201415FACupApps28a= 0 | BW39: var A201415FACupSubs28a= 0 | BX39: var A201415FACupNps28a= 0 | BY39: var A201415FACupGls28a= 0 | BZ39: var A201415LCupApps28a= 0 | CA39: var A201415LCupSubs28a= 0 | CB39: var A201415LCupNps28a= 0 | CC39: var A201415LCupGls28a= 0
C40: 1 | E40: Andy Wilkinson | F40: =AE40 -> 29 | G40: =N40+R40+V40 -> 9 | H40: 0 | I40: 2 | J40: 0 | K40: =AppsTable!$AS$22 -> 2 | L40: =AppsTable!$AS$23 -> 1 | N40: =$AN$40 -> 9 | O40: =$AO$40 -> 0 | P40: =$AP$40 -> 2 | Q40: =$AQ$40 -> 0 | R40: =$AX$40 -> 0 | S40: =$AY$40 -> 0 | T40: =$AZ$40 -> 0 | U40: =$BA$40 -> 0 | V40: =$AS$40 -> 0 | W40: =$AT$40 -> 0 | X40: =$AU$40 -> 0 | Y40: =$AV$40 -> 0 | AB40: 40 | AC40: Andy | AD40: Wilkinson | AE40: 29 | AJ40: 29 | AK40: Wilkinson (** | AL40: Wilkinson** | AM40: Wilkinson | AN40: =COUNTIF(MillwallApps!L$68:V$113,$AL40) -> 9 | AO40: =COUNTIF(MillwallApps!LeagueSubs,$AK40) -> 0 | AP40: =COUNTIF(MillwallApps!LeagueSubs,$AM40) -> 2 | AQ40: 0 | AS40: 0 | AT40: 0 | AU40: 0 | AV40: 0 | AX40: 0 | AY40: 0 | AZ40: 0 | BA40: 0 | BC40: 40 | BE40: Andy | BF40: Wilkinson | BG40: 29 | BH40: Andy Wilkinson | BM40: 29 | BN40: var PlayerFN29= "Andy Wilkinson" | BO40: var SquadNr29= "29" | BP40: var A201415Yellows29= "2" | BQ40: var A201415Reds29= "1" | BR40: var A201415ChampApps29= 9 | BS40: var A201415ChampSubs29= 0 | BT40: var A201415ChampNps29= 2 | BU40: var A201415ChampGls29= 0 | BV40: var A201415FACupApps29= 0 | BW40: var A201415FACupSubs29= 0 | BX40: var A201415FACupNps29= 0 | BY40: var A201415FACupGls29= 0 | BZ40: var A201415LCupApps29= 0 | CA40: var A201415LCupSubs29= 0 | CB40: var A201415LCupNps29= 0 | CC40: var A201415LCupGls29= 0
C41: 2 | E41: =AC41&" "&AD41 -> Gary Taylor-Fletcher | F41: 29 | G41: =N41+R41+V41 -> 6 | H41: =O41+S41+W41 -> 1 | I41: =P41+T41+X41 -> 0 | J41: =Q41+U41+Y41 -> 0 | K41: =AppsTable!$AT$22 -> 0 | L41: =AppsTable!$AT$23 -> 0 | N41: =$AN$41 -> 6 | O41: =$AO$41 -> 1 | P41: =$AP$41 -> 0 | Q41: =$AQ$41 -> 0 | R41: =$AX$41 -> 0 | S41: =$AY$41 -> 0 | T41: =$AZ$41 -> 0 | U41: =$BA$41 -> 0 | V41: =$AS$41 -> 0 | W41: =$AT$41 -> 0 | X41: =$AU$41 -> 0 | Y41: =$AV$41 -> 0 | AB41: 41 | AC41: Gary | AD41: Taylor-Fletcher | AE41: 29 | AJ41: 29 | AK41: Taylor-Fletcher (** | AL41: Taylor-Fletcher** | AM41: Taylor-Fletcher | AN41: =COUNTIF(MillwallApps!L$68:V$113,$AL41) -> 6 | AO41: =COUNTIF(MillwallApps!LeagueSubs,$AK41) -> 1 | AP41: =COUNTIF(MillwallApps!LeagueSubs,$AM41) -> 0 | AQ41: =COUNTIF(LeagueGoals,AM41) -> 0 | AS41: 0 | AT41: 0 | AU41: 0 | AV41: =COUNTIF(CapitalOneGoals,AM41) -> 0 | AX41: 0 | AY41: 0 | AZ41: 0 | BA41: =COUNTIF(FACupGoals,AM41) -> 0 | BC41: 41 | BE41: Gary | BF41: Taylor-Fletcher | BG41: 29 | BH41: Gary Taylor-Fletcher | BM41: 29a | BN41: ="var "&BN$6&$BM41&"= """&E41&"""" -> var PlayerFN29a= "Gary Taylor-Fletcher" | BO41: ="var "&BO$6&$BM41&"= """&F41&"""" -> var SquadNr29a= "29" | BP41: ="var "&BP$6&$BM41&"= """&K41&"""" -> var A201415Yellows29a= "0" | BQ41: ="var "&BQ$6&$BM41&"= """&L41&"""" -> var A201415Reds29a= "0" | BR41: ="var "&BR$6&$BM41&"= "&N41&"" -> var A201415ChampApps29a= 6 | BS41: ="var "&BS$6&$BM41&"= "&O41&"" -> var A201415ChampSubs29a= 1 | BT41: ="var "&BT$6&$BM41&"= "&P41&"" -> var A201415ChampNps29a= 0 | BU41: ="var "&BU$6&$BM41&"= "&Q41&"" -> var A201415ChampGls29a= 0 | BV41: ="var "&BV$6&$BM41&"= "&R41&"" -> var A201415FACupApps29a= 0 | BW41: ="var "&BW$6&$BM41&"= "&S41&"" -> var A201415FACupSubs29a= 0 | BX41: ="var "&BX$6&$BM41&"= "&T41&"" -> var A201415FACupNps29a= 0 | BY41: ="var "&BY$6&$BM41&"= "&U41&"" -> var A201415FACupGls29a= 0 | BZ41: ="var "&BZ$6&$BM41&"= "&V41&"" -> var A201415LCupApps29a= 0 | CA41: ="var "&CA$6&$BM41&"= "&W41&"" -> var A201415LCupSubs29a= 0 | CB41: ="var "&CB$6&$BM41&"= "&X41&"" -> var A201415LCupNps29a= 0 | CC41: ="var "&CC$6&$BM41&"= "&Y41&"" -> var A201415LCupGls29a= 0
C42: 1 | E42: Richard Chaplow | F42: 30 | G42: 9 | H42: 1 | I42: 6 | J42: 0 | K42: =AppsTable!$AU$22 -> 2 | L42: =AppsTable!$AU$23 -> - | N42: =$AN$42 -> 6 | O42: =$AO$42 -> 1 | P42: =$AP$42 -> 6 | Q42: =$AQ$42 -> 0 | R42: =$AX$42 -> 2 | S42: =$AY$42 -> 0 | T42: =$AZ$42 -> 0 | U42: =$BA$42 -> 0 | V42: =$AS$42 -> 1 | W42: =$AT$42 -> 0 | X42: =$AU$42 -> 0 | Y42: =$AV$42 -> 0 | AB42: 42 | AC42: Richard | AD42: Chaplow | AE42: 30 | AJ42: 30 | AK42: Chaplow (** | AL42: =AM42&"**" -> Chaplow** | AM42: Chaplow | AN42: =COUNTIF(MillwallApps!L$68:V$113,$AL42) -> 6 | AO42: =COUNTIF(MillwallApps!LeagueSubs,$AK42) -> 1 | AP42: =COUNTIF(MillwallApps!LeagueSubs,$AM42) -> 6 | AQ42: 0 | AS42: 1 | AT42: 0 | AU42: 0 | AV42: 0 | AX42: 2 | AY42: 0 | AZ42: 0 | BA42: 0 | BC42: 42 | BE42: Richard | BF42: Chaplow | BG42: 30 | BH42: Richard Chaplow | BM42: 30 | BN42: var PlayerFN30= "Richard Chaplow" | BO42: var SquadNr30= "30" | BP42: var A201415Yellows30= "2" | BQ42: var A201415Reds30= "-" | BR42: var A201415ChampApps30= 6 | BS42: var A201415ChampSubs30= 1 | BT42: var A201415ChampNps30= 6 | BU42: var A201415ChampGls30= 0 | BV42: var A201415FACupApps30= 2 | BW42: var A201415FACupSubs30= 0 | BX42: var A201415FACupNps30= 0 | BY42: var A201415FACupGls30= 0 | BZ42: var A201415LCupApps30= 1 | CA42: var A201415LCupSubs30= 0 | CB42: var A201415LCupNps30= 0 | CC42: var A201415LCupGls30= 0
C43: 2 | E43: Angel Martinez | F43: 31 | G43: =N43+R43+V43 -> 4 | H43: 0 | I43: 6 | J43: 0 | K43: =AppsTable!$AV$22 -> 1 | L43: =AppsTable!$AV$23 -> - | N43: =$AN$43 -> 4 | O43: =$AO$43 -> 0 | P43: =$AP$43 -> 5 | Q43: =$AQ$43 -> 0 | R43: =$AX$43 -> 0 | S43: =$AY$43 -> 0 | T43: =$AZ$43 -> 1 | U43: =$BA$43 -> 0 | V43: =$AS$43 -> 0 | W43: =$AT$43 -> 0 | X43: =$AU$43 -> 0 | Y43: =$AV$43 -> 0 | AB43: 43 | AC43: Angel | AD43: Martinez | AE43: 31 | AJ43: 31 | AK43: Martinez (** | AL43: =AM43&"**" -> Martinez** | AM43: Martinez | AN43: =COUNTIF(MillwallApps!L$68:V$113,$AL43) -> 4 | AO43: =COUNTIF(MillwallApps!LeagueSubs,$AK43) -> 0 | AP43: =COUNTIF(MillwallApps!LeagueSubs,$AM43) -> 5 | AQ43: 0 | AS43: 0 | AT43: 0 | AU43: 0 | AV43: 0 | AX43: 0 | AY43: 0 | AZ43: 1 | BA43: 0 | BC43: 43 | BE43: Angel | BF43: Martinez | BG43: 31 | BH43: Angel Martinez | BM43: 31 | BN43: var PlayerFN31= "Angel Martinez" | BO43: var SquadNr31= "31" | BP43: var A201415Yellows31= "1" | BQ43: var A201415Reds31= "-" | BR43: var A201415ChampApps31= 4 | BS43: var A201415ChampSubs31= 0 | BT43: var A201415ChampNps31= 5 | BU43: var A201415ChampGls31= 0 | BV43: var A201415FACupApps31= 0 | BW43: var A201415FACupSubs31= 0 | BX43: var A201415FACupNps31= 1 | BY43: var A201415FACupGls31= 0 | BZ43: var A201415LCupApps31= 0 | CA43: var A201415LCupSubs31= 0 | CB43: var A201415LCupNps31= 0 | CC43: var A201415LCupGls31= 0
C44: 1 | E44: John Marquis | F44: 32 | G44: 2 | H44: 0 | I44: 1 | J44: 0 | K44: =AppsTable!$AW$22 -> - | L44: =AppsTable!$AW$23 -> - | N44: =$AN$44 -> 1 | O44: =$AO$44 -> 0 | P44: =$AP$44 -> 0 | Q44: =$AQ$44 -> 0 | R44: =$AX$44 -> 0 | S44: =$AY$44 -> 0 | T44: =$AZ$44 -> 0 | U44: =$BA$44 -> 0 | V44: =$AS$44 -> 1 | W44: =$AT$44 -> 0 | X44: =$AU$44 -> 1 | Y44: =$AV$44 -> 0 | AB44: 44 | AC44: John | AD44: Marquis | AE44: 32 | AJ44: 32 | AK44: Marquis (** | AL44: =AM44&"**" -> Marquis** | AM44: Marquis | AN44: =COUNTIF(MillwallApps!L$68:V$113,$AL44) -> 1 | AO44: =COUNTIF(MillwallApps!LeagueSubs,$AK44) -> 0 | AP44: =COUNTIF(MillwallApps!LeagueSubs,$AM44) -> 0 | AQ44: 0 | AS44: 1 | AT44: 0 | AU44: 1 | AV44: 0 | AX44: 0 | AY44: 0 | AZ44: 0 | BA44: 0 | BC44: 44 | BE44: John | BF44: Marquis | BG44: 32 | BH44: John Marquis | BM44: 32 | BN44: var PlayerFN32= "John Marquis" | BO44: var SquadNr32= "32" | BP44: var A201415Yellows32= "-" | BQ44: var A201415Reds32= "-" | BR44: var A201415ChampApps32= 1 | BS44: var A201415ChampSubs32= 0 | BT44: var A201415ChampNps32= 0 | BU44: var A201415ChampGls32= 0 | BV44: var A201415FACupApps32= 0 | BW44: var A201415FACupSubs32= 0 | BX44: var A201415FACupNps32= 0 | BY44: var A201415FACupGls32= 0 | BZ44: var A201415LCupApps32= 1 | CA44: var A201415LCupSubs32= 0 | CB44: var A201415LCupNps32= 1 | CC44: var A201415LCupGls32= 0
C45: 2 | E45: Ben Thompson | F45: 34 | G45: 0 | H45: 1 | I45: 0 | J45: 0 | K45: =AppsTable!$AY$22 -> - | L45: =AppsTable!$AY$23 -> - | N45: =$AN$46 -> 0 | O45: =$AO$46 -> 0 | P45: =$AP$46 -> 0 | Q45: =$AQ$46 -> 0 | R45: =$AX$46 -> 0 | S45: =$AY$46 -> 0 | T45: =$AZ$46 -> 0 | U45: =$BA$46 -> 0 | V45: =$AS$46 -> 0 | W45: =$AT$46 -> 1 | X45: =$AU$46 -> 0 | Y45: =$AV$46 -> 0 | AB45: 46 | AC45: Ben | AD45: Thompson | AE45: 34 | AJ45: 33 | AK45: Casey (** | AL45: =AM45&"**" -> Casey** | AM45: Casey | AN45: =COUNTIF(MillwallApps!L$68:V$113,$AL45) -> 0 | AO45: =COUNTIF(MillwallApps!LeagueSubs,$AK45) -> 0 | AP45: =COUNTIF(MillwallApps!LeagueSubs,$AM45) -> 0 | AQ45: 0 | AS45: 0 | AT45: 0 | AU45: 0 | AV45: 0 | AX45: 0 | AY45: 0 | AZ45: 0 | BA45: 0 | BC45: 45 | BE45: Dylan | BF45: Casey | BG45: 33 | BH45: Dylan Casey | BM45: 34 | BN45: var PlayerFN34= "Ben Thompson" | BO45: var SquadNr34= "34" | BP45: var A201415Yellows34= "-" | BQ45: var A201415Reds34= "-" | BR45: var A201415ChampApps34= 0 | BS45: var A201415ChampSubs34= 0 | BT45: var A201415ChampNps34= 0 | BU45: var A201415ChampGls34= 0 | BV45: var A201415FACupApps34= 0 | BW45: var A201415FACupSubs34= 0 | BX45: var A201415FACupNps34= 0 | BY45: var A201415FACupGls34= 0 | BZ45: var A201415LCupApps34= 0 | CA45: var A201415LCupSubs34= 1 | CB45: var A201415LCupNps34= 0 | CC45: var A201415LCupGls34= 0
C46: 1 | E46: Sid Nelson | F46: 35 | G46: 7 | H46: 0 | I46: 5 | J46: 0 | K46: =AppsTable!$AZ$22 -> 0 | L46: =AppsTable!$AZ$23 -> 1 | N46: =$AN$47 -> 6 | O46: =$AO$47 -> 0 | P46: =$AP$47 -> 4 | Q46: =$AQ$47 -> 0 | R46: =$AX$47 -> 1 | S46: =$AY$47 -> 0 | T46: =$AZ$47 -> 1 | U46: =$BA$47 -> 0 | V46: =$AS$47 -> 0 | W46: =$AT$47 -> 0 | X46: =$AU$47 -> 0 | Y46: =$AV$47 -> 0 | AB46: 47 | AC46: Sid | AD46: Nelson | AE46: 35 | AJ46: 34 | AK46: Thompson (** | AL46: Thompson** | AM46: Thompson | AN46: =COUNTIF(MillwallApps!L$68:V$113,$AL46) -> 0 | AO46: =COUNTIF(MillwallApps!LeagueSubs,$AK46) -> 0 | AP46: =COUNTIF(MillwallApps!LeagueSubs,$AM46) -> 0 | AQ46: 0 | AS46: 0 | AT46: 1 | AU46: 0 | AV46: 0 | AX46: 0 | AY46: 0 | AZ46: 0 | BA46: 0 | BC46: 46 | BE46: Ben | BF46: Thompson | BG46: 34 | BH46: Ben Thompson | BM46: 35 | BN46: var PlayerFN35= "Sid Nelson" | BO46: var SquadNr35= "35" | BP46: var A201415Yellows35= "0" | BQ46: var A201415Reds35= "1" | BR46: var A201415ChampApps35= 6 | BS46: var A201415ChampSubs35= 0 | BT46: var A201415ChampNps35= 4 | BU46: var A201415ChampGls35= 0 | BV46: var A201415FACupApps35= 1 | BW46: var A201415FACupSubs35= 0 | BX46: var A201415FACupNps35= 1 | BY46: var A201415FACupGls35= 0 | BZ46: var A201415LCupApps35= 0 | CA46: var A201415LCupSubs35= 0 | CB46: var A201415LCupNps35= 0 | CC46: var A201415LCupGls35= 0
C47: 2 | E47: Josh Siafa | F47: 37 | G47: 0 | H47: 1 | I47: 1 | J47: 0 | K47: =AppsTable!$BB$22 -> - | L47: =AppsTable!$BB$23 -> - | N47: =$AN$49 -> 0 | O47: =$AO$49 -> 0 | P47: =$AP$49 -> 0 | Q47: =$AQ$49 -> 0 | R47: =$AX$49 -> 0 | S47: =$AY$49 -> 0 | T47: =$AZ$49 -> 0 | U47: =$BA$49 -> 0 | V47: =$AS$49 -> 0 | W47: =$AT$49 -> 1 | X47: =$AU$49 -> 1 | Y47: =$AV$49 -> 0 | AB47: 49 | AC47: Josh | AD47: Siafa | AE47: 37 | AJ47: 35 | AK47: Nelson (** | AL47: Nelson** | AM47: Nelson | AN47: =COUNTIF(MillwallApps!L$68:V$113,$AL47) -> 6 | AO47: =COUNTIF(MillwallApps!LeagueSubs,$AK47) -> 0 | AP47: =COUNTIF(MillwallApps!LeagueSubs,$AM47) -> 4 | AQ47: 0 | AS47: 0 | AT47: 0 | AU47: 0 | AV47: 0 | AX47: 1 | AY47: 0 | AZ47: 1 | BA47: 0 | BC47: 47 | BE47: Sid | BF47: Nelson | BG47: 35 | BH47: Sid Nelson | BM47: 37 | BN47: var PlayerFN37= "Josh Siafa" | BO47: var SquadNr37= "37" | BP47: var A201415Yellows37= "-" | BQ47: var A201415Reds37= "-" | BR47: var A201415ChampApps37= 0 | BS47: var A201415ChampSubs37= 0 | BT47: var A201415ChampNps37= 0 | BU47: var A201415ChampGls37= 0 | BV47: var A201415FACupApps37= 0 | BW47: var A201415FACupSubs37= 0 | BX47: var A201415FACupNps37= 0 | BY47: var A201415FACupGls37= 0 | BZ47: var A201415LCupApps37= 0 | CA47: var A201415LCupSubs37= 1 | CB47: var A201415LCupNps37= 1 | CC47: var A201415LCupGls37= 0
C48: 1 | E48: Alfie Pavey | F48: 39 | G48: 0 | H48: 0 | I48: 0 | J48: 0 | K48: =AppsTable!$BD$22 -> - | L48: =AppsTable!$BD$23 -> - | N48: =$AN$52 -> 0 | O48: =$AO$52 -> 0 | P48: =$AP$52 -> 0 | Q48: =$AQ$52 -> 0 | R48: =$AX$52 -> 0 | S48: =$AY$52 -> 0 | T48: =$AZ$52 -> 0 | U48: =$BA$52 -> 0 | V48: =$AS$52 -> 0 | W48: =$AT$52 -> 0 | X48: =$AU$52 -> 0 | Y48: =$AV$52 -> 0 | AB48: 52 | AC48: Alfie | AD48: Pavey | AE48: 39 | AJ48: 36 | AK48: Wood (** | AL48: Wood** | AM48: Wood | AN48: =COUNTIF(MillwallApps!L$68:V$113,$AL48) -> 0 | AO48: =COUNTIF(MillwallApps!LeagueSubs,$AK48) -> 0 | AP48: =COUNTIF(MillwallApps!LeagueSubs,$AM48) -> 0 | AQ48: 0 | AS48: 0 | AT48: 0 | AU48: 0 | AV48: 0 | AX48: 0 | AY48: 0 | AZ48: 0 | BA48: 0 | BC48: 48 | BE48: Keaton | BF48: Wood | BG48: 36 | BH48: Keaton Wood | BM48: 39 | BN48: var PlayerFN39= "Alfie Pavey" | BO48: var SquadNr39= "39" | BP48: var A201415Yellows39= "-" | BQ48: var A201415Reds39= "-" | BR48: var A201415ChampApps39= 0 | BS48: var A201415ChampSubs39= 0 | BT48: var A201415ChampNps39= 0 | BU48: var A201415ChampGls39= 0 | BV48: var A201415FACupApps39= 0 | BW48: var A201415FACupSubs39= 0 | BX48: var A201415FACupNps39= 0 | BY48: var A201415FACupGls39= 0 | BZ48: var A201415LCupApps39= 0 | CA48: var A201415LCupSubs39= 0 | CB48: var A201415LCupNps39= 0 | CC48: var A201415LCupGls39= 0
C49: 2 | E49: Tom King | F49: 41 | G49: =N49+R49+V49 -> 0 | H49: 0 | I49: 28 | J49: 0 | K49: =AppsTable!$BF$22 -> - | L49: =AppsTable!$BF$23 -> - | N49: =$AN$53 -> 0 | O49: =$AO$53 -> 0 | P49: =$AP$53 -> 26 | Q49: =$AQ$53 -> 0 | R49: =$AX$53 -> 0 | S49: =$AY$53 -> 0 | T49: =$AZ$53 -> 2 | U49: =$BA$53 -> 0 | V49: =$AS$53 -> 0 | W49: =$AT$53 -> 0 | X49: =$AU$53 -> 0 | Y49: =$AV$53 -> 0 | AB49: 53 | AC49: Tom | AD49: King | AE49: 41 | AJ49: 37 | AK49: Siafa (** | AL49: Siafa** | AM49: Siafa | AN49: =COUNTIF(MillwallApps!L$68:V$113,$AL49) -> 0 | AO49: =COUNTIF(MillwallApps!LeagueSubs,$AK49) -> 0 | AP49: =COUNTIF(MillwallApps!LeagueSubs,$AM49) -> 0 | AQ49: 0 | AS49: 0 | AT49: 1 | AU49: 1 | AV49: 0 | AX49: 0 | AY49: 0 | AZ49: 0 | BA49: 0 | BC49: 49 | BE49: Josh | BF49: Siafa | BG49: 37 | BH49: Josh Siafa | BM49: 41 | BN49: var PlayerFN41= "Tom King" | BO49: var SquadNr41= "41" | BP49: var A201415Yellows41= "-" | BQ49: var A201415Reds41= "-" | BR49: var A201415ChampApps41= 0 | BS49: var A201415ChampSubs41= 0 | BT49: var A201415ChampNps41= 26 | BU49: var A201415ChampGls41= 0 | BV49: var A201415FACupApps41= 0 | BW49: var A201415FACupSubs41= 0 | BX49: var A201415FACupNps41= 2 | BY49: var A201415FACupGls41= 0 | BZ49: var A201415LCupApps41= 0 | CA49: var A201415LCupSubs41= 0 | CB49: var A201415LCupNps41= 0 | CC49: var A201415LCupGls41= 0
C50: 1 | E50: Stefan Maierhofer | F50: 42 | G50: 6 | H50: 2 | I50: 2 | J50: 1 | K50: =AppsTable!$BG$22 -> 1 | L50: =AppsTable!$BG$23 -> - | N50: =$AN$54 -> 6 | O50: =$AO$54 -> 2 | P50: =$AP$54 -> 2 | Q50: =$AQ$54 -> 1 | R50: =$AX$54 -> 0 | S50: =$AY$54 -> 0 | T50: =$AZ$54 -> 0 | U50: =$BA$54 -> 0 | V50: =$AS$54 -> 0 | W50: =$AT$54 -> 0 | X50: =$AU$54 -> 0 | Y50: =$AV$54 -> 0 | AB50: 54 | AC50: Stefan | AD50: Maierhofer | AE50: 42 | AJ50: 38 | BM50: 42 | BN50: var PlayerFN42= "Stefan Maierhofer" | BO50: var SquadNr42= "42" | BP50: var A201415Yellows42= "1" | BQ50: var A201415Reds42= "-" | BR50: var A201415ChampApps42= 6 | BS50: var A201415ChampSubs42= 2 | BT50: var A201415ChampNps42= 2 | BU50: var A201415ChampGls42= 1 | BV50: var A201415FACupApps42= 0 | BW50: var A201415FACupSubs42= 0 | BX50: var A201415FACupNps42= 0 | BY50: var A201415FACupGls42= 0 | BZ50: var A201415LCupApps42= 0 | CA50: var A201415LCupSubs42= 0 | CB50: var A201415LCupNps42= 0 | CC50: var A201415LCupGls42= 0
C51: 2 | E51: Stephen Bywater | F51: 43 | G51: =N51+R51+V51 -> 0 | H51: 0 | I51: 2 | J51: 0 | K51: =AppsTable!$BH$22 -> - | L51: =AppsTable!$BH$23 -> - | N51: =$AN$55 -> 0 | O51: =$AO$55 -> 0 | P51: =$AP$55 -> 1 | Q51: =$AQ$55 -> 0 | R51: =$AX$55 -> 0 | S51: =$AY$55 -> 0 | T51: =$AZ$55 -> 0 | U51: =$BA$55 -> 0 | V51: =$AS$55 -> 0 | W51: =$AT$55 -> 0 | X51: =$AU$55 -> 1 | Y51: =$AV$55 -> 0 | AC51: Stephen | AD51: Bywater | AE51: 43 | AJ51: 39 | AK51: Webb (** | AL51: Webb** | AM51: Webb | AN51: =COUNTIF(MillwallApps!L$68:V$113,$AL51) -> 0 | AO51: =COUNTIF(MillwallApps!LeagueSubs,$AK51) -> 0 | AP51: =COUNTIF(MillwallApps!LeagueSubs,$AM51) -> 0 | AQ51: 0 | AS51: 0 | AT51: 0 | AU51: 0 | AV51: 0 | AX51: 0 | AY51: 0 | AZ51: 0 | BA51: 0 | BC51: 51 | BE51: Callum | BF51: Webb | BG51: 39 | BH51: Callum Webb | BM51: 43 | BN51: var PlayerFN43= "Stephen Bywater" | BO51: var SquadNr43= "43" | BP51: var A201415Yellows43= "-" | BQ51: var A201415Reds43= "-" | BR51: var A201415ChampApps43= 0 | BS51: var A201415ChampSubs43= 0 | BT51: var A201415ChampNps43= 1 | BU51: var A201415ChampGls43= 0 | BV51: var A201415FACupApps43= 0 | BW51: var A201415FACupSubs43= 0 | BX51: var A201415FACupNps43= 0 | BY51: var A201415FACupGls43= 0 | BZ51: var A201415LCupApps43= 0 | CA51: var A201415LCupSubs43= 0 | CB51: var A201415LCupNps43= 1 | CC51: var A201415LCupGls43= 0
C52: 1 | E52: Carlos Edwards | F52: 44 | G52: 8 | H52: 0 | I52: 0 | J52: 0 | K52: =AppsTable!$BI$22 -> - | L52: =AppsTable!$BI$23 -> - | N52: =$AN$56 -> 8 | O52: =$AO$56 -> 0 | P52: =$AP$56 -> 0 | Q52: =$AQ$56 -> 0 | R52: =$AX$56 -> 0 | S52: =$AY$56 -> 0 | T52: =$AZ$56 -> 0 | U52: =$BA$56 -> 0 | V52: =$AS$56 -> 0 | W52: =$AT$56 -> 0 | X52: =$AU$56 -> 0 | Y52: =$AV$56 -> 0 | AB52: =SUMIF($BF$7:$BF$65,AD52,$BC$7:$BC$65) -> 56 | AC52: Carlos | AD52: Edwards | AE52: 44 | AJ52: 40 | AK52: Pavey (** | AL52: Pavey** | AM52: Pavey | AN52: =COUNTIF(MillwallApps!L$68:V$113,$AL52) -> 0 | AO52: =COUNTIF(MillwallApps!LeagueSubs,$AK52) -> 0 | AP52: =COUNTIF(MillwallApps!LeagueSubs,$AM52) -> 0 | AQ52: 0 | AS52: 0 | AT52: 0 | AU52: 0 | AV52: 0 | AX52: 0 | AY52: 0 | AZ52: 0 | BA52: 0 | BC52: 52 | BE52: Alfie | BF52: Pavey | BG52: 40 | BH52: Alfie Pavey | BM52: 44 | BN52: var PlayerFN44= "Carlos Edwards" | BO52: var SquadNr44= "44" | BP52: var A201415Yellows44= "-" | BQ52: var A201415Reds44= "-" | BR52: var A201415ChampApps44= 8 | BS52: var A201415ChampSubs44= 0 | BT52: var A201415ChampNps44= 0 | BU52: var A201415ChampGls44= 0 | BV52: var A201415FACupApps44= 0 | BW52: var A201415FACupSubs44= 0 | BX52: var A201415FACupNps44= 0 | BY52: var A201415FACupGls44= 0 | BZ52: var A201415LCupApps44= 0 | CA52: var A201415LCupSubs44= 0 | CB52: var A201415LCupNps44= 0 | CC52: var A201415LCupGls44= 0
C53: 2 | AB53: 0 | AJ53: 41 | AK53: =AM53&" (**" -> King (** | AL53: =AM53&"**" -> King** | AM53: King | AN53: =COUNTIF(MillwallApps!L$68:V$113,$AL53) -> 0 | AO53: =COUNTIF(MillwallApps!LeagueSubs,$AK53) -> 0 | AP53: =COUNTIF(MillwallApps!LeagueSubs,$AM53) -> 26 | AQ53: 0 | AS53: 0 | AT53: 0 | AU53: 0 | AV53: 0 | AX53: 0 | AY53: 0 | AZ53: 2 | BA53: 0 | BC53: 53 | BE53: Tom | BF53: King | BG53: 41 | BH53: Tom King
C54: 1 | E54: Own Goals | J54: =$Q$54+$U$54+$Y$54 -> 0 | Q54: =$AQ$65 -> 0 | U54: 0 | Y54: 0 | AB54: 0 | AJ54: 42 | AK54: =AM54&" (**" -> Maierhofer (** | AL54: =AM54&"**" -> Maierhofer** | AM54: Maierhofer | AN54: =COUNTIF(MillwallApps!L$68:V$113,$AL54) -> 6 | AO54: =COUNTIF(MillwallApps!LeagueSubs,$AK54) -> 2 | AP54: =COUNTIF(MillwallApps!LeagueSubs,$AM54) -> 2 | AQ54: 1 | AS54: 0 | AT54: 0 | AU54: 0 | AV54: 0 | AX54: 0 | AY54: 0 | AZ54: 0 | BA54: 0 | BC54: 54 | BE54: Stefan | BF54: Maierhofer | BG54: 42 | BH54: Stefan Maierhofer
C55: 2 | AB55: 0 | AJ55: 43 | AK55: =AM55&" (**" -> Bywater (** | AL55: =AM55&"**" -> Bywater** | AM55: =BF55 -> Bywater | AN55: =COUNTIF(MillwallApps!L$68:V$113,$AL55) -> 0 | AO55: =COUNTIF(MillwallApps!LeagueSubs,$AK55) -> 0 | AP55: =COUNTIF(MillwallApps!LeagueSubs,$AM55) -> 1 | AQ55: =COUNTIF(LeagueGoals,AM55) -> 0 | AS55: 0 | AT55: 0 | AU55: 1 | AV55: =COUNTIF(CapitalOneGoals,AM55) -> 0 | AX55: 0 | AY55: 0 | AZ55: 0 | BA55: =COUNTIF(FACupGoals,AM55) -> 0 | BC55: =ROW(BB55) -> 55 | BE55: Stephen | BF55: Bywater | BG55: =AJ55 -> 43 | BH55: =BE55&" "&AM55 -> Stephen Bywater
C56: 1 | E56: Total | J56: =SUM(J7:J54) -> 34 | K56: =SUM(K7:K54) -> 72 | L56: =SUM(L7:L54) -> 6 | Q56: =SUM(Q7:Q54) -> 30 | U56: =SUM(U7:U54) -> 3 | Y56: =SUM(Y7:Y54) -> 1 | AB56: 0 | AJ56: 44 | AK56: =AM56&" (**" -> Edwards (** | AL56: =AM56&"**" -> Edwards** | AM56: =BF56 -> Edwards | AN56: =COUNTIF(MillwallApps!L$68:V$113,$AL56) -> 8 | AO56: =COUNTIF(MillwallApps!LeagueSubs,$AK56) -> 0 | AP56: =COUNTIF(MillwallApps!LeagueSubs,$AM56) -> 0 | AQ56: =COUNTIF(LeagueGoals,AM56) -> 0 | AS56: 0 | AT56: 0 | AU56: 0 | AV56: =COUNTIF(CapitalOneGoals,AM56) -> 0 | AX56: 0 | AY56: 0 | AZ56: 0 | BA56: =COUNTIF(FACupGoals,AM56) -> 0 | BC56: =ROW(BB56) -> 56 | BE56: Carlos | BF56: Edwards | BG56: =AJ56 -> 44 | BH56: =BE56&" "&AM56 -> Carlos Edwards
C57: 2 | AB57: 0
AB58: 0
AB59: 0 | BP59: `
G60: ="Max ("&AL77&")" -> Max (38) | K60: ="Max ("&AL78&")" -> Max (2) | O60: ="Max ("&AL79&")" -> Max (2) | X60: ="Max ("&AL81&")" -> Max (42) | AB60: 0
AB61: 0
AB62: 0
AB63: 0 | BQ63: var PlayerFN29a= "Gary Taylor-Fletcher"
AB64: 0
AB65: 0 | AM65: Own Goal | AQ65: =COUNTIF(LeagueGoals,AM65) -> 0 | AU65: =COUNTIF(CapitalOneGoals,AP65) -> 0 | AZ65: =COUNTIF(FACupGoals,AT65) -> 0 | BN65: A201415TotalOverallGls | BO65: ="var "&BN65&"="""&J56&"""" -> var A201415TotalOverallGls="34"
AB66: 0 | BN66: A201415TotalOverallYellows | BO66: ="var "&BN66&"="""&K56&"""" -> var A201415TotalOverallYellows="72" | BQ66: 21560
BH67: =BF69&" "&AM66 ->  | BN67: A201415TotalOverallReds | BO67: ="var "&BN67&"="""&L56&"""" -> var A201415TotalOverallReds="6" | BQ67: 25491
BN68: A201415TotalChampGls | BO68: ="var "&BN68&"="""&Q56&"""" -> var A201415TotalChampGls="30"
BN69: A201415TotalFACupGls | BO69: ="var "&BN69&"="""&U56&"""" -> var A201415TotalFACupGls="3"
BN70: A201415TotalLCupGls | BO70: ="var "&BN70&"="""&Y56&"""" -> var A201415TotalLCupGls="1"
AC71: =42/6 -> 7 | BO71: =BN3 -> var MaxOverall201415= "Max (42)"
AE72: Stefan Maierhofer | BO72: =BO3 -> var MaxChamp201415= "Max (38)"
BO73: =BP3 -> var MaxFACup201415= "Max (2)"
BO74: =BQ3 -> var MaxLCup201415= "Max (2)"
AL75: Own Goal
AL77: =MillwallApps!AG117 -> 38 | BO77: ="var "&BU$4&"= """&Q54&"""" -> var A201415OverallOwnGls= "0"
AL78: =MillwallApps!AG137 -> 2 | BO78: ="var "&BU$5&"= """&J54&"""" -> var A201415ChampOwnGls= "0"
AL79: =MillwallApps!AG128 -> 2 | BL79: =AJ7&") "&BF7 -> 1) Forde | BO79: ="var "&BY$5&"= """&U54&"""" -> var A201415FACupOwnGls= "0"
AN80: =AL81*11 -> 462 | BL80: =AJ8&") "&BF8 -> 2) Dunne | BO80: ="var "&CC$5&"= """&Y54&"""" -> var A201415LCupOwnGls= "0"
AL81: =SUM(AL77:AL80) -> 42 | BL81: =AJ9&") "&BF9 -> 3) Shittu
BL82: =AJ10&") "&BF10 -> 4) Wright
BL83: =AJ12&") "&BF12 -> 5) Hooiveld
BL84: =AJ13&") "&BF13 -> 6) Williams
BL85: =AJ14&") "&BF14 -> 7) Martin
BL86: =AJ15&") "&BF15 -> 8) Easter
BL87: =AJ17&") "&BF17 -> 9) Gregory
BL88: 10) Bailey
BL89: 11) Woolford
BL90: 12) Cowan-Hall
BL91: 13) Gerrar
BL92: 14) Briggs
BL93: 15) Upson
BL94: 16) Beevers
BL95: 17) Webster
BL96: 18) Gueye
BL97: 19) Fuller
BL98: 20) Onyedinma
BL99: 21) Ranegie
BL100: =AJ31&") "&BF31 -> 22) O'Brien
BL101: 23) Powell
BL102: 24) Goodman
BL103: 25) Hoyte
BL104: 26) Abdou
BL105: 27) McDonald
BL106: =AJ38&") "&BF38 -> 28) Malone
BL107: =AJ40&") "&BF40 -> 29) Wilkinson
BL108: =AJ42&") "&BF42 -> 30) Chaplow
BL109: 31) Martinez
BL110: 32) Marquis
BL111: 33) Casey
BL112: 34) Thompson
BL113: 35) Nelson
BL114: 36) Wood
BL115: 37) Siafa
BL116: =AJ51&") "&BF51 -> 39) Webb
BL117: 40) Pavey
BL118: 41) King
BL119: 42) Maierhofer
BL120: 43) Bywater
BL121: 44) Edwards
BL122: )

Sheet AppsTable
CO3: AppsTableDate | CP3: AppsTableOpponents | CQ3: AppsTableVen | CR3: AppsTableScore | CS3: ResAppsTableWLD
L15: 2 | M15: =IF(L16=0,L15,IF(L15=2,1,2)) -> 1 | N15: =IF(M16=0,M15,IF(M15=2,1,2)) -> 2 | O15: 1 | P15: 2 | Q15: 1 | R15: 2 | S15: 1 | T15: 2 | U15: 1 | V15: 2 | W15: 1 | X15: 2 | Y15: 1 | Z15: 2 | AA15: 1 | AB15: 2 | AC15: 1 | AD15: 2 | AE15: 1 | AF15: 2 | AG15: 1 | AH15: 2 | AI15: =IF(AH16=0,AH15,IF(AH15=2,1,2)) -> 1 | AJ15: 2 | AK15: 1 | AL15: 2 | AM15: 1 | AN15: 2 | AO15: 1 | AP15: 2 | AQ15: 1 | AR15: 2 | AS15: 1 | AT15: =IF(AS16=0,AS15,IF(AS15=2,1,2)) -> 2 | AU15: =IF(AT16=0,AT15,IF(AT15=2,1,2)) -> 1 | AV15: =IF(AU16=0,AU15,IF(AU15=2,1,2)) -> 2 | AW15: =IF(AV16=0,AV15,IF(AV15=2,1,2)) -> 1 | AX15: 2 | AY15: 2 | AZ15: 1 | BA15: 2 | BB15: 2 | BC15: 1 | BD15: 1 | BE15: 1 | BF15: 1 | BG15: 2 | BH15: 1 | BI15: 2 | BJ15: 1 | BK15: 1 | BL15: 1 | BM15: 1 | BN15: 1 | BO15: 1 | BP15: 1 | BQ15: 1 | BR15: 1 | BS15: =IF(BR16=0,BR15,IF(BR15=2,1,2)) -> 1 | BT15: =IF(BS16=0,BS15,IF(BS15=2,1,2)) -> 1 | BU15: 1 | BV15: 1 | BW15: 1 | BX15: 1 | BY15: 1 | BZ15: =IF(BY16=0,BY15,IF(BY15=2,1,2)) -> 1 | CA15: =IF(BZ16=0,BZ15,IF(BZ15=2,1,2)) -> 1 | CB15: =IF(CA16=0,CA15,IF(CA15=2,1,2)) -> 1
L16: =IF(SUM(L18:L20)<1,0,1) -> 1 | M16: =IF(SUM(M18:M20)<1,0,1) -> 1 | N16: =IF(SUM(N18:N20)<1,0,1) -> 1 | O16: 1 | P16: 1 | Q16: 1 | R16: 1 | S16: 1 | T16: 1 | U16: 1 | V16: 1 | W16: 1 | X16: 1 | Y16: 1 | Z16: 1 | AA16: 1 | AB16: 1 | AC16: 1 | AD16: 1 | AE16: 1 | AF16: 1 | AG16: 1 | AH16: 1 | AI16: =IF(SUM(AI18:AI20)<1,0,1) -> 1 | AJ16: 1 | AK16: 1 | AL16: 1 | AM16: 1 | AN16: 1 | AO16: 1 | AP16: 1 | AQ16: 1 | AR16: 1 | AS16: 1 | AT16: =IF(SUM(AT18:AT20)<1,0,1) -> 1 | AU16: 1 | AV16: 1 | AW16: 1 | AX16: 0 | AY16: 1 | AZ16: 1 | BA16: 0 | BB16: 1 | BC16: 0 | BD16: 0 | BE16: 0 | BF16: 1 | BG16: 1 | BH16: 1 | BI16: 1 | BJ16: 0 | BK16: 0 | BL16: 0 | BM16: 0 | BN16: 0 | BO16: 0 | BP16: 0 | BQ16: 0 | BR16: 0 | BS16: =IF(SUM(BS18:BS20)<1,0,1) -> 0 | BT16: 0 | BU16: 0 | BV16: 0 | BW16: 0 | BX16: 0 | BY16: 0 | BZ16: =IF(SUM(BZ18:BZ20)<1,0,1) -> 0 | CA16: =IF(SUM(CA18:CA20)<1,0,1) -> 0 | CB16: =IF(SUM(CB18:CB20)<1,0,1) -> 0
F17: Date | H17: Opponents | I17: Venue / Result | L17: 1) Forde | M17: 2) Dunne | N17: 3) Shittu | O17: 4) Wright | P17: 4) Cummings | Q17: 5) Hooiveld | R17: 6) Williams | S17: 7) Martin | T17: 8) Easter | U17: 8) Fabbrini | V17: 9) Gregory | W17: 10) Bailey | X17: 11) Woolford | Y17: 12) Cowan Hall | Z17: 13) Gerrar | AA17: 14) Briggs | AB17: 15) Upson | AC17: 16) Beevers | AD17: 17) Webster | AE17: 18) Gueye | AF17: 19) Fuller | AG17: 20) Onyedinma | AH17: 21) Ranegie | AI17: 21) Harding | AJ17: 22) O'Brien | AK17: 23) Powell | AL17: 24) Goodman | AM17: 25) Hoyte | AN17: 26) Abdou | AO17: 27) McDonald | AP17: 27) Archer | AQ17: 28) Malone | AR17: 28) Tonge | AS17: 29) Wilkinson | AT17: 29) Fletcher-Taylor | AU17: 30) Chaplow | AV17: 31) Martinez | AW17: 32) Marquis | AX17: 33) Casey | AY17: 34) Thompson | AZ17: 35) Nelson | BA17: 36) Wood | BB17: 37) Siafa | BC17: 38) Webb | BD17: 39) Pavey | BF17: 41) King | BG17: 42) Maierhofer | BH17: 43) Bywater | BI17: 44) Edwards | CR17: var AppsTableScore1= "W 2-0" | CV17: 1) Forde | DE17: 2) Dunne | DN17: 3)Shittu | DW17: 4) Wright | EF17: 4) Cummings | EO17: 5) Hooiveld | EX17: 6) Williams | FG17: 7) Martin | FP17: 8) Easter | FY17: 8) Fabrini | GH17: 9) Gregory | GQ17: 10) Bailey | GZ17: 11) Woolford | HI17: 12) Cowan-Hall | HR17: 13) Gerrar | IA17: 14) Briggs | IJ17: 15) Upson | IS17: 16) Beevers | JB17: 17) Webster | JK17: 18) Gueye | JT17: 19) Fuller | KC17: 20) Onyedinma | KL17: 21) Raneige | KU17: 21) Harding | LD17: 22) O'Brien | LM17: 23) Powell | LV17: 24) Goodman | ME17: 25) Hoyte | MN17: 26) Abdou | MW17: 27) McDonald | NF17: 27) Archer | NO17: 28) Malone | NX17: 28) Tonge | OG17: 29) Wilkinson | OP17: 29) Taylor-Fletcher | OY17: 30) Chaplow | PH17: 31) | PQ17: 32) Marquis | PZ17: 33) | QI17: 34) Thompsom | QR17: 35) Nelson | RA17: 36) | RJ17: 37) Siafa | RS17: 38) | SB17: 39) Pavey | SK17: 40) | ST17: 41) | SU17: King | TC17: 42) | TD17: Maierhofer | TL17: 43) Bywater | TU17: 44) Edwards
C18: 0 | K18: Overall Apperances | L18: =L73+L87+L101 -> 42 | M18: 34 | N18: 10 | O18: 2 | P18: =P73+P87+P101 -> 8 | Q18: 12 | R18: 35 | S18: 20 | T18: 4 | U18: =U73+U87+U101 -> 11 | V18: 23 | W18: 2 | X18: 27 | Y18: 0 | Z18: 0 | AA18: =AA73+AA87+AA101 -> 11 | AB18: 12 | AC18: =AC73+AC87+AC101 -> 20 | AD18: 11 | AE18: 10 | AF18: 17 | AG18: 1 | AH18: =AH73+AH87+AH101 -> 3 | AI18: 12 | AJ18: =AJ73+AJ87+AJ101 -> 5 | AK18: 5 | AL18: =AL73+AL87+AL101 -> 0 | AM18: 2 | AN18: 25 | AO18: =AO73+AO87+AO101 -> 25 | AP18: 0 | AQ18: 17 | AR18: =AR73+AR87+AR101 -> 5 | AS18: 9 | AT18: =AT73+AT87+AT101 -> 6 | AU18: 9 | AV18: 4 | AW18: 2 | AX18: 0 | AY18: 0 | AZ18: =AZ73+AZ87+AZ101 -> 7 | BA18: 0 | BB18: 0 | BC18: 0 | BD18: 0 | BE18: =BE73+BE87+BE101 -> 0 | BF18: 0 | BG18: =BG73+BG87+BG101 -> 6 | BH18: 0 | BI18: 8 | BJ18: =BJ73+BJ87+BJ101 -> 0 | BK18: =BK73+BK87+BK101 -> 0 | BL18: =BL73+BL87+BL101 -> 0 | BM18: 0 | BN18: 0 | BO18: 0 | BP18: 0 | BQ18: 0 | BR18: 0 | BS18: 0 | BT18: 0 | BU18: 0 | BV18: 0 | BW18: 0 | BX18: 0 | BY18: 0 | BZ18: 0 | CA18: 0 | CB18: 0 | CV18: Player1 | DE18: Player2 | DN18: Player3 | DW18: Player4 | EF18: Player4a | EO18: Player5 | EX18: Player6 | FG18: Player7 | FP18: Player8 | FY18: Player8a | GH18: Player9 | GQ18: Player10 | GZ18: Player11 | HI18: Player12 | HR18: Player13 | IA18: Player14 | IJ18: Player15 | IS18: Player16 | JB18: Player17 | JK18: Player18 | JT18: Player19 | KC18: Player20 | KL18: Player21 | KU18: Player21a | LD18: Player22 | LM18: Player23 | LV18: Player24 | ME18: Player25 | MN18: Player26 | MW18: Player27 | NF18: Player27a | NO18: Player28 | NX18: Player28a | OG18: Player29 | OP18: Player29a | OY18: Player30 | PH18: Player31 | PQ18: Player32 | PZ18: Player33 | QI18: Player34 | QR18: Player35 | RA18: Player36 | RJ18: Player37 | RS18: Player38 | SB18: Player39 | SK18: Player40 | ST18: Player41 | TC18: Player42 | TL18: Player43 | TU18: Player44
K19: Overall Sub Appearances | L19: =L74+L88+L102 -> 0 | M19: 4 | N19: 1 | O19: 0 | P19: =P74+P88+P102 -> 0 | Q19: 0 | R19: 0 | S19: 4 | T19: 7 | U19: =U74+U88+U102 -> 1 | V19: 10 | W19: 1 | X19: 6 | Y19: 2 | Z19: 0 | AA19: =AA74+AA88+AA102 -> 1 | AB19: 11 | AC19: 1 | AD19: 3 | AE19: 20 | AF19: 20 | AG19: 3 | AH19: =AH74+AH88+AH102 -> 4 | AI19: 0 | AJ19: =AJ74+AJ88+AJ102 -> 7 | AK19: 1 | AL19: =AL74+AL88+AL102 -> 0 | AM19: 1 | AN19: 4 | AO19: 1 | AP19: 0 | AQ19: 3 | AR19: =AR74+AR88+AR102 -> 1 | AS19: 0 | AT19: =AT74+AT88+AT102 -> 1 | AU19: 1 | AV19: 0 | AW19: 0 | AX19: 0 | AY19: 1 | AZ19: 0 | BA19: 0 | BB19: 1 | BC19: 0 | BD19: 0 | BE19: =BE74+BE88+BE102 -> 0 | BF19: 0 | BG19: 2 | BH19: 0 | BI19: 0 | BJ19: 0 | BK19: 0 | BL19: =BL74+BL88+BL102 -> 0 | BM19: 0 | BN19: 0 | BO19: 0 | BP19: 0 | BQ19: 0 | BR19: 0 | BS19: 0 | BT19: 0 | BU19: 0 | BV19: 0 | BW19: 0 | BX19: 0 | BY19: 0 | BZ19: 0 | CA19: 0 | CB19: 0
K20: Overall Non Playing Substitute | L20: =L75+L89+L103 -> 0 | M20: 0 | N20: 8 | O20: 3 | P20: =P75+P89+P103 -> 0 | Q20: 0 | R20: 0 | S20: 0 | T20: 7 | U20: =U75+U89+U103 -> 0 | V20: 4 | W20: 0 | X20: 3 | Y20: 0 | Z20: 5 | AA20: =AA75+AA89+AA103 -> 11 | AB20: 9 | AC20: 14 | AD20: 13 | AE20: 3 | AF20: 3 | AG20: 3 | AH20: =AH75+AH89+AH103 -> 1 | AI20: 1 | AJ20: =AJ75+AJ89+AJ103 -> 5 | AK20: 7 | AL20: =AL75+AL89+AL103 -> 2 | AM20: 0 | AN20: 5 | AO20: 3 | AP20: 5 | AQ20: 0 | AR20: =AR75+AR89+AR103 -> 1 | AS20: 2 | AT20: =AT75+AT89+AT103 -> 0 | AU20: 6 | AV20: 6 | AW20: 1 | AX20: 0 | AY20: 0 | AZ20: 5 | BA20: 0 | BB20: 1 | BC20: 0 | BD20: 0 | BE20: =BE75+BE89+BE103 -> 0 | BF20: 28 | BG20: 2 | BH20: 3 | BI20: 0 | BJ20: 0 | BK20: 0 | BL20: =BL75+BL89+BL103 -> 0 | BM20: 0 | BN20: 0 | BO20: 0 | BP20: 0 | BQ20: 0 | BR20: 0 | BS20: 0 | BT20: 0 | BU20: 0 | BV20: 0 | BW20: 0 | BX20: 0 | BY20: 0 | BZ20: 0 | CA20: 0 | CB20: 0 | CG20: =IF(J26="","",J26) -> W 2-0 | CV20: Off 1 | DF20: Off 1 | DO20: Off 1 | DY20: Off 1 | EH20: Off 1 | EP20: Off 1 | EZ20: Off 1 | FH20: Off 1 | FR20: Off 1 | GA20: Off 1 | GI20: Off 1 | GS20: Off 1 | HA20: Off 1 | HK20: Off 1 | HS20: Off 1 | IC20: Off 1 | IK20: Off 1 | IU20: Off 1 | JC20: Off 1 | JM20: Off 1 | JU20: Off 1 | KE20: Off 1 | KM20: Off 1 | KV20: Off 1 | LF20: Off 1 | LN20: Off 1 | LX20: Off 1 | MF20: Off 1 | MP20: Off 1 | MX20: Off 1 | NH20: Off 1 | NQ20: Off 1 | NZ20: Off 1 | OH20: Off 1 | OR20: Off 1 | PA20: Off 1 | PI20: Off 1 | PS20: Off 1 | QA20: Off 1 | QK20: Off 1 | QS20: Off 1 | RC20: Off 1 | RK20: Off 1 | RT20: Off 1 | SD20: Off 1 | SL20: Off 1 | SV20: Off 1 | TD20: Off 1 | TN20: Off 1 | TW20: Off 1 | UE20: Off 1 | UO20: Off 1 | UW20: Off 1 | VG20: Off 1 | VO20: Off 1 | VY20: Off 1 | WG20: Off 1 | WQ20: Off 1 | WY20: Off 1
C21: 0 | K21: Goals | L21: =L76+L90+L104 -> 0 | M21: 2 | N21: 1 | O21: 0 | P21: =P76+P90+P104 -> 0 | Q21: 0 | R21: 2 | S21: 1 | T21: 1 | U21: =U76+U90+U104 -> 1 | V21: 5 | W21: 0 | X21: 3 | Y21: 0 | Z21: 0 | AA21: =AA76+AA90+AA104 -> 1 | AB21: 2 | AC21: 2 | AD21: 0 | AE21: 3 | AF21: 6 | AG21: 0 | AH21: =AH76+AH90+AH104 -> 0 | AI21: 0 | AJ21: =AJ76+AJ90+AJ104 -> 0 | AK21: 0 | AL21: =AL76+AL90+AL104 -> 0 | AM21: 0 | AN21: 0 | AO21: 2 | AP21: 0 | AQ21: 1 | AR21: =AR76+AR90+AR104 -> 0 | AS21: 0 | AT21: =AT76+AT90+AT104 -> 0 | AU21: 0 | AV21: 0 | AW21: 0 | AX21: 0 | AY21: 0 | AZ21: =AZ76+AZ90+AZ104 -> 0 | BA21: =BA76+BA90+BA104 -> 0 | BB21: 0 | BC21: 0 | BD21: 0 | BE21: 0 | BF21: 1 | BG21: 0 | BH21: 0 | BI21: 0 | BJ21: 0 | BK21: 0 | BL21: =BL76+BL90+BL104 -> 0 | BM21: 0 | BN21: 0 | BO21: 0 | BP21: 0 | BQ21: 0 | BR21: 0 | BS21: 0 | BT21: 0 | BU21: 0 | BV21: 0 | BW21: 0 | BX21: 0 | BY21: 0 | BZ21: 0 | CA21: 0 | CB21: 0 | CV21: Off 2 | DF21: Off 2 | DO21: Off 2 | DY21: Off 2 | EH21: Off 2 | EP21: Off 2 | EZ21: Off 2 | FH21: Off 2 | FR21: Off 2 | GA21: Off 2 | GI21: Off 2 | GS21: Off 2 | HA21: Off 2 | HK21: Off 2 | HS21: Off 2 | IC21: Off 2 | IK21: Off 2 | IU21: Off 2 | JC21: Off 2 | JM21: Off 2 | JU21: Off 2 | KE21: Off 2 | KM21: Off 2 | KV21: Off 2 | LF21: Off 2 | LN21: Off 2 | LX21: Off 2 | MF21: Off 2 | MP21: Off 2 | MX21: Off 2 | NH21: Off 2 | NQ21: Off 2 | NZ21: Off 2 | OH21: Off 2 | OR21: Off 2 | PA21: Off 2 | PI21: Off 2 | PS21: Off 2 | QA21: Off 2 | QK21: Off 2 | QS21: Off 2 | RC21: Off 2 | RK21: Off 2 | RT21: Off 2 | SD21: Off 2 | SL21: Off 2 | SV21: Off 2 | TD21: Off 2 | TN21: Off 2 | TW21: Off 2 | UE21: Off 2 | UO21: Off 2 | UW21: Off 2 | VG21: Off 2 | VO21: Off 2 | VY21: Off 2 | WG21: Off 2 | WQ21: Off 2 | WY21: Off 2
K22: Yellow Cards n | L22: =IF(L110=0,"-",L110) -> 6 | M22: =IF(M110=0,"-",M110) -> 10 | N22: 3 | O22: - | P22: =IF(P110=0,"-",P110) -> 1 | Q22: - | R22: =IF(R110=0,"-",R110)-2 -> 7 | S22: 1 | T22: - | U22: =IF(U110=0,"-",U110) -> - | V22: 1 | W22: 1 | X22: 3 | Y22: - | Z22: - | AA22: =IF(AA110=0,"-",AA110)+1 -> 5 | AB22: 5 | AC22: =IF(AC110=0,"-",AC110)-1 -> 6 | AD22: 2 | AE22: - | AF22: 4 | AG22: - | AH22: =IF(AH110=0,"-",AH110) -> 2 | AI22: - | AJ22: - | AK22: - | AL22: - | AM22: - | AN22: 4 | AO22: 5 | AP22: =IF(AP110=0,"-",AP110) -> - | AQ22: - | AR22: =IF(AR110=0,"-",AR110) -> - | AS22: =IF(AS110=0,"-",AS110)-1 -> 2 | AU22: 2 | AV22: 1 | AW22: - | AX22: - | AY22: - | AZ22: =IF(AZ110=0,"-",AZ110)-1 -> 0 | BA22: - | BB22: - | BC22: - | BD22: - | BE22: - | BF22: - | BG22: 1 | BH22: - | BI22: - | BJ22: - | BK22: - | BL22: - | BM22: - | BN22: - | BO22: - | BP22: - | BQ22: - | BR22: - | BS22: - | BT22: - | BU22: - | BV22: - | BW22: - | BX22: - | BY22: =$BY$110 -> 0 | BZ22: =$BY$110 -> 0 | CA22: =$CA$110 -> 0 | CB22: =$CB$110 -> 0 | CE22: =SUM(L22:BL22) -> 72 | CV22: Off 3 | DF22: Off 3 | DO22: Off 3 | DY22: Off 3 | EH22: Off 3 | EP22: Off 3 | EZ22: Off 3 | FH22: Off 3 | FR22: Off 3 | GA22: Off 3 | GI22: Off 3 | GS22: Off 3 | HA22: Off 3 | HK22: Off 3 | HS22: Off 3 | IC22: Off 3 | IK22: Off 3 | IU22: Off 3 | JC22: Off 3 | JM22: Off 3 | JU22: Off 3 | KE22: Off 3 | KM22: Off 3 | KV22: Off 3 | LF22: Off 3 | LN22: Off 3 | LX22: Off 3 | MF22: Off 3 | MP22: Off 3 | MX22: Off 3 | NH22: Off 3 | NQ22: Off 3 | NZ22: Off 3 | OH22: Off 3 | OR22: Off 3 | PA22: Off 3 | PI22: Off 3 | PS22: Off 3 | QA22: Off 3 | QK22: Off 3 | QS22: Off 3 | RC22: Off 3 | RK22: Off 3 | RT22: Off 3 | SD22: Off 3 | SL22: Off 3 | SV22: Off 3 | TD22: Off 3 | TN22: Off 3 | TW22: Off 3 | UE22: Off 3 | UO22: Off 3 | UW22: Off 3 | VG22: Off 3 | VO22: Off 3 | VY22: Off 3 | WG22: Off 3 | WQ22: Off 3 | WY22: Off 3
K23: Red Cards n | L23: - | M23: - | N23: - | O23: - | P23: - | Q23: - | R23: 2 | S23: - | T23: - | U23: - | V23: - | W23: - | X23: - | Y23: - | Z23: - | AA23: 1 | AB23: - | AC23: 1 | AD23: - | AE23: - | AF23: - | AG23: - | AH23: - | AI23: - | AJ23: - | AK23: - | AL23: - | AM23: - | AN23: - | AO23: - | AP23: - | AQ23: - | AR23: - | AS23: 1 | AU23: - | AV23: - | AW23: - | AX23: - | AY23: - | AZ23: 1 | BA23: - | BB23: - | BC23: - | BD23: - | BE23: - | BF23: - | BG23: - | BH23: - | BI23: - | BJ23: - | BK23: - | BL23: - | BM23: - | BN23: - | BO23: - | BP23: - | BQ23: - | BR23: - | BS23: - | BT23: - | BU23: - | BV23: - | BW23: - | BX23: - | BY23: 0 | BZ23: 0 | CA23: 0 | CB23: 0
C24: 1 | F24: Championship
F25: Date | H25: Opponents | I25: Venue / Result | CV25: On | CW25: SubOnNr | CX25: Pos | CY25: Yell | CZ25: Red | DA25: Goal | DB25: Off | DC25: SubOffNr | DE25: On | DF25: SubOnNr | DG25: Pos | DH25: Yell | DI25: Red | DJ25: Goal | DK25: Off | DL25: SubOffNr | DN25: On | DO25: SubOnNr | DP25: Pos | DQ25: Yell | DR25: Red | DS25: Goal | DT25: Off | DU25: SubOffNr | DW25: On | DX25: SubOnNr | DY25: Pos | DZ25: Yell | EA25: Red | EB25: Goal | EC25: Off | ED25: SubOffNr | EF25: On | EG25: SubOnNr | EH25: Pos | EI25: Yell | EJ25: Red | EK25: Goal | EL25: Off | EM25: SubOffNr | EO25: On | EP25: SubOnNr | EQ25: Pos | ER25: Yell | ES25: Red | ET25: Goal | EU25: Off | EV25: SubOffNr | EX25: On | EY25: SubOnNr | EZ25: Pos | FA25: Yell | FB25: Red | FC25: Goal | FD25: Off | FE25: SubOffNr | FG25: On | FH25: SubOnNr | FI25: Pos | FJ25: Yell | FK25: Red | FL25: Goal | FM25: Off | FN25: SubOffNr | FP25: On | FQ25: SubOnNr | FR25: Pos | FS25: Yell | FT25: Red | FU25: Goal | FV25: Off | FW25: SubOffNr | FY25: On | FZ25: SubOnNr | GA25: Pos | GB25: Yell | GC25: Red | GD25: Goal | GE25: Off | GF25: SubOffNr | GH25: On | GI25: SubOnNr | GJ25: Pos | GK25: Yell | GL25: Red | GM25: Goal | GN25: Off | GO25: SubOffNr | GQ25: On | GR25: SubOnNr | GS25: Pos | GT25: Yell | GU25: Red | GV25: Goal | GW25: Off | GX25: SubOffNr | GZ25: On | HA25: SubOnNr | HB25: Pos | HC25: Yell | HD25: Red | HE25: Goal | HF25: Off | HG25: SubOffNr | HI25: On | HJ25: SubOnNr | HK25: Pos | HL25: Yell | HM25: Red | HN25: Goal | HO25: Off | HP25: SubOffNr | HR25: On | HS25: SubOnNr | HT25: Pos | HU25: Yell | HV25: Red | HW25: Goal | HX25: Off | HY25: SubOffNr | IA25: On | IB25: SubOnNr | IC25: Pos | ID25: Yell | IE25: Red | IF25: Goal | IG25: Off | IH25: SubOffNr | IJ25: On | IK25: SubOnNr | IL25: Pos | IM25: Yell | IN25: Red | IO25: Goal | IP25: Off | IQ25: SubOffNr | IS25: On | IT25: SubOnNr | IU25: Pos | IV25: Yell | IW25: Red | IX25: Goal | IY25: Off | IZ25: SubOffNr | JB25: On | JC25: SubOnNr | JD25: Pos | JE25: Yell | JF25: Red | JG25: Goal | JH25: Off | JI25: SubOffNr | JK25: On | JL25: SubOnNr | JM25: Pos | JN25: Yell | JO25: Red | JP25: Goal | JQ25: Off | JR25: SubOffNr | JT25: On | JU25: SubOnNr | JV25: Pos | JW25: Yell | JX25: Red | JY25: Goal | JZ25: Off | KA25: SubOffNr | KC25: On | KD25: SubOnNr | KE25: Pos | KF25: Yell | KG25: Red | KH25: Goal | KI25: Off | KJ25: SubOffNr | KL25: On | KM25: SubOnNr | KN25: Pos | KO25: Yell | KP25: Red | KQ25: Goal | KR25: Off | KS25: SubOffNr | KU25: On | KV25: SubOnNr | KW25: Pos | KX25: Yell | KY25: Red | KZ25: Goal | LA25: Off | LB25: SubOffNr | LD25: On | LE25: SubOnNr | LF25: Pos | LG25: Yell | LH25: Red | LI25: Goal | LJ25: Off | LK25: SubOffNr | LM25: On | LN25: SubOnNr | LO25: Pos | LP25: Yell | LQ25: Red | LR25: Goal | LS25: Off | LT25: SubOffNr | LV25: On | LW25: SubOnNr | LX25: Pos | LY25: Yell | LZ25: Red | MA25: Goal | MB25: Off | MC25: SubOffNr | ME25: On | MF25: SubOnNr | MG25: Pos | MH25: Yell | MI25: Red | MJ25: Goal | MK25: Off | ML25: SubOffNr | MN25: On | MO25: SubOnNr | MP25: Pos | MQ25: Yell | MR25: Red | MS25: Goal | MT25: Off | MU25: SubOffNr | MW25: On | MX25: SubOnNr | MY25: Pos | MZ25: Yell | NA25: Red | NB25: Goal | NC25: Off | ND25: SubOffNr | NF25: On | NG25: SubOnNr | NH25: Pos | NI25: Yell | NJ25: Red | NK25: Goal | NL25: Off | NM25: SubOffNr | NO25: On | NP25: SubOnNr | NQ25: Pos | NR25: Yell | NS25: Red | NT25: Goal | NU25: Off | NV25: SubOffNr | NX25: On | NY25: SubOnNr | NZ25: Pos | OA25: Yell | OB25: Red | OC25: Goal | OD25: Off | OE25: SubOffNr | OG25: On | OH25: SubOnNr | OI25: Pos | OJ25: Yell | OK25: Red | OL25: Goal | OM25: Off | ON25: SubOffNr | OP25: On | OQ25: SubOnNr | OR25: Pos | OS25: Yell | OT25: Red | OU25: Goal | OV25: Off | OW25: SubOffNr | OY25: On | OZ25: SubOnNr | PA25: Pos | PB25: Yell | PC25: Red | PD25: Goal | PE25: Off | PF25: SubOffNr | PH25: On | PI25: SubOnNr | PJ25: Pos | PK25: Yell | PL25: Red | PM25: Goal | PN25: Off | PO25: SubOffNr | PQ25: On | PR25: SubOnNr | PS25: Pos | PT25: Yell | PU25: Red | PV25: Goal | PW25: Off | PX25: SubOffNr | PZ25: On | QA25: SubOnNr | QB25: Pos | QC25: Yell | QD25: Red | QE25: Goal | QF25: Off | QG25: SubOffNr | QI25: On | QJ25: SubOnNr | QK25: Pos | QL25: Yell | QM25: Red | QN25: Goal | QO25: Off | QP25: SubOffNr | QR25: On | QS25: SubOnNr | QT25: Pos | QU25: Yell | QV25: Red | QW25: Goal | QX25: Off | QY25: SubOffNr | RA25: On | RB25: SubOnNr | RC25: Pos | RD25: Yell | RE25: Red | RF25: Goal | RG25: Off | RH25: SubOffNr | RJ25: On | RK25: SubOnNr | RL25: Pos | RM25: Yell | RN25: Red | RO25: Goal | RP25: Off | RQ25: SubOffNr | RS25: On | RT25: SubOnNr | RU25: Pos | RV25: Yell | RW25: Red | RX25: Goal | RY25: Off | RZ25: SubOffNr | SB25: On | SC25: SubOnNr | SD25: Pos | SE25: Yell | SF25: Red | SG25: Goal | SH25: Off | SI25: SubOffNr | SK25: On | SL25: SubOnNr | SM25: Pos | SN25: Yell | SO25: Red | SP25: Goal | SQ25: Off | SR25: SubOffNr | ST25: On | SU25: SubOnNr | SV25: Pos | SW25: Yell | SX25: Red | SY25: Goal | SZ25: Off | TA25: SubOffNr | TC25: On | TD25: SubOnNr | TE25: Pos | TF25: Yell | TG25: Red | TH25: Goal | TI25: Off | TJ25: SubOffNr | TL25: On | TM25: SubOnNr | TN25: Pos | TO25: Yell | TP25: Red | TQ25: Goal | TR25: Off | TS25: SubOffNr | TU25: On | TV25: SubOnNr | TW25: Pos | TX25: Yell | TY25: Red | TZ25: Goal | UA25: Off | UB25: SubOffNr | UD25: On | UE25: SubOnNr | UF25: Pos | UG25: Yell | UH25: Red | UI25: Goal | UJ25: Off | UK25: SubOffNr | UM25: On | UN25: SubOnNr | UO25: Pos | UP25: Yell | UQ25: Red | UR25: Goal | US25: Off | UT25: SubOffNr | UV25: On | UW25: SubOnNr | UX25: Pos | UY25: Yell | UZ25: Red | VA25: Goal | VB25: Off | VC25: SubOffNr | VE25: On | VF25: SubOnNr | VG25: Pos | VH25: Yell | VI25: Red | VJ25: Goal | VK25: Off | VL25: SubOffNr | VN25: On | VO25: SubOnNr | VP25: Pos | VQ25: Yell | VR25: Red | VS25: Goal | VT25: Off | VU25: SubOffNr | VW25: On | VX25: SubOnNr | VY25: Pos | VZ25: Yell | WA25: Red | WB25: Goal | WC25: Off | WD25: SubOffNr | WF25: On | WG25: SubOnNr | WH25: Pos | WI25: Yell | WJ25: Red | WK25: Goal | WL25: Off | WM25: SubOffNr | WO25: On | WP25: SubOnNr | WQ25: Pos | WR25: Yell | WS25: Red | WT25: Goal | WU25: Off | WV25: SubOffNr
C26: =IF(J26=0,1,0) -> 0 | D26: 1 | F26: =MillwallApps!E68 -> 2014-08-09 | H26: =MillwallApps!G68 -> Leeds | I26: =MillwallApps!H68 -> (H) | J26: =MillwallApps!K68 -> W 2-0 | L26: GK | M26: CB | O26: NPS | R26: MD¹ | S26: FWè | T26: çFW | V26: çST | X26: FWè | AA26: NPS | AC26: CB¹ | AD26: NPS | AE26: çFW | AF26: STè | AN26: MD | AO26: MD | AQ26: LB | BH26: NPS | BI26: RB | CD26: =COUNTIF(L26:CB26,"*") -> 18 | CE26: =CK26-CL26 -> 0 | CG26: =H26&" "&I26&" "&IF(J26=0,"",J26) -> Leeds (H) W 2-0 | CI26: =COUNTA(L26:CC26) -> 18 | CK26: =COUNTIF(L26:CD26,"*n*") -> 4 | CL26: =COUNTIF(L26:CD26,"NPS") -> 4 | CM26: =TEXT($F26,"DD-MMM-YY") -> 09-Aug-14 | CN26: 1 | CO26: ="var "&CO$3&$CN26&"= """&CM26&"""" -> var AppsTableDate1= "09-Aug-14" | CP26: ="var "&CP$3&$CN26&"= """&H26&"""" -> var AppsTableOpponents1= "Leeds" | CQ26: ="var "&CQ$3&$CN26&"= """&I26&"""" -> var AppsTableVen1= "(H)" | CR26: ="var "&CR$3&$CN26&"= """&J26&"""" -> var AppsTableScore1= "W 2-0" | CS26: ="var "&CS$3&$D26&"= """&CT26&"""" -> var ResAppsTableWLD1= "W" | CT26: =(LEFT(J26,1)) -> W | CU26: 1 | CX26: GK | DG26: CB | DY26: NPS | EZ26: MD | FC26: 1 | FI26: FW | FM26: è | FN26: 1 | FP26: ç | FQ26: 2 | FR26: FW | GH26: ç | GI26: 3 | GJ26: ST | HB26: FW | HF26: è | HG26: 2 | IC26: NPS | IU26: CB | IX26: 1 | JD26: NPS | JK26: ç | JL26: 1 | JM26: FW | JV26: ST | JZ26: è | KA26: 3 | MP26: MD | MY26: MD | NQ26: LB | TN26: NPS | TW26: RB
C27: =IF(J27=0,1,0) -> 0 | D27: 2 | F27: =MillwallApps!E69 -> 2014-08-16 | H27: =MillwallApps!G69 -> Fulham | I27: =MillwallApps!H69 -> (A) | J27: =MillwallApps!K69 -> W 1-0 | L27: GK | M27: CB | O27: NPS | R27: MD | S27: FW | T27: çST | V27: NPS | W27: çMD | X27: FW¹è | Z27: NPS | AC27: CB | AD27: NPS | AE27: çFW | AF27: STè | AN27: MDè | AO27: MD | AQ27: LB | BI27: RB | CD27: 18 | CE27: =CK27-CL27 -> 0 | CG27: Fulham (A) W 1-0 | CI27: 18 | CK27: 4 | CL27: 4 | CM27: =TEXT($F27,"DD-MMM-YY") -> 16-Aug-14 | CN27: 2 | CO27: ="var "&CO$3&$CN27&"= """&CM27&"""" -> var AppsTableDate2= "16-Aug-14" | CP27: var AppsTableOpponents2= "Fulham" | CQ27: var AppsTableVen2= "(A)" | CR27: var AppsTableScore2= "W 1-0" | CS27: ="var "&CS$3&$D27&"= """&CT27&"""" -> var ResAppsTableWLD2= "W" | CT27: W | CU27: 2 | CX27: GK | DG27: CB | DY27: NPS | EZ27: MD | FI27: FW | FP27: ç | FQ27: 2 | FR27: ST | GJ27: NPS | GQ27: ç | GR27: 1 | GS27: MD | HB27: FW | HE27: 1 | HF27: è | HG27: 1 | HT27: NPS | IU27: CB | JD27: NPS | JK27: ç | JL27: 3 | JM27: FW | JV27: ST | JZ27: è | KA27: 2 | MP27: MD | MT27: è | MU27: 3 | MY27: MD | NQ27: LB | TW27: RB
C28: 0 | D28: 3 | F28: =MillwallApps!E70 -> 2014-08-19 | H28: =MillwallApps!G70 -> Sheff Wed | I28: =MillwallApps!H70 -> (A) | J28: D 1-1 | L28: GK | M28: CB | O28: NPS | R28: MD | S28: FW | T28: çFW | V28: ST | X28: FW | Z28: NPS | AA28: NPS | AC28: CB | AD28: NPS | AE28: çFW¹ | AF28: çFWn | AN28: MD | AO28: MD | AQ28: LB | BI28: RB | CD28: 18 | CE28: 1 | CF28: =CL28-CM28 -> -41866 | CG28: Sheff Wed (A) D 1-1 | CI28: 18 | CK28: 5 | CL28: 4 | CM28: 19-Aug-14 | CN28: 3 | CO28: var AppsTableDate3= "19-Aug-14" | CP28: var AppsTableOpponents3= "Sheff Wed" | CQ28: var AppsTableVen3= "(A)" | CR28: var AppsTableScore3= "D 1-1" | CS28: var ResAppsTableWLD3= "D" | CT28: D | CU28: 3 | CX28: GK | DG28: CB | DY28: NPS | EZ28: MD | FI28: FW | FP28: ç | FQ28: 3 | FR28: FW | GJ28: ST | HB28: FW | HT28: NPS | IC28: NPS | IU28: CB | JD28: NPS | JK28: ç | JL28: 2 | JM28: FW | JP28: 1 | JT28: ç | JU28: 1 | JV28: FW | JW28: n | MP28: MD | MY28: MD | NQ28: LB | TW28: RB
C29: 0 | D29: 4 | F29: =MillwallApps!E71 -> 2014-08-23 | H29: =MillwallApps!G71 -> Rotherham | I29: =MillwallApps!H71 -> (H) | J29: =MillwallApps!K71 -> L 0-1 | L29: GK | M29: CBn | O29: MDè | R29: MD | S29: FWè | T29: çFW | V29: çST | X29: FW | Z29: NPS | AA29: NPS | AC29: CB | AD29: NPS | AE29: çFW | AF29: STè | AN29: NPS | AO29: MD | AQ29: LB | BI29: RB | CD29: 18 | CE29: 1 | CF29: =CL29-CM29 -> -41870 | CG29: Rotherham (H) L 0-1 | CI29: 18 | CK29: 5 | CL29: 4 | CM29: 23-Aug-14 | CN29: 4 | CO29: var AppsTableDate4= "23-Aug-14" | CP29: var AppsTableOpponents4= "Rotherham" | CQ29: var AppsTableVen4= "(H)" | CR29: var AppsTableScore4= "L 0-1" | CS29: var ResAppsTableWLD4= "L" | CT29: L | CU29: 4 | CX29: GK | DG29: CB | DH29: n | DY29: MD | EC29: è | ED29: 1 | EZ29: MD | FI29: FW | FM29: è | FN29: 2 | FP29: ç | FQ29: 2 | FR29: FW | GH29: ç | GI29: 3 | GJ29: ST | HB29: FW | HT29: NPS | IC29: NPS | IU29: CB | JD29: NPS | JK29: ç | JL29: 1 | JM29: FW | JV29: ST | JZ29: è | KA29: 3 | MP29: NPS | MY29: MD | NQ29: LB | TW29: RB
C30: 0 | D30: 5 | F30: =MillwallApps!E72 -> 2014-08-30 | H30: =MillwallApps!G72 -> Blackpool | I30: =MillwallApps!H72 -> (H) | J30: =MillwallApps!K72 -> W 2-1 | L30: GK | M30: CBn | R30: MD | S30: FWè | T30: NPS | V30: NPS | X30: FW | Z30: NPS | AA30: NPS | AC30: CB | AD30: çCB | AE30: çFW | AF30: STnè | AH30: çSTn | AK30: MDè | AO30: MD¹ | AQ30: LB¹ | BI30: RB | CD30: 18 | CE30: 3 | CG30: Blackpool (H) W 2-1 | CI30: 18 | CK30: 7 | CL30: 4 | CM30: 30-Aug-14 | CN30: 5 | CO30: var AppsTableDate5= "30-Aug-14" | CP30: var AppsTableOpponents5= "Blackpool" | CQ30: var AppsTableVen5= "(H)" | CR30: var AppsTableScore5= "W 2-1" | CS30: var ResAppsTableWLD5= "W" | CT30: W | CU30: 5 | CX30: GK | DG30: CB | DH30: n | EZ30: MD | FI30: FW | FM30: è | FN30: 2 | FR30: NPS | GJ30: NPS | HB30: FW | HT30: NPS | IC30: NPS | IU30: CB | JB30: ç | JC30: 3 | JD30: CB | JK30: ç | JL30: 2 | JM30: FW | JV30: ST | JW30: n | JZ30: è | KA30: 1 | KL30: ç | KM30: 1 | KN30: ST | KO30: n | LO30: MD | LS30: è | LT30: 3 | MY30: MD | NB30: 1 | NQ30: LB | NT30: 1 | TW30: RB
C31: 0 | D31: 6 | F31: =MillwallApps!E73 -> 2014-09-13 | H31: =MillwallApps!G73 -> Ipswich | I31: =MillwallApps!H73 -> (A) | J31: =MillwallApps!K73 -> L 0-2 | L31: GK | M31: CB | R31: MD | T31: FWè | X31: FWè | AA31: NPS | AB31: çMD | AC31: CB | AD31: NPS | AE31: çFW | AF31: çST | AG31: NPS | AH31: ST | AK31: MDè | AO31: MD | AQ31: LB | BI31: RB | CD31: 17 | CE31: 0 | CG31: Ipswich (A) L 0-2 | CI31: 17 | CK31: 3 | CL31: 3 | CM31: 13-Sep-14 | CN31: 6 | CO31: var AppsTableDate6= "13-Sep-14" | CP31: var AppsTableOpponents6= "Ipswich" | CQ31: var AppsTableVen6= "(A)" | CR31: var AppsTableScore6= "L 0-2" | CS31: var ResAppsTableWLD6= "L" | CT31: L | CU31: 6 | CX31: GK | DG31: CB | EZ31: MD | FR31: FW | FV31: è | FW31: 2 | HB31: FW | HF31: è | HG31: 3 | IC31: NPS | IJ31: ç | IK31: 3 | IL31: MD | IU31: CB | JD31: NPS | JK31: ç | JL31: 1 | JM31: FW | JT31: ç | JU31: 2 | JV31: ST | KE31: NPS | KN31: ST | LO31: MD | LS31: è | LT31: 1 | MY31: MD | NQ31: LB | TW31: RB
C32: 0 | D32: 7 | F32: =MillwallApps!E74 -> 2014-09-16 | H32: =MillwallApps!G74 -> Reading | I32: =MillwallApps!H74 -> (A) | J32: =MillwallApps!K74 -> L 2-3 | L32: GK | M32: RB | T32: NPS | X32: çMD | AA32: NPS | AB32: çMDn | AC32: CB¹ | AD32: CBnè | AE32: NPS | AF32: ST¹ | AG32: FWè | AH32: çST | AN32: MD | AO32: MD | AQ32: LB | AU32: MDè | BF32: NPS | BI32: FW | CD32: 18 | CE32: 2 | CG32: Reading (A) L 2-3 | CI32: 18 | CK32: 6 | CL32: 4 | CM32: 16-Sep-14 | CN32: 7 | CO32: var AppsTableDate7= "16-Sep-14" | CP32: var AppsTableOpponents7= "Reading" | CQ32: var AppsTableVen7= "(A)" | CR32: var AppsTableScore7= "L 2-3" | CS32: var ResAppsTableWLD7= "L" | CT32: L | CU32: 7 | CX32: GK | DG32: RB | FR32: NPS | GZ32: ç | HA32: 1 | HB32: MD | IC32: NPS | IJ32: ç | IK32: 2 | IL32: MD | IM32: n | IU32: CB | IX32: 1 | JD32: CB | JE32: n | JH32: è | JI32: 1 | JM32: NPS | JV32: ST | JY32: 1 | KE32: FW | KI32: è | KJ32: 2 | KL32: ç | KM32: 3 | KN32: ST | MP32: MD | MY32: MD | NQ32: LB | OR32: MD | OV32: è | OW32: 3 | PA32: MD | PE32: è | PF32: 3 | SV32: NPS | TW32: FW
C33: 0 | D33: 8 | F33: =MillwallApps!E75 -> 2014-09-20 | H33: =MillwallApps!G75 -> Nottm Forest | I33: =MillwallApps!H75 -> (H) | J33: =MillwallApps!K75 -> D 0-0 | L33: GK | M33: CB | R33: MDn | T33: FWè | X33: FW | AB33: çMD | AC33: CBn | AD33: NPS | AE33: çFW | AF33: çST | AG33: NPS | AH33: STè | AN33: MD | AO33: MD | AQ33: LB | AU33: NPS | BF33: NPS | BI33: RBè | CD33: 18 | CE33: 2 | CG33: Nottm Forest (H) D 0-0 | CI33: 18 | CK33: 6 | CL33: 4 | CM33: 20-Sep-14 | CN33: 8 | CO33: var AppsTableDate8= "20-Sep-14" | CP33: var AppsTableOpponents8= "Nottm Forest" | CQ33: var AppsTableVen8= "(H)" | CR33: var AppsTableScore8= "D 0-0" | CS33: var ResAppsTableWLD8= "D" | CT33: D | CU33: 8 | CX33: GK | DG33: CB | EZ33: MD | FA33: n | FR33: FW | FV33: è | FW33: 3 | HB33: FW | IJ33: ç | IK33: 1 | IL33: MD | IU33: CB | IV33: n | JD33: NPS | JK33: ç | JL33: 3 | JM33: FW | JT33: ç | JU33: 2 | JV33: ST | KE33: NPS | KN33: ST | KR33: è | KS33: 2 | MP33: MD | MY33: MD | NQ33: LB | OR33: NPS | PA33: NPS | SV33: NPS | TW33: RB | UA33: è | UB33: 1
C34: 0 | D34: 9 | F34: =MillwallApps!E76 -> 2014-09-27 | H34: =MillwallApps!G76 -> Huddersfield | I34: =MillwallApps!H76 -> (A) | J34: =MillwallApps!K76 -> L 1-2 | L34: GK | M34: CBn | R34: MDn | V34: NPS | W34: MDnè | X34: FWè | AB34: MD¹è | AC34: CBn | AD34: NPS | AE34: çFW | AF34: ST | AH34: çSTn | AM34: çRB | AN34: RB | AO34: MD | AQ34: LB | AU34: NPS | BF34: NPS | CD34: 18 | CE34: 5 | CG34: Huddersfield (A) L 1-2 | CI34: 18 | CK34: 9 | CL34: 4 | CM34: 27-Sep-14 | CN34: 9 | CO34: var AppsTableDate9= "27-Sep-14" | CP34: var AppsTableOpponents9= "Huddersfield" | CQ34: var AppsTableVen9= "(A)" | CR34: var AppsTableScore9= "L 1-2" | CS34: var ResAppsTableWLD9= "L" | CT34: L | CU34: 9 | CX34: GK | DG34: CB | DH34: n | EZ34: MD | FA34: n | GJ34: NPS | GS34: MD | GT34: n | GW34: è | GX34: 1 | HB34: FW | HF34: è | HG34: 3 | IL34: MD | IO34: 1 | IP34: è | IQ34: 2 | IU34: CB | IV34: n | JD34: NPS | JK34: ç | JL34: 3 | JM34: FW | JV34: ST | KL34: ç | KM34: 1 | KN34: ST | KO34: n | ME34: ç | MF34: 2 | MG34: RB | MP34: RB | MY34: MD | NQ34: LB | OR34: NPS | PA34: NPS | SV34: NPS
C35: 0 | D35: 10 | F35: =MillwallApps!E77 -> 2014-09-30 | H35: =MillwallApps!G77 -> Birmingham | I35: =MillwallApps!H77 -> (H) | J35: =MillwallApps!K77 -> L 1-3 | L35: GK | M35: CB | R35: MD | V35: ST¹ | X35: NPS | AA35: NPS | AB35: MDè | AC35: CB | AD35: NPS | AF35: çST | AH35: STè | AJ35: çFW | AM35: RBè | AN35: MD | AO35: MDn | AQ35: LB | AU35: çRB | BF35: NPS | CD35: 18 | CE35: 1 | CG35: Birmingham (H) L 1-3 | CI35: 18 | CK35: 5 | CL35: 4 | CM35: 30-Sep-14 | CN35: 10 | CO35: var AppsTableDate10= "30-Sep-14" | CP35: var AppsTableOpponents10= "Birmingham" | CQ35: var AppsTableVen10= "(H)" | CR35: var AppsTableScore10= "L 1-3" | CS35: var ResAppsTableWLD10= "L" | CT35: L | CU35: 10 | CX35: GK | DG35: CB | EZ35: MD | GJ35: ST | GM35: 1 | HB35: NPS | IC35: NPS | IL35: MD | IP35: è | IQ35: 2 | IU35: CB | JD35: NPS | JT35: ç | JU35: 3 | JV35: ST | KN35: ST | KR35: è | KS35: 3 | LD35: ç | LE35: 2 | LF35: FW | MG35: RB | MK35: è | ML35: 1 | MP35: MD | MY35: MD | MZ35: n | NQ35: LB | OP35: ç | OQ35: 1 | OR35: RB | OY35: ç | OZ35: 1 | PA35: RB | SV35: NPS
C36: 0 | D36: 11 | F36: =MillwallApps!E78 -> 2014-10-04 | H36: =MillwallApps!G78 -> Derby | I36: =MillwallApps!H78 -> (A) | J36: =MillwallApps!K78 -> D 0-0 | L36: GKn | M36: RBn | N36: NPS | R36: CB | V36: STè | X36: FWn | AA36: LB | AB36: çMD | AC36: NPS | AD36: CBn | AF36: çST | AJ36: FWè | AK36: NPS | AN36: MDè | AO36: MD | AQ36: çFW | AU36: MD | BF36: NPS | CD36: 18 | CE36: 4 | CG36: Derby (A) D 0-0 | CI36: 18 | CK36: 8 | CL36: 4 | CM36: 04-Oct-14 | CN36: 11 | CO36: var AppsTableDate11= "04-Oct-14" | CP36: var AppsTableOpponents11= "Derby" | CQ36: var AppsTableVen11= "(A)" | CR36: var AppsTableScore11= "D 0-0" | CS36: var ResAppsTableWLD11= "D" | CT36: D | CU36: 11 | CX36: GK | CY36: n | DG36: RB | DH36: n | DP36: NPS | EZ36: CB | GJ36: ST | GN36: è | GO36: 2 | HB36: FW | HC36: n | IC36: LB | IJ36: ç | IK36: 3 | IL36: MD | IU36: NPS | JD36: CB | JE36: n | JT36: ç | JU36: 2 | JV36: ST | LF36: FW | LJ36: è | LK36: 1 | LO36: NPS | MP36: MD | MT36: è | MU36: 3 | MY36: MD | NO36: ç | NP36: 1 | NQ36: FW | OR36: MD | PA36: MD | SV36: NPS
C37: 0 | D37: 12 | F37: =MillwallApps!E79 -> 2014-10-18 | H37: =MillwallApps!G79 -> Wolves | I37: =MillwallApps!H79 -> (H) | J37: =MillwallApps!K79 -> D 3-3 | L37: GK | M37: RB | N37: NPS | R37: CBn | S37: çFW | V37: ST¹ | X37: FW | AA37: LBn | AB37: NPS | AC37: NPS | AD37: CB | AF37: çST² | AJ37: FWè | AN37: MD | AO37: MD | AQ37: çLW | AU37: MDè | BF37: NPS | CD37: 18 | CE37: 2 | CG37: Wolves (H) D 3-3 | CI37: 18 | CK37: 6 | CL37: 4 | CM37: 18-Oct-14 | CN37: 12 | CO37: var AppsTableDate12= "18-Oct-14" | CP37: var AppsTableOpponents12= "Wolves" | CQ37: var AppsTableVen12= "(H)" | CR37: var AppsTableScore12= "D 3-3" | CS37: var ResAppsTableWLD12= "D" | CT37: D | CU37: 12 | CX37: GK | DG37: RB | DP37: NPS | EZ37: CB | FB37: n | FG37: ç | FH37: 1 | FI37: FW | GJ37: ST | GM37: 1 | HB37: FW | IC37: LB | ID37: n | IL37: NPS | IU37: NPS | JD37: CB | JT37: ç | JU37: 2 | JV37: ST | JY37: 2 | LF37: FW | LJ37: è | LK37: 1 | MP37: MD | MY37: MD | NO37: ç | NP37: 3 | NQ37: LW | OR37: MD | OV37: è | OW37: 3 | PA37: MD | PE37: è | PF37: 3 | SV37: NPS
C38: 0 | D38: 13 | F38: =MillwallApps!E80 -> 2014-10-21 | H38: =MillwallApps!G80 -> Wigan | I38: =MillwallApps!H80 -> (A) | J38: =MillwallApps!K80 -> D 0-0 | L38: GK | M38: CBn | N38: NPS | S38: RWè | V38: STè | X38: LWè | AA38: çLB | AB38: çMD | AC38: NPS | AD38: CB | AF38: ST | AG38: çFW | AK38: NPS | AO38: MDn | AQ38: LB | AS38: RBn | AU38: MD | BF38: NPS | CD38: 18 | CE38: 3 | CF38: 1 | CG38: Wigan (A) D 0-0 | CI38: 18 | CK38: 7 | CL38: 4 | CM38: 21-Oct-14 | CN38: 13 | CO38: var AppsTableDate13= "21-Oct-14" | CP38: var AppsTableOpponents13= "Wigan" | CQ38: var AppsTableVen13= "(A)" | CR38: var AppsTableScore13= "D 0-0" | CS38: var ResAppsTableWLD13= "D" | CT38: D | CU38: 13 | CX38: GK | DG38: CB | DP38: NPS | FI38: RW | FM38: è | FN38: 3 | GJ38: ST | GN38: è | GO38: 2 | HB38: LW | HF38: è | HG38: 1 | IA38: ç | IB38: 3 | IC38: LB | IJ38: ç | IK38: 1 | IL38: MD | IU38: NPS | JD38: CB | JV38: ST | KC38: ç | KD38: 2 | KE38: FW | LO38: NPS | MY38: MD | NQ38: LB | OI38: RB | OR38: MD | PA38: MD | SV38: NPS
C39: 0 | D39: 14 | F39: =MillwallApps!E81 -> 2014-10-25 | H39: =MillwallApps!G81 -> Cardiff | I39: =MillwallApps!H81 -> (H) | J39: =MillwallApps!K81 -> W 1-0 | L39: GK | N39: CB¹ | R39: MD | S39: FW | V39: FW | X39: çFW | AA39: LB | AB39: MD | AC39: CBn | AD39: çCB | AF39: STè | AG39: NPS | AJ39: NPS | AN39: NPS | AO39: MDn | AS39: RB | AU39: NPS | BF39: NPS | CD39: 18 | CE39: 2 | CF39: 1 | CG39: Cardiff (H) W 1-0 | CI39: 18 | CK39: 7 | CL39: 5 | CM39: 25-Oct-14 | CN39: 14 | CO39: var AppsTableDate14= "25-Oct-14" | CP39: var AppsTableOpponents14= "Cardiff" | CQ39: var AppsTableVen14= "(H)" | CR39: var AppsTableScore14= "W 1-0" | CS39: var ResAppsTableWLD14= "W" | CT39: W | CU39: 14 | CX39: GK | DP39: CB | DS39: 1 | EZ39: MD | FI39: FW | GJ39: FW | GZ39: ç | HA39: 2 | HB39: FW | IC39: LB | IL39: MD | IU39: CB | IV39: n | JB39: ç | JC39: 1 | JD39: CB | JV39: ST | JZ39: è | KA39: 2 | KE39: NPS | LF39: NPS | MP39: NPS | MY39: MD | MZ39: n | OI39: RB | OR39: NPS | PA39: NPS | SV39: NPS
C40: 0 | D40: 15 | F40: =MillwallApps!E82 -> 2014-11-01 | H40: =MillwallApps!G82 -> Watford | I40: =MillwallApps!H82 -> (A) | J40: =MillwallApps!K82 -> L 1-3 | L40: GKn | M40: CBn | N40: NPS | R40: MDn | S40: FWè | X40: FW¹ | AA40: LBnè | AB40: MD | AC40: NPS | AD40: CB | AE40: çST | AF40: STnè | AJ40: çFW | AO40: MD | AQ40: çLB | AS40: RB | AU40: NPS | BF40: NPS | CD40: 18 | CE40: 5 | CF40: 2 | CG40: Watford (A) L 1-3 | CI40: 18 | CK40: 9 | CL40: 4 | CM40: 01-Nov-14 | CN40: 15 | CO40: var AppsTableDate15= "01-Nov-14" | CP40: var AppsTableOpponents15= "Watford" | CQ40: var AppsTableVen15= "(A)" | CR40: var AppsTableScore15= "L 1-3" | CS40: var ResAppsTableWLD15= "L" | CT40: L | CU40: 15 | CX40: GK | CY40: n | DG40: CB | DH40: n | DP40: NPS | EZ40: MD | FA40: n | FI40: FW | FM40: è | FN40: 3 | HB40: FW | HE40: 1 | IC40: LB | ID40: n | IG40: è | IH40: 1 | IL40: MD | IU40: NPS | JD40: CB | JK40: ç | JL40: 2 | JM40: ST | JV40: ST | JW40: n | JZ40: è | KA40: 2 | LD40: ç | LE40: 3 | LF40: FW | MY40: MD | NO40: ç | NP40: 1 | NQ40: LB | OI40: RB | SV40: NPS
C41: 0 | D41: 16 | F41: =MillwallApps!E83 -> 2014-11-04 | H41: =MillwallApps!G83 -> Blackburn | I41: =MillwallApps!H83 -> (H) | J41: =MillwallApps!K83 -> D 2-2 | L41: GK | M41: çRB | N41: CB | R41: MD¹n | S41: FW¹ | V41: çST | X41: FW | AA41: LB | AB41: MDè | AC41: CB | AD41: NPS | AE41: çST | AF41: STnè | AH41: NPS | AO41: MDè | AS41: RBn | AU41: NPS | BF41: NPS | CD41: 18 | CE41: 3 | CF41: 1 | CG41: Blackburn (H) D 2-2 | CI41: 18 | CK41: 7 | CL41: 4 | CM41: 04-Nov-14 | CN41: 16 | CO41: var AppsTableDate16= "04-Nov-14" | CP41: var AppsTableOpponents16= "Blackburn" | CQ41: var AppsTableVen16= "(H)" | CR41: var AppsTableScore16= "D 2-2" | CS41: var ResAppsTableWLD16= "D" | CT41: D | CU41: 16 | CX41: GK | DE41: ç | DF41: 2 | DG41: RB | DP41: CB | EZ41: MD | FA41: n | FC41: 1 | FI41: FW | FL41: 1 | GH41: ç | GI41: 1 | GJ41: ST | HB41: FW | IC41: LB | IL41: MD | IP41: è | IQ41: 1 | IU41: CB | JD41: NPS | JK41: ç | JL41: 3 | JM41: ST | JV41: ST | JW41: n | JZ41: è | KA41: 3 | KN41: NPS | MY41: MD | NC41: è | ND41: 2 | OI41: RB | OK41: n | OR41: NPS | PA41: NPS | SV41: NPS
C42: 0 | D42: 17 | F42: =MillwallApps!E84 -> 2014-11-08 | H42: =MillwallApps!G84 -> Brentford | I42: =MillwallApps!H84 -> (H) | J42: =MillwallApps!K84 -> L 2-3 | L42: GK | M42: RB¹n | N42: CB | R42: MD | S42: FW | V42: FW¹ | X42: NPS | AA42: LB | AB42: çMD | AC42: CBè | AD42: NPS | AE42: MDè | AF42: ST | AH42: çST | AN42: NPS | AO42: çMD | AU42: MDè | BF42: NPS | CD42: 18 | CE42: 1 | CF42: 3 | CG42: Brentford (H) L 2-3 | CI42: 18 | CK42: 5 | CL42: 4 | CM42: 08-Nov-14 | CN42: 17 | CO42: var AppsTableDate17= "08-Nov-14" | CP42: var AppsTableOpponents17= "Brentford" | CQ42: var AppsTableVen17= "(H)" | CR42: var AppsTableScore17= "L 2-3" | CS42: var ResAppsTableWLD17= "L" | CT42: L | CU42: 17 | CX42: GK | DG42: RB | DH42: n | DJ42: 1 | DP42: CB | EZ42: MD | FI42: FW | GJ42: FW | GM42: 1 | HB42: NPS | IC42: LB | IJ42: ç | IK42: 3 | IL42: MD | IU42: CB | IY42: è | IZ42: 2 | JD42: NPS | JM42: MD | JQ42: è | JR42: 1 | JV42: ST | KL42: ç | KM42: 2 | KN42: ST | MP42: NPS | MW42: ç | MX42: 2 | MY42: MD | OR42: MD | OV42: è | OW42: 3 | PA42: MD | PE42: è | PF42: 3 | SV42: NPS
C43: 0 | D43: 18 | F43: =MillwallApps!E85 -> 2014-11-22 | H43: =MillwallApps!G85 -> Charlton | I43: =MillwallApps!H85 -> (A) | J43: =MillwallApps!K85 -> D 0-0 | L43: GK | M43: RB | N43: NPS | R43: MD | S43: FW | T43: çFW | V43: STnè | X43: FWè | AB43: MDè | AC43: CBn | AD43: CB | AE43: çFW | AF43: çST | AO43: MD | AQ43: LB | AU43: NPS | AV43: NPS | BF43: NPS | CD43: 18 | CE43: 2 | CF43: 4 | CG43: Charlton (A) D 0-0 | CI43: 18 | CK43: 6 | CL43: 4 | CM43: 22-Nov-14 | CN43: 18 | CO43: var AppsTableDate18= "22-Nov-14" | CP43: var AppsTableOpponents18= "Charlton" | CQ43: var AppsTableVen18= "(A)" | CR43: var AppsTableScore18= "D 0-0" | CS43: var ResAppsTableWLD18= "D" | CT43: D | CU43: 18 | CX43: GK | DG43: RB | DP43: NPS | EZ43: MD | FI43: FW | FP43: ç | FQ43: 1 | FR43: FW | GJ43: ST | GK43: n | GN43: è | GO43: 2 | HB43: FW | HF43: è | HG43: 3 | IL43: MD | IP43: è | IQ43: 1 | IU43: CB | IV43: n | JD43: CB | JK43: ç | JL43: 3 | JM43: FW | JT43: ç | JU43: 2 | JV43: ST | MY43: MD | NQ43: LB | OR43: NPS | PA43: NPS | PJ43: NPS | SV43: NPS
C44: 0 | D44: 19 | F44: =MillwallApps!E86 -> 2014-11-29 | H44: =MillwallApps!G86 -> Bournemouth | I44: =MillwallApps!H86 -> (A) | J44: =MillwallApps!K86 -> D 2-2 | L44: GK | M44: RB | N44: NPS | R44: MD | S44: FWè | T44: çFW | V44: ST | X44: FWnè | AB44: MD¹n | AC44: CBè | AD44: CB | AE44: çFW¹ | AF44: çST | AK44: NPS | AO44: MD | AQ44: LB | AV44: NPS | BF44: NPS | CD44: 18 | CE44: 2 | CF44: - | CG44: Bournemouth (A) D 2-2 | CI44: 18 | CK44: 6 | CL44: 4 | CM44: 29-Nov-14 | CN44: 19 | CO44: var AppsTableDate19= "29-Nov-14" | CP44: var AppsTableOpponents19= "Bournemouth" | CQ44: var AppsTableVen19= "(A)" | CR44: var AppsTableScore19= "D 2-2" | CS44: var ResAppsTableWLD19= "D" | CT44: D | CU44: 19 | CX44: GK | DG44: RB | DP44: NPS | EZ44: MD | FI44: FW | FM44: è | FN44: 1 | FP44: ç | FQ44: 1 | FR44: FW | GJ44: ST | HB44: FW | HC44: n | HF44: è | HG44: 3 | IL44: MD | IM44: n | IO44: 1 | IU44: CB | IY44: è | IZ44: 2 | JD44: CB | JK44: ç | JL44: 3 | JM44: FW | JP44: 1 | JT44: ç | JU44: 2 | JV44: ST | LO44: NPS | MY44: MD | NQ44: LB | PJ44: NPS | SV44: NPS
C45: 0 | D45: 20 | F45: =MillwallApps!E87 -> 2014-12-06 | H45: =MillwallApps!G87 -> Middlesboro | I45: =MillwallApps!H87 -> (H) | J45: =MillwallApps!K87 -> L 1-5 | L45: GK | M45: CB | N45: çCB | R45: CB | T45: NPS | V45: ST | X45: çMD | AA45: NPS | AB45: MDè | AD45: CBè | AE45: çFW | AF45: ST | AK45: MDè | AO45: MD¹ | AQ45: LB | AS45: RB | AV45: NPS | BF45: NPS | CD45: 16 | CE45: 0 | CF45: - | CG45: Middlesboro (H) L 1-5 | CI45: 18 | CK45: 4 | CL45: 4 | CM45: 06-Dec-14 | CN45: 20 | CO45: var AppsTableDate20= "06-Dec-14" | CP45: var AppsTableOpponents20= "Middlesboro" | CQ45: var AppsTableVen20= "(H)" | CR45: var AppsTableScore20= "L 1-5" | CS45: var ResAppsTableWLD20= "L" | CT45: L | CU45: 20 | CX45: GK | DG45: CB | DN45: ç | DO45: 1 | DP45: CB | EZ45: CB | FR45: NPS | GJ45: ST | GZ45: ç | HA45: 3 | HB45: MD | IC45: NPS | IL45: MD | IP45: è | IQ45: 3 | JD45: CB | JH45: è | JI45: 1 | JK45: ç | JL45: 2 | JM45: FW | JV45: ST | LO45: MD | LS45: è | LT45: 2 | MY45: MD | NB45: 1 | NQ45: LB | OI45: RB | PJ45: NPS | SV45: NPS
C46: 0 | D46: 21 | F46: =MillwallApps!E88 -> 2014-12-12 | H46: =MillwallApps!G88 -> Brighton | I46: =MillwallApps!H88 -> (A) | J46: =MillwallApps!K88 -> W 1-0 | L46: GKn | M46: çCB | N46: CBn | R46: MD | T46: NPS | V46: ST¹è | X46: FW | AA46: NPS | AB46: NPS | AC46: CBn | AE46: FWè | AF46: çST | AN46: çMD | AO46: MDn | AQ46: LB | AS46: RB | AV46: MDè | BF46: NPS | CD46: =COUNTIF(L46:CB46,"*") -> 18 | CE46: 4 | CF46: 2 | CG46: Brighton (A) W 1-0 | CI46: 18 | CK46: 8 | CL46: 4 | CM46: 12-Dec-14 | CN46: 21 | CO46: var AppsTableDate21= "12-Dec-14" | CP46: var AppsTableOpponents21= "Brighton" | CQ46: var AppsTableVen21= "(A)" | CR46: var AppsTableScore21= "W 1-0" | CS46: var ResAppsTableWLD21= "W" | CT46: W | CU46: 21 | CX46: GK | CY46: n | DE46: ç | DF46: 3 | DG46: CB | DP46: CB | DQ46: n | EZ46: MD | FR46: NPS | GJ46: ST | GM46: 1 | GN46: è | GO46: 2 | HB46: FW | IC46: NPS | IL46: NPS | IU46: CB | IV46: n | JM46: FW | JQ46: è | JR46: 1 | JT46: ç | JU46: 2 | JV46: ST | MN46: ç | MO46: 1 | MP46: MD | MY46: MD | MZ46: n | NQ46: LB | OI46: RB | PJ46: MD | PN46: è | PO46: 3 | SV46: NPS
C47: 0 | D47: 22 | F47: =MillwallApps!E89 -> 2014-12-19 | H47: =MillwallApps!G89 -> Bolton | I47: =MillwallApps!H89 -> (H) | J47: =MillwallApps!K89 -> L 0-1 | L47: GK | M47: CBn | N47: CBn | R47: MD | S47: çFW | T47: NPS | V47: ST | X47: FW | AA47: NPS | AD47: NPS | AE47: FWè | AF47: çMD | AN47: çMD | AO47: MDè | AQ47: LB | AS47: RBè | AV47: MD | BF47: NPS | CD47: 18 | CE47: 2 | CF47: 2 | CG47: Bolton (H) L 0-1 | CI47: 18 | CK47: 6 | CL47: 4 | CM47: 19-Dec-14 | CN47: 22 | CO47: var AppsTableDate22= "19-Dec-14" | CP47: var AppsTableOpponents22= "Bolton" | CQ47: var AppsTableVen22= "(H)" | CR47: var AppsTableScore22= "L 0-1" | CS47: var ResAppsTableWLD22= "L" | CT47: L | CU47: 22 | CX47: GK | DG47: CB | DH47: n | DP47: CB | DQ47: n | EZ47: MD | FG47: ç | FH47: 2 | FI47: FW | FR47: NPS | GJ47: ST | HB47: FW | IC47: NPS | JD47: NPS | JM47: FW | JQ47: è | JR47: 2 | JT47: ç | JU47: 1 | JV47: MD | MN47: ç | MO47: 3 | MP47: MD | MY47: MD | NC47: è | ND47: 1 | NQ47: LB | OI47: RB | OM47: è | ON47: 3 | PJ47: MD | SV47: NPS
C48: 0 | D48: 23 | F48: =MillwallApps!E90 -> 2014-12-26 | H48: =MillwallApps!G90 -> Norwich City | I48: =MillwallApps!H90 -> (A) | J48: =MillwallApps!K90 -> L 1-6 | L48: GK | M48: RB | N48: CB | R48: MD | S48: FW | T48: çFW¹ | V48: çST | AA48: LB | AB48: NPS | AC48: CBn | AE48: MDè | AF48: STè | AN48: çMD | AO48: NPS | AS48: NPS | AV48: MDè | AW48: FW | BF48: NPS | CD48: 18 | CE48: 1 | CF48: 4 | CG48: Norwich City (A) L 1-6 | CI48: 18 | CK48: 5 | CL48: 4 | CM48: 26-Dec-14 | CN48: 23 | CO48: var AppsTableDate23= "26-Dec-14" | CP48: var AppsTableOpponents23= "Norwich City" | CQ48: var AppsTableVen23= "(A)" | CR48: var AppsTableScore23= "L 1-6" | CS48: var ResAppsTableWLD23= "L" | CT48: L | CU48: 23 | CX48: GK | DG48: RB | DP48: CB | EZ48: MD | FI48: FW | FP48: ç | FQ48: 2 | FR48: FW | FU48: 1 | GH48: ç | GI48: 3 | GJ48: ST | IC48: LB | IL48: NPS | IU48: CB | IV48: n | JM48: MD | JQ48: è | JR48: 2 | JV48: ST | JZ48: è | KA48: 3 | MN48: ç | MO48: 1 | MP48: MD | MY48: NPS | OI48: NPS | PJ48: MD | PN48: è | PO48: 1 | PS48: FW | SV48: NPS
C49: 0 | D49: 24 | F49: =MillwallApps!E91 -> 2014-12-28 | H49: =MillwallApps!G91 -> Bournemouth | I49: =MillwallApps!H91 -> (H) | J49: =MillwallApps!K91 -> L 0-2 | L49: GKn | M49: çCB | N49: CBnè | R49: MDn | S49: FWè | T49: NPS | V49: ST | X49: FW | AB49: NPS | AC49: NPS | AE49: çFW | AF49: çST | AN49: MD | AO49: MDn | AQ49: LB | AS49: RBnè | AZ49: CB | BF49: NPS | CD49: 18 | CE49: 2 | CF49: 2 | CG49: Bournemouth (H) L 0-2 | CI49: 18 | CK49: 9 | CL49: 4 | CM49: 28-Dec-14 | CN49: 24 | CO49: var AppsTableDate24= "28-Dec-14" | CP49: var AppsTableOpponents24= "Bournemouth" | CQ49: var AppsTableVen24= "(H)" | CR49: var AppsTableScore24= "L 0-2" | CS49: var ResAppsTableWLD24= "L" | CT49: L | CU49: 24 | CX49: GK | CY49: n | DE49: ç | DF49: 3 | DG49: CB | DP49: CB | DQ49: n | DT49: è | DU49: 3 | EZ49: MD | FB49: n | FI49: FW | FM49: è | FN49: 2 | FR49: NPS | GJ49: ST | HB49: FW | IL49: NPS | IU49: NPS | JK49: ç | JL49: 2 | JM49: FW | JT49: ç | JU49: 1 | JV49: ST | MP49: MD | MY49: MD | MZ49: n | NQ49: LB | OI49: RB | OJ49: n | OM49: è | ON49: 1 | QT49: CB | SV49: NPS
C50: 0 | D50: 25 | F50: =MillwallApps!E92 -> 2015-01-10 | H50: =MillwallApps!G92 -> Blackpool | I50: =MillwallApps!H92 -> (A) | J50: =MillwallApps!K92 -> L 0-1 | L50: GK | M50: CB | N50: NPS | S50: FW | V50: çST | X50: FW | AA50: NPS | AB50: NPS | AE50: çMD | AF50: STè | AI50: LBè | AN50: MD | AO50: MDè | AS50: RB | AU50: MD | AZ50: CB | BG50: çST | BH50: NPS | CD50: 18 | CE50: 0 | CF50: 1 | CG50: Blackpool (A) L 0-1 | CI50: 18 | CK50: 4 | CL50: 4 | CM50: 10-Jan-15 | CN50: 25 | CO50: var AppsTableDate25= "10-Jan-15" | CP50: var AppsTableOpponents25= "Blackpool" | CQ50: var AppsTableVen25= "(A)" | CR50: var AppsTableScore25= "L 0-1" | CS50: var ResAppsTableWLD25= "L" | CT50: L | CU50: 25 | CX50: GK | DG50: CB | DP50: NPS | FI50: FW | GH50: ç | GI50: 2 | GJ50: ST | HB50: FW | IC50: NPS | IL50: NPS | JK50: ç | JL50: 3 | JM50: MD | JV50: ST | JZ50: è | KA50: 1 | KW50: LB | LA50: è | LB50: 2 | MP50: MD | MY50: MD | NC50: è | ND50: 3 | OI50: RB | OR50: MD | PA50: MD | QT50: CB | TC50: ç | TD50: 1 | TE50: ST | TN50: NPS
C51: 0 | D51: 26 | F51: =MillwallApps!E93 -> 2015-01-17 | H51: =MillwallApps!G93 -> Ipswich | I51: =MillwallApps!H93 -> (H) | J51: =MillwallApps!K93 -> L 1-3 | L51: GK | N51: NPS | P51: RBè | S51: çFW | U51: FWè | V51: ST | X51: NPS | AD51: CB | AE51: FW¹ | AF51: çST | AI51: LB | AK51: MD | AN51: MD | AO51: NPS | AS51: NPS | AZ51: CB | BF51: NPS | BG51: ST | CD51: 18 | CE51: 0 | CF51: 1 | CG51: Ipswich (H) L 1-3 | CI51: 18 | CK51: 5 | CL51: 5 | CM51: 17-Jan-15 | CN51: 26 | CO51: var AppsTableDate26= "17-Jan-15" | CP51: var AppsTableOpponents26= "Ipswich" | CQ51: var AppsTableVen26= "(H)" | CR51: var AppsTableScore26= "L 1-3" | CS51: var ResAppsTableWLD26= "L" | CT51: L | CU51: 26 | CX51: GK | DP51: NPS | EH51: RB | EL51: è | EM51: 2 | FG51: ç | FH51: 1 | FI51: FW | GA51: FW | GE51: è | GF51: 1 | GJ51: ST | HB51: NPS | JD51: CB | JM51: FW | JP51: 1 | JT51: ç | JU51: 2 | JV51: ST | KW51: LB | LO51: MD | MP51: MD | MY51: NPS | OI51: NPS | QT51: CB | SV51: NPS | TE51: ST
C52: 0 | D52: 27 | F52: =MillwallApps!E94 -> 2015-01-27 | H52: =MillwallApps!G94 -> Reading | I52: =MillwallApps!H94 -> (H) | J52: =MillwallApps!K94 -> D 0-0 | L52: GK | M52: çCB | P52: RB | Q52: CB | R52: MD | S52: çLW | U52: LWè | V52: ST | Y52: çRW | AB52: NPS | AC52: NPS | AE52: RWè | AF52: NPS | AI52: LB | AN52: MD | AZ52: CBn | BF52: NPS | BG52: STè | CD52: 18 | CE52: 1 | CF52: 2 | CG52: Reading (H) D 0-0 | CI52: 18 | CK52: 5 | CL52: 4 | CM52: 27-Jan-15 | CN52: 27 | CO52: var AppsTableDate27= "27-Jan-15" | CP52: var AppsTableOpponents27= "Reading" | CQ52: var AppsTableVen27= "(H)" | CR52: var AppsTableScore27= "D 0-0" | CS52: var ResAppsTableWLD27= "D" | CT52: D | CU52: 27 | CX52: GK | DE52: ç | DF52: 1 | DG52: CB | EH52: RB | EQ52: CB | EZ52: MD | FG52: ç | FH52: 3 | FI52: LW | GA52: LW | GE52: è | GF52: 3 | GJ52: ST | HI52: ç | HJ52: 2 | HK52: RW | IL52: NPS | IU52: NPS | JM52: RW | JQ52: è | JR52: 1 | JV52: NPS | KW52: LB | MP52: MD | QT52: CB | QV52: n | SV52: NPS | TE52: ST | TI52: è | TJ52: 2
C53: 0 | D53: 28 | F53: =MillwallApps!E95 -> 2015-01-31 | H53: =MillwallApps!G95 -> Nottm Forest | I53: =MillwallApps!H95 -> (A) | J53: =MillwallApps!K95 -> W 1-0 | L53: GK | M53: CB | P53: RB | Q53: CB | R53: MDn | S53: FWè | U53: MD | V53: çST | AB53: çMDn | AC53: LB | AD53: NPS | AE53: FWè | AF53: çST¹ | AJ53: NPS | AK53: NPS | AN53: MD | BF53: NPS | BG53: STè | CD53: 18 | CE53: 2 | CF53: - | CG53: Nottm Forest (A) W 1-0 | CI53: 18 | CK53: 6 | CL53: 4 | CM53: 31-Jan-15 | CN53: 28 | CO53: var AppsTableDate28= "31-Jan-15" | CP53: var AppsTableOpponents28= "Nottm Forest" | CQ53: var AppsTableVen28= "(A)" | CR53: var AppsTableScore28= "W 1-0" | CS53: var ResAppsTableWLD28= "W" | CT53: W | CU53: 28 | CX53: GK | DG53: CB | EH53: RB | EQ53: CB | EZ53: MD | FA53: n | FI53: FW | FM53: è | FN53: 1 | GA53: MD | GH53: ç | GI53: 2 | GJ53: ST | IJ53: ç | IK53: 1 | IL53: MD | IM53: n | IU53: LB | JD53: NPS | JM53: FW | JQ53: è | JR53: 3 | JT53: ç | JU53: 3 | JV53: ST | JY53: 1 | LF53: NPS | LO53: NPS | MP53: MD | SV53: NPS | TE53: ST | TI53: è | TJ53: 2
C54: 0 | D54: 29 | F54: =MillwallApps!E96 -> 2015-02-07 | H54: =MillwallApps!G96 -> Huddersfield | I54: =MillwallApps!H96 -> (H) | J54: =MillwallApps!K96 -> L 1-3 | L54: GKn | M54: CB | P54: RB | Q54: CB | R54: MDn | U54: FW | V54: çST | X54: çFW | AB54: MDnè | AC54: LB | AD54: NPS | AE54: FWè | AF54: çST | AI54: NPS | AN54: MD | AP54: NPS | AR54: NPS | BG54: ST¹è | CD54: 18 | CE54: 3 | CF54: 2 | CG54: Huddersfield (H) L 1-3 | CI54: 18 | CK54: 7 | CL54: 4 | CM54: 07-Feb-15 | CN54: 29 | CO54: var AppsTableDate29= "07-Feb-15" | CP54: var AppsTableOpponents29= "Huddersfield" | CQ54: var AppsTableVen29= "(H)" | CR54: var AppsTableScore29= "L 1-3" | CS54: var ResAppsTableWLD29= "L" | CT54: L | CU54: 29 | CX54: GK | CY54: n | DG54: CB | EH54: RB | EQ54: CB | EZ54: MD | FA54: n | GA54: FW | GH54: ç | GI54: 2 | GJ54: ST | GZ54: ç | HA54: 3 | HB54: FW | IL54: MD | IM54: n | IP54: è | IQ54: 2 | IU54: LB | JD54: NPS | JM54: FW | JQ54: è | JR54: 3 | JT54: ç | JU54: 1 | JV54: ST | KW54: NPS | MP54: MD | NH54: NPS | NZ54: NPS | TE54: ST | TH54: 1 | TI54: è | TJ54: 1
C55: 0 | D55: 30 | F55: =MillwallApps!E97 -> 2015-02-10 | H55: =MillwallApps!G97 -> Birmingham | I55: =MillwallApps!H97 -> (A) | J55: =MillwallApps!K97 -> W 1-0 | L55: GK | M55: CB¹ | P55: RBn | Q55: CB | R55: MDn | S55: FWnè | U55: MDè | V55: çST | X55: FW | AB55: NPS | AC55: çCB | AE55: NPS | AF55: NPS | AI55: LB | AN55: çMD | AP55: NPS | AR55: MD | BG55: STè | CD55: 18 | CE55: 3 | CF55: 3 | CG55: Birmingham (A) W 1-0 | CI55: 18 | CK55: 7 | CL55: 4 | CM55: 10-Feb-15 | CN55: 30 | CO55: var AppsTableDate30= "10-Feb-15" | CP55: var AppsTableOpponents30= "Birmingham" | CQ55: var AppsTableVen30= "(A)" | CR55: var AppsTableScore30= "W 1-0" | CS55: var ResAppsTableWLD30= "W" | CT55: W | CU55: 30 | CX55: GK | DG55: CB | DJ55: 1 | EH55: RB | EI55: n | EQ55: CB | EZ55: MD | FA55: n | FI55: FW | FJ55: n | FM55: è | FN55: 2 | GA55: MD | GE55: è | GF55: 3 | GH55: ç | GI55: 1 | GJ55: ST | HB55: FW | IL55: NPS | IS55: ç | IT55: 2 | IU55: CB | JM55: NPS | JV55: NPS | KW55: LB | MN55: ç | MO55: 3 | MP55: MD | NH55: NPS | NZ55: MD | TE55: ST | TI55: è | TJ55: 3
C56: 0 | D56: 31 | F56: =MillwallApps!E98 -> 2015-02-14 | H56: =MillwallApps!G98 -> Leeds | I56: =MillwallApps!H98 -> (A) | J56: =MillwallApps!K98 -> L 0-1 | L56: GK | M56: CB | P56: RB | Q56: CB | R56: MD | S56: FW | U56: MDè | V56: çST | X56: FW | AB56: çMD | AC56: NPS | AF56: çST | AI56: LB | AJ56: NPS | AN56: NPS | AP56: NPS | AV56: MDnè | BG56: STnè | CD56: 18 | CE56: 2 | CF56: 3 | CG56: Leeds (A) L 0-1 | CI56: 18 | CK56: 6 | CL56: 4 | CM56: 14-Feb-15 | CN56: 31 | CO56: var AppsTableDate31= "14-Feb-15" | CP56: var AppsTableOpponents31= "Leeds" | CQ56: var AppsTableVen31= "(A)" | CR56: var AppsTableScore31= "L 0-1" | CS56: var ResAppsTableWLD31= "L" | CT56: L | CU56: 31 | CX56: GK | DG56: CB | EH56: RB | EQ56: CB | EZ56: MD | FI56: FW | GA56: MD | GE56: è | GF56: 3 | GH56: ç | GI56: 1 | GJ56: ST | HB56: FW | IJ56: ç | IK56: 2 | IL56: MD | IU56: NPS | JT56: ç | JU56: 3 | JV56: ST | KW56: LB | LF56: NPS | MP56: NPS | NH56: NPS | PJ56: MD | PK56: n | PN56: è | PO56: 2 | TE56: ST | TF56: n | TI56: è | TJ56: 1
C57: 0 | D57: 32 | F57: =MillwallApps!E99 -> 2015-02-21 | H57: =MillwallApps!G99 -> Fulham | I57: =MillwallApps!H99 -> (H) | J57: =MillwallApps!K99 -> D 0-0 | L57: GK | M57: CB | Q57: CB | R57: MD | U57: MD | V57: ST | X57: FWè | AB57: çMD | AC57: NPS | AF57: çST | AI57: LB | AJ57: FWè | AN57: RBn | AR57: MDè | AT57: çST | AZ57: NPS | BF57: NPS | BG57: NPS | CD57: 18 | CE57: 1 | CF57: 3 | CG57: Fulham (H) D 0-0 | CI57: 18 | CK57: 5 | CL57: 4 | CM57: 21-Feb-15 | CN57: 32 | CO57: var AppsTableDate32= "21-Feb-15" | CP57: var AppsTableOpponents32= "Fulham" | CQ57: var AppsTableVen32= "(H)" | CR57: var AppsTableScore32= "D 0-0" | CS57: var ResAppsTableWLD32= "D" | CT57: D | CU57: 32 | CX57: GK | DG57: CB | EQ57: CB | EZ57: MD | GA57: MD | GJ57: ST | HB57: FW | HF57: è | HG57: 2 | IJ57: ç | IK57: 3 | IL57: MD | IU57: NPS | JT57: ç | JU57: 2 | JV57: ST | KW57: LB | LF57: FW | LJ57: è | LK57: 1 | MP57: RB | MQ57: n | NZ57: MD | OD57: è | OE57: 3 | OP57: ç | OQ57: 1 | OR57: ST | QT57: NPS | SV57: NPS | TE57: NPS
C58: 0 | D58: 33 | F58: =MillwallApps!E100 -> 2015-02-24 | H58: =MillwallApps!G100 -> Sheff Wed | I58: =MillwallApps!H100 -> (H) | J58: =MillwallApps!K100 -> L 1-3 | L58: GK | M58: CB | Q58: CB | R58: MD | U58: MD¹ | V58: STè | X58: FWè | AB58: NPS | AC58: NPS | AE58: çFW | AF58: çST | AI58: LB | AJ58: çFW | AN58: RBè | AR58: MD | AT58: FW | AZ58: NPS | BF58: NPS | CD58: 18 | CE58: 0 | CF58: 3 | CG58: Sheff Wed (H) L 1-3 | CI58: 18 | CK58: 4 | CL58: 4 | CM58: 24-Feb-15 | CN58: 33 | CO58: var AppsTableDate33= "24-Feb-15" | CP58: var AppsTableOpponents33= "Sheff Wed" | CQ58: var AppsTableVen33= "(H)" | CR58: var AppsTableScore33= "L 1-3" | CS58: var ResAppsTableWLD33= "L" | CT58: L | CU58: 33 | CX58: GK | DG58: CB | EQ58: CB | EZ58: MD | GA58: MD | GD58: 1 | GJ58: ST | GN58: è | GO58: 2 | HB58: FW | HF58: è | HG58: 1 | IL58: NPS | IU58: NPS | JK58: ç | JL58: 3 | JM58: FW | JT58: ç | JU58: 2 | JV58: ST | KW58: LB | LD58: ç | LE58: 1 | LF58: FW | MP58: RB | MT58: è | MU58: 3 | NZ58: MD | OR58: FW | QT58: NPS | SV58: NPS
C59: 0 | D59: 34 | F59: =MillwallApps!E101 -> 2015-02-28 | H59: =MillwallApps!G101 -> Rotherham | I59: =MillwallApps!H101 -> (A) | J59: =MillwallApps!K101 -> L 1-2 | L59: GK | M59: CB | Q59: CB | R59: MD | U59: FWè | V59: STè | X59: FW¹ | AB59: çMD | AC59: NPS | AF59: çST | AI59: LB | AJ59: çFW | AN59: RBn | AR59: MD | AT59: MDè | AV59: NPS | AZ59: NPS | BF59: NPS | CD59: 18 | CE59: 1 | CF59: 3 | CG59: Rotherham (A) L 1-2 | CI59: 18 | CK59: 5 | CL59: 4 | CM59: 28-Feb-15 | CN59: 34 | CO59: var AppsTableDate34= "28-Feb-15" | CP59: var AppsTableOpponents34= "Rotherham" | CQ59: var AppsTableVen34= "(A)" | CR59: var AppsTableScore34= "L 1-2" | CS59: var ResAppsTableWLD34= "L" | CT59: L | CU59: 34 | CX59: GK | DG59: CB | EQ59: CB | EZ59: MD | GA59: FW | GE59: è | GF59: 3 | GJ59: ST | GN59: è | GO59: 2 | HB59: FW | HE59: 1 | IJ59: ç | IK59: 3 | IL59: MD | IU59: NPS | JT59: ç | JU59: 1 | JV59: ST | KW59: LB | LD59: ç | LE59: 2 | LF59: FW | MP59: RB | NZ59: MD | OR59: MD | OV59: è | OW59: 1 | PJ59: NPS | QT59: NPS | SV59: NPS
C60: 0 | D60: 35 | F60: =MillwallApps!E102 -> 2015-03-03 | H60: =MillwallApps!G102 -> Middlesboro | I60: =MillwallApps!H102 -> (A) | J60: =MillwallApps!K102 -> L 0-3 | L60: GK | M60: CB | Q60: CB | R60: MDè | U60: FW | V60: STè | X60: FW | AB60: çMD | AC60: NPS | AF60: çST | AI60: LB | AJ60: çFW | AN60: RBn | AR60: MDè | AT60: MD | AV60: NPS | AZ60: NPS | BF60: NPS | CD60: 18 | CE60: 1 | CF60: - | CG60: Middlesboro (A) L 0-3 | CI60: 18 | CK60: 5 | CL60: 4 | CM60: 03-Mar-15 | CN60: 35 | CO60: var AppsTableDate35= "03-Mar-15" | CP60: var AppsTableOpponents35= "Middlesboro" | CQ60: var AppsTableVen35= "(A)" | CR60: var AppsTableScore35= "L 0-3" | CS60: var ResAppsTableWLD35= "L" | CT60: L | CU60: 35 | CX60: GK | DG60: CB | EQ60: CB | EZ60: MD | FD60: è | FE60: 2 | GA60: FW | GJ60: ST | GN60: è | GO60: 1 | HB60: FW | IJ60: ç | IK60: 2 | IL60: MD | IU60: NPS | JT60: ç | JU60: 1 | JV60: ST | KW60: LB | LD60: ç | LE60: 3 | LF60: FW | MP60: RB | MQ60: n | NZ60: MD | OD60: è | OE60: 3 | OR60: MD | PJ60: NPS | QT60: NPS | SV60: NPS
C61: 0 | D61: 36 | F61: =MillwallApps!E103 -> 2015-03-07 | H61: =MillwallApps!G103 -> Norwich City | I61: =MillwallApps!H103 -> (H) | J61: =MillwallApps!K103 -> L 1-4 | L61: GK | M61: RB | Q61: CB | R61: MD | U61: MD | V61: çST¹ | W61: MDè | X61: FWè | AC61: NPS | AE61: NPS | AF61: STè | AI61: LB | AJ61: çFW | AN61: NPS | AR61: çMDn | AT61: FW | AZ61: CB | BF61: NPS | CD61: 18 | CE61: 1 | CF61: 2 | CG61: Norwich City (H) L 1-4 | CI61: 18 | CK61: 5 | CL61: 4 | CM61: 07-Mar-15 | CN61: 36 | CO61: var AppsTableDate36= "07-Mar-15" | CP61: var AppsTableOpponents36= "Norwich City" | CQ61: var AppsTableVen36= "(H)" | CR61: var AppsTableScore36= "L 1-4" | CS61: var ResAppsTableWLD36= "L" | CT61: L | CU61: 36 | CX61: GK | DG61: RB | EQ61: CB | EZ61: MD | GA61: MD | GH61: ç | GI61: 2 | GJ61: ST | GM61: 1 | GS61: MD | GW61: è | GX61: 1 | HB61: FW | HF61: è | HG61: 2 | IU61: NPS | JM61: NPS | JV61: ST | JZ61: è | KA61: 3 | KW61: LB | LD61: ç | LE61: 3 | LF61: FW | MP61: NPS | NX61: ç | NY61: 1 | NZ61: MD | OA61: n | OR61: FW | QT61: CB | SV61: NPS
C62: 0 | D62: 37 | F62: =MillwallApps!E104 -> 2015-03-14 | H62: =MillwallApps!G104 -> Bolton | I62: =MillwallApps!H104 -> (A) | J62: =MillwallApps!K104 -> L 0-2 | L62: GK | M62: CBn | P62: RB | Q62: CB | R62: MD | V62: ST | Y62: çRW | AB62: MDè | AC62: NPS | AE62: çLW | AF62: çST | AI62: LB | AJ62: FWè | AK62: NPS | AN62: MD | AP62: NPS | AT62: FWè | BG62: NPS | CD62: 18 | CE62: 1 | CF62: 4 | CG62: Bolton (A) L 0-2 | CI62: 18 | CK62: 5 | CL62: 4 | CM62: 14-Mar-15 | CN62: 37 | CO62: var AppsTableDate37= "14-Mar-15" | CP62: var AppsTableOpponents37= "Bolton" | CQ62: var AppsTableVen37= "(A)" | CR62: var AppsTableScore37= "L 0-2" | CS62: var ResAppsTableWLD37= "L" | CT62: L | CU62: 37 | CX62: GK | DG62: CB | DH62: n | EH62: RB | EQ62: CB | EZ62: MD | GJ62: ST | HI62: ç | HJ62: 2 | HK62: RW | IL62: MD | IP62: è | IQ62: 2 | IU62: NPS | JK62: ç | JL62: 3 | JM62: LW | JT62: ç | JU62: 1 | JV62: ST | KW62: LB | LF62: FW | LJ62: è | LK62: 3 | LO62: NPS | MP62: MD | NH62: NPS | OR62: FW | OV62: è | OW62: 1
C63: 0 | D63: 38 | F63: =MillwallApps!E105 -> 2015-03-17 | H63: =MillwallApps!G105 -> Brighton | I63: =MillwallApps!H105 -> (H) | J63: =MillwallApps!K105 -> D 0-0 | L63: GK | P63: RB | Q63: CB | R63: MD | U63: çLW | V63: ST | X63: LWnè | AB63: NPS | AC63: NPS | AE63: çRW | AF63: NPS | AI63: LB | AJ63: RWè | AN63: MD | AP63: NPS | AT63: STnè | AZ63: CB | BG63: çST | CD63: 18 | CE63: 2 | CF63: 3 | CG63: Brighton (H) D 0-0 | CI63: 18 | CK63: 6 | CL63: 4 | CM63: 17-Mar-15 | CN63: 38 | CO63: var AppsTableDate38= "17-Mar-15" | CP63: var AppsTableOpponents38= "Brighton" | CQ63: var AppsTableVen38= "(H)" | CR63: var AppsTableScore38= "D 0-0" | CS63: var ResAppsTableWLD38= "D" | CT63: D | CU63: 38 | CX63: GK | EH63: RB | EQ63: CB | EZ63: MD | FY63: ç | FZ63: 3 | GA63: LW | GJ63: ST | HB63: LW | HC63: n | HF63: è | HG63: 3 | IL63: NPS | IU63: NPS | JK63: ç | JL63: 2 | JM63: RW | JV63: NPS | KW63: LB | LF63: RW | LJ63: è | LK63: 2 | MP63: MD | NH63: NPS | OR63: ST | OS63: n | OV63: è | OW63: 1 | QT63: CB | TC63: ç | TD63: 1 | TE63: ST
C64: 1 | D64: 39 | F64: =MillwallApps!E106 -> 2015-03-21 | H64: =MillwallApps!G106 -> Brentford | I64: =MillwallApps!H106 -> (A) | J64: =MillwallApps!K106 -> 0 | CE64: 0 | CF64: 1 | CG64: Brentford (A) | CI64: 0 | CK64: 0 | CL64: 0 | CM64: 21-Mar-15 | CN64: 39 | CO64: var AppsTableDate39= "21-Mar-15" | CP64: var AppsTableOpponents39= "Brentford" | CQ64: var AppsTableVen39= "(A)" | CR64: var AppsTableScore39= "0" | CS64: var ResAppsTableWLD39= "0" | CT64: 0 | CU64: 39
C65: 1 | D65: 40 | F65: =MillwallApps!E107 -> 2015-04-03 | H65: =MillwallApps!G107 -> Charlton | I65: =MillwallApps!H107 -> (H) | J65: =MillwallApps!K107 -> 0 | CE65: 0 | CF65: 1 | CG65: Charlton (H) | CI65: 0 | CK65: 0 | CL65: 0 | CM65: 03-Apr-15 | CN65: 40 | CO65: var AppsTableDate40= "03-Apr-15" | CP65: var AppsTableOpponents40= "Charlton" | CQ65: var AppsTableVen40= "(H)" | CR65: var AppsTableScore40= "0" | CS65: var ResAppsTableWLD40= "0" | CT65: 0 | CU65: 40
C66: 1 | D66: 41 | F66: =MillwallApps!E108 -> 2015-04-11 | H66: =MillwallApps!G108 -> Watford | I66: =MillwallApps!H108 -> (H) | J66: =MillwallApps!K108 -> 0 | CE66: 0 | CF66: 1 | CG66: Watford (H) | CI66: 0 | CK66: 0 | CL66: 0 | CM66: 11-Apr-15 | CN66: 41 | CO66: var AppsTableDate41= "11-Apr-15" | CP66: var AppsTableOpponents41= "Watford" | CQ66: var AppsTableVen41= "(H)" | CR66: var AppsTableScore41= "0" | CS66: var ResAppsTableWLD41= "0" | CT66: 0 | CU66: 41
C67: 1 | D67: 42 | F67: =MillwallApps!E109 -> 2015-04-14 | H67: =MillwallApps!G109 -> Wigan | I67: =MillwallApps!H109 -> (H) | J67: =MillwallApps!K109 -> 0 | CD67: =COUNTIF(L67:CB67,"*") -> 0 | CE67: 0 | CF67: 3 | CG67: Wigan (H) | CI67: 0 | CK67: 0 | CL67: 0 | CM67: 14-Apr-15 | CN67: 42 | CO67: var AppsTableDate42= "14-Apr-15" | CP67: var AppsTableOpponents42= "Wigan" | CQ67: var AppsTableVen42= "(H)" | CR67: var AppsTableScore42= "0" | CS67: var ResAppsTableWLD42= "0" | CT67: 0 | CU67: 42
C68: 1 | D68: 43 | F68: =MillwallApps!E110 -> 2015-04-18 | H68: =MillwallApps!G110 -> Cardiff | I68: =MillwallApps!H110 -> (A) | J68: =MillwallApps!K110 -> 0 | CD68: =COUNTIF(L68:CB68,"*") -> 0 | CE68: 5 | CF68: 5 | CG68: Cardiff (A) | CI68: 0 | CK68: 0 | CL68: 0 | CM68: 18-Apr-15 | CN68: 43 | CO68: var AppsTableDate43= "18-Apr-15" | CP68: var AppsTableOpponents43= "Cardiff" | CQ68: var AppsTableVen43= "(A)" | CR68: var AppsTableScore43= "0" | CS68: var ResAppsTableWLD43= "0" | CT68: 0 | CU68: 43
C69: 1 | D69: 44 | F69: =MillwallApps!E111 -> 2015-04-21 | H69: =MillwallApps!G111 -> Blackburn | I69: =MillwallApps!H111 -> (A) | J69: =MillwallApps!K111 -> 0 | CD69: =COUNTIF(L69:CB69,"*") -> 0 | CE69: 0 | CF69: 1 | CG69: Blackburn (A) | CI69: 0 | CK69: 0 | CL69: 0 | CM69: 21-Apr-15 | CN69: 44 | CO69: var AppsTableDate44= "21-Apr-15" | CP69: var AppsTableOpponents44= "Blackburn" | CQ69: var AppsTableVen44= "(A)" | CR69: var AppsTableScore44= "0" | CS69: var ResAppsTableWLD44= "0" | CT69: 0 | CU69: 44
C70: 1 | D70: 45 | F70: =MillwallApps!E112 -> 2015-04-25 | H70: =MillwallApps!G112 -> Derby | I70: =MillwallApps!H112 -> (H) | J70: =MillwallApps!K112 -> 0 | CE70: 0 | CF70: 4 | CG70: Derby (H) | CI70: 0 | CK70: 0 | CL70: 0 | CM70: 25-Apr-15 | CN70: 45 | CO70: var AppsTableDate45= "25-Apr-15" | CP70: var AppsTableOpponents45= "Derby" | CQ70: var AppsTableVen45= "(H)" | CR70: var AppsTableScore45= "0" | CS70: var ResAppsTableWLD45= "0" | CT70: 0 | CU70: 45
C71: 1 | D71: 46 | F71: =MillwallApps!E113 -> 2015-05-02 | H71: =MillwallApps!G113 -> Wolves | I71: =MillwallApps!H113 -> (A) | J71: =MillwallApps!K113 -> 0 | CD71: =COUNTIF(L71:CB71,"*") -> 0 | CE71: 3 | CF71: 3 | CG71: Wolves (A) | CI71: 0 | CK71: 0 | CL71: 0 | CM71: 02-May-15 | CN71: 46 | CO71: var AppsTableDate46= "02-May-15" | CP71: var AppsTableOpponents46= "Wolves" | CQ71: var AppsTableVen46= "(A)" | CR71: var AppsTableScore46= "0" | CS71: var ResAppsTableWLD46= "0" | CT71: 0 | CU71: 46
CS72: =IF(J72=""," ",J72) -> 
K73: Total League Apperances | L73: =COUNTIF(L26:L71,"*")-L74-L75 -> 38 | M73: =COUNTIF(M26:M71,"*")-M74-M75 -> 31 | N73: 7 | O73: 1 | P73: =COUNTIF(P26:P71,"*")-P74-P75 -> 8 | Q73: 12 | R73: 34 | S73: 18 | T73: 2 | U73: =COUNTIF(U26:U71,"*")-U74-U75 -> 11 | V73: 21 | W73: 2 | X73: 27 | Y73: 0 | Z73: 0 | AA73: =COUNTIF(AA26:AA71,"*")-AA74-AA75 -> 7 | AB73: 10 | AC73: =COUNTIF(AC26:AC71,"*")-AC74-AC75 -> 19 | AD73: =COUNTIF(AD26:AD71,"*")-AD74-AD75 -> 9 | AE73: 8 | AF73: 15 | AG73: 1 | AH73: =COUNTIF(AH26:AH71,"*")-AH74-AH75 -> 3 | AI73: 12 | AJ73: =COUNTIF(AJ26:AJ71,"*")-AJ74-AJ75 -> 5 | AK73: =COUNTIF(AK26:AK71,"*")-AK74-AK75 -> 4 | AL73: =COUNTIF(AL26:AL71,"*")-AL74-AL75 -> 0 | AM73: 1 | AN73: 21 | AO73: =COUNTIF(AO26:AO71,"*")-AO74-AO75 -> 23 | AP73: =COUNTIF(AP26:AP71,"*")-AP74-AP75 -> 0 | AQ73: 17 | AR73: =COUNTIF(AR26:AR71,"*")-AR74-AR75 -> 5 | AS73: 9 | AT73: =COUNTIF(AT26:AT71,"*")-AT74-AT75 -> 6 | AU73: 6 | AV73: 4 | AW73: 1 | AX73: 0 | AY73: 0 | AZ73: =COUNTIF(AZ26:AZ71,"*")-AZ74-AZ75 -> 6 | BA73: =COUNTIF(BA26:BA71,"*")-BA74-BA75 -> 0 | BB73: 0 | BC73: 0 | BD73: =COUNTIF(BD26:BD71,"*")-BD74-BD75 -> 0 | BE73: =COUNTIF(BE26:BE71,"*")-BE74-BE75 -> 0 | BF73: 0 | BG73: =COUNTIF(BG26:BG71,"*")-BG74-BG75 -> 6 | BH73: =COUNTIF(BH26:BH71,"*")-BH74-BH75 -> 0 | BI73: =COUNTIF(BI26:BI71,"*")-BI74-BI75 -> 8 | BJ73: 0 | BK73: 0 | BL73: =COUNTIF(BL26:BL71,"*")-BL74-BL75 -> 0 | BM73: 0 | BN73: 0 | BO73: 0 | BP73: 0 | BQ73: 0 | BR73: 0 | BS73: 0 | BT73: 0 | BU73: 0 | BV73: 0 | BW73: 0 | BX73: 0 | BY73: 0 | BZ73: 0 | CA73: 0 | CB73: 0
K74: Total Sub Appearances | L74: =COUNTIF(L26:L71,"ç*") -> 0 | M74: =COUNTIF(M26:M71,"ç*") -> 4 | N74: 1 | O74: 0 | P74: =COUNTIF(P26:P71,"ç*") -> 0 | Q74: 0 | R74: 0 | S74: 4 | T74: 7 | U74: =COUNTIF(U26:U71,"ç*") -> 1 | V74: 10 | W74: 1 | X74: 4 | Y74: 2 | Z74: 0 | AA74: =COUNTIF(AA26:AA71,"ç*") -> 1 | AB74: 11 | AC74: =COUNTIF(AC26:AC71,"ç*") -> 1 | AD74: =COUNTIF(AD26:AD71,"ç*") -> 2 | AE74: 18 | AF74: 20 | AG74: 1 | AH74: =COUNTIF(AH26:AH71,"ç*") -> 4 | AI74: 0 | AJ74: =COUNTIF(AJ26:AJ71,"ç*") -> 6 | AK74: =COUNTIF(AK26:AK71,"ç*") -> 0 | AL74: =COUNTIF(AL26:AL71,"ç*") -> 0 | AM74: 1 | AN74: 4 | AO74: =COUNTIF(AO26:AO71,"ç*") -> 1 | AP74: =COUNTIF(AP26:AP71,"ç*") -> 0 | AQ74: 3 | AR74: =COUNTIF(AR26:AR71,"ç*") -> 1 | AS74: 0 | AT74: =COUNTIF(AT26:AT71,"ç*") -> 1 | AU74: 1 | AV74: 0 | AW74: 0 | AX74: 0 | AY74: 0 | AZ74: =COUNTIF(AZ26:AZ71,"ç*") -> 0 | BA74: =COUNTIF(BA26:BA71,"ç*") -> 0 | BB74: 0 | BC74: 0 | BD74: =COUNTIF(BD26:BD71,"ç*") -> 0 | BE74: =COUNTIF(BE26:BE71,"ç*") -> 0 | BF74: 0 | BG74: =COUNTIF(BG26:BG71,"ç*") -> 2 | BH74: =COUNTIF(BH26:BH71,"ç*") -> 0 | BI74: =COUNTIF(BI26:BI71,"ç*") -> 0 | BJ74: 0 | BK74: 0 | BL74: =COUNTIF(BL26:BL71,"ç*") -> 0 | BM74: 0 | BN74: 0 | BO74: 0 | BP74: 0 | BQ74: 0 | BR74: 0 | BS74: 0 | BT74: 0 | BU74: 0 | BV74: 0 | BW74: 0 | BX74: 0 | BY74: 0 | BZ74: 0 | CA74: 0 | CB74: 0
K75: Non Playing Substitute | L75: =COUNTIF(L26:L71,"NPS") -> 0 | M75: =COUNTIF(M26:M71,"NPS") -> 0 | N75: 8 | O75: 3 | P75: =COUNTIF(P26:P71,"NPS") -> 0 | Q75: 0 | R75: 0 | S75: 0 | T75: 6 | U75: =COUNTIF(U26:U71,"NPS") -> 0 | V75: 3 | W75: 0 | X75: 3 | Y75: 0 | Z75: 4 | AA75: =COUNTIF(AA26:AA71,"NPS") -> 11 | AB75: 9 | AC75: =COUNTIF(AC26:AC71,"NPS") -> 14 | AD75: =COUNTIF(AD26:AD71,"NPS") -> 13 | AE75: 3 | AF75: 3 | AG75: 3 | AH75: =COUNTIF(AH26:AH71,"NPS") -> 1 | AI75: 1 | AJ75: =COUNTIF(AJ26:AJ71,"NPS") -> 3 | AK75: =COUNTIF(AK26:AK71,"NPS") -> 5 | AL75: =COUNTIF(AL26:AL71,"NPS") -> 0 | AM75: 0 | AN75: 5 | AO75: =COUNTIF(AO26:AO71,"NPS") -> 2 | AP75: =COUNTIF(AP26:AP71,"NPS") -> 5 | AQ75: 0 | AR75: =COUNTIF(AR26:AR71,"NPS") -> 1 | AS75: 2 | AT75: =COUNTIF(AT26:AT71,"NPS") -> 0 | AU75: 6 | AV75: 5 | AW75: 0 | AX75: 0 | AY75: 0 | AZ75: =COUNTIF(AZ26:AZ71,"NPS") -> 4 | BA75: =COUNTIF(BA26:BA71,"NPS") -> 0 | BB75: 0 | BC75: 0 | BD75: =COUNTIF(BD26:BD71,"NPS") -> 0 | BE75: =COUNTIF(BE26:BE71,"NPS") -> 0 | BF75: 26 | BG75: =COUNTIF(BG26:BG71,"NPS") -> 2 | BH75: =COUNTIF(BH26:BH71,"NPS") -> 2 | BI75: =COUNTIF(BI26:BI71,"NPS") -> 0 | BJ75: 0 | BK75: 0 | BL75: =COUNTIF(BL26:BL71,"NPS") -> 0 | BM75: 0 | BN75: 0 | BO75: 0 | BP75: 0 | BQ75: 0 | BR75: 0 | BS75: 0 | BT75: 0 | BU75: 0 | BV75: 0 | BW75: 0 | BX75: 0 | BY75: 0 | BZ75: 0 | CA75: 0 | CB75: 0
K76: Goals | L76: ='Apps Summary'!$AQ$7 -> 0 | M76: ='Apps Summary'!$AQ$8 -> 2 | N76: ='Apps Summary'!$AQ$9 -> 1 | O76: ='Apps Summary'!$AQ$10 -> 0 | P76: ='Apps Summary'!$AQ$12 -> 0 | Q76: ='Apps Summary'!$AQ$12 -> 0 | R76: ='Apps Summary'!$AQ$13 -> 2 | S76: ='Apps Summary'!$AQ$14 -> 1 | T76: ='Apps Summary'!$AQ$15 -> 1 | U76: ='Apps Summary'!$AQ$16 -> 1 | V76: ='Apps Summary'!$AQ$17 -> 5 | W76: ='Apps Summary'!$AQ$18 -> 0 | X76: ='Apps Summary'!$AQ$19 -> 3 | Y76: ='Apps Summary'!$AQ$20 -> 0 | Z76: ='Apps Summary'!$AQ$21 -> 0 | AA76: ='Apps Summary'!$AQ$22 -> 0 | AB76: ='Apps Summary'!$AQ$23 -> 2 | AC76: ='Apps Summary'!$AQ$24 -> 2 | AD76: ='Apps Summary'!$AQ$25 -> 0 | AE76: ='Apps Summary'!$AQ$26 -> 3 | AF76: ='Apps Summary'!$AQ$27 -> 4 | AG76: ='Apps Summary'!$AQ$28 -> 0 | AH76: ='Apps Summary'!$AQ$30 -> 0 | AI76: ='Apps Summary'!$AQ$29 -> 0 | AJ76: ='Apps Summary'!$AQ$31 -> 0 | AK76: ='Apps Summary'!$AQ$32 -> 0 | AL76: ='Apps Summary'!$AQ$33 -> 0 | AM76: ='Apps Summary'!$AQ$34 -> 0 | AN76: ='Apps Summary'!$AQ$35 -> 0 | AO76: ='Apps Summary'!$AQ$36 -> 1 | AP76: ='Apps Summary'!$AQ$37 -> 0 | AQ76: ='Apps Summary'!$AQ$38 -> 1 | AR76: ='Apps Summary'!$AQ$39 -> 0 | AS76: ='Apps Summary'!$AQ$40 -> 0 | AT76: ='Apps Summary'!$AQ$41 -> 0 | AU76: ='Apps Summary'!$AQ$42 -> 0 | AV76: ='Apps Summary'!$AQ$43 -> 0 | AW76: ='Apps Summary'!$AQ$44 -> 0 | AX76: ='Apps Summary'!$AQ$45 -> 0 | AY76: ='Apps Summary'!$AQ$46 -> 0 | AZ76: ='Apps Summary'!$AQ$47 -> 0 | BA76: ='Apps Summary'!$AQ$48 -> 0 | BB76: ='Apps Summary'!$AQ$49 -> 0 | BC76: ='Apps Summary'!$AQ$51 -> 0 | BD76: ='Apps Summary'!$AQ$52 -> 0 | BE76: ='Apps Summary'!$AQ$53 -> 0 | BF76: ='Apps Summary'!$AQ$54 -> 1 | BG76: ='Apps Summary'!$AQ$55 -> 0 | BH76: ='Apps Summary'!$AQ$56 -> 0 | BI76: ='Apps Summary'!$AQ$57 -> 0 | BJ76: ='Apps Summary'!$AQ$58 -> 0 | BK76: ='Apps Summary'!$AQ$59 -> 0 | BL76: ='Apps Summary'!$AQ$60 -> 0 | BM76: ='Apps Summary'!$AQ$61 -> 0 | BO76: 0 | BP76: 0 | BQ76: 0 | BR76: 0
C77: 0 | F77: FA Cup | CS77: ResAppsTableFACWLD
C78: 0 | F78: Date | H78: Opponents | I78: Venue / Result
C79: =IF(J79=0,1,0) -> 0 | D79: 3 | F79: =MillwallApps!E130 -> 2015-01-03 | H79: =MillwallApps!G130 -> Bradford City | I79: =MillwallApps!H130 -> (H) | J79: =MillwallApps!K130 -> D 3-3 | L79: GK | M79: RB | N79: CB | S79: LW | T79: NPS | X79: çMD | AA79: LB | AB79: MDnè | AE79: çRW | AF79: ST² | AJ79: NPS | AK79: NPS | AN79: MD | AO79: ST¹ | AU79: MDnè | AV79: NPS | AZ79: CB | BF79: NPS | CD79: =COUNTIF(L79:CB79,"*") -> 18 | CE79: =CK79-CL79 -> 2 | CG79: =H79&" "&I79&" "&J79 -> Bradford City (H) D 3-3 | CI79: =COUNTA(L79:CC79) -> 18 | CK79: =COUNTIF(L79:BI79,"*n*") -> 7 | CL79: =COUNTIF(L79:CD79,"NPS") -> 5 | CM79: =TEXT($F79,"DD-MMM-YY") -> 03-Jan-15 | CN79: FAC1 | CO79: ="var "&CO$3&$CN79&"= """&CM79&"""" -> var AppsTableDateFAC1= "03-Jan-15" | CP79: ="var "&CP$3&$CN79&"= """&H79&"""" -> var AppsTableOpponentsFAC1= "Bradford City" | CQ79: var AppsTableVenFAC1= "(H)" | CR79: var AppsTableScoreFAC1= "D 3-3" | CS79: ="var "&CS$77&$D79&"= """&CT79&"""" -> var ResAppsTableFACWLD3= "D" | CT79: =(LEFT(J79,1)) -> D | CU79: 1 | CX79: GK | DG79: RB | DP79: CB | FI79: LW | FR79: NPS | GZ79: ç | HA79: 2 | HB79: MD | IC79: LB | IL79: MD | IM79: n | IP79: è | IQ79: 2 | JK79: ç | JL79: 2 | JM79: RW | JV79: ST | JY79: 2 | LF79: NPS | LO79: NPS | MP79: MD | MY79: ST | NB79: 1 | OR79: MD | OS79: n | OV79: è | OW79: 1 | PA79: MD | PB79: n | PE79: è | PF79: 1 | PJ79: NPS | QT79: CB | SV79: NPS
C80: =IF(J80=0,1,0) -> 0 | D80: 3R | F80: =MillwallApps!E131 -> 2015-01-14 | H80: =MillwallApps!G131 -> Bradford City | I80: =MillwallApps!H131 -> (A) | J80: =MillwallApps!K131 -> L 0-4 | L80: GKn | M80: CBn | N80: CB | S80: RWè | V80: ST | X80: çMD | AA80: LW | AB80: MDè | AC80: CBn | AD80: çCB | AE80: çLW | AF80: STè | AK80: NPS | AN80: MDn | AO80: NPS | AU80: MDn | AZ80: NPS | BF80: NPS | CD80: =COUNTIF(L80:CB80,"*") -> 18 | CE80: 5 | CG80: =H80&" "&I80 -> Bradford City (A) | CI80: =COUNTA(L80:BL80) -> 18 | CK80: =COUNTIF(L80:CD80,"*n*") -> 9 | CL80: 4 | CM80: =TEXT($F80,"DD-MMM-YY") -> 14-Jan-15 | CN80: FAC2 | CO80: ="var "&CO$3&$CN80&"= """&CM80&"""" -> var AppsTableDateFAC2= "14-Jan-15" | CP80: var AppsTableOpponentsFAC2= "Bradford City" | CQ80: var AppsTableVenFAC2= "(A)" | CR80: var AppsTableScoreFAC2= "L 0-4" | CS80: ="var "&CS$77&$D80&"= """&CT80&"""" -> var ResAppsTableFACWLD3R= "L" | CT80: =(LEFT(J80,1)) -> L | CU80: 2 | CX80: GK | CY80: n | DG80: CB | DH80: n | DP80: CB | FI80: RW | FM80: è | FN80: 3 | GJ80: ST | GZ80: ç | HA80: 1 | HB80: MD | IC80: LW | IL80: MD | IP80: è | IQ80: 2 | IU80: CB | IW80: n | JB80: ç | JC80: 2 | JD80: CB | JK80: ç | JL80: 3 | JM80: LW | JV80: ST | JZ80: è | KA80: 1 | LO80: NPS | MP80: MD | MQ80: n | MY80: NPS | OR80: MD | OS80: n | PA80: MD | PB80: n | QT80: NPS | SV80: NPS
D81: 5 | F81: =Millwall!#REF! ->  | H81: =Millwall!#REF! ->  | I81: =Millwall!#REF! ->  | J81: =Millwall!#REF! ->  | CD81: =COUNTIF(L81:CB81,"*") -> 0 | CE81: 0 | CI81: 0 | CK81: =COUNTIF(L81:CD81,"*n*") -> 0 | CL81: 0 | CU81: 3
D82: 6 | F82: =Millwall!#REF! ->  | H82: =Millwall!#REF! ->  | I82: =Millwall!#REF! ->  | J82: =Millwall!#REF! ->  | CD82: =COUNTIF(L82:CB82,"*") -> 0 | CE82: 0 | CI82: 0 | CK82: =COUNTIF(L82:CD82,"*n*") -> 0 | CL82: 0 | CU82: 4
D83: 5 | F83: =Millwall!#REF! ->  | H83: =Millwall!#REF! ->  | I83: =Millwall!#REF! ->  | J83: =Millwall!#REF! ->  | CD83: =COUNTIF(L83:CB83,"*") -> 0 | CE83: 0 | CI83: 0 | CK83: =COUNTIF(L83:CD83,"*n*") -> 0 | CL83: 0 | CU83: 5
D84: SF | F84: =Millwall!#REF! ->  | H84: =Millwall!#REF! ->  | I84: =Millwall!#REF! ->  | J84: =Millwall!#REF! ->  | CE84: 0 | CI84: 0 | CK84: =COUNTIF(L84:CD84,"*n*") -> 0 | CL84: 0 | CU84: 6
C85: 1 | F85: =Millwall!#REF! ->  | H85: =Millwall!#REF! ->  | I85: =Millwall!#REF! ->  | CI85: 0 | CU85: 7
C86: 0 | CI86: 0
C87: 0 | K87: Total FA Cup Apperances | L87: =COUNTIF(L79:L85,"*")-L88-L89 -> 2 | M87: 2 | N87: 2 | O87: =COUNTIF(O79:O85,"*")-O88-O89 -> 0 | P87: =COUNTIF(P79:P85,"*")-P88-P89 -> 0 | Q87: 0 | R87: 0 | S87: 2 | T87: =COUNTIF(T79:T85,"*")-T88-T89 -> 0 | U87: =COUNTIF(U79:U85,"*")-U88-U89 -> 0 | V87: 1 | W87: 0 | X87: =COUNTIF(X79:X85,"*")-X88-X89 -> 0 | Y87: 0 | Z87: 0 | AA87: =COUNTIF(AA79:AA85,"*")-AA88-AA89 -> 2 | AB87: 2 | AC87: =COUNTIF(AC79:AC85,"*")-AC88-AC89 -> 1 | AD87: =COUNTIF(AD79:AD85,"*")-AD88-AD89 -> 0 | AE87: 0 | AF87: 2 | AG87: 0 | AH87: =COUNTIF(AH79:AH85,"*")-AH88-AH89 -> 0 | AI87: 0 | AJ87: =COUNTIF(AJ79:AJ85,"*")-AJ88-AJ89 -> 0 | AK87: =COUNTIF(AK79:AK85,"*")-AK88-AK89 -> 0 | AL87: 0 | AM87: 0 | AN87: 2 | AO87: =COUNTIF(AO79:AO85,"*")-AO88-AO89 -> 1 | AP87: 0 | AQ87: 0 | AR87: 0 | AS87: 0 | AT87: =COUNTIF(AT79:AT85,"*")-AT88-AT89 -> 0 | AU87: 2 | AV87: =COUNTIF(AV79:AV85,"*")-AV88-AV89 -> 0 | AW87: 0 | AX87: =COUNTIF(AX79:AX85,"*")-AX88-AX89 -> 0 | AY87: 0 | AZ87: 1 | BA87: 0 | BB87: 0 | BC87: 0 | BD87: 0 | BE87: 0 | BF87: =COUNTIF(BF79:BF85,"*")-BF88-BF89 -> 0 | BG87: =COUNTIF(BG79:BG85,"*")-BG88-BG89 -> 0 | BH87: =COUNTIF(BH79:BH85,"*")-BH88-BH89 -> 0 | BI87: 0 | BJ87: 0 | BK87: 0 | BL87: =COUNTIF(BL79:BL85,"*")-BL88-BL89 -> 0 | BM87: =COUNTIF(BM79:BM85,"*")-BM88-BM89 -> 0 | BN87: 0 | BO87: 0 | BP87: 0 | BQ87: 0 | BR87: 0 | BS87: 0 | BT87: 0 | BU87: 0 | BV87: 0 | BW87: 0 | BX87: 0 | BY87: 0 | CA87: 0 | CB87: 0
C88: 0 | K88: Total FA Cup Sub Appearances | L88: =COUNTIF(L79:L85,"ç*") -> 0 | M88: 0 | N88: 0 | O88: =COUNTIF(O79:O85,"ç*") -> 0 | P88: =COUNTIF(P79:P85,"ç*") -> 0 | Q88: 0 | R88: 0 | S88: 0 | T88: =COUNTIF(T79:T85,"ç*") -> 0 | U88: =COUNTIF(U79:U85,"ç*") -> 0 | V88: 0 | W88: 0 | X88: =COUNTIF(X79:X85,"ç*") -> 2 | Y88: 0 | Z88: 0 | AA88: =COUNTIF(AA79:AA85,"ç*") -> 0 | AB88: 0 | AC88: =COUNTIF(AC79:AC85,"ç*") -> 0 | AD88: =COUNTIF(AD79:AD85,"ç*") -> 1 | AE88: 2 | AF88: 0 | AG88: 0 | AH88: =COUNTIF(AH79:AH85,"ç*") -> 0 | AI88: 0 | AJ88: =COUNTIF(AJ79:AJ85,"ç*") -> 0 | AK88: =COUNTIF(AK79:AK85,"ç*") -> 0 | AL88: 0 | AM88: 0 | AN88: 0 | AO88: =COUNTIF(AO79:AO85,"ç*") -> 0 | AP88: =COUNTIF(AP79:AP85,"ç*") -> 0 | AQ88: 0 | AR88: =COUNTIF(AR79:AR85,"ç*") -> 0 | AS88: 0 | AT88: =COUNTIF(AT79:AT85,"ç*") -> 0 | AU88: 0 | AV88: =COUNTIF(AV79:AV85,"ç*") -> 0 | AW88: 0 | AX88: =COUNTIF(AX79:AX85,"ç*") -> 0 | AY88: 0 | AZ88: 0 | BA88: 0 | BB88: 0 | BC88: 0 | BD88: 0 | BE88: 0 | BF88: =COUNTIF(BF79:BF85,"ç*") -> 0 | BG88: =COUNTIF(BG79:BG85,"ç*") -> 0 | BH88: =COUNTIF(BH79:BH85,"ç*") -> 0 | BI88: 0 | BJ88: 0 | BK88: 0 | BL88: =COUNTIF(BL79:BL85,"ç*") -> 0 | BM88: =COUNTIF(BM79:BM85,"ç*") -> 0 | BN88: 0 | BO88: 0 | BP88: 0 | BQ88: 0 | BR88: 0 | BS88: 0 | BT88: 0 | BU88: 0 | BV88: 0 | BW88: 0 | BX88: 0 | BY88: 0 | BZ88: 0 | CA88: 0 | CB88: 0
C89: 0 | K89: FA Cup Non Playing Substitute | L89: =COUNTIF(L79:L85,"NPS") -> 0 | M89: 0 | N89: 0 | O89: =COUNTIF(O79:O85,"NPS") -> 0 | P89: =COUNTIF(P79:P85,"NPS") -> 0 | Q89: 0 | R89: 0 | S89: 0 | T89: =COUNTIF(T79:T85,"NPS") -> 1 | U89: =COUNTIF(U79:U85,"NPS") -> 0 | V89: 0 | W89: 0 | X89: =COUNTIF(X79:X85,"NPS") -> 0 | Y89: 0 | Z89: 0 | AA89: =COUNTIF(AA79:AA85,"NPS") -> 0 | AB89: 0 | AC89: =COUNTIF(AC79:AC85,"NPS") -> 0 | AD89: =COUNTIF(AD79:AD85,"NPS") -> 0 | AE89: 0 | AF89: 0 | AG89: 0 | AH89: =COUNTIF(AH79:AH85,"NPS") -> 0 | AI89: 0 | AJ89: =COUNTIF(AJ79:AJ85,"NPS") -> 1 | AK89: =COUNTIF(AK79:AK85,"NPS") -> 2 | AL89: 0 | AM89: 0 | AN89: 0 | AO89: =COUNTIF(AO79:AO85,"NPS") -> 1 | AP89: =COUNTIF(AP79:AP85,"NPS") -> 0 | AQ89: 0 | AR89: =COUNTIF(AR79:AR85,"NPS") -> 0 | AS89: 0 | AT89: =COUNTIF(AT79:AT85,"NPS") -> 0 | AU89: 0 | AV89: =COUNTIF(AV79:AV85,"NPS") -> 1 | AW89: 0 | AX89: =COUNTIF(AX79:AX85,"NPS") -> 0 | AY89: 0 | AZ89: 1 | BA89: 0 | BB89: 0 | BC89: 0 | BD89: 0 | BE89: 0 | BF89: =COUNTIF(BF79:BF85,"NPS") -> 2 | BG89: =COUNTIF(BG79:BG85,"NPS") -> 0 | BH89: =COUNTIF(BH79:BH85,"NPS") -> 0 | BI89: 0 | BJ89: 0 | BK89: 0 | BL89: =COUNTIF(BL79:BL85,"NPS") -> 0 | BM89: =COUNTIF(BM79:BM85,"NPS") -> 0 | BN89: 0 | BO89: 0 | BP89: 0 | BQ89: 0 | BR89: 0 | BS89: 0 | BT89: 0 | BU89: 0 | BV89: 0 | BW89: 0 | BX89: 0 | BY89: 0 | BZ89: 0 | CA89: 0 | CB89: 0
C90: 0 | K90: Goals | L90: ='Apps Summary'!$BA$7 -> 0 | M90: ='Apps Summary'!$BA$8 -> 0 | N90: ='Apps Summary'!$BA$9 -> 0 | O90: ='Apps Summary'!$BA$10 -> 0 | P90: ='Apps Summary'!$BA$12 -> 0 | Q90: ='Apps Summary'!$BA$12 -> 0 | R90: ='Apps Summary'!$BA$13 -> 0 | S90: ='Apps Summary'!$BA$14 -> 0 | T90: ='Apps Summary'!$BA$15 -> 0 | U90: ='Apps Summary'!$BA$16 -> 0 | V90: ='Apps Summary'!$BA$17 -> 0 | W90: ='Apps Summary'!$BA$18 -> 0 | X90: ='Apps Summary'!$BA$19 -> 0 | Y90: ='Apps Summary'!$BA$20 -> 0 | Z90: ='Apps Summary'!$BA$21 -> 0 | AA90: ='Apps Summary'!$BA$22 -> 0 | AB90: ='Apps Summary'!$BA$23 -> 0 | AC90: ='Apps Summary'!$BA$24 -> 0 | AD90: ='Apps Summary'!$BA$25 -> 0 | AE90: ='Apps Summary'!$BA$26 -> 0 | AF90: ='Apps Summary'!$BA$27 -> 2 | AG90: ='Apps Summary'!$BA$28 -> 0 | AH90: ='Apps Summary'!$BA$30 -> 0 | AI90: ='Apps Summary'!$BA$29 -> 0 | AJ90: ='Apps Summary'!$BA$31 -> 0 | AK90: ='Apps Summary'!$BA$32 -> 0 | AL90: ='Apps Summary'!$BA$33 -> 0 | AM90: ='Apps Summary'!$BA$34 -> 0 | AN90: ='Apps Summary'!$BA$35 -> 0 | AO90: ='Apps Summary'!$BA$36 -> 1 | AP90: ='Apps Summary'!$BA$37 -> 0 | AQ90: ='Apps Summary'!$BA$38 -> 0 | AR90: ='Apps Summary'!$BA$39 -> 0 | AS90: ='Apps Summary'!$BA$40 -> 0 | AT90: ='Apps Summary'!$BA$41 -> 0 | AU90: ='Apps Summary'!$BA$42 -> 0 | AV90: ='Apps Summary'!$BA$43 -> 0 | AW90: ='Apps Summary'!$BA$44 -> 0 | AX90: ='Apps Summary'!$BA$45 -> 0 | AY90: ='Apps Summary'!$BA$46 -> 0 | AZ90: ='Apps Summary'!$BA$47 -> 0 | BA90: ='Apps Summary'!$BA$48 -> 0 | BB90: ='Apps Summary'!$BA$49 -> 0 | BC90: ='Apps Summary'!$BA$51 -> 0 | BD90: ='Apps Summary'!$BA$52 -> 0 | BE90: ='Apps Summary'!$BA$53 -> 0 | BF90: ='Apps Summary'!$BA$54 -> 0 | BG90: ='Apps Summary'!$BA$55 -> 0 | BH90: ='Apps Summary'!$BA$56 -> 0 | BI90: ='Apps Summary'!$BA$57 -> 0 | BJ90: ='Apps Summary'!$BA$58 -> 0 | BK90: ='Apps Summary'!$BA$59 -> 0 | BL90: ='Apps Summary'!$BA$60 -> 0 | BM90: ='Apps Summary'!$BA$61 -> 0 | BO90: 0 | BP90: 0 | BQ90: 0 | BR90: 0
C91: 0 | F91: League Cup | CS91: ResAppsTableLCWLD
F92: Date | H92: Opponents | I92: Venue / Result
C93: =IF(J93=0,1,0) -> 0 | D93: 1 | F93: =MillwallApps!E121 -> 2014-08-12 | G93: =Millwall!#REF! ->  | H93: =MillwallApps!G121 -> Wycombe | I93: =MillwallApps!H121 -> (H) | J93: =MillwallApps!K121 -> W 1-0 | L93: GK | M93: CB | N93: CB | O93: MD | T93: FWè | V93: ST | AA93: LB¹nnn | AD93: RB | AE93: FWè | AG93: çFW | AJ93: NPS | AK93: çMD | AL93: NPS | AN93: MD | AO93: MDè | AW93: NPS | BB93: çRB | BH93: NPS | CD93: =COUNTIF(L93:CB93,"*") -> 18 | CE93: =CK93-CL93 -> 1 | CG93: =H93&" "&I93 -> Wycombe (H) | CI93: =COUNTA(L93:CC93) -> 18 | CK93: =COUNTIF(L93:CD93,"*n*") -> 5 | CL93: =COUNTIF(L93:CD93,"NPS") -> 4 | CM93: =TEXT($F93,"DD-MMM-YY") -> 12-Aug-14 | CN93: LC1 | CO93: ="var "&CO$3&$CN93&"= """&CM93&"""" -> var AppsTableDateLC1= "12-Aug-14" | CP93: ="var "&CP$3&$CN93&"= """&H93&"""" -> var AppsTableOpponentsLC1= "Wycombe" | CQ93: var AppsTableVenLC1= "(H)" | CR93: var AppsTableScoreLC1= "W 1-0" | CS93: ="var "&CS$91&$D93&"= """&CT93&"""" -> var ResAppsTableLCWLD1= "W" | CT93: =(LEFT(J93,1)) -> W | CU93: 1 | CX93: GK | DG93: CB | DP93: CB | DY93: MD | FR93: FW | FV93: è | FW93: 3 | GJ93: ST | IC93: LB | ID93: nn | IE93: n | IF93: 1 | JD93: RB | JM93: FW | JQ93: è | JR93: 1 | KC93: ç | KD93: 1 | KE93: FW | LF93: NPS | LM93: ç | LN93: 2 | LO93: MD | LX93: NPS | MP93: MD | MY93: MD | NC93: è | ND93: 2 | PS93: NPS | RJ93: ç | RK93: 3 | RL93: RB | TN93: NPS
C94: =IF(J94=0,1,0) -> 0 | D94: 2 | F94: =MillwallApps!E122 -> 2014-08-26 | G94: =Millwall!#REF! ->  | H94: =MillwallApps!G122 -> Southampton | I94: =MillwallApps!H122 -> (H) | J94: =MillwallApps!K122 -> L 0-2 | L94: GK | R94: CB | T94: MD | V94: NPS | Z94: NPS | AA94: LBn | AD94: CB | AE94: STè | AG94: çFW | AJ94: çMD | AK94: MD | AL94: NPS | AM94: RB | AN94: MDè | AU94: MDè | AW94: ST | AY94: çMD | BB94: NPS | CD94: 18 | CG94: Southampton (H) | CI94: 18 | CK94: 5 | CL94: 4 | CM94: =TEXT($F94,"DD-MMM-YY") -> 26-Aug-14 | CN94: LC2 | CO94: ="var "&CO$3&$CN94&"= """&CM94&"""" -> var AppsTableDateLC2= "26-Aug-14" | CP94: var AppsTableOpponentsLC2= "Southampton" | CQ94: var AppsTableVenLC2= "(H)" | CR94: var AppsTableScoreLC2= "L 0-2" | CS94: ="var "&CS$91&$D94&"= """&CT94&"""" -> var ResAppsTableLCWLD2= "L" | CT94: =(LEFT(J94,1)) -> L | CU94: 2 | CX94: GK | EZ94: CB | FR94: MD | GJ94: NPS | HT94: NPS | IC94: LB | ID94: n | JD94: CB | JM94: ST | JQ94: è | JR94: 1 | KC94: ç | KD94: 1 | KE94: FW | LD94: ç | LE94: 2 | LF94: MD | LO94: MD | LX94: NPS | MG94: RB | MP94: MD | MT94: è | MU94: 3 | OR94: MD | OV94: è | OW94: 2 | PA94: MD | PE94: è | PF94: 2 | PS94: ST | QI94: ç | QJ94: 3 | QK94: MD | RL94: NPS
C95: 1 | D95: 3 | F95: =Millwall!#REF! ->  | G95: =Millwall!#REF! ->  | H95: =Millwall!#REF! ->  | I95: =Millwall!#REF! ->  | CD95: 0 | CI95: 0 | CK95: 0 | CL95: 0 | CU95: 3
C96: 1 | F96: =Millwall!#REF! ->  | H96: =Millwall!#REF! ->  | I96: =Millwall!#REF! ->  | CD96: 0 | CI96: 0 | CK96: 0 | CL96: 0 | CU96: 4
C97: 1 | F97: =Millwall!#REF! ->  | H97: =Millwall!#REF! ->  | I97: =Millwall!#REF! ->  | CD97: 0 | CI97: 0 | CK97: 0 | CL97: 0 | CU97: 5
C98: 1 | F98: =Millwall!#REF! ->  | H98: =Millwall!#REF! ->  | I98: =Millwall!#REF! ->  | CD98: 0 | CI98: 0 | CK98: 0 | CL98: 0 | CU98: 6
C99: 1 | F99: =Millwall!#REF! ->  | H99: =Millwall!#REF! ->  | I99: =Millwall!#REF! ->  | CD99: 0 | CI99: 0 | CK99: 0 | CL99: 0 | CU99: 7
C101: 0 | K101: Total League Cup Apperances | L101: =COUNTIF(L93:L99,"*")-L102-L103 -> 2 | M101: 1 | N101: 1 | O101: =COUNTIF(O93:O99,"*")-O102-O103 -> 1 | P101: =COUNTIF(P93:P99,"*")-P102-P103 -> 0 | Q101: 0 | R101: 1 | S101: 0 | T101: =COUNTIF(T93:T99,"*")-T102-T103 -> 2 | U101: =COUNTIF(U93:U99,"*")-U102-U103 -> 0 | V101: 1 | W101: =COUNTIF(W93:W99,"*")-W102-W103 -> 0 | X101: 0 | Y101: 0 | Z101: 0 | AA101: =COUNTIF(AA93:AA99,"*")-AA102-AA103 -> 2 | AB101: 0 | AC101: =COUNTIF(AC93:AC99,"*")-AC102-AC103 -> 0 | AD101: =COUNTIF(AD93:AD99,"*")-AD102-AD103 -> 2 | AE101: 2 | AF101: 0 | AG101: 0 | AH101: =COUNTIF(AH93:AH99,"*")-AH102-AH103 -> 0 | AI101: 0 | AJ101: =COUNTIF(AJ93:AJ99,"*")-AJ102-AJ103 -> 0 | AK101: =COUNTIF(AK93:AK99,"*")-AK102-AK103 -> 1 | AL101: =COUNTIF(AL93:AL99,"*")-AL102-AL103 -> 0 | AM101: =COUNTIF(AM93:AM99,"*")-AM102-AM103 -> 1 | AN101: 2 | AO101: =COUNTIF(AO93:AO99,"*")-AO102-AO103 -> 1 | AP101: 0 | AQ101: 0 | AR101: 0 | AS101: 0 | AT101: =COUNTIF(AT93:AT99,"*")-AT102-AT103 -> 0 | AU101: 1 | AV101: =COUNTIF(AV93:AV99,"*")-AV102-AV103 -> 0 | AW101: 1 | AX101: =COUNTIF(AX93:AX99,"*")-AX102-AX103 -> 0 | AY101: 0 | AZ101: 0 | BA101: 0 | BB101: 0 | BC101: 0 | BD101: 0 | BE101: 0 | BF101: =COUNTIF(BF93:BF99,"*")-BF102-BF103 -> 0 | BG101: =COUNTIF(BG93:BG99,"*")-BG102-BG103 -> 0 | BH101: =COUNTIF(BH93:BH99,"*")-BH102-BH103 -> 0 | BI101: 0 | BJ101: 0 | BK101: 0 | BL101: =COUNTIF(BL93:BL99,"*")-BL102-BL103 -> 0 | BM101: =COUNTIF(BM93:BM99,"*")-BM102-BM103 -> 0 | BN101: 0 | BO101: 0 | BP101: 0 | BQ101: 0 | BR101: 0 | BS101: 0 | BT101: 0 | BU101: 0 | BV101: 0 | BW101: 0 | BX101: 0 | BY101: 0 | BZ101: 0 | CA101: 0 | CB101: 0
K102: Total League Cup Sub Appearances | L102: =COUNTIF(L93:L99,"ç*") -> 0 | M102: 0 | N102: 0 | O102: =COUNTIF(O93:O99,"ç*") -> 0 | P102: =COUNTIF(P93:P99,"ç*") -> 0 | Q102: 0 | R102: 0 | S102: 0 | T102: =COUNTIF(T93:T99,"ç*") -> 0 | U102: =COUNTIF(U93:U99,"ç*") -> 0 | V102: 0 | W102: =COUNTIF(W93:W99,"ç*") -> 0 | X102: 0 | Y102: 0 | Z102: 0 | AA102: =COUNTIF(AA93:AA99,"ç*") -> 0 | AB102: 0 | AC102: =COUNTIF(AC93:AC99,"ç*") -> 0 | AD102: =COUNTIF(AD93:AD99,"ç*") -> 0 | AE102: 0 | AF102: 0 | AG102: 2 | AH102: =COUNTIF(AH93:AH99,"ç*") -> 0 | AI102: 0 | AJ102: =COUNTIF(AJ93:AJ99,"ç*") -> 1 | AK102: =COUNTIF(AK93:AK99,"ç*") -> 1 | AL102: =COUNTIF(AL93:AL99,"ç*") -> 0 | AM102: =COUNTIF(AM93:AM99,"ç*") -> 0 | AN102: 0 | AO102: =COUNTIF(AO93:AO99,"ç*") -> 0 | AP102: =COUNTIF(AP93:AP99,"ç*") -> 0 | AQ102: 0 | AR102: =COUNTIF(AR93:AR99,"ç*") -> 0 | AS102: 0 | AT102: =COUNTIF(AT93:AT99,"ç*") -> 0 | AU102: 0 | AV102: =COUNTIF(AV93:AV99,"ç*") -> 0 | AW102: 0 | AX102: =COUNTIF(AX93:AX99,"ç*") -> 0 | AY102: 1 | AZ102: 0 | BA102: 0 | BB102: 1 | BC102: 0 | BD102: 0 | BE102: 0 | BF102: =COUNTIF(BF93:BF99,"ç*") -> 0 | BG102: =COUNTIF(BG93:BG99,"ç*") -> 0 | BH102: =COUNTIF(BH93:BH99,"ç*") -> 0 | BI102: 0 | BJ102: 0 | BK102: 0 | BL102: =COUNTIF(BL93:BL99,"ç*") -> 0 | BM102: =COUNTIF(BM93:BM99,"ç*") -> 0 | BN102: 0 | BO102: 0 | BP102: 0 | BQ102: 0 | BR102: 0 | BS102: 0 | BT102: 0 | BU102: 0 | BV102: 0 | BW102: 0 | BX102: 0 | BY102: 0 | BZ102: 0 | CA102: 0 | CB102: 0
K103: League Cup Non Playing Substitute | L103: =COUNTIF(L93:L99,"NPS") -> 0 | M103: 0 | N103: 0 | O103: =COUNTIF(O93:O99,"NPS") -> 0 | P103: =COUNTIF(P93:P99,"NPS") -> 0 | Q103: 0 | R103: 0 | S103: 0 | T103: =COUNTIF(T93:T99,"NPS") -> 0 | U103: =COUNTIF(U93:U99,"NPS") -> 0 | V103: 1 | W103: =COUNTIF(W93:W99,"NPS") -> 0 | X103: 0 | Y103: 0 | Z103: 1 | AA103: =COUNTIF(AA93:AA99,"NPS") -> 0 | AB103: 0 | AC103: =COUNTIF(AC93:AC99,"NPS") -> 0 | AD103: =COUNTIF(AD93:AD99,"NPS") -> 0 | AE103: 0 | AF103: 0 | AG103: 0 | AH103: =COUNTIF(AH93:AH99,"NPS") -> 0 | AI103: 0 | AJ103: =COUNTIF(AJ93:AJ99,"NPS") -> 1 | AK103: =COUNTIF(AK93:AK99,"NPS") -> 0 | AL103: =COUNTIF(AL93:AL99,"NPS") -> 2 | AM103: =COUNTIF(AM93:AM99,"NPS") -> 0 | AN103: 0 | AO103: =COUNTIF(AO93:AO99,"NPS") -> 0 | AP103: =COUNTIF(AP93:AP99,"NPS") -> 0 | AQ103: 0 | AR103: =COUNTIF(AR93:AR99,"NPS") -> 0 | AS103: 0 | AT103: =COUNTIF(AT93:AT99,"NPS") -> 0 | AU103: 0 | AV103: =COUNTIF(AV93:AV99,"NPS") -> 0 | AW103: 1 | AX103: =COUNTIF(AX93:AX99,"NPS") -> 0 | AY103: 0 | AZ103: 0 | BA103: 0 | BB103: 1 | BC103: 0 | BD103: 0 | BE103: 0 | BF103: =COUNTIF(BF93:BF99,"NPS") -> 0 | BG103: =COUNTIF(BG93:BG99,"NPS") -> 0 | BH103: =COUNTIF(BH93:BH99,"NPS") -> 1 | BI103: 0 | BJ103: 0 | BK103: 0 | BL103: =COUNTIF(BL93:BL99,"NPS") -> 0 | BM103: =COUNTIF(BM93:BM99,"NPS") -> 0 | BN103: 0 | BO103: 0 | BP103: 0 | BQ103: 0 | BR103: 0 | BS103: 0 | BT103: 0 | BU103: 0 | BV103: 0 | BW103: 0 | BX103: 0 | BY103: 0 | BZ103: 0 | CA103: 0 | CB103: 0
C104: 0 | K104: Goals | L104: ='Apps Summary'!$AV$7 -> 0 | M104: ='Apps Summary'!$AV$8 -> 0 | N104: ='Apps Summary'!$AV$9 -> 0 | O104: ='Apps Summary'!$AV$10 -> 0 | P104: ='Apps Summary'!$AV$12 -> 0 | Q104: ='Apps Summary'!$AV$12 -> 0 | R104: ='Apps Summary'!$AV$13 -> 0 | S104: ='Apps Summary'!$AV$14 -> 0 | T104: ='Apps Summary'!$AV$15 -> 0 | U104: ='Apps Summary'!$AV$16 -> 0 | V104: ='Apps Summary'!$AV$17 -> 0 | W104: ='Apps Summary'!$AV$18 -> 0 | X104: ='Apps Summary'!$AV$19 -> 0 | Y104: ='Apps Summary'!$AV$20 -> 0 | Z104: ='Apps Summary'!$AV$21 -> 0 | AA104: ='Apps Summary'!$AV$22 -> 1 | AB104: ='Apps Summary'!$AV$23 -> 0 | AC104: ='Apps Summary'!$AV$24 -> 0 | AD104: ='Apps Summary'!$AV$25 -> 0 | AE104: ='Apps Summary'!$AV$26 -> 0 | AF104: ='Apps Summary'!$AV$27 -> 0 | AG104: ='Apps Summary'!$AV$28 -> 0 | AH104: ='Apps Summary'!$AV$30 -> 0 | AI104: ='Apps Summary'!$AV$29 -> 0 | AJ104: ='Apps Summary'!$AV$31 -> 0 | AK104: ='Apps Summary'!$AV$32 -> 0 | AL104: ='Apps Summary'!$AV$33 -> 0 | AM104: ='Apps Summary'!$AV$34 -> 0 | AN104: ='Apps Summary'!$AV$35 -> 0 | AO104: ='Apps Summary'!$AV$36 -> 0 | AP104: ='Apps Summary'!$AV$37 -> 0 | AQ104: ='Apps Summary'!$AV$38 -> 0 | AR104: ='Apps Summary'!$AV$39 -> 0 | AS104: ='Apps Summary'!$AV$40 -> 0 | AT104: ='Apps Summary'!$AV$41 -> 0 | AU104: ='Apps Summary'!$AV$42 -> 0 | AV104: ='Apps Summary'!$AV$43 -> 0 | AW104: ='Apps Summary'!$AV$44 -> 0 | AX104: ='Apps Summary'!$AV$45 -> 0 | AY104: ='Apps Summary'!$AV$46 -> 0 | AZ104: ='Apps Summary'!$AV$47 -> 0 | BA104: ='Apps Summary'!$AV$48 -> 0 | BB104: ='Apps Summary'!$AV$49 -> 0 | BC104: ='Apps Summary'!$AV$51 -> 0 | BD104: ='Apps Summary'!$AV$52 -> 0 | BE104: ='Apps Summary'!$AV$53 -> 0 | BF104: ='Apps Summary'!$AV$54 -> 0 | BG104: ='Apps Summary'!$AV$55 -> 0 | BH104: ='Apps Summary'!$AV$56 -> 0 | BI104: ='Apps Summary'!$AV$57 -> 0 | BJ104: ='Apps Summary'!$AV$58 -> 0 | BK104: ='Apps Summary'!$AV$59 -> 0 | BL104: ='Apps Summary'!$AV$60 -> 0 | BM104: ='Apps Summary'!$AV$61 -> 0 | BN104: 0 | BO104: 0 | BP104: 0 | BQ104: 0 | BR104: 0
C105: 0 | CE105: =SUM(CE26:CE93) -> 82
CN107: var AppsTableDateLC1= "12-Aug-14" | CO107: var AppsTableOpponentsLC1= "Wycombe" | CP107: var AppsTableVenLC1= "(H)" | CQ107: var AppsTableScoreLC1= "W 1-0"
